Workbook

Sheet Control
A1: Customer discount rates | B1: % | K1: Cumulative DF assuming 15 years
A2: High income | B2: 0.05 | D2: Recoonections as share of gross connections | E2: 0.25 | G2: Asset lives | H2: Years | J2: High income | K2: =((1+$B2)^-1+(1+$B2)^-2+(1+$B2)^-3+(1+$B2)^-4+(1+$B2)^-5+(1+$B2)^-6+(1+$B2)^-7+(1+$B2)^-8+(1+$B2)^-9+(1+$B2)^-10+(1+$B2)^-11+(1+$B2)^-12+(1+$B2)^-13+(1+$B2)^-14+(1+$B2)^-15) -> 10.37965804
A3: Medium income | B3: 0.1 | G3: Cooking | H3: 15 | J3: Medium income | K3: =((1+$B3)^-1+(1+$B3)^-2+(1+$B3)^-3+(1+$B3)^-4+(1+$B3)^-5+(1+$B3)^-6+(1+$B3)^-7+(1+$B3)^-8+(1+$B3)^-9+(1+$B3)^-10+(1+$B3)^-11+(1+$B3)^-12+(1+$B3)^-13+(1+$B3)^-14+(1+$B3)^-15) -> 7.606079506
A4: Low income | B4: 0.15 | D4: Appliance capital costs | G4: Hot water | H4: 12 | J4: Low income | K4: 5.847370099
A5: Commercial | B5: 0.03 | D5: Cooking | E5: $ real 2021 | G5: Room heating | H5: 15 | J5: Commercial | K5: 11.93793509
D6: Electric cooktop (induction) | E6: 2900 | G6: Ducted heating | H6: 15
A7: Appliance costs | D7: Gas stove | E7: 2100 | G7: Service charge | H7: 15
A8: Cooking | B8: real % change (p.a.)
A9: Electric cooktop (induction) | B9: 0 | D9: Hot water
A10: Gas stove | B10: 0 | D10: Heat pump hot water | E10: 3700
D11: Gas instant hot water | E11: 1400 | G11: Elasticities | H11: Residential B3 | I11: Commercial B2 | J11: Commercial B1 | K11: Industrial A1 | L11: Industrial A2
A12: Hot water | G12: Weather | H12: 0.2 | I12: 0.1 | J12: 0.1 | K12: 0 | L12: 0.1
A13: Heat pump hot water | B13: 0 | D13: Room heating | G13: Gas price | H13: -0.25 | I13: -0.3 | J13: -0.3 | K13: -0.37 | L13: -0.4
A14: Gas instant hot water | B14: 0 | D14: RCAC split system | E14: 2199.421687 | G14: Elecricity price | H14: 0.1 | I14: 0.1 | J14: 0.1 | K14: 0.1 | L14: 0.1
D15: Gas wall furnace | E15: 1747.2 | G15: GSP | H15: 0 | I15: 0.406 | J15: 0.29 | K15: 0 | L15: 0.2
A16: Room heating | G16: B1 Trend | H16: 0 | I16: 0 | J16: 0 | K16: 0 | L16: 63
A17: RCAC split system | B17: 0 | D17: Ducted heating
A18: Gas wall furnace | B18: 0 | D18: Ducted RCAC | E18: 4541.998937
D19: Ducted gas heating | E19: 2244.349718
A20: Ducted heating | K20: Residential | L20: Commercial
A21: Ducted RCAC | B21: 0 | D21: Gas disconnection charge | E21: 100 | G21: Distribution share of retail fixed charge | H21: % | J21: Non-Appliance Cost Related Growth | K21: 0.02 | L21: 0.02
A22: Ducted gas heating | B22: 0 | D22: Electricity connection upgrade | E22: 1500 | G22: Residential | H22: 0.4 | J22: Non-Appliance Cost Related Disconnections | K22: 0.005 | L22: 0.005
G23: Commercial | H23: 0.4
A24: Gas disconnection charge | B24: 0
A25: Electricity connection upgrade | B25: 0
A27: Appliance consumption | D27: Appliance efficiency | H27: Maintenance costs (p/a) | J27: Maintenance costs
A28: Cooking | B28: Average consumption | D28: Cooking | E28: % change (p.a.) | G28: Cooking | H28: $ | J28: Cooking | K28: real % change (p.a.)
A29: Electric cooktop (induction) kWh | B29: 133.3 | D29: Electric cooktop (induction) | E29: 0 | G29: Electric cooktop (induction) | H29: 0 | J29: Electric cooktop (induction) | K29: 0
A30: Gas stove (GJ) | B30: 1.2 | D30: Gas stove | E30: 0 | G30: Gas stove | H30: 2.160528801 | J30: Gas stove | K30: 0
A32: Hot water | D32: Hot water | G32: Hot water | J32: Hot water
A33: Heat pump hot water (kWh) | B33: 1095 | D33: Heat pump hot water | E33: 0 | G33: Heat pump hot water | H33: 43.21057602 | J33: Heat pump hot water | K33: 0
A34: Gas instant hot water (GJ) | B34: 20.6 | D34: Gas instant hot water | E34: 0 | G34: Gas instant hot water | H34: 32.40793201 | J34: Gas instant hot water | K34: 0
A36: Room heating | D36: Room heating | G36: Room heating | J36: Room heating
A37: RCAC split system (kWh) | B37: 1170 | D37: RCAC split system | E37: 0 | G37: RCAC split system | H37: 29.16713881 | J37: RCAC split system | K37: 0
A38: Gas wall furnace (GJ) | B38: 19.36551724 | D38: Gas wall furnace | E38: 0 | G38: Gas wall furnace | H38: 25.92634561 | J38: Gas wall furnace | K38: 0
A40: Ducted heating | D40: Ducted heating | G40: Ducted heating | J40: Ducted heating
A41: Ducted RCAC (kWh) | B41: 4735.714286 | D41: Ducted RCAC | E41: 0 | G41: Ducted RCAC | H41: 29.16713881 | J41: Ducted RCAC | K41: 0
A42: Ducted gas heating (GJ) | B42: 68.5862069 | D42: Ducted gas heating | E42: 0 | G42: Ducted gas heating | H42: 29.16713881 | J42: Ducted gas heating | K42: 0
A45: LGA | B45: Income class
A46: ARMADALE | B46: M
A47: BASSENDEAN | B47: M
A48: BAYSWATER | B48: M
A49: BELMONT | B49: M
A50: BUNBURY | B50: M
A51: BUSSELTON | B51: M
A52: CAMBRIDGE | B52: M
A53: CANNING | B53: M
A54: CAPEL | B54: M
A55: CHITTERING | B55: M
A56: COCKBURN | B56: M
A57: COTTESLOE | B57: M
A58: DARDANUP | B58: M
A59: EAST FREMANTLE | B59: M
A60: FREMANTLE | B60: M
A61: GOSNELLS | B61: M
A62: GREATER GERALDTON | B62: M
A63: HARVEY | B63: M
A64: JOONDALUP | B64: M
A65: KALAMUNDA | B65: M
A66: KWINANA | B66: M
A67: MANDURAH | B67: M
A68: MELVILLE | B68: M
A69: MOSMAN PARK | B69: M
A70: MUNDARING | B70: M
A71: MURRAY | B71: M
A72: NEDLANDS | B72: M
A73: PEPPERMINT GROVE | B73: M
A74: PERTH | B74: M
A75: ROCKINGHAM | B75: M
A76: SERPENTINE-JARRAHDALE | B76: M
A77: SOUTH PERTH | B77: M
A78: STIRLING | B78: M
A79: SUBIACO | B79: M
A80: SWAN | B80: M
A81: VICTORIA PARK | B81: M
A82: VINCENT | B82: M
A83: WANNEROO | B83: M
B86: 2021 | C86: =B86+1 -> 2022 | D86: =C86+1 -> 2023 | E86: 2024 | F86: 2025 | G86: 2026 | H86: 2027 | I86: 2028 | J86: 2029 | K86: 2030 | L86: 2031 | M86: 2032 | N86: 2033 | O86: 2034 | P86: 2035 | Q86: 2036 | R86: 2037 | S86: 2038 | T86: 2039 | U86: 2040 | V86: 2041 | W86: 2042 | X86: 2043 | Y86: 2044 | Z86: 2045 | AA86: 2046 | AB86: 2047 | AC86: 2048 | AD86: 2049 | AE86: 2050 | AF86: 2051 | AG86: 2052 | AH86: 2053 | AI86: 2054 | AJ86: 2055 | AK86: 2056 | AL86: 2057 | AM86: 2058 | AN86: 2059 | AO86: 2060 | AP86: 2061 | AQ86: 2062 | AR86: 2063 | AS86: 2064 | AT86: 2065 | AU86: 2066 | AV86: 2067 | AW86: 2068 | AX86: 2069 | AY86: 2070 | AZ86: 2071 | BA86: 2072 | BB86: 2073 | BC86: 2074 | BD86: 2075 | BE86: 2076 | BF86: 2077 | BG86: 2078 | BH86: 2079 | BI86: 2080 | BJ86: 2081 | BK86: 2082 | BL86: 2083 | BM86: 2084 | BN86: 2085 | BO86: 2086 | BP86: =BO86+1 -> 2087 | BQ86: 2088 | BR86: 2089 | BS86: 2090 | BT86: 2091 | BU86: 2092 | BV86: 2093 | BW86: 2094 | BX86: 2095 | BY86: 2096 | BZ86: 2097 | CA86: 2098 | CB86: 2099 | CC86: 2100
A87: Decision point | B87: 15 | C87: 15 | D87: 15 | E87: 15 | F87: 15 | G87: 15 | H87: 15 | I87: 15 | J87: 15 | K87: 15 | L87: 15 | M87: 15 | N87: 15 | O87: 15 | P87: 15 | Q87: 15 | R87: 15 | S87: 15 | T87: 15 | U87: 15 | V87: 15 | W87: 15 | X87: 15 | Y87: 15 | Z87: 15 | AA87: =Y87-1 -> 14 | AB87: =Z87-1 -> 14 | AC87: =AA87-1 -> 13 | AD87: =AB87-1 -> 13 | AE87: =AC87-1 -> 12 | AF87: =AD87-1 -> 12 | AG87: 11 | AH87: 11 | AI87: 10 | AJ87: 10 | AK87: 9 | AL87: 9 | AM87: 8 | AN87: 8 | AO87: 7 | AP87: 7 | AQ87: 6 | AR87: 6 | AS87: 5 | AT87: 5 | AU87: 4 | AV87: 4 | AW87: 3 | AX87: =AW87 -> 3 | AY87: =AX87 -> 3 | AZ87: 3 | BA87: 3 | BB87: 3 | BC87: 3 | BD87: 3 | BE87: 3 | BF87: 3 | BG87: 3 | BH87: 3 | BI87: 3 | BJ87: 3 | BK87: 3 | BL87: 3 | BM87: 3 | BN87: 3 | BO87: 3 | BP87: 3 | BQ87: 3 | BR87: 3 | BS87: 3 | BT87: 3 | BU87: 3 | BV87: 3 | BW87: 3 | BX87: 3 | BY87: 3 | BZ87: 3 | CA87: 3 | CB87: 3 | CC87: 3

Sheet Summary
A2: Customers | B2: 2020 | C2: =B2+1 -> 2021 | D2: =C2+1 -> 2022 | E2: 2023 | F2: 2024 | G2: 2025 | H2: 2026 | I2: 2027 | J2: 2028 | K2: 2029 | L2: 2030 | M2: 2031 | N2: 2032 | O2: 2033 | P2: 2034 | Q2: 2035 | R2: 2036 | S2: 2037 | T2: 2038 | U2: 2039 | V2: 2040 | W2: 2041 | X2: 2042 | Y2: 2043 | Z2: 2044 | AA2: 2045 | AB2: 2046 | AC2: 2047 | AD2: 2048 | AE2: 2049 | AF2: 2050 | AG2: 2051 | AH2: 2052 | AI2: 2053 | AJ2: 2054 | AK2: 2055 | AL2: 2056 | AM2: 2057 | AN2: 2058 | AO2: 2059 | AP2: 2060 | AQ2: 2061 | AR2: 2062 | AS2: 2063 | AT2: 2064 | AU2: 2065 | AV2: 2066 | AW2: 2067 | AX2: 2068 | AY2: 2069 | AZ2: 2070 | BA2: 2071 | BB2: 2072 | BC2: 2073 | BD2: 2074 | BE2: 2075 | BF2: 2076 | BG2: 2077 | BH2: 2078 | BI2: 2079 | BJ2: 2080 | BK2: 2081 | BL2: 2082 | BM2: 2083 | BN2: 2084 | BO2: 2085 | BP2: =BO2+1 -> 2086 | BQ2: 2087 | BR2: 2088 | BS2: 2089 | BT2: 2090 | BU2: 2091 | BV2: 2092 | BW2: 2093 | BX2: 2094 | BY2: 2095 | BZ2: 2096 | CA2: 2097 | CB2: 2098 | CC2: 2099 | CD2: 2100
A3: Residential B3 | B3: =Forecasts!J83 -> 746639 | C3: =Forecasts!K83 -> 756154 | D3: =Forecasts!L83 -> 761657.5 | E3: =Forecasts!M83 -> 771528.1511 | F3: =Forecasts!N83 -> 780312.799 | G3: =Forecasts!O83 -> 789216.6446 | H3: =Forecasts!P83 -> 796808.5614 | I3: =Forecasts!Q83 -> 803222.5185 | J3: =Forecasts!R83 -> 808306.406 | K3: =Forecasts!S83 -> 812560.8739 | L3: =Forecasts!T83 -> 813516.0696 | M3: =Forecasts!U83 -> 810214.4892 | N3: =Forecasts!V83 -> 805447.4168 | O3: =Forecasts!W83 -> 799288.1797 | P3: =Forecasts!X83 -> 788003.7388 | Q3: =Forecasts!Y83 -> 773911.7201 | R3: =Forecasts!Z83 -> 769726.1615 | S3: =Forecasts!AA83 -> 763175.5307 | T3: =Forecasts!AB83 -> 751805.653 | U3: =Forecasts!AC83 -> 741649.6248 | V3: =Forecasts!AD83 -> 723419.3766 | W3: =Forecasts!AE83 -> 704576.2798 | X3: =Forecasts!AF83 -> 685232.3984 | Y3: =Forecasts!AG83 -> 665484.2364 | Z3: =Forecasts!AH83 -> 645423.8152 | AA3: =Forecasts!AI83 -> 625803.6961 | AB3: =Forecasts!AJ83 -> 604486.6776 | AC3: =Forecasts!AK83 -> 583133.2442 | AD3: =Forecasts!AL83 -> 560088.578 | AE3: =Forecasts!AM83 -> 537274.1351 | AF3: =Forecasts!AN83 -> 515395.7644 | AG3: =Forecasts!AO83 -> 494531.7856 | AH3: =Forecasts!AP83 -> 472695.1267 | AI3: =Forecasts!AQ83 -> 451903.6511 | AJ3: =Forecasts!AR83 -> 429991.1328 | AK3: =Forecasts!AS83 -> 409863.1771 | AL3: =Forecasts!AT83 -> 388488.8613 | AM3: =Forecasts!AU83 -> 368316.417 | AN3: =Forecasts!AV83 -> 346753.8349 | AO3: =Forecasts!AW83 -> 326551.0657 | AP3: =Forecasts!AX83 -> 305696.3104 | AQ3: =Forecasts!AY83 -> 283763.8288 | AR3: =Forecasts!AZ83 -> 260345.0097 | AS3: =Forecasts!BA83 -> 238967.2846 | AT3: =Forecasts!BB83 -> 215766.4482 | AU3: =Forecasts!BC83 -> 193527.616 | AV3: =Forecasts!BD83 -> 168983.9779 | AW3: =Forecasts!BE83 -> 147722.058 | AX3: =Forecasts!BF83 -> 123381.4477 | AY3: =Forecasts!BG83 -> 103287.5405 | AZ3: =Forecasts!BH83 -> 88033.10276 | BA3: =Forecasts!BI83 -> 75192.93724 | BB3: =Forecasts!BJ83 -> 64361.97256 | BC3: =Forecasts!BK83 -> 55206.16269 | BD3: =Forecasts!BL83 -> 47456.13188 | BE3: =Forecasts!BM83 -> 40883.85122 | BF3: =Forecasts!BN83 -> 35298.43197 | BG3: =Forecasts!BO83 -> 30544.93981 | BH3: =Forecasts!BP83 -> 26488.21511 | BI3: =Forecasts!BQ83 -> 23021.77403 | BJ3: =Forecasts!BR83 -> 20058.66516 | BK3: =Forecasts!BS83 -> 17512.37184 | BL3: =Forecasts!BT83 -> 15325.80998 | BM3: =Forecasts!BU83 -> 13442.18093 | BN3: =Forecasts!BV83 -> 11817.97002 | BO3: =Forecasts!BW83 -> 10412.88017 | BP3: =Forecasts!BX83 -> 9195.81577 | BQ3: =Forecasts!BY83 -> 8139.836692 | BR3: =Forecasts!BZ83 -> 7222.137508 | BS3: =Forecasts!CA83 -> 6423.026821 | BT3: =Forecasts!CB83 -> 5721.911686 | BU3: =Forecasts!CC83 -> 5110.302128 | BV3: =Forecasts!CD83 -> 4574.750617 | BW3: =Forecasts!CE83 -> 4106.876864 | BX3: =Forecasts!CF83 -> 3694.34248 | BY3: =Forecasts!CG83 -> 3331.870768 | BZ3: =Forecasts!CH83 -> 3012.211414 | CA3: =Forecasts!CI83 -> 2730.150357 | CB3: =Forecasts!CJ83 -> 2479.499605 | CC3: =Forecasts!CK83 -> 2261.102107 | CD3: =Forecasts!CL83 -> 2064.796596
A4: Gross new connections | B4: =CustomersRes!J83 -> 10691 | C4: =CustomersRes!K83 -> 11512 | D4: =CustomersRes!L83 -> 11512 | E4: =CustomersRes!M83 -> 11512 | F4: =CustomersRes!N83 -> 11512 | G4: =CustomersRes!O83 -> 11512 | H4: =CustomersRes!P83 -> 11894 | I4: =CustomersRes!Q83 -> 11162 | J4: =CustomersRes!R83 -> 10493 | K4: =CustomersRes!S83 -> 10171 | L4: =CustomersRes!T83 -> 9112 | M4: =CustomersRes!U83 -> 8224 | N4: =CustomersRes!V83 -> 7961 | O4: =CustomersRes!W83 -> 7718 | P4: =CustomersRes!X83 -> 7055 | Q4: =CustomersRes!Y83 -> 6676 | R4: =CustomersRes!Z83 -> 7707 | S4: =CustomersRes!AA83 -> 7338 | T4: =CustomersRes!AB83 -> 6728 | U4: =CustomersRes!AC83 -> 6753 | V4: =CustomersRes!AD83 -> 5936 | W4: =CustomersRes!AE83 -> 5717 | X4: =CustomersRes!AF83 -> 5509 | Y4: =CustomersRes!AG83 -> 5303 | Z4: =CustomersRes!AH83 -> 5100 | AA4: =CustomersRes!AI83 -> 4949 | AB4: =CustomersRes!AJ83 -> 4756 | AC4: =CustomersRes!AK83 -> 4553 | AD4: =CustomersRes!AL83 -> 4364 | AE4: =CustomersRes!AM83 -> 4160 | AF4: =CustomersRes!AN83 -> 4116 | AG4: =CustomersRes!AO83 -> 3968 | AH4: =CustomersRes!AP83 -> 3829 | AI4: =CustomersRes!AQ83 -> 3675 | AJ4: =CustomersRes!AR83 -> 3530 | AK4: =CustomersRes!AS83 -> 3407 | AL4: =CustomersRes!AT83 -> 3255 | AM4: =CustomersRes!AU83 -> 3099 | AN4: =CustomersRes!AV83 -> 2952 | AO4: =CustomersRes!AW83 -> 2791 | AP4: =CustomersRes!AX83 -> 2671 | AQ4: =CustomersRes!AY83 -> 0 | AR4: =CustomersRes!AZ83 -> 0 | AS4: =CustomersRes!BA83 -> 0 | AT4: =CustomersRes!BB83 -> 0 | AU4: =CustomersRes!BC83 -> 0 | AV4: =CustomersRes!BD83 -> 0 | AW4: =CustomersRes!BE83 -> 0 | AX4: =CustomersRes!BF83 -> 0 | AY4: =CustomersRes!BG83 -> 0 | AZ4: =CustomersRes!BH83 -> 0 | BA4: =CustomersRes!BI83 -> 0 | BB4: =CustomersRes!BJ83 -> 0 | BC4: =CustomersRes!BK83 -> 0 | BD4: =CustomersRes!BL83 -> 0 | BE4: =CustomersRes!BM83 -> 0 | BF4: =CustomersRes!BN83 -> 0 | BG4: =CustomersRes!BO83 -> 0 | BH4: =CustomersRes!BP83 -> 0 | BI4: =CustomersRes!BQ83 -> 0 | BJ4: =CustomersRes!BR83 -> 0 | BK4: =CustomersRes!BS83 -> 0 | BL4: =CustomersRes!BT83 -> 0 | BM4: =CustomersRes!BU83 -> 0 | BN4: =CustomersRes!BV83 -> 0 | BO4: =CustomersRes!BW83 -> 0 | BP4: =CustomersRes!BX83 -> 0 | BQ4: =CustomersRes!BY83 -> 0 | BR4: =CustomersRes!BZ83 -> 0 | BS4: =CustomersRes!CA83 -> 0 | BT4: =CustomersRes!CB83 -> 0 | BU4: =CustomersRes!CC83 -> 0 | BV4: =CustomersRes!CD83 -> 0 | BW4: =CustomersRes!CE83 -> 0 | BX4: =CustomersRes!CF83 -> 0 | BY4: =CustomersRes!CG83 -> 0 | BZ4: =CustomersRes!CH83 -> 0 | CA4: =CustomersRes!CI83 -> 0 | CB4: =CustomersRes!CJ83 -> 0 | CC4: =CustomersRes!CK83 -> 0 | CD4: =CustomersRes!CL83 -> 0
A5: Disconnections | B5: =CustomersRes!J125 -> 8177 | C5: =CustomersRes!K125 -> 1999 | D5: =CustomersRes!L125 -> 1999 | E5: =CustomersRes!M125 -> 1999 | F5: =CustomersRes!N125 -> 1999 | G5: =CustomersRes!O125 -> 1999 | H5: =CustomersRes!P125 -> 4302.083223 | I5: =CustomersRes!Q125 -> 4748.042807 | J5: =CustomersRes!R125 -> 5409.112593 | K5: =CustomersRes!S125 -> 5916.53203 | L5: =CustomersRes!T125 -> 8156.80437 | M5: =CustomersRes!U125 -> 11525.58035 | N5: =CustomersRes!V125 -> 12728.07245 | O5: =CustomersRes!W125 -> 13877.23708 | P5: =CustomersRes!X125 -> 18339.4409 | Q5: =CustomersRes!Y125 -> 20768.01869 | R5: =CustomersRes!Z125 -> 11892.5586 | S5: =CustomersRes!AA125 -> 13888.63081 | T5: =CustomersRes!AB125 -> 18097.87765 | U5: =CustomersRes!AC125 -> 16909.02827 | V5: =CustomersRes!AD125 -> 24166.24812 | W5: =CustomersRes!AE125 -> 24560.09688 | X5: =CustomersRes!AF125 -> 24852.8814 | Y5: =CustomersRes!AG125 -> 25051.16199 | Z5: =CustomersRes!AH125 -> 25160.42118 | AA5: =CustomersRes!AI125 -> 24569.11908 | AB5: =CustomersRes!AJ125 -> 26073.01848 | AC5: =CustomersRes!AK125 -> 25906.43339 | AD5: =CustomersRes!AL125 -> 27408.66622 | AE5: =CustomersRes!AM125 -> 26974.44289 | AF5: =CustomersRes!AN125 -> 25994.37068 | AG5: =CustomersRes!AO125 -> 24831.97882 | AH5: =CustomersRes!AP125 -> 25665.65893 | AI5: =CustomersRes!AQ125 -> 24466.47563 | AJ5: =CustomersRes!AR125 -> 25442.51826 | AK5: =CustomersRes!AS125 -> 23534.95566 | AL5: =CustomersRes!AT125 -> 24629.31589 | AM5: =CustomersRes!AU125 -> 23271.44431 | AN5: =CustomersRes!AV125 -> 24514.58208 | AO5: =CustomersRes!AW125 -> 22993.76917 | AP5: =CustomersRes!AX125 -> 23525.75533 | AQ5: =CustomersRes!AY125 -> 21932.48155 | AR5: =CustomersRes!AZ125 -> 23418.81914 | AS5: =CustomersRes!BA125 -> 21377.72505 | AT5: =CustomersRes!BB125 -> 23200.83642 | AU5: =CustomersRes!BC125 -> 22238.83224 | AV5: =CustomersRes!BD125 -> 24543.63808 | AW5: =CustomersRes!BE125 -> 21261.91989 | AX5: =CustomersRes!BF125 -> 24340.61029 | AY5: =CustomersRes!BG125 -> 20093.90724 | AZ5: =CustomersRes!BH125 -> 15254.4377 | BA5: =CustomersRes!BI125 -> 12840.16551 | BB5: =CustomersRes!BJ125 -> 10830.96469 | BC5: =CustomersRes!BK125 -> 9155.809863 | BD5: =CustomersRes!BL125 -> 7750.030813 | BE5: =CustomersRes!BM125 -> 6572.280659 | BF5: =CustomersRes!BN125 -> 5585.419256 | BG5: =CustomersRes!BO125 -> 4753.49216 | BH5: =CustomersRes!BP125 -> 4056.724699 | BI5: =CustomersRes!BQ125 -> 3466.441076 | BJ5: =CustomersRes!BR125 -> 2963.10887 | BK5: =CustomersRes!BS125 -> 2546.293326 | BL5: =CustomersRes!BT125 -> 2186.561859 | BM5: =CustomersRes!BU125 -> 1883.62905 | BN5: =CustomersRes!BV125 -> 1624.210905 | BO5: =CustomersRes!BW125 -> 1405.08985 | BP5: =CustomersRes!BX125 -> 1217.064401 | BQ5: =CustomersRes!BY125 -> 1055.979079 | BR5: =CustomersRes!BZ125 -> 917.6991835 | BS5: =CustomersRes!CA125 -> 799.1106875 | BT5: =CustomersRes!CB125 -> 701.1151341 | BU5: =CustomersRes!CC125 -> 611.6095584 | BV5: =CustomersRes!CD125 -> 535.5515106 | BW5: =CustomersRes!CE125 -> 467.8737531 | BX5: =CustomersRes!CF125 -> 412.5343843 | BY5: =CustomersRes!CG125 -> 362.4717124 | BZ5: =CustomersRes!CH125 -> 319.6593538 | CA5: =CustomersRes!CI125 -> 282.0610571 | CB5: =CustomersRes!CJ125 -> 250.6507518 | CC5: =CustomersRes!CK125 -> 218.397498 | CD5: =CustomersRes!CL125 -> 196.3055105
A6: Commercial B2 | B6: =Forecasts!J209 -> 12139 | C6: =Forecasts!K209 -> 12318 | D6: =Forecasts!L209 -> 12429 | E6: =Forecasts!M209 -> 12602.81093 | F6: =Forecasts!N209 -> 12738.09801 | G6: =Forecasts!O209 -> 12882.37729 | H6: =Forecasts!P209 -> 13032.9654 | I6: =Forecasts!Q209 -> 13099.80057 | J6: =Forecasts!R209 -> 13061.30157 | K6: =Forecasts!S209 -> 12969.99506 | L6: =Forecasts!T209 -> 12772.14509 | M6: =Forecasts!U209 -> 12506.28436 | N6: =Forecasts!V209 -> 12237.75294 | O6: =Forecasts!W209 -> 11975.56418 | P6: =Forecasts!X209 -> 11689.68635 | Q6: =Forecasts!Y209 -> 11408.23792 | R6: =Forecasts!Z209 -> 11225.19673 | S6: =Forecasts!AA209 -> 11035.07075 | T6: =Forecasts!AB209 -> 10818.8954 | U6: =Forecasts!AC209 -> 10627.80092 | V6: =Forecasts!AD209 -> 10391.66191 | W6: =Forecasts!AE209 -> 10160.7036 | X6: =Forecasts!AF209 -> 9940.900086 | Y6: =Forecasts!AG209 -> 9726.195586 | Z6: =Forecasts!AH209 -> 9518.564608 | AA6: =Forecasts!AI209 -> 9321.971785 | AB6: =Forecasts!AJ209 -> 9106.361926 | AC6: =Forecasts!AK209 -> 8900.830117 | AD6: =Forecasts!AL209 -> 8675.325966 | AE6: =Forecasts!AM209 -> 8460.949336 | AF6: =Forecasts!AN209 -> 8235.644589 | AG6: =Forecasts!AO209 -> 8029.466366 | AH6: =Forecasts!AP209 -> 7810.319035 | AI6: =Forecasts!AQ209 -> 7604.267439 | AJ6: =Forecasts!AR209 -> 7380.246102 | AK6: =Forecasts!AS209 -> 7177.344872 | AL6: =Forecasts!AT209 -> 6959.458147 | AM6: =Forecasts!AU209 -> 6761.660857 | AN6: =Forecasts!AV209 -> 6534.852552 | AO6: =Forecasts!AW209 -> 6332.17829 | AP6: =Forecasts!AX209 -> 6105.517398 | AQ6: =Forecasts!AY209 -> 5820.989811 | AR6: =Forecasts!AZ209 -> 5510.884862 | AS6: =Forecasts!BA209 -> 5231.330438 | AT6: =Forecasts!BB209 -> 4918.173786 | AU6: =Forecasts!BC209 -> 4626.582917 | AV6: =Forecasts!BD209 -> 4291.450002 | AW6: =Forecasts!BE209 -> 3992.992752 | AX6: =Forecasts!BF209 -> 3632.027788 | AY6: =Forecasts!BG209 -> 3325.867649 | AZ6: =Forecasts!BH209 -> 3069.238311 | BA6: =Forecasts!BI209 -> 2842.89212 | BB6: =Forecasts!BJ209 -> 2645.677659 | BC6: =Forecasts!BK209 -> 2470.449271 | BD6: =Forecasts!BL209 -> 2313.097024 | BE6: =Forecasts!BM209 -> 2170.531539 | BF6: =Forecasts!BN209 -> 2043.678882 | BG6: =Forecasts!BO209 -> 1925.460487 | BH6: =Forecasts!BP209 -> 1816.833185 | BI6: =Forecasts!BQ209 -> 1715.749019 | BJ6: =Forecasts!BR209 -> 1624.170274 | BK6: =Forecasts!BS209 -> 1541.049422 | BL6: =Forecasts!BT209 -> 1462.344175 | BM6: =Forecasts!BU209 -> 1390.032454 | BN6: =Forecasts!BV209 -> 1323.082292 | BO6: =Forecasts!BW209 -> 1261.466881 | BP6: =Forecasts!BX209 -> 1205.159546 | BQ6: =Forecasts!BY209 -> 1153.133748 | BR6: =Forecasts!BZ209 -> 1104.36808 | BS6: =Forecasts!CA209 -> 1058.846239 | BT6: =Forecasts!CB209 -> 1016.552008 | BU6: =Forecasts!CC209 -> 975.4692481 | BV6: =Forecasts!CD209 -> 937.5919018 | BW6: =Forecasts!CE209 -> 902.9039423 | BX6: =Forecasts!CF209 -> 869.3894226 | BY6: =Forecasts!CG209 -> 838.0424755 | BZ6: =Forecasts!CH209 -> 809.8522631 | CA6: =Forecasts!CI209 -> 781.8030018 | CB6: =Forecasts!CJ209 -> 756.8939868 | CC6: =Forecasts!CK209 -> 732.1095169 | CD6: =Forecasts!CL209 -> 711.4489693
A7: Gross new connections | B7: =CustomersCOM!J83 -> 241 | C7: =CustomersCOM!K83 -> 224 | D7: =CustomersCOM!L83 -> 224 | E7: =CustomersCOM!M83 -> 224 | F7: =CustomersCOM!N83 -> 224 | G7: =CustomersCOM!O83 -> 224 | H7: =CustomersCOM!P83 -> 237 | I7: =CustomersCOM!Q83 -> 220 | J7: =CustomersCOM!R83 -> 191 | K7: =CustomersCOM!S83 -> 175 | L7: =CustomersCOM!T83 -> 151 | M7: =CustomersCOM!U83 -> 130 | N7: =CustomersCOM!V83 -> 128 | O7: =CustomersCOM!W83 -> 125 | P7: =CustomersCOM!X83 -> 118 | Q7: =CustomersCOM!Y83 -> 114 | R7: =CustomersCOM!Z83 -> 132 | S7: =CustomersCOM!AA83 -> 125 | T7: =CustomersCOM!AB83 -> 119 | U7: =CustomersCOM!AC83 -> 122 | V7: =CustomersCOM!AD83 -> 107 | W7: =CustomersCOM!AE83 -> 105 | X7: =CustomersCOM!AF83 -> 103 | Y7: =CustomersCOM!AG83 -> 100 | Z7: =CustomersCOM!AH83 -> 99 | AA7: =CustomersCOM!AI83 -> 98 | AB7: =CustomersCOM!AJ83 -> 96 | AC7: =CustomersCOM!AK83 -> 94 | AD7: =CustomersCOM!AL83 -> 93 | AE7: =CustomersCOM!AM83 -> 89 | AF7: =CustomersCOM!AN83 -> 88 | AG7: =CustomersCOM!AO83 -> 88 | AH7: =CustomersCOM!AP83 -> 88 | AI7: =CustomersCOM!AQ83 -> 85 | AJ7: =CustomersCOM!AR83 -> 84 | AK7: =CustomersCOM!AS83 -> 83 | AL7: =CustomersCOM!AT83 -> 83 | AM7: =CustomersCOM!AU83 -> 82 | AN7: =CustomersCOM!AV83 -> 79 | AO7: =CustomersCOM!AW83 -> 80 | AP7: =CustomersCOM!AX83 -> 78 | AQ7: =CustomersCOM!AY83 -> 0 | AR7: =CustomersCOM!AZ83 -> 0 | AS7: =CustomersCOM!BA83 -> 0 | AT7: =CustomersCOM!BB83 -> 0 | AU7: =CustomersCOM!BC83 -> 0 | AV7: =CustomersCOM!BD83 -> 0 | AW7: =CustomersCOM!BE83 -> 0 | AX7: =CustomersCOM!BF83 -> 0 | AY7: =CustomersCOM!BG83 -> 0 | AZ7: =CustomersCOM!BH83 -> 0 | BA7: =CustomersCOM!BI83 -> 0 | BB7: =CustomersCOM!BJ83 -> 0 | BC7: =CustomersCOM!BK83 -> 0 | BD7: =CustomersCOM!BL83 -> 0 | BE7: =CustomersCOM!BM83 -> 0 | BF7: =CustomersCOM!BN83 -> 0 | BG7: =CustomersCOM!BO83 -> 0 | BH7: =CustomersCOM!BP83 -> 0 | BI7: =CustomersCOM!BQ83 -> 0 | BJ7: =CustomersCOM!BR83 -> 0 | BK7: =CustomersCOM!BS83 -> 0 | BL7: =CustomersCOM!BT83 -> 0 | BM7: =CustomersCOM!BU83 -> 0 | BN7: =CustomersCOM!BV83 -> 0 | BO7: =CustomersCOM!BW83 -> 0 | BP7: =CustomersCOM!BX83 -> 0 | BQ7: =CustomersCOM!BY83 -> 0 | BR7: =CustomersCOM!BZ83 -> 0 | BS7: =CustomersCOM!CA83 -> 0 | BT7: =CustomersCOM!CB83 -> 0 | BU7: =CustomersCOM!CC83 -> 0 | BV7: =CustomersCOM!CD83 -> 0 | BW7: =CustomersCOM!CE83 -> 0 | BX7: =CustomersCOM!CF83 -> 0 | BY7: =CustomersCOM!CG83 -> 0 | BZ7: =CustomersCOM!CH83 -> 0 | CA7: =CustomersCOM!CI83 -> 0 | CB7: =CustomersCOM!CJ83 -> 0 | CC7: =CustomersCOM!CK83 -> 0 | CD7: =CustomersCOM!CL83 -> 0
A8: Disconnections | B8: =CustomersCOM!J125 -> 280 | C8: =CustomersCOM!K125 -> 50 | D8: =CustomersCOM!L125 -> 50 | E8: =CustomersCOM!M125 -> 50 | F8: =CustomersCOM!N125 -> 50 | G8: =CustomersCOM!O125 -> 50 | H8: =CustomersCOM!P125 -> 86.41188643 | I8: =CustomersCOM!Q125 -> 153.164827 | J8: =CustomersCOM!R125 -> 229.4990029 | K8: =CustomersCOM!S125 -> 266.3065079 | L8: =CustomersCOM!T125 -> 348.8499753 | M8: =CustomersCOM!U125 -> 395.8607254 | N8: =CustomersCOM!V125 -> 396.5314218 | O8: =CustomersCOM!W125 -> 387.1887647 | P8: =CustomersCOM!X125 -> 403.8778209 | Q8: =CustomersCOM!Y125 -> 395.4484318 | R8: =CustomersCOM!Z125 -> 315.0411896 | S8: =CustomersCOM!AA125 -> 315.1259837 | T8: =CustomersCOM!AB125 -> 335.1753537 | U8: =CustomersCOM!AC125 -> 313.094477 | V8: =CustomersCOM!AD125 -> 343.1390046 | W8: =CustomersCOM!AE125 -> 335.9583096 | X8: =CustomersCOM!AF125 -> 322.803518 | Y8: =CustomersCOM!AG125 -> 314.7045004 | Z8: =CustomersCOM!AH125 -> 306.6309779 | AA8: =CustomersCOM!AI125 -> 294.592823 | AB8: =CustomersCOM!AJ125 -> 311.6098589 | AC8: =CustomersCOM!AK125 -> 299.5318096 | AD8: =CustomersCOM!AL125 -> 318.5041506 | AE8: =CustomersCOM!AM125 -> 303.3766298 | AF8: =CustomersCOM!AN125 -> 313.3047467 | AG8: =CustomersCOM!AO125 -> 294.1782229 | AH8: =CustomersCOM!AP125 -> 307.1473318 | AI8: =CustomersCOM!AQ125 -> 291.0515952 | AJ8: =CustomersCOM!AR125 -> 308.0213372 | AK8: =CustomersCOM!AS125 -> 285.9012305 | AL8: =CustomersCOM!AT125 -> 300.8867244 | AM8: =CustomersCOM!AU125 -> 279.7972907 | AN8: =CustomersCOM!AV125 -> 305.8083043 | AO8: =CustomersCOM!AW125 -> 282.6742628 | AP8: =CustomersCOM!AX125 -> 304.6608914 | AQ8: =CustomersCOM!AY125 -> 284.527587 | AR8: =CustomersCOM!AZ125 -> 310.1049491 | AS8: =CustomersCOM!BA125 -> 279.5544243 | AT8: =CustomersCOM!BB125 -> 313.1566522 | AU8: =CustomersCOM!BC125 -> 291.5908689 | AV8: =CustomersCOM!BD125 -> 335.1329146 | AW8: =CustomersCOM!BE125 -> 298.45725 | AX8: =CustomersCOM!BF125 -> 360.9649638 | AY8: =CustomersCOM!BG125 -> 306.1601389 | AZ8: =CustomersCOM!BH125 -> 256.6293382 | BA8: =CustomersCOM!BI125 -> 226.3461916 | BB8: =CustomersCOM!BJ125 -> 197.2144606 | BC8: =CustomersCOM!BK125 -> 175.2283883 | BD8: =CustomersCOM!BL125 -> 157.3522464 | BE8: =CustomersCOM!BM125 -> 142.5654851 | BF8: =CustomersCOM!BN125 -> 126.8526577 | BG8: =CustomersCOM!BO125 -> 118.2183944 | BH8: =CustomersCOM!BP125 -> 108.6273024 | BI8: =CustomersCOM!BQ125 -> 101.0841659 | BJ8: =CustomersCOM!BR125 -> 91.57874509 | BK8: =CustomersCOM!BS125 -> 83.12085137 | BL8: =CustomersCOM!BT125 -> 78.70524711 | BM8: =CustomersCOM!BU125 -> 72.31172088 | BN8: =CustomersCOM!BV125 -> 66.95016227 | BO8: =CustomersCOM!BW125 -> 61.61541146 | BP8: =CustomersCOM!BX125 -> 56.3073344 | BQ8: =CustomersCOM!BY125 -> 52.02579773 | BR8: =CustomersCOM!BZ125 -> 48.76566874 | BS8: =CustomersCOM!CA125 -> 45.5218404 | BT8: =CustomersCOM!CB125 -> 42.2942312 | BU8: =CustomersCOM!CC125 -> 41.08276004 | BV8: =CustomersCOM!CD125 -> 37.87734624 | BW8: =CustomersCOM!CE125 -> 34.68795951 | BX8: =CustomersCOM!CF125 -> 33.51451971 | BY8: =CustomersCOM!CG125 -> 31.34694711 | BZ8: =CustomersCOM!CH125 -> 28.19021238 | CA8: =CustomersCOM!CI125 -> 28.04926132 | CB8: =CustomersCOM!CJ125 -> 24.90901501 | CC8: =CustomersCOM!CK125 -> 24.78446993 | CD8: =CustomersCOM!CL125 -> 20.66054758
A9: Commercial B1 | B9: =Forecasts!J259 -> 1841 | C9: =Forecasts!K259 -> 1912 | D9: =Forecasts!L259 -> 1940 | E9: =Forecasts!M259 -> 1993.33948 | F9: =Forecasts!N259 -> 2040.015978 | G9: =Forecasts!O259 -> 2084.835369 | H9: =Forecasts!P259 -> 2109.205981 | I9: =Forecasts!Q259 -> 2120.022334 | J9: =Forecasts!R259 -> 2113.7918 | K9: =Forecasts!S259 -> 2099.015099 | L9: =Forecasts!T259 -> 2066.995805 | M9: =Forecasts!U259 -> 2023.969908 | N9: =Forecasts!V259 -> 1980.511795 | O9: =Forecasts!W259 -> 1938.080154 | P9: =Forecasts!X259 -> 1891.814765 | Q9: =Forecasts!Y259 -> 1846.266212 | R9: =Forecasts!Z259 -> 1816.643516 | S9: =Forecasts!AA259 -> 1785.874244 | T9: =Forecasts!AB259 -> 1750.88924 | U9: =Forecasts!AC259 -> 1719.96323 | V9: =Forecasts!AD259 -> 1681.747384 | W9: =Forecasts!AE259 -> 1644.369962 | X9: =Forecasts!AF259 -> 1608.797789 | Y9: =Forecasts!AG259 -> 1574.050822 | Z9: =Forecasts!AH259 -> 1540.448608 | AA9: =Forecasts!AI259 -> 1508.632767 | AB9: =Forecasts!AJ259 -> 1473.73928 | AC9: =Forecasts!AK259 -> 1440.476787 | AD9: =Forecasts!AL259 -> 1403.982045 | AE9: =Forecasts!AM259 -> 1369.28814 | AF9: =Forecasts!AN259 -> 1332.825669 | AG9: =Forecasts!AO259 -> 1299.458563 | AH9: =Forecasts!AP259 -> 1263.992585 | AI9: =Forecasts!AQ259 -> 1230.645972 | AJ9: =Forecasts!AR259 -> 1194.391203 | AK9: =Forecasts!AS259 -> 1161.554433 | AL9: =Forecasts!AT259 -> 1126.292467 | AM9: =Forecasts!AU259 -> 1094.281699 | AN9: =Forecasts!AV259 -> 1057.575898 | AO9: =Forecasts!AW259 -> 1024.77586 | AP9: =Forecasts!AX259 -> 988.0939157 | AQ9: =Forecasts!AY259 -> 942.0470438 | AR9: =Forecasts!AZ259 -> 891.8608281 | AS9: =Forecasts!BA259 -> 846.6187941 | AT9: =Forecasts!BB259 -> 795.9387022 | AU9: =Forecasts!BC259 -> 748.7487354 | AV9: =Forecasts!BD259 -> 694.512088 | AW9: =Forecasts!BE259 -> 646.210892 | AX9: =Forecasts!BF259 -> 587.7936832 | AY9: =Forecasts!BG259 -> 538.2458807 | AZ9: =Forecasts!BH259 -> 496.7139561 | BA9: =Forecasts!BI259 -> 460.0829419 | BB9: =Forecasts!BJ259 -> 428.1664972 | BC9: =Forecasts!BK259 -> 399.8081955 | BD9: =Forecasts!BL259 -> 374.3429012 | BE9: =Forecasts!BM259 -> 351.2706406 | BF9: =Forecasts!BN259 -> 330.7412848 | BG9: =Forecasts!BO259 -> 311.6092656 | BH9: =Forecasts!BP259 -> 294.0294325 | BI9: =Forecasts!BQ259 -> 277.6703522 | BJ9: =Forecasts!BR259 -> 262.8495934 | BK9: =Forecasts!BS259 -> 249.3976282 | BL9: =Forecasts!BT259 -> 236.6602678 | BM9: =Forecasts!BU259 -> 224.9576115 | BN9: =Forecasts!BV259 -> 214.1226497 | BO9: =Forecasts!BW259 -> 204.1510438 | BP9: =Forecasts!BX259 -> 195.0384771 | BQ9: =Forecasts!BY259 -> 186.6188181 | BR9: =Forecasts!BZ259 -> 178.7267662 | BS9: =Forecasts!CA259 -> 171.3596831 | BT9: =Forecasts!CB259 -> 164.5149442 | BU9: =Forecasts!CC259 -> 157.8662652 | BV9: =Forecasts!CD259 -> 151.7363383 | BW9: =Forecasts!CE259 -> 146.1225698 | BX9: =Forecasts!CF259 -> 140.6987062 | BY9: =Forecasts!CG259 -> 135.6256345 | BZ9: =Forecasts!CH259 -> 131.0634368 | CA9: =Forecasts!CI259 -> 126.5240501 | CB9: =Forecasts!CJ259 -> 122.4928691 | CC9: =Forecasts!CK259 -> 118.4818439 | CD9: =Forecasts!CL259 -> 115.1382188
A10: Industrial A1 | B10: =Forecasts!J260 -> 74 | C10: =Forecasts!K260 -> 74 | D10: =Forecasts!L260 -> 73 | E10: =Forecasts!M260 -> 72 | F10: =Forecasts!N260 -> 69.5 | G10: =Forecasts!O260 -> 68 | H10: =Forecasts!P260 -> 68 | I10: =Forecasts!Q260 -> 68 | J10: =Forecasts!R260 -> 68 | K10: =Forecasts!S260 -> 68 | L10: =Forecasts!T260 -> 68 | M10: =Forecasts!U260 -> 68 | N10: =Forecasts!V260 -> 67.59990727 | O10: =Forecasts!W260 -> 67.0829724 | P10: =Forecasts!X260 -> 66.13588741 | Q10: =Forecasts!Y260 -> 64.95316693 | R10: =Forecasts!Z260 -> 64.60187972 | S10: =Forecasts!AA260 -> 64.05209581 | T10: =Forecasts!AB260 -> 63.09784025 | U10: =Forecasts!AC260 -> 62.24546112 | V10: =Forecasts!AD260 -> 60.71542569 | W10: =Forecasts!AE260 -> 59.13395485 | X10: =Forecasts!AF260 -> 57.51045397 | Y10: =Forecasts!AG260 -> 55.85302247 | Z10: =Forecasts!AH260 -> 54.16938356 | AA10: =Forecasts!AI260 -> 52.5226985 | AB10: =Forecasts!AJ260 -> 50.73359539 | AC10: =Forecasts!AK260 -> 48.94143605 | AD10: =Forecasts!AL260 -> 47.00733425 | AE10: =Forecasts!AM260 -> 45.09255472 | AF10: =Forecasts!AN260 -> 43.25633823 | AG10: =Forecasts!AO260 -> 41.50525802 | AH10: =Forecasts!AP260 -> 39.67254233 | AI10: =Forecasts!AQ260 -> 37.92754719 | AJ10: =Forecasts!AR260 -> 36.08846475 | AK10: =Forecasts!AS260 -> 34.39915778 | AL10: =Forecasts!AT260 -> 32.60524579 | AM10: =Forecasts!AU260 -> 30.91220496 | AN10: =Forecasts!AV260 -> 29.1024921 | AO10: =Forecasts!AW260 -> 27.40690615 | AP10: =Forecasts!AX260 -> 25.65660005 | AQ10: =Forecasts!AY260 -> 23.81584212 | AR10: =Forecasts!AZ260 -> 21.85033827 | AS10: =Forecasts!BA260 -> 20.05614016 | AT10: =Forecasts!BB260 -> 18.10893124 | AU10: =Forecasts!BC260 -> 16.24246179 | AV10: =Forecasts!BD260 -> 14.18255369 | AW10: =Forecasts!BE260 -> 12.39807493 | AX10: =Forecasts!BF260 -> 10.35520662 | AY10: =Forecasts!BG260 -> 8.668757279 | AZ10: =Forecasts!BH260 -> 7.388476838 | BA10: =Forecasts!BI260 -> 6.310822382 | BB10: =Forecasts!BJ260 -> 5.401796922 | BC10: =Forecasts!BK260 -> 4.633364514 | BD10: =Forecasts!BL260 -> 3.982916883 | BE10: =Forecasts!BM260 -> 3.431315929 | BF10: =Forecasts!BN260 -> 2.962540667 | BG10: =Forecasts!BO260 -> 2.56358771 | BH10: =Forecasts!BP260 -> 2.223113325 | BI10: =Forecasts!BQ260 -> 1.932180497 | BJ10: =Forecasts!BR260 -> 1.683491531 | BK10: =Forecasts!BS260 -> 1.469785224 | BL10: =Forecasts!BT260 -> 1.286270601 | BM10: =Forecasts!BU260 -> 1.128180642 | BN10: =Forecasts!BV260 -> 0.9918632315 | BO10: =Forecasts!BW260 -> 0.8739362984 | BP10: =Forecasts!BX260 -> 0.7717900392 | BQ10: =Forecasts!BY260 -> 0.6831634122 | BR10: =Forecasts!BZ260 -> 0.6061423945 | BS10: =Forecasts!CA260 -> 0.5390743187 | BT10: =Forecasts!CB260 -> 0.4802308523 | BU10: =Forecasts!CC260 -> 0.4288994449 | BV10: =Forecasts!CD260 -> 0.3839514673 | BW10: =Forecasts!CE260 -> 0.3446835751 | BX10: =Forecasts!CF260 -> 0.3100602272 | BY10: =Forecasts!CG260 -> 0.2796385589 | BZ10: =Forecasts!CH260 -> 0.2528100631 | CA10: =Forecasts!CI260 -> 0.2291371319 | CB10: =Forecasts!CJ260 -> 0.2081004171 | CC10: =Forecasts!CK260 -> 0.1897706661 | CD10: =Forecasts!CL260 -> 0.17329506
A11: Industrial A2 | B11: =Forecasts!J261 -> 103 | C11: =Forecasts!K261 -> 105 | D11: =Forecasts!L261 -> 104 | E11: =Forecasts!M261 -> 103 | F11: =Forecasts!N261 -> 103 | G11: =Forecasts!O261 -> 103 | H11: =Forecasts!P261 -> 103 | I11: =Forecasts!Q261 -> 103 | J11: =Forecasts!R261 -> 103 | K11: =Forecasts!S261 -> 102.2799668 | L11: =Forecasts!T261 -> 100.7197435 | M11: =Forecasts!U261 -> 98.62319481 | N11: =Forecasts!V261 -> 96.5055853 | O11: =Forecasts!W261 -> 94.43799329 | P11: =Forecasts!X261 -> 92.18359197 | Q11: =Forecasts!Y261 -> 89.96412032 | R11: =Forecasts!Z261 -> 88.52067746 | S11: =Forecasts!AA261 -> 87.02136468 | T11: =Forecasts!AB261 -> 85.31662941 | U11: =Forecasts!AC261 -> 83.80967921 | V11: =Forecasts!AD261 -> 81.94751276 | W11: =Forecasts!AE261 -> 80.12620072 | X11: =Forecasts!AF261 -> 78.39285414 | Y11: =Forecasts!AG261 -> 76.69971786 | Z11: =Forecasts!AH261 -> 75.06236261 | AA11: =Forecasts!AI261 -> 73.51205304 | AB11: =Forecasts!AJ261 -> 71.81177721 | AC11: =Forecasts!AK261 -> 70.19097577 | AD11: =Forecasts!AL261 -> 68.41267462 | AE11: =Forecasts!AM261 -> 66.7221239 | AF11: =Forecasts!AN261 -> 64.94539523 | AG11: =Forecasts!AO261 -> 63.31949625 | AH11: =Forecasts!AP261 -> 61.59132428 | AI11: =Forecasts!AQ261 -> 59.96642387 | AJ11: =Forecasts!AR261 -> 58.19981603 | AK11: =Forecasts!AS261 -> 56.59975905 | AL11: =Forecasts!AT261 -> 54.8815281 | AM11: =Forecasts!AU261 -> 53.32172023 | AN11: =Forecasts!AV261 -> 51.53313468 | AO11: =Forecasts!AW261 -> 49.93486754 | AP11: =Forecasts!AX261 -> 48.14744447 | AQ11: =Forecasts!AY261 -> 45.90369094 | AR11: =Forecasts!AZ261 -> 43.45823712 | AS11: =Forecasts!BA261 -> 41.25370142 | AT11: =Forecasts!BB261 -> 38.7841822 | AU11: =Forecasts!BC261 -> 36.48472841 | AV11: =Forecasts!BD261 -> 33.84190678 | AW11: =Forecasts!BE261 -> 31.48830545 | AX11: =Forecasts!BF261 -> 28.64177511 | AY11: =Forecasts!BG261 -> 26.22742964 | AZ11: =Forecasts!BH261 -> 24.20367866 | BA11: =Forecasts!BI261 -> 22.41873727 | BB11: =Forecasts!BJ261 -> 20.86352554 | BC11: =Forecasts!BK261 -> 19.48169357 | BD11: =Forecasts!BL261 -> 18.24083092 | BE11: =Forecasts!BM261 -> 17.11657505 | BF11: =Forecasts!BN261 -> 16.11622882 | BG11: =Forecasts!BO261 -> 15.18397145 | BH11: =Forecasts!BP261 -> 14.32734839 | BI11: =Forecasts!BQ261 -> 13.53020968 | BJ11: =Forecasts!BR261 -> 12.80802968 | BK11: =Forecasts!BS261 -> 12.15254771 | BL11: =Forecasts!BT261 -> 11.53188671 | BM11: =Forecasts!BU261 -> 10.96164437 | BN11: =Forecasts!BV261 -> 10.43368269 | BO11: =Forecasts!BW261 -> 9.947790272 | BP11: =Forecasts!BX261 -> 9.503756773 | BQ11: =Forecasts!BY261 -> 9.093487004 | BR11: =Forecasts!BZ261 -> 8.708926258 | BS11: =Forecasts!CA261 -> 8.349945988 | BT11: =Forecasts!CB261 -> 8.016418293 | BU11: =Forecasts!CC261 -> 7.692444127 | BV11: =Forecasts!CD261 -> 7.393747504 | BW11: =Forecasts!CE261 -> 7.120202038 | BX11: =Forecasts!CF261 -> 6.85591019 | BY11: =Forecasts!CG261 -> 6.608711583 | BZ11: =Forecasts!CH261 -> 6.386406642 | CA11: =Forecasts!CI261 -> 6.165213226 | CB11: =Forecasts!CJ261 -> 5.968783449 | CC11: =Forecasts!CK261 -> 5.773335822 | CD11: =Forecasts!CL261 -> 5.610408997
A12: ATCO | B12: =SUM(B3,B6,B9,B10,B11) -> 760796 | C12: 770563 | D12: 776203.5 | E12: 786299.3015 | F12: 795263.413 | G12: 804354.8572 | H12: 812121.7327 | I12: 818613.3415 | J12: 823652.4993 | K12: 827800.1641 | L12: 828523.9302 | M12: 824911.3667 | N12: 819829.787 | O12: 813363.345 | P12: 801743.5594 | Q12: 787321.1415 | R12: 782921.1243 | S12: 776147.5491 | T12: 764523.8521 | U12: 754143.444 | V12: 735635.4489 | W12: 716520.6135 | X12: 696917.9995 | Y12: 676917.0355 | Z12: 656612.0601 | AA12: 636760.3354 | AB12: 615189.3242 | AC12: 593593.6836 | AD12: 570283.306 | AE12: 547216.1873 | AF12: 525072.4364 | AG12: 503965.5353 | AH12: =SUM(AH3,AH6,AH9,AH10,AH11) -> 481870.7022 | AI12: 460836.4584 | AJ12: 438660.0584 | AK12: 418293.0754 | AL12: 396662.0986 | AM12: 376256.5934 | AN12: 354426.8989 | AO12: 333985.3616 | AP12: 312863.7257 | AQ12: 290596.5852 | AR12: 266813.0639 | AS12: 245106.5437 | AT12: 221537.4538 | AU12: 198955.6748 | AV12: 174017.9644 | AW12: 152405.148 | AX12: 127640.2662 | AY12: 107186.5502 | AZ12: 91630.64718 | BA12: 78524.64186 | BB12: 67462.08204 | BC12: 58100.53522 | BD12: 50165.79555 | BE12: 43426.20129 | BF12: 37691.9309 | BG12: 32799.75712 | BH12: 28615.62819 | BI12: 25030.65579 | BJ12: 21960.17655 | BK12: 19316.44122 | BL12: 17037.63258 | BM12: 15069.26082 | BN12: =SUM(BN3,BN6,BN9,BN10,BN11) -> 13366.60051 | BO12: 11889.31982 | BP12: 10606.28934 | BQ12: 9489.365909 | BR12: 8514.547423 | BS12: 7662.121763 | BT12: 6911.475288 | BU12: 6251.758985 | BV12: 5671.856557 | BW12: 5163.368262 | BX12: 4711.596579 | BY12: 4312.427228 | BZ12: 3959.76633 | CA12: 3644.871759 | CB12: 3365.063345 | CC12: 3117.656574 | CD12: 2897.167488
A15: Volumes (TJ) | B15: 2020 | C15: =B15+1 -> 2021 | D15: =C15+1 -> 2022 | E15: =D15+1 -> 2023 | F15: =E15+1 -> 2024 | G15: =F15+1 -> 2025 | H15: =G15+1 -> 2026 | I15: =H15+1 -> 2027 | J15: =I15+1 -> 2028 | K15: =J15+1 -> 2029 | L15: =K15+1 -> 2030 | M15: =L15+1 -> 2031 | N15: =M15+1 -> 2032 | O15: =N15+1 -> 2033 | P15: =O15+1 -> 2034 | Q15: =P15+1 -> 2035 | R15: =Q15+1 -> 2036 | S15: =R15+1 -> 2037 | T15: =S15+1 -> 2038 | U15: =T15+1 -> 2039 | V15: =U15+1 -> 2040 | W15: =V15+1 -> 2041 | X15: =W15+1 -> 2042 | Y15: =X15+1 -> 2043 | Z15: =Y15+1 -> 2044 | AA15: =Z15+1 -> 2045 | AB15: =AA15+1 -> 2046 | AC15: =AB15+1 -> 2047 | AD15: =AC15+1 -> 2048 | AE15: =AD15+1 -> 2049 | AF15: =AE15+1 -> 2050 | AG15: =AF15+1 -> 2051 | AH15: =AG15+1 -> 2052 | AI15: =AH15+1 -> 2053 | AJ15: =AI15+1 -> 2054 | AK15: =AJ15+1 -> 2055 | AL15: =AK15+1 -> 2056 | AM15: =AL15+1 -> 2057 | AN15: =AM15+1 -> 2058 | AO15: =AN15+1 -> 2059 | AP15: =AO15+1 -> 2060 | AQ15: =AP15+1 -> 2061 | AR15: =AQ15+1 -> 2062 | AS15: =AR15+1 -> 2063 | AT15: =AS15+1 -> 2064 | AU15: =AT15+1 -> 2065 | AV15: =AU15+1 -> 2066 | AW15: =AV15+1 -> 2067 | AX15: =AW15+1 -> 2068 | AY15: =AX15+1 -> 2069 | AZ15: =AY15+1 -> 2070 | BA15: =AZ15+1 -> 2071 | BB15: =BA15+1 -> 2072 | BC15: =BB15+1 -> 2073 | BD15: =BC15+1 -> 2074 | BE15: =BD15+1 -> 2075 | BF15: =BE15+1 -> 2076 | BG15: =BF15+1 -> 2077 | BH15: =BG15+1 -> 2078 | BI15: =BH15+1 -> 2079 | BJ15: =BI15+1 -> 2080 | BK15: =BJ15+1 -> 2081 | BL15: =BK15+1 -> 2082 | BM15: =BL15+1 -> 2083 | BN15: =BM15+1 -> 2084 | BO15: =BN15+1 -> 2085 | BP15: =BO15+1 -> 2086 | BQ15: =BP15+1 -> 2087 | BR15: =BQ15+1 -> 2088 | BS15: =BR15+1 -> 2089 | BT15: =BS15+1 -> 2090 | BU15: =BT15+1 -> 2091 | BV15: =BU15+1 -> 2092 | BW15: =BV15+1 -> 2093 | BX15: =BW15+1 -> 2094 | BY15: =BX15+1 -> 2095 | BZ15: =BY15+1 -> 2096 | CA15: =BZ15+1 -> 2097 | CB15: =CA15+1 -> 2098 | CC15: =CB15+1 -> 2099 | CD15: =CC15+1 -> 2100
A16: Residential B3 | B16: =Forecasts!J125 -> 10104.45949 | C16: =Forecasts!K125 -> 10468.67886 | D16: =Forecasts!L125 -> 10078.78486 | E16: =Forecasts!M125 -> 10260.30388 | F16: =Forecasts!N125 -> 10154.49327 | G16: =Forecasts!O125 -> 10053.04759 | H16: =Forecasts!P125 -> 10029.14172 | I16: =Forecasts!Q125 -> 9981.286131 | J16: =Forecasts!R125 -> 9934.123345 | K16: =Forecasts!S125 -> 9934.521561 | L16: =Forecasts!T125 -> 9827.964349 | M16: =Forecasts!U125 -> 9695.06569 | N16: =Forecasts!V125 -> 9605.606723 | O16: =Forecasts!W125 -> 9501.580123 | P16: =Forecasts!X125 -> 9296.310639 | Q16: =Forecasts!Y125 -> 9091.508221 | R16: =Forecasts!Z125 -> 9118.083803 | S16: =Forecasts!AA125 -> 9001.999236 | T16: =Forecasts!AB125 -> 8804.197128 | U16: =Forecasts!AC125 -> 8678.343804 | V16: =Forecasts!AD125 -> 8384.790138 | W16: =Forecasts!AE125 -> 8145.415755 | X16: =Forecasts!AF125 -> 7901.45873 | Y16: =Forecasts!AG125 -> 7654.076281 | Z16: =Forecasts!AH125 -> 7404.374806 | AA16: =Forecasts!AI125 -> 7163.495621 | AB16: =Forecasts!AJ125 -> 6901.578646 | AC16: =Forecasts!AK125 -> 6640.614833 | AD16: =Forecasts!AL125 -> 6361.416851 | AE16: =Forecasts!AM125 -> 6086.314811 | AF16: =Forecasts!AN125 -> 5830.686808 | AG16: =Forecasts!AO125 -> 5584.320474 | AH16: =Forecasts!AP125 -> 5327.427506 | AI16: =Forecasts!AQ125 -> 5082.951432 | AJ16: =Forecasts!AR125 -> 4826.341889 | AK16: =Forecasts!AS125 -> 4592.399951 | AL16: =Forecasts!AT125 -> 4343.247905 | AM16: =Forecasts!AU125 -> 4108.581817 | AN16: =Forecasts!AV125 -> 3858.842289 | AO16: =Forecasts!AW125 -> 3625.360311 | AP16: =Forecasts!AX125 -> 3386.707923 | AQ16: =Forecasts!AY125 -> 3135.854407 | AR16: =Forecasts!AZ125 -> 2869.010539 | AS16: =Forecasts!BA125 -> 2626.032246 | AT16: =Forecasts!BB125 -> 2363.412576 | AU16: =Forecasts!BC125 -> 2111.054983 | AV16: =Forecasts!BD125 -> 1835.929457 | AW16: =Forecasts!BE125 -> 1598.428188 | AX16: =Forecasts!BF125 -> 1327.93608 | AY16: =Forecasts!BG125 -> 1105.675826 | AZ16: =Forecasts!BH125 -> 938.3811453 | BA16: =Forecasts!BI125 -> 797.2701686 | BB16: =Forecasts!BJ125 -> 678.7821214 | BC16: =Forecasts!BK125 -> 579.0770444 | BD16: =Forecasts!BL125 -> 495.0688578 | BE16: =Forecasts!BM125 -> 424.1560508 | BF16: =Forecasts!BN125 -> 364.1732282 | BG16: =Forecasts!BO125 -> 313.3727073 | BH16: =Forecasts!BP125 -> 270.2229074 | BI16: =Forecasts!BQ125 -> 233.5306837 | BJ16: =Forecasts!BR125 -> 202.3197101 | BK16: =Forecasts!BS125 -> 175.6252562 | BL16: =Forecasts!BT125 -> 152.8158625 | BM16: =Forecasts!BU125 -> 133.2676329 | BN16: =Forecasts!BV125 -> 116.4955467 | BO16: =Forecasts!BW125 -> 102.0611275 | BP16: =Forecasts!BX125 -> 89.62368294 | BQ16: =Forecasts!BY125 -> 78.88800892 | BR16: =Forecasts!BZ125 -> 69.60822885 | BS16: =Forecasts!CA125 -> 61.57028103 | BT16: =Forecasts!CB125 -> 54.55120046 | BU16: =Forecasts!CC125 -> 48.45979866 | BV16: =Forecasts!CD125 -> 43.15608719 | BW16: =Forecasts!CE125 -> 38.55380676 | BX16: =Forecasts!CF125 -> 34.51367274 | BY16: =Forecasts!CG125 -> 30.98499997 | BZ16: =Forecasts!CH125 -> 27.88981515 | CA16: =Forecasts!CI125 -> 25.17397893 | CB16: =Forecasts!CJ125 -> 22.7747067 | CC16: =Forecasts!CK125 -> 20.69757584 | CD16: =Forecasts!CL125 -> 18.8399176
A17: Commercial B2 | B17: =Forecasts!J251 -> 1240.008969 | C17: =Forecasts!K251 -> 1313.873127 | D17: =Forecasts!L251 -> 1333.963313 | E17: =Forecasts!M251 -> 1328.307011 | F17: =Forecasts!N251 -> 1318.401281 | G17: =Forecasts!O251 -> 1307.535686 | H17: =Forecasts!P251 -> 1313.070495 | I17: =Forecasts!Q251 -> 1316.971396 | J17: =Forecasts!R251 -> 1312.613153 | K17: =Forecasts!S251 -> 1312.219147 | L17: =Forecasts!T251 -> 1290.554852 | M17: =Forecasts!U251 -> 1266.57641 | N17: =Forecasts!V251 -> 1250.957083 | O17: =Forecasts!W251 -> 1235.827618 | P17: =Forecasts!X251 -> 1212.03764 | Q17: =Forecasts!Y251 -> 1193.161791 | R17: =Forecasts!Z251 -> 1198.798649 | S17: =Forecasts!AA251 -> 1188.565333 | T17: =Forecasts!AB251 -> 1171.355675 | U17: =Forecasts!AC251 -> 1164.616555 | V17: =Forecasts!AD251 -> 1143.378685 | W17: =Forecasts!AE251 -> 1130.020343 | X17: =Forecasts!AF251 -> 1117.514502 | Y17: =Forecasts!AG251 -> 1105.204879 | Z17: =Forecasts!AH251 -> 1093.32898 | AA17: =Forecasts!AI251 -> 1082.846473 | AB17: =Forecasts!AJ251 -> 1069.295921 | AC17: =Forecasts!AK251 -> 1056.536239 | AD17: =Forecasts!AL251 -> 1040.992147 | AE17: =Forecasts!AM251 -> 1026.349546 | AF17: =Forecasts!AN251 -> 1011.768374 | AG17: =Forecasts!AO251 -> 998.0385045 | AH17: =Forecasts!AP251 -> 982.2127349 | AI17: =Forecasts!AQ251 -> 965.957921 | AJ17: =Forecasts!AR251 -> 946.966919 | AK17: =Forecasts!AS251 -> 930.6468692 | AL17: =Forecasts!AT251 -> 911.502458 | AM17: =Forecasts!AU251 -> 894.5326259 | AN17: =Forecasts!AV251 -> 873.2488912 | AO17: =Forecasts!AW251 -> 854.7003651 | AP17: =Forecasts!AX251 -> 832.9356471 | AQ17: =Forecasts!AY251 -> 802.1256522 | AR17: =Forecasts!AZ251 -> 767.0479671 | AS17: =Forecasts!BA251 -> 735.475107 | AT17: =Forecasts!BB251 -> 698.4146572 | AU17: =Forecasts!BC251 -> 662.8910699 | AV17: =Forecasts!BD251 -> 621.0656599 | AW17: =Forecasts!BE251 -> 583.6904717 | AX17: =Forecasts!BF251 -> 536.2691795 | AY17: =Forecasts!BG251 -> 496.0062997 | AZ17: =Forecasts!BH251 -> 462.9420382 | BA17: =Forecasts!BI251 -> 433.11461 | BB17: =Forecasts!BJ251 -> 407.122176 | BC17: =Forecasts!BK251 -> 383.9795217 | BD17: =Forecasts!BL251 -> 363.1358907 | BE17: =Forecasts!BM251 -> 344.178331 | BF17: =Forecasts!BN251 -> 327.3188864 | BG17: =Forecasts!BO251 -> 311.4819443 | BH17: =Forecasts!BP251 -> 296.8602446 | BI17: =Forecasts!BQ251 -> 283.1576623 | BJ17: =Forecasts!BR251 -> 270.7338299 | BK17: =Forecasts!BS251 -> 259.4554356 | BL17: =Forecasts!BT251 -> 248.6737008 | BM17: =Forecasts!BU251 -> 238.7470705 | BN17: =Forecasts!BV251 -> 229.525853 | BO17: =Forecasts!BW251 -> 221.0298983 | BP17: =Forecasts!BX251 -> 213.2793936 | BQ17: =Forecasts!BY251 -> 206.116123 | BR17: =Forecasts!BZ251 -> 199.375961 | BS17: =Forecasts!CA251 -> 193.0710839 | BT17: =Forecasts!CB251 -> 187.2138761 | BU17: =Forecasts!CC251 -> 181.4449163 | BV17: =Forecasts!CD251 -> 176.1434663 | BW17: =Forecasts!CE251 -> 171.3224882 | BX17: =Forecasts!CF251 -> 166.6118776 | BY17: =Forecasts!CG251 -> 162.20904 | BZ17: =Forecasts!CH251 -> 158.3182054 | CA17: =Forecasts!CI251 -> 154.3608032 | CB17: =Forecasts!CJ251 -> 150.9343106 | CC17: =Forecasts!CK251 -> 147.4486388 | CD17: =Forecasts!CL251 -> 144.7167559
A18: Commercial B1 | B18: =Forecasts!J254 -> 1849.395865 | C18: =Forecasts!K254 -> 2058.384921 | D18: =Forecasts!L254 -> 2048.693861 | E18: =Forecasts!M254 -> 2028.068347 | F18: =Forecasts!N254 -> 2034.274037 | G18: =Forecasts!O254 -> 2037.072004 | H18: =Forecasts!P254 -> 2045.694946 | I18: =Forecasts!Q254 -> 2051.772346 | J18: =Forecasts!R254 -> 2044.982432 | K18: =Forecasts!S254 -> 2044.368591 | L18: =Forecasts!T254 -> 2010.616756 | M18: =Forecasts!U254 -> 1973.259602 | N18: =Forecasts!V254 -> 1948.92551 | O18: =Forecasts!W254 -> 1925.354596 | P18: =Forecasts!X254 -> 1888.291058 | Q18: =Forecasts!Y254 -> 1858.883476 | R18: =Forecasts!Z254 -> 1867.665406 | S18: =Forecasts!AA254 -> 1851.722436 | T18: =Forecasts!AB254 -> 1824.910692 | U18: =Forecasts!AC254 -> 1814.411496 | V18: =Forecasts!AD254 -> 1781.324009 | W18: =Forecasts!AE254 -> 1760.512413 | X18: =Forecasts!AF254 -> 1741.028968 | Y18: =Forecasts!AG254 -> 1721.851222 | Z18: =Forecasts!AH254 -> 1703.349193 | AA18: =Forecasts!AI254 -> 1687.017999 | AB18: =Forecasts!AJ254 -> 1665.906949 | AC18: =Forecasts!AK254 -> 1646.028033 | AD18: =Forecasts!AL254 -> 1621.811155 | AE18: =Forecasts!AM254 -> 1598.99875 | AF18: =Forecasts!AN254 -> 1576.282049 | AG18: =Forecasts!AO254 -> 1554.891632 | AH18: =Forecasts!AP254 -> 1530.235914 | AI18: =Forecasts!AQ254 -> 1504.911766 | AJ18: =Forecasts!AR254 -> 1475.324781 | AK18: =Forecasts!AS254 -> 1449.899 | AL18: =Forecasts!AT254 -> 1420.073011 | AM18: =Forecasts!AU254 -> 1393.634903 | AN18: =Forecasts!AV254 -> 1360.475961 | AO18: =Forecasts!AW254 -> 1331.578331 | AP18: =Forecasts!AX254 -> 1297.670042 | AQ18: =Forecasts!AY254 -> 1249.669686 | AR18: =Forecasts!AZ254 -> 1195.020493 | AS18: =Forecasts!BA254 -> 1145.831633 | AT18: =Forecasts!BB254 -> 1088.093397 | AU18: =Forecasts!BC254 -> 1032.749511 | AV18: =Forecasts!BD254 -> 967.5877166 | AW18: =Forecasts!BE254 -> 909.359134 | AX18: =Forecasts!BF254 -> 835.4792487 | AY18: =Forecasts!BG254 -> 772.7517941 | AZ18: =Forecasts!BH254 -> 721.2394093 | BA18: =Forecasts!BI254 -> 674.7698409 | BB18: =Forecasts!BJ254 -> 634.2749923 | BC18: =Forecasts!BK254 -> 598.219951 | BD18: =Forecasts!BL254 -> 565.7466673 | BE18: =Forecasts!BM254 -> 536.2117839 | BF18: =Forecasts!BN254 -> 509.9456536 | BG18: =Forecasts!BO254 -> 485.2725287 | BH18: =Forecasts!BP254 -> 462.4926876 | BI18: =Forecasts!BQ254 -> 441.1447832 | BJ18: =Forecasts!BR254 -> 421.7891042 | BK18: =Forecasts!BS254 -> 404.2179575 | BL18: =Forecasts!BT254 -> 387.4205802 | BM18: =Forecasts!BU254 -> 371.955411 | BN18: =Forecasts!BV254 -> 357.5892379 | BO18: =Forecasts!BW254 -> 344.3529862 | BP18: =Forecasts!BX254 -> 332.2781064 | BQ18: =Forecasts!BY254 -> 321.1181067 | BR18: =Forecasts!BZ254 -> 310.6172878 | BS18: =Forecasts!CA254 -> 300.7946201 | BT18: =Forecasts!CB254 -> 291.6693975 | BU18: =Forecasts!CC254 -> 282.6816609 | BV18: =Forecasts!CD254 -> 274.4222798 | BW18: =Forecasts!CE254 -> 266.9114489 | BX18: =Forecasts!CF254 -> 259.5725647 | BY18: =Forecasts!CG254 -> 252.7131747 | BZ18: =Forecasts!CH254 -> 246.6514585 | CA18: =Forecasts!CI254 -> 240.4860334 | CB18: =Forecasts!CJ254 -> 235.1477378 | CC18: =Forecasts!CK254 -> 229.717244 | CD18: =Forecasts!CL254 -> 225.4611137
A19: Industrial A1 | B19: =Forecasts!J255 -> 11756.62018 | C19: =Forecasts!K255 -> 12346.51513 | D19: =Forecasts!L255 -> 12346.18349 | E19: =Forecasts!M255 -> 12278.11222 | F19: =Forecasts!N255 -> 13217.98057 | G19: =Forecasts!O255 -> 13464.27653 | H19: =Forecasts!P255 -> 13432.25884 | I19: =Forecasts!Q255 -> 13368.16476 | J19: =Forecasts!R255 -> 13304.99856 | K19: =Forecasts!S255 -> 13305.5319 | L19: =Forecasts!T255 -> 13162.81739 | M19: =Forecasts!U255 -> 12984.82318 | N19: =Forecasts!V255 -> 12865.00874 | O19: =Forecasts!W255 -> 12725.68353 | P19: =Forecasts!X255 -> 12450.76142 | Q19: =Forecasts!Y255 -> 12176.46486 | R19: =Forecasts!Z255 -> 12212.05814 | S19: =Forecasts!AA255 -> 12056.58343 | T19: =Forecasts!AB255 -> 11791.66254 | U19: =Forecasts!AC255 -> 11623.1043 | V19: =Forecasts!AD255 -> 11229.94117 | W19: =Forecasts!AE255 -> 10909.34158 | X19: =Forecasts!AF255 -> 10582.60436 | Y19: =Forecasts!AG255 -> 10251.27939 | Z19: =Forecasts!AH255 -> 9916.848494 | AA19: =Forecasts!AI255 -> 9594.233494 | AB19: =Forecasts!AJ255 -> 9243.442099 | AC19: =Forecasts!AK255 -> 8893.927297 | AD19: =Forecasts!AL255 -> 8519.991056 | AE19: =Forecasts!AM255 -> 8151.540603 | AF19: =Forecasts!AN255 -> 7809.172172 | AG19: =Forecasts!AO255 -> 7479.208107 | AH19: =Forecasts!AP255 -> 7135.145482 | AI19: =Forecasts!AQ255 -> 6807.713086 | AJ19: =Forecasts!AR255 -> 6464.030056 | AK19: =Forecasts!AS255 -> 6150.706269 | AL19: =Forecasts!AT255 -> 5817.011236 | AM19: =Forecasts!AU255 -> 5502.717578 | AN19: =Forecasts!AV255 -> 5168.235718 | AO19: =Forecasts!AW255 -> 4855.527966 | AP19: =Forecasts!AX255 -> 4535.895366 | AQ19: =Forecasts!AY255 -> 4199.921515 | AR19: =Forecasts!AZ255 -> 3842.53142 | AS19: =Forecasts!BA255 -> 3517.105036 | AT19: =Forecasts!BB255 -> 3165.372508 | AU19: =Forecasts!BC255 -> 2827.384212 | AV19: =Forecasts!BD255 -> 2458.902304 | AW19: =Forecasts!BE255 -> 2140.811424 | AX19: =Forecasts!BF255 -> 1778.535158 | AY19: =Forecasts!BG255 -> 1480.856918 | AZ19: =Forecasts!BH255 -> 1256.795326 | BA19: =Forecasts!BI255 -> 1067.802168 | BB19: =Forecasts!BJ255 -> 909.1084169 | BC19: =Forecasts!BK255 -> 775.5711273 | BD19: =Forecasts!BL255 -> 663.057042 | BE19: =Forecasts!BM255 -> 568.0818981 | BF19: =Forecasts!BN255 -> 487.745532 | BG19: =Forecasts!BO255 -> 419.7072328 | BH19: =Forecasts!BP255 -> 361.9157191 | BI19: =Forecasts!BQ255 -> 312.7729848 | BJ19: =Forecasts!BR255 -> 270.9714141 | BK19: =Forecasts!BS255 -> 235.2189216 | BL19: =Forecasts!BT255 -> 204.6697791 | BM19: =Forecasts!BU255 -> 178.4883882 | BN19: =Forecasts!BV255 -> 156.0251496 | BO19: =Forecasts!BW255 -> 136.6928019 | BP19: =Forecasts!BX255 -> 120.035048 | BQ19: =Forecasts!BY255 -> 105.6565143 | BR19: =Forecasts!BZ255 -> 93.22789263 | BS19: =Forecasts!CA255 -> 82.46248532 | BT19: =Forecasts!CB255 -> 73.0616702 | BU19: =Forecasts!CC255 -> 64.90331648 | BV19: =Forecasts!CD255 -> 57.79993443 | BW19: =Forecasts!CE255 -> 51.635995 | BX19: =Forecasts!CF255 -> 46.22495112 | BY19: =Forecasts!CG255 -> 41.498919 | BZ19: =Forecasts!CH255 -> 37.35346719 | CA19: =Forecasts!CI255 -> 33.71608563 | CB19: =Forecasts!CJ255 -> 30.50268547 | CC19: =Forecasts!CK255 -> 27.72073661 | CD19: =Forecasts!CL255 -> 25.23273245
A20: Industrial A2 | B20: =Forecasts!J256 -> 1734.538802 | C20: =Forecasts!K256 -> 1840.626798 | D20: =Forecasts!L256 -> 1770.018862 | E20: =Forecasts!M256 -> 1758.933246 | F20: =Forecasts!N256 -> 1736.023586 | G20: =Forecasts!O256 -> 1707.804035 | H20: =Forecasts!P256 -> 1715.033184 | I20: =Forecasts!Q256 -> 1720.128245 | J20: =Forecasts!R256 -> 1714.435838 | K20: =Forecasts!S256 -> 1713.921218 | L20: =Forecasts!T256 -> 1685.624957 | M20: =Forecasts!U256 -> 1654.306133 | N20: =Forecasts!V256 -> 1633.905352 | O20: =Forecasts!W256 -> 1614.144391 | P20: =Forecasts!X256 -> 1583.071724 | Q20: =Forecasts!Y256 -> 1558.417521 | R20: =Forecasts!Z256 -> 1565.779958 | S20: =Forecasts!AA256 -> 1552.413976 | T20: =Forecasts!AB256 -> 1529.936025 | U20: =Forecasts!AC256 -> 1521.133896 | V20: =Forecasts!AD256 -> 1493.3946 | W20: =Forecasts!AE256 -> 1475.946946 | X20: =Forecasts!AF256 -> 1459.612764 | Y20: =Forecasts!AG256 -> 1443.534868 | Z20: =Forecasts!AH256 -> 1428.023467 | AA20: =Forecasts!AI256 -> 1414.332012 | AB20: =Forecasts!AJ256 -> 1396.633307 | AC20: =Forecasts!AK256 -> 1379.967577 | AD20: =Forecasts!AL256 -> 1359.665063 | AE20: =Forecasts!AM256 -> 1340.540006 | AF20: =Forecasts!AN256 -> 1321.495184 | AG20: =Forecasts!AO256 -> 1303.562269 | AH20: =Forecasts!AP256 -> 1282.891848 | AI20: =Forecasts!AQ256 -> 1261.661042 | AJ20: =Forecasts!AR256 -> 1236.856434 | AK20: =Forecasts!AS256 -> 1215.540422 | AL20: =Forecasts!AT256 -> 1190.535442 | AM20: =Forecasts!AU256 -> 1168.370733 | AN20: =Forecasts!AV256 -> 1140.571532 | AO20: =Forecasts!AW256 -> 1116.344853 | AP20: =Forecasts!AX256 -> 1087.917427 | AQ20: =Forecasts!AY256 -> 1047.675746 | AR20: =Forecasts!AZ256 -> 1001.859932 | AS20: =Forecasts!BA256 -> 960.6218548 | AT20: =Forecasts!BB256 -> 912.2163034 | AU20: =Forecasts!BC256 -> 865.8180855 | AV20: =Forecasts!BD256 -> 811.1889042 | AW20: =Forecasts!BE256 -> 762.3722654 | AX20: =Forecasts!BF256 -> 700.434167 | AY20: =Forecasts!BG256 -> 647.8458442 | AZ20: =Forecasts!BH256 -> 604.6598112 | BA20: =Forecasts!BI256 -> 565.7014847 | BB20: =Forecasts!BJ256 -> 531.752137 | BC20: =Forecasts!BK256 -> 501.5249555 | BD20: =Forecasts!BL256 -> 474.3005841 | BE20: =Forecasts!BM256 -> 449.5396561 | BF20: =Forecasts!BN256 -> 427.5191271 | BG20: =Forecasts!BO256 -> 406.8341134 | BH20: =Forecasts!BP256 -> 387.7363571 | BI20: =Forecasts!BQ256 -> 369.8390824 | BJ20: =Forecasts!BR256 -> 353.612014 | BK20: =Forecasts!BS256 -> 338.88103 | BL20: =Forecasts!BT256 -> 324.7987449 | BM20: =Forecasts!BU256 -> 311.8333326 | BN20: =Forecasts!BV256 -> 299.7892771 | BO20: =Forecasts!BW256 -> 288.6925048 | BP20: =Forecasts!BX256 -> 278.5693828 | BQ20: =Forecasts!BY256 -> 269.2132616 | BR20: =Forecasts!BZ256 -> 260.4097727 | BS20: =Forecasts!CA256 -> 252.17482 | BT20: =Forecasts!CB256 -> 244.5245789 | BU20: =Forecasts!CC256 -> 236.9896008 | BV20: =Forecasts!CD256 -> 230.0652485 | BW20: =Forecasts!CE256 -> 223.7684522 | BX20: =Forecasts!CF256 -> 217.6158096 | BY20: =Forecasts!CG256 -> 211.8651568 | BZ20: =Forecasts!CH256 -> 206.7832434 | CA20: =Forecasts!CI256 -> 201.6143845 | CB20: =Forecasts!CJ256 -> 197.1389596 | CC20: =Forecasts!CK256 -> 192.5862392 | CD20: =Forecasts!CL256 -> 189.0180607
A21: ATCO | B21: =SUM(B16:B20) -> 26685.0233 | C21: =SUM(C16:C20) -> 28028.07884 | D21: 27577.64439 | E21: 27653.7247 | F21: 28461.17274 | G21: 28569.73585 | H21: 28535.19918 | I21: 28438.32288 | J21: 28311.15333 | K21: 28310.56242 | L21: 27977.5783 | M21: 27574.03101 | N21: 27304.4034 | O21: 27002.59026 | P21: 26430.47248 | Q21: 25878.43586 | R21: 25962.38596 | S21: 25651.28441 | T21: 25122.06206 | U21: 24801.61006 | V21: 24032.8286 | W21: 23421.23704 | X21: 22802.21932 | Y21: 22175.94664 | Z21: 21545.92494 | AA21: 20941.9256 | AB21: 20276.85692 | AC21: 19617.07398 | AD21: 18903.87627 | AE21: 18203.74372 | AF21: 17549.40459 | AG21: 16920.02099 | AH21: 16257.91348 | AI21: 15623.19525 | AJ21: 14949.52008 | AK21: 14339.19251 | AL21: 13682.37005 | AM21: 13067.83766 | AN21: 12401.37439 | AO21: 11783.51183 | AP21: 11141.1264 | AQ21: 10435.24701 | AR21: 9675.470351 | AS21: 8985.065877 | AT21: 8227.509441 | AU21: 7499.897861 | AV21: 6694.674041 | AW21: 5994.661483 | AX21: 5178.653834 | AY21: 4503.136682 | AZ21: 3984.01773 | BA21: 3538.658272 | BB21: 3161.039844 | BC21: 2838.3726 | BD21: 2561.309042 | BE21: 2322.16772 | BF21: 2116.702427 | BG21: 1936.668527 | BH21: 1779.227916 | BI21: 1640.445196 | BJ21: 1519.426072 | BK21: 1413.398601 | BL21: 1318.378668 | BM21: 1234.291835 | BN21: 1159.425064 | BO21: =SUM(BO16:BO20) -> 1092.829319 | BP21: 1033.785614 | BQ21: 980.9920145 | BR21: 933.239143 | BS21: 890.0732905 | BT21: 851.0207232 | BU21: 814.4792931 | BV21: 781.5870162 | BW21: 752.1921911 | BX21: 724.5388757 | BY21: 699.2712905 | BZ21: 676.9961897 | CA21: 655.3512857 | CB21: 636.4984002 | CC21: 618.1704346 | CD21: 603.2685804
A56: Residential B3 | D56: 2022 | E56: =D56+1 -> 2023 | F56: =E56+1 -> 2024 | G56: =F56+1 -> 2025 | H56: =G56+1 -> 2026 | I56: =H56+1 -> 2027 | J56: =I56+1 -> 2028 | K56: =J56+1 -> 2029 | L56: =K56+1 -> 2030 | M56: =L56+1 -> 2031 | N56: =M56+1 -> 2032 | O56: =N56+1 -> 2033 | P56: =O56+1 -> 2034 | Q56: =P56+1 -> 2035 | R56: =Q56+1 -> 2036 | S56: =R56+1 -> 2037 | T56: =S56+1 -> 2038 | U56: =T56+1 -> 2039 | V56: =U56+1 -> 2040 | W56: =V56+1 -> 2041 | X56: =W56+1 -> 2042 | Y56: =X56+1 -> 2043 | Z56: =Y56+1 -> 2044 | AA56: =Z56+1 -> 2045 | AB56: =AA56+1 -> 2046 | AC56: =AB56+1 -> 2047 | AD56: =AC56+1 -> 2048 | AE56: =AD56+1 -> 2049 | AF56: =AE56+1 -> 2050 | AG56: =AF56+1 -> 2051 | AH56: =AG56+1 -> 2052 | AI56: =AH56+1 -> 2053 | AJ56: =AI56+1 -> 2054 | AK56: =AJ56+1 -> 2055 | AL56: =AK56+1 -> 2056 | AM56: =AL56+1 -> 2057 | AN56: =AM56+1 -> 2058 | AO56: =AN56+1 -> 2059 | AP56: =AO56+1 -> 2060 | AQ56: =AP56+1 -> 2061 | AR56: =AQ56+1 -> 2062 | AS56: =AR56+1 -> 2063 | AT56: =AS56+1 -> 2064 | AU56: =AT56+1 -> 2065 | AV56: =AU56+1 -> 2066 | AW56: =AV56+1 -> 2067 | AX56: =AW56+1 -> 2068 | AY56: =AX56+1 -> 2069 | AZ56: =AY56+1 -> 2070 | BA56: =AZ56+1 -> 2071 | BB56: =BA56+1 -> 2072 | BC56: =BB56+1 -> 2073 | BD56: =BC56+1 -> 2074 | BE56: =BD56+1 -> 2075 | BF56: =BE56+1 -> 2076 | BG56: =BF56+1 -> 2077 | BH56: =BG56+1 -> 2078 | BI56: =BH56+1 -> 2079 | BJ56: =BI56+1 -> 2080 | BK56: =BJ56+1 -> 2081 | BL56: =BK56+1 -> 2082 | BM56: =BL56+1 -> 2083 | BN56: =BM56+1 -> 2084 | BO56: =BN56+1 -> 2085 | BP56: =BO56+1 -> 2086 | BQ56: =BP56+1 -> 2087 | BR56: =BQ56+1 -> 2088 | BS56: =BR56+1 -> 2089 | BT56: =BS56+1 -> 2090 | BU56: =BT56+1 -> 2091 | BV56: =BU56+1 -> 2092 | BW56: =BV56+1 -> 2093 | BX56: =BW56+1 -> 2094 | BY56: =BX56+1 -> 2095 | BZ56: =BY56+1 -> 2096 | CA56: =BZ56+1 -> 2097 | CB56: =CA56+1 -> 2098 | CC56: =CB56+1 -> 2099 | CD56: =CC56+1 -> 2100
A57: Daily supply charge | C57: 0.3275017112 | D57: 0.337357974 | E57: 0.361889117 | F57: 0.3790788501 | G57: 0.45229295 | H57: 0.45229295 | I57: 0.45229295 | J57: 0.45229295 | K57: 0.45229295 | L57: 0.464257358 | M57: 0.464257358 | N57: 0.464257358 | O57: 0.464257358 | P57: 0.464257358 | Q57: 0.4666119097 | R57: 0.4666119097 | S57: 0.4666119097 | T57: 0.4666119097 | U57: 0.4666119097 | V57: 0.4507049966 | W57: 0.4507049966 | X57: 0.4507049966 | Y57: 0.4507049966 | Z57: 0.4507049966 | AA57: 0.4462970568 | AB57: 0.4462970568 | AC57: 0.4462970568 | AD57: 0.4462970568 | AE57: 0.4462970568 | AF57: 0.4285831622 | AG57: 0.4285831622 | AH57: 0.4285831622 | AI57: 0.4285831622 | AJ57: 0.4285831622 | AK57: 0.4241752225 | AL57: 0.4241752225 | AM57: 0.4241752225 | AN57: 0.4241752225 | AO57: 0.4241752225 | AP57: 0.4180424367 | AQ57: 0.4180424367 | AR57: 0.4180424367 | AS57: 0.4180424367 | AT57: 0.4180424367 | AU57: 0.4285831622 | AV57: 0.4285831622 | AW57: 0.4285831622 | AX57: 0.4285831622 | AY57: 0.4285831622 | AZ57: 0.4158247775 | BA57: 0.4158247775 | BB57: 0.4158247775 | BC57: 0.4158247775 | BD57: 0.4158247775 | BE57: 0.4158247775 | BF57: 0.4158247775 | BG57: 0.4158247775 | BH57: 0.4158247775 | BI57: 0.4158247775 | BJ57: 0.4158247775 | BK57: 0.4158247775 | BL57: 0.4158247775 | BM57: 0.4158247775 | BN57: 0.4158247775 | BO57: 0.4158247775 | BP57: 0.4158247775 | BQ57: 0.4158247775 | BR57: 0.4158247775 | BS57: 0.4158247775 | BT57: 0.4158247775 | BU57: 0.4158247775 | BV57: 0.4158247775 | BW57: 0.4158247775 | BX57: 0.4158247775 | BY57: 0.4158247775 | BZ57: 0.4158247775 | CA57: 0.4158247775 | CB57: 0.4158247775 | CC57: 0.4158247775 | CD57: 0.4158247775
A58: Average volumetric charge $/GJ | C58: 4.049863187 | D58: 4.189938821 | E58: 4.485318003 | F58: 4.691642904 | G58: 5.601899496 | H58: 5.607762503 | I58: 5.611800057 | J58: 5.616311311 | K58: 5.619533794 | L58: 5.776713359 | M58: 5.78128062 | N58: 5.785847881 | O58: 5.790415142 | P58: 5.794982403 | Q58: 5.824982403 | R58: 5.824982403 | S58: 5.824982403 | T58: 5.824982403 | U58: 5.824982403 | V58: 5.625320954 | W58: 5.625320954 | X58: 5.625320954 | Y58: 5.625320954 | Z58: 5.625320954 | AA58: 5.568767138 | AB58: 5.568767138 | AC58: 5.568767138 | AD58: 5.568767138 | AE58: 5.568767138 | AF58: 5.349105689 | AG58: 5.349105689 | AH58: 5.349105689 | AI58: 5.349105689 | AJ58: 5.349105689 | AK58: 5.292551873 | AL58: 5.292551873 | AM58: 5.292551873 | AN58: 5.292551873 | AO58: 5.292551873 | AP58: 5.215998057 | AQ58: 5.215998057 | AR58: 5.215998057 | AS58: 5.215998057 | AT58: 5.215998057 | AU58: 5.349105689 | AV58: 5.349105689 | AW58: 5.349105689 | AX58: 5.349105689 | AY58: 5.349105689 | AZ58: 5.185998057 | BA58: 5.185998057 | BB58: 5.185998057 | BC58: 5.185998057 | BD58: 5.185998057 | BE58: 5.185998057 | BF58: 5.185998057 | BG58: 5.185998057 | BH58: 5.185998057 | BI58: 5.185998057 | BJ58: 5.185998057 | BK58: 5.185998057 | BL58: 5.185998057 | BM58: 5.185998057 | BN58: 5.185998057 | BO58: 5.185998057 | BP58: 5.185998057 | BQ58: 5.185998057 | BR58: 5.185998057 | BS58: 5.185998057 | BT58: 5.185998057 | BU58: 5.185998057 | BV58: 5.185998057 | BW58: 5.185998057 | BX58: 5.185998057 | BY58: 5.185998057 | BZ58: 5.185998057 | CA58: 5.185998057 | CB58: 5.185998057 | CC58: 5.185998057 | CD58: 5.185998057
A59: Commercial B2
A60: Daily supply charge | C60: 0.6564818617 | D60: 0.6793155373 | E60: 0.7287063655 | F60: 0.7633199179 | G60: 0.9107460643 | H60: 0.9107460643 | I60: 0.9107460643 | J60: 0.9107460643 | K60: 0.9107460643 | L60: 0.9348117728 | M60: 0.9348117728 | N60: 0.9348117728 | O60: 0.9348117728 | P60: 0.9348117728 | Q60: 0.9395482546 | R60: 0.9395482546 | S60: 0.9395482546 | T60: 0.9395482546 | U60: 0.9395482546 | V60: 0.9074880219 | W60: 0.9074880219 | X60: 0.9074880219 | Y60: 0.9074880219 | Z60: 0.9074880219 | AA60: 0.8986173854 | AB60: 0.8986173854 | AC60: 0.8986173854 | AD60: 0.8986173854 | AE60: 0.8986173854 | AF60: 0.8629705681 | AG60: 0.8629705681 | AH60: 0.8629705681 | AI60: 0.8629705681 | AJ60: 0.8629705681 | AK60: 0.8541273101 | AL60: 0.8541273101 | AM60: 0.8541273101 | AN60: 0.8541273101 | AO60: 0.8541273101 | AP60: 0.8418069815 | AQ60: 0.8418069815 | AR60: 0.8418069815 | AS60: 0.8418069815 | AT60: 0.8418069815 | AU60: 0.8630253251 | AV60: 0.8630253251 | AW60: 0.8630253251 | AX60: 0.8630253251 | AY60: 0.8630253251 | AZ60: 0.8373169062 | BA60: 0.8373169062 | BB60: 0.8373169062 | BC60: 0.8373169062 | BD60: 0.8373169062 | BE60: 0.8373169062 | BF60: 0.8373169062 | BG60: 0.8373169062 | BH60: 0.8373169062 | BI60: 0.8373169062 | BJ60: 0.8373169062 | BK60: 0.8373169062 | BL60: 0.8373169062 | BM60: 0.8373169062 | BN60: 0.8373169062 | BO60: 0.8373169062 | BP60: 0.8373169062 | BQ60: 0.8373169062 | BR60: 0.8373169062 | BS60: 0.8373169062 | BT60: 0.8373169062 | BU60: 0.8373169062 | BV60: 0.8373169062 | BW60: 0.8373169062 | BX60: 0.8373169062 | BY60: 0.8373169062 | BZ60: 0.8373169062 | CA60: 0.8373169062 | CB60: 0.8373169062 | CC60: 0.8373169062 | CD60: 0.8373169062
A61: Average volumetric charge $/GJ | C61: 4.553632728 | D61: 4.717642483 | E61: 5.086432336 | F61: 5.339998359 | G61: 6.377300938 | H61: 6.384875627 | I61: 6.391641499 | J61: 6.399289614 | K61: 6.405677035 | L61: 6.58042422 | M61: 6.588545523 | N61: 6.596666826 | O61: 6.604788129 | P61: 6.612909431 | Q61: 6.647077264 | R61: 6.647077264 | S61: 6.647077264 | T61: 6.647077264 | U61: 6.647077264 | V61: 6.417063267 | W61: 6.417063267 | X61: 6.417063267 | Y61: 6.417063267 | Z61: 6.417063267 | AA61: 6.354559767 | AB61: 6.354559767 | AC61: 6.354559767 | AD61: 6.354559767 | AE61: 6.354559767 | AF61: 6.100377937 | AG61: 6.100377937 | AH61: 6.100377937 | AI61: 6.100377937 | AJ61: 6.100377937 | AK61: 6.037874437 | AL61: 6.037874437 | AM61: 6.037874437 | AN61: 6.037874437 | AO61: 6.037874437 | AP61: 5.951203105 | AQ61: 5.951203105 | AR61: 5.951203105 | AS61: 5.951203105 | AT61: 5.951203105 | AU61: 6.10454577 | AV61: 6.10454577 | AW61: 6.10454577 | AX61: 6.10454577 | AY61: 6.10454577 | AZ61: 5.922867438 | BA61: 5.922867438 | BB61: 5.922867438 | BC61: 5.922867438 | BD61: 5.922867438 | BE61: 5.922867438 | BF61: 5.922867438 | BG61: 5.922867438 | BH61: 5.922867438 | BI61: 5.922867438 | BJ61: 5.922867438 | BK61: 5.922867438 | BL61: 5.922867438 | BM61: 5.922867438 | BN61: 5.922867438 | BO61: 5.922867438 | BP61: 5.922867438 | BQ61: 5.922867438 | BR61: 5.922867438 | BS61: 5.922867438 | BT61: 5.922867438 | BU61: 5.922867438 | BV61: 5.922867438 | BW61: 5.922867438 | BX61: 5.922867438 | BY61: 5.922867438 | BZ61: 5.922867438 | CA61: 5.922867438 | CB61: 5.922867438 | CC61: 5.922867438 | CD61: 5.922867438
A62: Commercial B1
A63: Daily supply charge | C63: 0.3941136208 | D63: 0.4078302533 | E63: 0.4374811773 | F63: 0.4582615332 | G63: 3.629158111 | H63: 3.629158111 | I63: 3.629158111 | J63: 3.629158111 | K63: 3.629158111 | L63: 3.725092402 | M63: 3.725092402 | N63: 3.725092402 | O63: 3.725092402 | P63: 3.725092402 | Q63: 3.743928816 | R63: 3.743928816 | S63: 3.743928816 | T63: 3.743928816 | U63: 3.743928816 | V63: 3.616208077 | W63: 3.616208077 | X63: 3.616208077 | Y63: 3.616208077 | Z63: 3.616208077 | AA63: 3.58091718 | AB63: 3.58091718 | AC63: 3.58091718 | AD63: 3.58091718 | AE63: 3.58091718 | AF63: 3.438877481 | AG63: 3.438877481 | AH63: 3.438877481 | AI63: 3.438877481 | AJ63: 3.438877481 | AK63: 3.403613963 | AL63: 3.403613963 | AM63: 3.403613963 | AN63: 3.403613963 | AO63: 3.403613963 | AP63: 3.354524298 | AQ63: 3.354524298 | AR63: 3.354524298 | AS63: 3.354524298 | AT63: 3.354524298 | AU63: 3.439041752 | AV63: 3.439041752 | AW63: 3.439041752 | AX63: 3.439041752 | AY63: 3.439041752 | AZ63: 3.336563997 | BA63: 3.336563997 | BB63: 3.336563997 | BC63: 3.336563997 | BD63: 3.336563997 | BE63: 3.336563997 | BF63: 3.336563997 | BG63: 3.336563997 | BH63: 3.336563997 | BI63: 3.336563997 | BJ63: 3.336563997 | BK63: 3.336563997 | BL63: 3.336563997 | BM63: 3.336563997 | BN63: 3.336563997 | BO63: 3.336563997 | BP63: 3.336563997 | BQ63: 3.336563997 | BR63: 3.336563997 | BS63: 3.336563997 | BT63: 3.336563997 | BU63: 3.336563997 | BV63: 3.336563997 | BW63: 3.336563997 | BX63: 3.336563997 | BY63: 3.336563997 | BZ63: 3.336563997 | CA63: 3.336563997 | CB63: 3.336563997 | CC63: 3.336563997 | CD63: 3.336563997
A64: Average volumetric charge $/GJ | C64: 3.562540525 | D64: 3.699666624 | E64: 3.965113162 | F64: 4.153456037 | G64: 4.958037678 | H64: 4.958037678 | I64: 4.958037678 | J64: 4.958037678 | K64: 4.958037678 | L64: 5.085760947 | M64: 5.085760947 | N64: 5.085760947 | O64: 5.085760947 | P64: 5.085760947 | Q64: 5.114622581 | R64: 5.114622581 | S64: 5.114622581 | T64: 5.114622581 | U64: 5.114622581 | V64: 4.938037678 | W64: 4.938037678 | X64: 4.938037678 | Y64: 4.938037678 | Z64: 4.938037678 | AA64: 4.889176043 | AB64: 4.889176043 | AC64: 4.889176043 | AD64: 4.889176043 | AE64: 4.889176043 | AF64: 4.69259114 | AG64: 4.69259114 | AH64: 4.69259114 | AI64: 4.69259114 | AJ64: 4.69259114 | AK64: 4.643729506 | AL64: 4.643729506 | AM64: 4.643729506 | AN64: 4.643729506 | AO64: 4.643729506 | AP64: 4.574867871 | AQ64: 4.574867871 | AR64: 4.574867871 | AS64: 4.574867871 | AT64: 4.574867871 | AU64: 4.69259114 | AV64: 4.69259114 | AW64: 4.69259114 | AX64: 4.69259114 | AY64: 4.69259114 | AZ64: 4.554867871 | BA64: 4.554867871 | BB64: 4.554867871 | BC64: 4.554867871 | BD64: 4.554867871 | BE64: 4.554867871 | BF64: 4.554867871 | BG64: 4.554867871 | BH64: 4.554867871 | BI64: 4.554867871 | BJ64: 4.554867871 | BK64: 4.554867871 | BL64: 4.554867871 | BM64: 4.554867871 | BN64: 4.554867871 | BO64: 4.554867871 | BP64: 4.554867871 | BQ64: 4.554867871 | BR64: 4.554867871 | BS64: 4.554867871 | BT64: 4.554867871 | BU64: 4.554867871 | BV64: 4.554867871 | BW64: 4.554867871 | BX64: 4.554867871 | BY64: 4.554867871 | BZ64: 4.554867871 | CA64: 4.554867871 | CB64: 4.554867871 | CC64: 4.554867871 | CD64: 4.554867871
A65: Industrial A1
A66: Daily supply charge | C66: 0.5812517326 | D66: 0.5619244412 | E66: 0.5746551555 | F66: 0.6309659431 | G66: 0.7883380096 | H66: 0.8034928623 | I66: 0.8199434682 | J66: 0.8366316777 | K66: 0.8542916918 | L66: 0.8935841315 | M66: 0.9050279827 | N66: 0.9134079324 | O66: 0.9188257674 | P66: 0.9213870074 | Q66: 0.9319416919 | R66: 0.9374405585 | S66: 0.9425900195 | T66: 0.9474223519 | U66: 0.9519659761 | V66: 0.9236203315 | W66: 0.9275212666 | X66: 0.9312083086 | Y66: 0.9346985799 | Z66: 0.9380074233 | AA66: 0.9319694542 | AB66: 0.9349263297 | AC66: 0.937740621 | AD66: 0.9404223989 | AE66: 0.9429808073 | AF66: 0.9079154571 | AG66: 0.9101586491 | AH66: 0.912305309 | AI66: 0.9143615367 | AJ66: 0.9163329287 | AK66: 0.9088111122 | AL66: 0.9106092309 | AM66: 0.9123374865 | AN66: 0.9139998732 | AO66: 0.9156000861 | AP66: 0.9039178211 | AQ66: 0.9053822899 | AR66: 0.9067948966 | AS66: 0.9081583483 | AT66: 0.9094751668 | AU66: 0.9336917821 | AV66: 0.9349532273 | AW66: 0.9361736335 | AX66: 0.9373549715 | AY66: 0.9384990876 | AZ66: 0.9116071144 | BA66: 0.9126498478 | BB66: 0.9136612092 | BC66: 0.9146425935 | BD66: 0.915595314 | BE66: 0.915595314 | BF66: 0.915595314 | BG66: 0.915595314 | BH66: 0.915595314 | BI66: 0.915595314 | BJ66: 0.915595314 | BK66: 0.915595314 | BL66: 0.915595314 | BM66: 0.915595314 | BN66: 0.915595314 | BO66: 0.915595314 | BP66: 0.915595314 | BQ66: 0.915595314 | BR66: 0.915595314 | BS66: 0.915595314 | BT66: 0.915595314 | BU66: 0.915595314 | BV66: 0.915595314 | BW66: 0.915595314 | BX66: 0.915595314 | BY66: 0.915595314 | BZ66: 0.915595314 | CA66: 0.915595314 | CB66: 0.915595314 | CC66: 0.915595314 | CD66: 0.915595314
A67: Average volumetric charge $/GJ | C67: 0.1348207712 | D67: 0.1477956152 | E67: 0.159838144 | F67: 0.168039367 | G67: 0.2181662543 | H67: 0.2312093916 | I67: 0.2451254364 | J67: 0.2596761498 | K67: 0.2749895902 | L67: 0.2921237164 | M67: 0.2990904205 | N67: 0.3039292775 | O67: 0.3066076449 | P67: 0.3071790037 | Q67: 0.3149632081 | R67: 0.3208817227 | S67: 0.326514164 | T67: 0.3318807837 | U67: 0.3369999662 | V67: 0.330200034 | W67: 0.3347132785 | X67: 0.3390318926 | Y67: 0.3431682006 | Z67: 0.3471335077 | AA67: 0.3475140667 | AB67: 0.3511321248 | AC67: 0.3546093412 | AD67: 0.3579537826 | AE67: 0.3611729115 | AF67: 0.3498545348 | AG67: 0.3527249633 | AH67: 0.3554935631 | AI67: 0.3581656583 | AJ67: 0.3607462084 | AK67: 0.3595137438 | AL67: 0.3619000782 | AM67: 0.3642086535 | AN67: 0.3664432094 | AO67: 0.3686072497 | AP67: 0.3653660399 | AQ67: 0.3673694627 | AR67: 0.3693125211 | AS67: 0.3711979028 | AT67: 0.3730281383 | AU67: 0.384222424 | AV67: 0.3859927254 | AW67: 0.3877134229 | AX67: 0.3893865726 | AY67: 0.3910141186 | AZ67: 0.3809257523 | BA67: 0.3824216783 | BB67: 0.3838784324 | BC67: 0.3852975334 | BD67: 0.3866804225 | BE67: 0.3866804225 | BF67: 0.3866804225 | BG67: 0.3866804225 | BH67: 0.3866804225 | BI67: 0.3866804225 | BJ67: 0.3866804225 | BK67: 0.3866804225 | BL67: 0.3866804225 | BM67: 0.3866804225 | BN67: 0.3866804225 | BO67: 0.3866804225 | BP67: 0.3866804225 | BQ67: 0.3866804225 | BR67: 0.3866804225 | BS67: 0.3866804225 | BT67: 0.3866804225 | BU67: 0.3866804225 | BV67: 0.3866804225 | BW67: 0.3866804225 | BX67: 0.3866804225 | BY67: 0.3866804225 | BZ67: 0.3866804225 | CA67: 0.3866804225 | CB67: 0.3866804225 | CC67: 0.3866804225 | CD67: 0.3866804225
A68: Industrial A2
A69: Daily supply charge | C69: 51.73850787 | D69: 53.53900068 | E69: 57.43151266 | F69: 60.15950951 | G69: 71.77837098 | H69: 71.77837098 | I69: 71.77837098 | J69: 71.77837098 | K69: 71.77837098 | L69: 73.67572895 | M69: 73.67572895 | N69: 73.67572895 | O69: 73.67572895 | P69: 73.67572895 | Q69: 74.04821355 | R69: 74.04821355 | S69: 74.04821355 | T69: 74.04821355 | U69: 74.04821355 | V69: 71.52208077 | W69: 71.52208077 | X69: 71.52208077 | Y69: 71.52208077 | Z69: 71.52208077 | AA69: 70.82384668 | AB69: 70.82384668 | AC69: 70.82384668 | AD69: 70.82384668 | AE69: 70.82384668 | AF69: 68.01442847 | AG69: 68.01442847 | AH69: 68.01442847 | AI69: 68.01442847 | AJ69: 68.01442847 | AK69: 67.31696099 | AL69: 67.31696099 | AM69: 67.31696099 | AN69: 67.31696099 | AO69: 67.31696099 | AP69: 66.34584531 | AQ69: 66.34584531 | AR69: 66.34584531 | AS69: 66.34584531 | AT69: 66.34584531 | AU69: 68.01741273 | AV69: 68.01741273 | AW69: 68.01741273 | AX69: 68.01741273 | AY69: 68.01741273 | AZ69: 65.99074606 | BA69: 65.99074606 | BB69: 65.99074606 | BC69: 65.99074606 | BD69: 65.99074606 | BE69: 65.99074606 | BF69: 65.99074606 | BG69: 65.99074606 | BH69: 65.99074606 | BI69: 65.99074606 | BJ69: 65.99074606 | BK69: 65.99074606 | BL69: 65.99074606 | BM69: 65.99074606 | BN69: 65.99074606 | BO69: 65.99074606 | BP69: 65.99074606 | BQ69: 65.99074606 | BR69: 65.99074606 | BS69: 65.99074606 | BT69: 65.99074606 | BU69: 65.99074606 | BV69: 65.99074606 | BW69: 65.99074606 | BX69: 65.99074606 | BY69: 65.99074606 | BZ69: 65.99074606 | CA69: 65.99074606 | CB69: 65.99074606 | CC69: 65.99074606 | CD69: 65.99074606
A70: Average volumetric charge $/GJ | C70: 1.35343836 | D70: 1.399124813 | E70: 1.499730135 | F70: 1.570967316 | G70: 1.874662669 | H70: 1.874662669 | I70: 1.874662669 | J70: 1.874662669 | K70: 1.874662669 | L70: 1.927779236 | M70: 1.927779236 | N70: 1.927779236 | O70: 1.927779236 | P70: 1.927779236 | Q70: 1.937779236 | R70: 1.937779236 | S70: 1.937779236 | T70: 1.937779236 | U70: 1.937779236 | V70: 1.87029048 | W70: 1.87029048 | X70: 1.87029048 | Y70: 1.87029048 | Z70: 1.87029048 | AA70: 1.855918291 | AB70: 1.855918291 | AC70: 1.855918291 | AD70: 1.855918291 | AE70: 1.855918291 | AF70: 1.784057346 | AG70: 1.784057346 | AH70: 1.784057346 | AI70: 1.784057346 | AJ70: 1.784057346 | AK70: 1.769685158 | AL70: 1.769685158 | AM70: 1.769685158 | AN70: 1.769685158 | AO70: 1.769685158 | AP70: 1.745312969 | AQ70: 1.745312969 | AR70: 1.745312969 | AS70: 1.745312969 | AT70: 1.745312969 | AU70: 1.788429535 | AV70: 1.788429535 | AW70: 1.788429535 | AX70: 1.788429535 | AY70: 1.788429535 | AZ70: 1.735312969 | BA70: 1.735312969 | BB70: 1.735312969 | BC70: 1.735312969 | BD70: 1.735312969 | BE70: 1.735312969 | BF70: 1.735312969 | BG70: 1.735312969 | BH70: 1.735312969 | BI70: 1.735312969 | BJ70: 1.735312969 | BK70: 1.735312969 | BL70: 1.735312969 | BM70: 1.735312969 | BN70: 1.735312969 | BO70: 1.735312969 | BP70: 1.735312969 | BQ70: 1.735312969 | BR70: 1.735312969 | BS70: 1.735312969 | BT70: 1.735312969 | BU70: 1.735312969 | BV70: 1.735312969 | BW70: 1.735312969 | BX70: 1.735312969 | BY70: 1.735312969 | BZ70: 1.735312969 | CA70: 1.735312969 | CB70: 1.735312969 | CC70: 1.735312969 | CD70: 1.735312969

Sheet Reg
A2: Capital account | B2: 2020 | C2: =B2+1 -> 2021 | D2: =C2+1 -> 2022 | E2: 2023 | F2: 2024 | G2: 2025 | H2: 2026 | I2: 2027 | J2: 2028 | K2: 2029 | L2: 2030 | M2: 2031 | N2: 2032 | O2: 2033 | P2: 2034 | Q2: 2035 | R2: 2036 | S2: 2037 | T2: 2038 | U2: 2039 | V2: 2040 | W2: 2041 | X2: 2042 | Y2: 2043 | Z2: 2044 | AA2: 2045 | AB2: 2046 | AC2: 2047 | AD2: 2048 | AE2: 2049 | AF2: 2050 | AG2: 2051 | AH2: 2052 | AI2: 2053 | AJ2: 2054 | AK2: 2055 | AL2: 2056 | AM2: 2057 | AN2: 2058 | AO2: 2059 | AP2: 2060 | AQ2: 2061 | AR2: 2062 | AS2: 2063 | AT2: 2064 | AU2: 2065 | AV2: 2066 | AW2: 2067 | AX2: 2068 | AY2: 2069 | AZ2: 2070 | BA2: 2071 | BB2: 2072 | BC2: 2073 | BD2: 2074 | BE2: 2075 | BF2: 2076 | BG2: 2077 | BH2: 2078 | BI2: 2079 | BJ2: 2080 | BK2: 2081 | BL2: 2082 | BM2: 2083 | BN2: 2084 | BO2: 2085 | BP2: =BO2+1 -> 2086 | BQ2: 2087 | BR2: 2088 | BS2: 2089 | BT2: 2090 | BU2: 2091 | BV2: 2092 | BW2: 2093 | BX2: 2094 | BY2: 2095 | BZ2: 2096 | CA2: 2097 | CB2: 2098 | CC2: 2099 | CD2: 2100
A3: Opening RAB $ million | C3: 1538.343817 | D3: 1556.793116 | E3: 1575.104854 | F3: 1593.40554 | G3: 1616.15264 | H3: 1642.111514 | I3: 1656.545799 | J3: 1663.600133 | K3: 1672.532376 | L3: 1680.984482 | M3: 1695.823745 | N3: 1709.334761 | O3: 1723.240708 | P3: 1735.212814 | Q3: 1745.307006 | R3: 1740.812511 | S3: 1732.025699 | T3: 1717.964879 | U3: 1696.203405 | V3: 1661.301954 | W3: 1594.448055 | X3: 1528.647053 | Y3: 1463.962533 | Z3: 1400.350575 | AA3: 1337.759674 | AB3: 1276.304896 | AC3: 1215.599814 | AD3: 1155.795947 | AE3: 1096.89018 | AF3: 1038.910693 | AG3: 989.0091588 | AH3: 940.4535741 | AI3: 893.1370401 | AJ3: 847.0650268 | AK3: 802.332124 | AL3: 758.8163358 | AM3: 716.3795237 | AN3: 675.0412799 | AO3: 634.7950855 | AP3: 595.7446413 | AQ3: 557.6159533 | AR3: 520.2888625 | AS3: 483.6206594 | AT3: 447.5258308 | AU3: 411.9725493 | AV3: 376.9549115 | AW3: 341.5810321 | AX3: 305.7995477 | AY3: 269.6062313 | AZ3: 232.8077774 | BA3: 195.182643 | BB3: 156.275192 | BC3: 115.4498945 | BD3: 71.44073474
A4: Capex $m | C4: 84.23746264 | D4: 85.26567214 | E4: 86.72374176 | F4: 93.90949304 | G4: 91.32236033 | H4: 89.4957495 | I4: 82.67972718 | J4: 84.12557509 | K4: 82.65558911 | L4: 88.73514825 | M4: 88.73514825 | N4: 88.73514825 | O4: 88.73514825 | P4: 88.73514825 | Q4: 75.84307316 | R4: 72.76542484 | S4: 68.46097317 | T4: 61.70291481 | U4: 48.88503057 | V4: 11.72185905 | W4: 11.36941422 | X4: 11.01814732 | Y4: 10.69287202 | Z4: 10.36759671 | AA4: 10.04232141 | AB4: 9.71704611 | AC4: 9.391770809 | AD4: 9.066495507 | AE4: 8.741220206 | AF4: 8.415944904 | AG4: 8.415944904 | AH4: 8.415944904 | AI4: 8.415944904 | AJ4: 8.415944904 | AK4: 8.415944904 | AL4: 8.415944904 | AM4: 8.415944904 | AN4: 8.415944904 | AO4: 8.415944904 | AP4: 8.415944904 | AQ4: 8.415944904 | AR4: 8.415944904 | AS4: 8.415944904 | AT4: 8.415944904 | AU4: 8.415944904 | AV4: 8.415944904 | AW4: 8.415944904 | AX4: 8.415944904 | AY4: 8.415944904 | AZ4: 8.415944904 | BA4: 8.415944904 | BB4: 8.415944904 | BC4: 8.415944904 | BD4: 8.415944904
A5: Depreciation $ million | C5: -65.21878211 | D5: -66.95409637 | E5: -68.42321731 | F5: -71.16255596 | G5: -65.36348628 | H5: -75.06146438 | I5: -75.62539346 | J5: -75.19333172 | K5: -74.2034831 | L5: -73.8958856 | M5: -75.22413202 | N5: -74.82920114 | O5: -76.76304169 | P5: -78.64095682 | Q5: -80.33756828 | R5: -81.5522368 | S5: -82.52179288 | T5: -83.4643887 | U5: -83.78648144 | V5: -78.575758 | W5: -77.1704169 | X5: -75.7026675 | Y5: -74.30482997 | Z5: -72.9584972 | AA5: -71.49709992 | AB5: -70.42212806 | AC5: -69.19563713 | AD5: -67.97226312 | AE5: -66.7207073 | AF5: -58.31747874 | AG5: -56.97152952 | AH5: -55.7324789 | AI5: -54.48795826 | AJ5: -53.14884769 | AK5: -51.9317331 | AL5: -50.85275698 | AM5: -49.75418867 | AN5: -48.66213936 | AO5: -47.46638908 | AP5: -46.54463287 | AQ5: -45.74303573 | AR5: -45.08414799 | AS5: -44.51077351 | AT5: -43.96922643 | AU5: -43.43358274 | AV5: -43.78982427 | AW5: -44.19742935 | AX5: -44.60926128 | AY5: -45.21439878 | AZ5: -46.04107935 | BA5: -47.32339588 | BB5: -49.24124242 | BC5: -52.42510463 | BD5: -59.93764071
A6: Disposals $m | C6: -0.5695437146
A7: Closing RAB $ million | C7: 1556.792953 | D7: 1575.104691 | E7: 1593.405378 | F7: 1616.152477 | G7: 1642.111514 | H7: 1656.545799 | I7: 1663.600133 | J7: 1672.532376 | K7: 1680.984482 | L7: 1695.823745 | M7: 1709.334761 | N7: 1723.240708 | O7: 1735.212814 | P7: 1745.307006 | Q7: 1740.812511 | R7: 1732.025699 | S7: 1717.964879 | T7: 1696.203405 | U7: 1661.301954 | V7: 1594.448055 | W7: 1528.647053 | X7: 1463.962533 | Y7: 1400.350575 | Z7: 1337.759674 | AA7: 1276.304896 | AB7: 1215.599814 | AC7: 1155.795947 | AD7: 1096.89018 | AE7: 1038.910693 | AF7: 989.0091588 | AG7: 940.4535741 | AH7: 893.1370401 | AI7: 847.0650268 | AJ7: 802.332124 | AK7: 758.8163358 | AL7: 716.3795237 | AM7: 675.0412799 | AN7: 634.7950855 | AO7: 595.7446413 | AP7: 557.6159533 | AQ7: 520.2888625 | AR7: 483.6206594 | AS7: 447.5258308 | AT7: 411.9725493 | AU7: 376.9549115 | AV7: 341.5810321 | AW7: 305.7995477 | AX7: 269.6062313 | AY7: 232.8077774 | AZ7: 195.182643 | BA7: 156.275192 | BB7: 115.4498945 | BC7: 71.44073474 | BD7: 19.91903893
A10: Real post tax WACC | C10: 0.02981411904 | D10: 0.02981411904 | E10: 0.02981411904 | F10: 0.02981411904 | G10: 0.04571651546 | H10: 0.04571651546 | I10: 0.04571651546 | J10: 0.04571651546 | K10: 0.04571651546 | L10: 0.04571651546 | M10: 0.04571651546 | N10: 0.04571651546 | O10: 0.04571651546 | P10: 0.04571651546 | Q10: 0.04571651546 | R10: 0.04571651546 | S10: 0.04571651546 | T10: 0.04571651546 | U10: 0.04571651546 | V10: 0.04571651546 | W10: 0.04571651546 | X10: 0.04571651546 | Y10: 0.04571651546 | Z10: 0.04571651546 | AA10: 0.04571651546 | AB10: 0.04571651546 | AC10: 0.04571651546 | AD10: 0.04571651546 | AE10: 0.04571651546 | AF10: 0.04571651546 | AG10: 0.04571651546 | AH10: 0.04571651546 | AI10: 0.04571651546 | AJ10: 0.04571651546 | AK10: 0.04571651546 | AL10: 0.04571651546 | AM10: 0.04571651546 | AN10: 0.04571651546 | AO10: 0.04571651546 | AP10: 0.04571651546 | AQ10: 0.04571651546 | AR10: 0.04571651546 | AS10: 0.04571651546 | AT10: 0.04571651546 | AU10: 0.04571651546 | AV10: 0.04571651546 | AW10: 0.04571651546 | AX10: 0.04571651546 | AY10: 0.04571651546 | AZ10: 0.04571651546 | BA10: 0.04571651546 | BB10: 0.04571651546 | BC10: 0.04571651546 | BD10: 0.04571651546 | BE10: 0.04571651546 | BF10: 0.04571651546 | BG10: 0.04571651546 | BH10: 0.04571651546 | BI10: 0.04571651546 | BJ10: 0.04571651546 | BK10: 0.04571651546 | BL10: 0.04571651546 | BM10: 0.04571651546 | BN10: 0.04571651546 | BO10: 0.04571651546 | BP10: 0.04571651546 | BQ10: 0.04571651546 | BR10: 0.04571651546 | BS10: 0.04571651546 | BT10: 0.04571651546 | BU10: 0.04571651546 | BV10: 0.04571651546 | BW10: 0.04571651546 | BX10: 0.04571651546 | BY10: 0.04571651546 | BZ10: 0.04571651546 | CA10: 0.04571651546 | CB10: 0.04571651546 | CC10: 0.04571651546 | CD10: 0.04571651546
A12: Revenue | B12: 2020 | C12: =B12+1 -> 2021 | D12: =C12+1 -> 2022 | E12: =D12+1 -> 2023 | F12: =E12+1 -> 2024 | G12: =F12+1 -> 2025 | H12: =G12+1 -> 2026 | I12: =H12+1 -> 2027 | J12: =I12+1 -> 2028 | K12: =J12+1 -> 2029 | L12: =K12+1 -> 2030 | M12: =L12+1 -> 2031 | N12: =M12+1 -> 2032 | O12: =N12+1 -> 2033 | P12: =O12+1 -> 2034 | Q12: =P12+1 -> 2035 | R12: =Q12+1 -> 2036 | S12: =R12+1 -> 2037 | T12: =S12+1 -> 2038 | U12: =T12+1 -> 2039 | V12: =U12+1 -> 2040 | W12: =V12+1 -> 2041 | X12: =W12+1 -> 2042 | Y12: =X12+1 -> 2043 | Z12: =Y12+1 -> 2044 | AA12: =Z12+1 -> 2045 | AB12: =AA12+1 -> 2046 | AC12: =AB12+1 -> 2047 | AD12: =AC12+1 -> 2048 | AE12: =AD12+1 -> 2049 | AF12: =AE12+1 -> 2050 | AG12: =AF12+1 -> 2051 | AH12: =AG12+1 -> 2052 | AI12: =AH12+1 -> 2053 | AJ12: =AI12+1 -> 2054 | AK12: =AJ12+1 -> 2055 | AL12: =AK12+1 -> 2056 | AM12: =AL12+1 -> 2057 | AN12: =AM12+1 -> 2058 | AO12: =AN12+1 -> 2059 | AP12: =AO12+1 -> 2060 | AQ12: =AP12+1 -> 2061 | AR12: =AQ12+1 -> 2062 | AS12: =AR12+1 -> 2063 | AT12: =AS12+1 -> 2064 | AU12: =AT12+1 -> 2065 | AV12: =AU12+1 -> 2066 | AW12: =AV12+1 -> 2067 | AX12: =AW12+1 -> 2068 | AY12: =AX12+1 -> 2069 | AZ12: =AY12+1 -> 2070 | BA12: =AZ12+1 -> 2071 | BB12: =BA12+1 -> 2072 | BC12: =BB12+1 -> 2073 | BD12: =BC12+1 -> 2074 | BE12: =BD12+1 -> 2075 | BF12: =BE12+1 -> 2076 | BG12: =BF12+1 -> 2077 | BH12: =BG12+1 -> 2078 | BI12: =BH12+1 -> 2079 | BJ12: =BI12+1 -> 2080 | BK12: =BJ12+1 -> 2081 | BL12: =BK12+1 -> 2082 | BM12: =BL12+1 -> 2083 | BN12: =BM12+1 -> 2084 | BO12: =BN12+1 -> 2085 | BP12: =BO12+1 -> 2086 | BQ12: =BP12+1 -> 2087 | BR12: =BQ12+1 -> 2088 | BS12: =BR12+1 -> 2089 | BT12: =BS12+1 -> 2090 | BU12: =BT12+1 -> 2091 | BV12: =BU12+1 -> 2092 | BW12: =BV12+1 -> 2093 | BX12: =BW12+1 -> 2094 | BY12: =BX12+1 -> 2095 | BZ12: =BY12+1 -> 2096 | CA12: =BZ12+1 -> 2097 | CB12: =CA12+1 -> 2098 | CC12: =CB12+1 -> 2099 | CD12: =CC12+1 -> 2100
A13: Components of revenue ($m real)
A14: Depreciation | C14: =C5*-1 -> 65.21878211 | D14: =D5*-1 -> 66.95409637 | E14: 68.42321731 | F14: 71.16255596 | G14: 65.36348628 | H14: 75.06146438 | I14: 75.62539346 | J14: 75.19333172 | K14: 74.2034831 | L14: 73.8958856 | M14: 75.22413202 | N14: 74.82920114 | O14: 76.76304169 | P14: 78.64095682 | Q14: 80.33756828 | R14: 81.5522368 | S14: 82.52179288 | T14: 83.4643887 | U14: 83.78648144 | V14: 78.575758 | W14: 77.1704169 | X14: 75.7026675 | Y14: 74.30482997 | Z14: 72.9584972 | AA14: 71.49709992 | AB14: 70.42212806 | AC14: 69.19563713 | AD14: 67.97226312 | AE14: 66.7207073 | AF14: 58.31747874 | AG14: 56.97152952 | AH14: 55.7324789 | AI14: 54.48795826 | AJ14: 53.14884769 | AK14: 51.9317331 | AL14: 50.85275698 | AM14: 49.75418867 | AN14: 48.66213936 | AO14: 47.46638908 | AP14: 46.54463287 | AQ14: 45.74303573 | AR14: 45.08414799 | AS14: 44.51077351 | AT14: 43.96922643 | AU14: 43.43358274 | AV14: 43.78982427 | AW14: 44.19742935 | AX14: 44.60926128 | AY14: 45.21439878 | AZ14: 46.04107935 | BA14: 47.32339588 | BB14: 49.24124242 | BC14: 52.42510463 | BD14: 59.93764071
A15: Return on asset | C15: =C10*C3 -> 45.86436568 | D15: =D10*D3 -> 46.41441527 | E15: 46.96036361 | F15: 47.50598246 | G15: 73.88486714 | H15: 75.07161641 | I15: 75.73150162 | J15: 76.05400118 | K15: 76.46235222 | L15: 76.84875306 | M15: 77.52715244 | N15: 78.14482902 | O15: 78.78056047 | P15: 79.32788346 | Q15: 79.78935472 | R15: 79.58388206 | S15: 79.18217964 | T15: 78.53936796 | U15: 77.5445092 | V15: 75.94893648 | W15: 72.89260918 | X15: 69.88441662 | Y15: 66.92726575 | Z15: 64.01914869 | AA15: 61.15771082 | AB15: 58.34821249 | AC15: 55.57298767 | AD15: 52.8389633 | AE15: 50.14599686 | AF15: 47.49537674 | AG15: 45.2140525 | AH15: 42.99426036 | AI15: 40.83111331 | AJ15: 38.72486139 | AK15: 36.67982895 | AL15: 34.69043875 | AM15: 32.75037557 | AN15: 30.86053511 | AO15: 29.02061934 | AP15: 27.23536911 | AQ15: 25.49225835 | AR15: 23.78579383 | AS15: 22.10945136 | AT15: 20.45932157 | AU15: 18.83394942 | AV15: 17.23306504 | AW15: 15.61589454 | AX15: 13.98008975 | AY15: 12.32545744 | AZ15: 10.64316036 | BA15: 8.923070315 | BB15: 7.144357231 | BC15: 5.277966886 | BD15: 3.266021454
A16: Opex (ex UAFG) | C16: 71.46310387 | D16: 72.63183899 | E16: 72.06334835 | F16: 69.7795284 | G16: 74.47287945 | H16: 76.7493286 | I16: 77.89143886 | J16: 81.28345886 | K16: 80.11765402 | L16: 80.11765402 | M16: 80.09688175 | N16: 79.83725498 | O16: 79.45012528 | P16: 78.84492171 | Q16: 77.95061724 | R16: 76.9098496 | S16: 75.85478108 | T16: 74.77228817 | U16: 73.59108458 | V16: 72.22253717 | W16: 70.72727989 | X16: 69.23202261 | Y16: 67.73676533 | Z16: 66.24150804 | AA16: 64.74625076 | AB16: 63.25099348 | AC16: 61.75573619 | AD16: 60.26047891 | AE16: 58.76522163 | AF16: 57.26996435 | AG16: 55.77470706 | AH16: 54.27944978 | AI16: 52.7841925 | AJ16: 51.28893522 | AK16: 49.79367793 | AL16: 48.29842065 | AM16: 46.80316337 | AN16: 45.30790609 | AO16: 43.8126488 | AP16: 42.31739152 | AQ16: 40.82213424 | AR16: 39.32687695 | AS16: 37.83161967 | AT16: 36.39866478 | AU16: 35.08512279 | AV16: 33.88104263 | AW16: 32.77730249 | AX16: 31.76554069 | AY16: 30.83809238 | AZ16: 29.98793142 | BA16: 29.20861722 | BB16: 28.49424586 | BC16: 27.83940545 | BD16: 27.23913507
A17: UAFG | C17: =C23*(C25*Summary!C19*1000+C26*Summary!C20*1000+C27*Summary!C18*1000+C28*Summary!C17*1000+C29*Summary!C16*1000)/1000000 -> 5.039943179 | D17: =D23*(D25*Summary!D19*1000+D26*Summary!D20*1000+D27*Summary!D18*1000+D28*Summary!D17*1000+D29*Summary!D16*1000)/1000000 -> 3.505621723 | E17: =E23*(E25*Summary!E19*1000+E26*Summary!E20*1000+E27*Summary!E18*1000+E28*Summary!E17*1000+E29*Summary!E16*1000)/1000000 -> 3.642292931 | F17: =F23*(F25*Summary!F19*1000+F26*Summary!F20*1000+F27*Summary!F18*1000+F28*Summary!F17*1000+F29*Summary!F16*1000)/1000000 -> 3.80038679 | G17: =G23*(G25*Summary!G19*1000+G26*Summary!G20*1000+G27*Summary!G18*1000+G28*Summary!G17*1000+G29*Summary!G16*1000)/1000000 -> 3.882486829 | H17: =H23*(H25*Summary!H19*1000+H26*Summary!H20*1000+H27*Summary!H18*1000+H28*Summary!H17*1000+H29*Summary!H16*1000)/1000000 -> 3.895865687 | I17: =I23*(I25*Summary!I19*1000+I26*Summary!I20*1000+I27*Summary!I18*1000+I28*Summary!I17*1000+I29*Summary!I16*1000)/1000000 -> 3.901048418 | J17: =J23*(J25*Summary!J19*1000+J26*Summary!J20*1000+J27*Summary!J18*1000+J28*Summary!J17*1000+J29*Summary!J16*1000)/1000000 -> 3.900321206 | K17: =K23*(K25*Summary!K19*1000+K26*Summary!K20*1000+K27*Summary!K18*1000+K28*Summary!K17*1000+K29*Summary!K16*1000)/1000000 -> 3.916553038 | L17: =L23*(L25*Summary!L19*1000+L26*Summary!L20*1000+L27*Summary!L18*1000+L28*Summary!L17*1000+L29*Summary!L16*1000)/1000000 -> 3.885198744 | M17: =M23*(M25*Summary!M19*1000+M26*Summary!M20*1000+M27*Summary!M18*1000+M28*Summary!M17*1000+M29*Summary!M16*1000)/1000000 -> 3.843909033 | N17: =N23*(N25*Summary!N19*1000+N26*Summary!N20*1000+N27*Summary!N18*1000+N28*Summary!N17*1000+N29*Summary!N16*1000)/1000000 -> 3.821511075 | O17: =O23*(O25*Summary!O19*1000+O26*Summary!O20*1000+O27*Summary!O18*1000+O28*Summary!O17*1000+O29*Summary!O16*1000)/1000000 -> 3.794833886 | P17: =P23*(P25*Summary!P19*1000+P26*Summary!P20*1000+P27*Summary!P18*1000+P28*Summary!P17*1000+P29*Summary!P16*1000)/1000000 -> 3.730667316 | Q17: =Q23*(Q25*Summary!Q19*1000+Q26*Summary!Q20*1000+Q27*Summary!Q18*1000+Q28*Summary!Q17*1000+Q29*Summary!Q16*1000)/1000000 -> 3.654395741 | R17: =R23*(R25*Summary!R19*1000+R26*Summary!R20*1000+R27*Summary!R18*1000+R28*Summary!R17*1000+R29*Summary!R16*1000)/1000000 -> 3.666702839 | S17: =S23*(S25*Summary!S19*1000+S26*Summary!S20*1000+S27*Summary!S18*1000+S28*Summary!S17*1000+S29*Summary!S16*1000)/1000000 -> 3.623823295 | T17: =T23*(T25*Summary!T19*1000+T26*Summary!T20*1000+T27*Summary!T18*1000+T28*Summary!T17*1000+T29*Summary!T16*1000)/1000000 -> 3.550930683 | U17: =U23*(U25*Summary!U19*1000+U26*Summary!U20*1000+U27*Summary!U18*1000+U28*Summary!U17*1000+U29*Summary!U16*1000)/1000000 -> 3.507735654 | V17: =V23*(V25*Summary!V19*1000+V26*Summary!V20*1000+V27*Summary!V18*1000+V28*Summary!V17*1000+V29*Summary!V16*1000)/1000000 -> 3.402810398 | W17: =W23*(W25*Summary!W19*1000+W26*Summary!W20*1000+W27*Summary!W18*1000+W28*Summary!W17*1000+W29*Summary!W16*1000)/1000000 -> 3.320244364 | X17: =X23*(X25*Summary!X19*1000+X26*Summary!X20*1000+X27*Summary!X18*1000+X28*Summary!X17*1000+X29*Summary!X16*1000)/1000000 -> 3.23693556 | Y17: =Y23*(Y25*Summary!Y19*1000+Y26*Summary!Y20*1000+Y27*Summary!Y18*1000+Y28*Summary!Y17*1000+Y29*Summary!Y16*1000)/1000000 -> 3.152738125 | Z17: =Z23*(Z25*Summary!Z19*1000+Z26*Summary!Z20*1000+Z27*Summary!Z18*1000+Z28*Summary!Z17*1000+Z29*Summary!Z16*1000)/1000000 -> 3.068166567 | AA17: =AA23*(AA25*Summary!AA19*1000+AA26*Summary!AA20*1000+AA27*Summary!AA18*1000+AA28*Summary!AA17*1000+AA29*Summary!AA16*1000)/1000000 -> 2.987319292 | AB17: =AB23*(AB25*Summary!AB19*1000+AB26*Summary!AB20*1000+AB27*Summary!AB18*1000+AB28*Summary!AB17*1000+AB29*Summary!AB16*1000)/1000000 -> 2.897783569 | AC17: =AC23*(AC25*Summary!AC19*1000+AC26*Summary!AC20*1000+AC27*Summary!AC18*1000+AC28*Summary!AC17*1000+AC29*Summary!AC16*1000)/1000000 -> 2.809134347 | AD17: =AD23*(AD25*Summary!AD19*1000+AD26*Summary!AD20*1000+AD27*Summary!AD18*1000+AD28*Summary!AD17*1000+AD29*Summary!AD16*1000)/1000000 -> 2.71285987 | AE17: =AE23*(AE25*Summary!AE19*1000+AE26*Summary!AE20*1000+AE27*Summary!AE18*1000+AE28*Summary!AE17*1000+AE29*Summary!AE16*1000)/1000000 -> 2.618506948 | AF17: =AF23*(AF25*Summary!AF19*1000+AF26*Summary!AF20*1000+AF27*Summary!AF18*1000+AF28*Summary!AF17*1000+AF29*Summary!AF16*1000)/1000000 -> 2.530095886 | AG17: =AG23*(AG25*Summary!AG19*1000+AG26*Summary!AG20*1000+AG27*Summary!AG18*1000+AG28*Summary!AG17*1000+AG29*Summary!AG16*1000)/1000000 -> 2.445132265 | AH17: =AH23*(AH25*Summary!AH19*1000+AH26*Summary!AH20*1000+AH27*Summary!AH18*1000+AH28*Summary!AH17*1000+AH29*Summary!AH16*1000)/1000000 -> 2.355397264 | AI17: =AI23*(AI25*Summary!AI19*1000+AI26*Summary!AI20*1000+AI27*Summary!AI18*1000+AI28*Summary!AI17*1000+AI29*Summary!AI16*1000)/1000000 -> 2.269096869 | AJ17: =AJ23*(AJ25*Summary!AJ19*1000+AJ26*Summary!AJ20*1000+AJ27*Summary!AJ18*1000+AJ28*Summary!AJ17*1000+AJ29*Summary!AJ16*1000)/1000000 -> 2.177054555 | AK17: =AK23*(AK25*Summary!AK19*1000+AK26*Summary!AK20*1000+AK27*Summary!AK18*1000+AK28*Summary!AK17*1000+AK29*Summary!AK16*1000)/1000000 -> 2.093893859 | AL17: =AL23*(AL25*Summary!AL19*1000+AL26*Summary!AL20*1000+AL27*Summary!AL18*1000+AL28*Summary!AL17*1000+AL29*Summary!AL16*1000)/1000000 -> 2.003993181 | AM17: =AM23*(AM25*Summary!AM19*1000+AM26*Summary!AM20*1000+AM27*Summary!AM18*1000+AM28*Summary!AM17*1000+AM29*Summary!AM16*1000)/1000000 -> 1.920121985 | AN17: =AN23*(AN25*Summary!AN19*1000+AN26*Summary!AN20*1000+AN27*Summary!AN18*1000+AN28*Summary!AN17*1000+AN29*Summary!AN16*1000)/1000000 -> 1.828425996 | AO17: =AO23*(AO25*Summary!AO19*1000+AO26*Summary!AO20*1000+AO27*Summary!AO18*1000+AO28*Summary!AO17*1000+AO29*Summary!AO16*1000)/1000000 -> 1.743719676 | AP17: =AP23*(AP25*Summary!AP19*1000+AP26*Summary!AP20*1000+AP27*Summary!AP18*1000+AP28*Summary!AP17*1000+AP29*Summary!AP16*1000)/1000000 -> 1.655016465 | AQ17: =AQ23*(AQ25*Summary!AQ19*1000+AQ26*Summary!AQ20*1000+AQ27*Summary!AQ18*1000+AQ28*Summary!AQ17*1000+AQ29*Summary!AQ16*1000)/1000000 -> 1.555780786 | AR17: =AR23*(AR25*Summary!AR19*1000+AR26*Summary!AR20*1000+AR27*Summary!AR18*1000+AR28*Summary!AR17*1000+AR29*Summary!AR16*1000)/1000000 -> 1.448477675 | AS17: =AS23*(AS25*Summary!AS19*1000+AS26*Summary!AS20*1000+AS27*Summary!AS18*1000+AS28*Summary!AS17*1000+AS29*Summary!AS16*1000)/1000000 -> 1.351049304 | AT17: =AT23*(AT25*Summary!AT19*1000+AT26*Summary!AT20*1000+AT27*Summary!AT18*1000+AT28*Summary!AT17*1000+AT29*Summary!AT16*1000)/1000000 -> 1.243525899 | AU17: =AU23*(AU25*Summary!AU19*1000+AU26*Summary!AU20*1000+AU27*Summary!AU18*1000+AU28*Summary!AU17*1000+AU29*Summary!AU16*1000)/1000000 -> 1.140271116 | AV17: =AV23*(AV25*Summary!AV19*1000+AV26*Summary!AV20*1000+AV27*Summary!AV18*1000+AV28*Summary!AV17*1000+AV29*Summary!AV16*1000)/1000000 -> 1.025359179 | AW17: =AW23*(AW25*Summary!AW19*1000+AW26*Summary!AW20*1000+AW27*Summary!AW18*1000+AW28*Summary!AW17*1000+AW29*Summary!AW16*1000)/1000000 -> 0.9252019558 | AX17: =AX23*(AX25*Summary!AX19*1000+AX26*Summary!AX20*1000+AX27*Summary!AX18*1000+AX28*Summary!AX17*1000+AX29*Summary!AX16*1000)/1000000 -> 0.8074618652 | AY17: =AY23*(AY25*Summary!AY19*1000+AY26*Summary!AY20*1000+AY27*Summary!AY18*1000+AY28*Summary!AY17*1000+AY29*Summary!AY16*1000)/1000000 -> 0.7097353096 | AZ17: =AZ23*(AZ25*Summary!AZ19*1000+AZ26*Summary!AZ20*1000+AZ27*Summary!AZ18*1000+AZ28*Summary!AZ17*1000+AZ29*Summary!AZ16*1000)/1000000 -> 0.6340911994 | BA17: =BA23*(BA25*Summary!BA19*1000+BA26*Summary!BA20*1000+BA27*Summary!BA18*1000+BA28*Summary!BA17*1000+BA29*Summary!BA16*1000)/1000000 -> 0.5688209838 | BB17: =BB23*(BB25*Summary!BB19*1000+BB26*Summary!BB20*1000+BB27*Summary!BB18*1000+BB28*Summary!BB17*1000+BB29*Summary!BB16*1000)/1000000 -> 0.5132989492 | BC17: =BC23*(BC25*Summary!BC19*1000+BC26*Summary!BC20*1000+BC27*Summary!BC18*1000+BC28*Summary!BC17*1000+BC29*Summary!BC16*1000)/1000000 -> 0.4656177332 | BD17: =BD23*(BD25*Summary!BD19*1000+BD26*Summary!BD20*1000+BD27*Summary!BD18*1000+BD28*Summary!BD17*1000+BD29*Summary!BD16*1000)/1000000 -> 0.4244266743
A18: Tax and imputation credits | C18: 0 | D18: 0 | E18: 0 | F18: 0 | G18: 0 | H18: 0 | I18: 0 | J18: 0 | K18: 0 | L18: 0 | M18: 0 | N18: 0 | O18: 0 | P18: 0 | Q18: 0 | R18: 0 | S18: 0 | T18: 0 | U18: 0 | V18: 0 | W18: 0 | X18: 0 | Y18: 0 | Z18: 0 | AA18: 0 | AB18: 0 | AC18: 0 | AD18: 0 | AE18: 0 | AF18: 0 | AG18: 0 | AH18: 0 | AI18: 0 | AJ18: 0 | AK18: 0 | AL18: 0 | AM18: 0 | AN18: 0 | AO18: 0 | AP18: 0 | AQ18: 0 | AR18: 0 | AS18: 0 | AT18: 0 | AU18: 0 | AV18: 0 | AW18: 0 | AX18: 0 | AY18: 0 | AZ18: 0 | BA18: 0 | BB18: 0 | BC18: 0 | BD18: 0
A19: Regulated revenue ($M) | C19: =SUM(C14:C18) -> 187.5861948 | D19: =SUM(D14:D18) -> 189.5059724 | E19: =SUM(E14:E18) -> 191.0892222 | F19: 192.2484536 | G19: 217.6037197 | H19: 230.7782751 | I19: 233.1493824 | J19: 236.431113 | K19: 234.7000424 | L19: 234.7474914 | M19: 236.6920752 | N19: 236.6327962 | O19: 238.7885613 | P19: 240.5444293 | Q19: 241.731936 | R19: 241.7126713 | S19: 241.1825769 | T19: 240.3269755 | U19: 238.4298109 | V19: 230.1500421 | W19: 224.1105503 | X19: 218.0560423 | Y19: 212.1215992 | Z19: 206.2873205 | AA19: 200.3883808 | AB19: 194.9191176 | AC19: 189.3334953 | AD19: 183.7845652 | AE19: 178.2504327 | AF19: 165.6129157 | AG19: 160.4054213 | AH19: 155.3615863 | AI19: 150.3723609 | AJ19: 145.3396989 | AK19: 140.4991338 | AL19: 135.8456096 | AM19: 131.2278496 | AN19: 126.6590066 | AO19: 122.0433769 | AP19: 117.75241 | AQ19: 113.6132091 | AR19: 109.6452964 | AS19: 105.8028938 | AT19: 102.0707387 | AU19: 98.49292607 | AV19: 95.92929112 | AW19: 93.51582833 | AX19: 91.16235359 | AY19: 89.08768391 | AZ19: 87.30626233 | BA19: 86.0239044 | BB19: 85.39314445 | BC19: 86.0080947 | BD19: 90.86722391
A22: UAFG
A23: Cost per GJ of gas | B23: $/GJ real $2023 | C23: 7.5 | D23: 7.5 | E23: 7.7075 | F23: 8.089491525 | G23: 8.325745342 | H23: 8.360765003 | I23: 8.395931964 | J23: 8.431246843 | K23: 8.466710264 | L23: 8.502322851 | M23: 8.53808523 | N23: 8.573998034 | O23: 8.610061893 | P23: 8.646277444 | Q23: 8.646277444 | R23: 8.646277444 | S23: 8.646277444 | T23: 8.646277444 | U23: 8.646277444 | V23: 8.646277444 | W23: 8.646277444 | X23: 8.646277444 | Y23: 8.646277444 | Z23: 8.646277444 | AA23: 8.646277444 | AB23: 8.646277444 | AC23: 8.646277444 | AD23: 8.646277444 | AE23: 8.646277444 | AF23: 8.646277444 | AG23: 8.646277444 | AH23: 8.646277444 | AI23: 8.646277444 | AJ23: 8.646277444 | AK23: 8.646277444 | AL23: 8.646277444 | AM23: 8.646277444 | AN23: 8.646277444 | AO23: 8.646277444 | AP23: 8.646277444 | AQ23: 8.646277444 | AR23: 8.646277444 | AS23: 8.646277444 | AT23: 8.646277444 | AU23: 8.646277444 | AV23: 8.646277444 | AW23: 8.646277444 | AX23: 8.646277444 | AY23: 8.646277444 | AZ23: 8.646277444 | BA23: 8.646277444 | BB23: 8.646277444 | BC23: 8.646277444 | BD23: 8.646277444 | BE23: 8.646277444 | BF23: 8.646277444 | BG23: 8.646277444 | BH23: 8.646277444 | BI23: 8.646277444 | BJ23: 8.646277444 | BK23: 8.646277444 | BL23: 8.646277444 | BM23: 8.646277444 | BN23: 8.646277444 | BO23: 8.646277444 | BP23: 8.646277444 | BQ23: 8.646277444 | BR23: 8.646277444 | BS23: 8.646277444 | BT23: 8.646277444 | BU23: 8.646277444 | BV23: 8.646277444 | BW23: 8.646277444 | BX23: 8.646277444 | BY23: 8.646277444 | BZ23: 8.646277444 | CA23: 8.646277444 | CB23: 8.646277444 | CC23: 8.646277444 | CD23: 8.646277444
A24: % of through put lost
A25: A1 | C25: 0.003984063745 | D25: 0.000999000999 | E25: 0.000999000999 | F25: 0.000999000999 | G25: 0.000999000999 | H25: 0.000999000999 | I25: 0.000999000999 | J25: 0.000999000999 | K25: 0.000999000999 | L25: 0.000999000999 | M25: 0.000999000999 | N25: 0.000999000999 | O25: 0.000999000999 | P25: 0.000999000999 | Q25: 0.000999000999 | R25: 0.000999000999 | S25: 0.000999000999 | T25: 0.000999000999 | U25: 0.000999000999 | V25: 0.000999000999 | W25: 0.000999000999 | X25: 0.000999000999 | Y25: 0.000999000999 | Z25: 0.000999000999 | AA25: 0.000999000999 | AB25: 0.000999000999 | AC25: 0.000999000999 | AD25: 0.000999000999 | AE25: 0.000999000999 | AF25: 0.000999000999 | AG25: 0.000999000999 | AH25: 0.000999000999 | AI25: 0.000999000999 | AJ25: 0.000999000999 | AK25: 0.000999000999 | AL25: 0.000999000999 | AM25: 0.000999000999 | AN25: 0.000999000999 | AO25: 0.000999000999 | AP25: 0.000999000999 | AQ25: 0.000999000999 | AR25: 0.000999000999 | AS25: 0.000999000999 | AT25: 0.000999000999 | AU25: 0.000999000999 | AV25: 0.000999000999 | AW25: 0.000999000999 | AX25: 0.000999000999 | AY25: 0.000999000999 | AZ25: 0.000999000999 | BA25: 0.000999000999 | BB25: 0.000999000999 | BC25: 0.000999000999 | BD25: 0.000999000999 | BE25: 0.000999000999 | BF25: 0.000999000999 | BG25: 0.000999000999 | BH25: 0.000999000999 | BI25: 0.000999000999 | BJ25: 0.000999000999 | BK25: 0.000999000999 | BL25: 0.000999000999 | BM25: 0.000999000999 | BN25: 0.000999000999 | BO25: 0.000999000999 | BP25: 0.000999000999 | BQ25: 0.000999000999 | BR25: 0.000999000999 | BS25: 0.000999000999 | BT25: 0.000999000999 | BU25: 0.000999000999 | BV25: 0.000999000999 | BW25: 0.000999000999 | BX25: 0.000999000999 | BY25: 0.000999000999 | BZ25: 0.000999000999 | CA25: 0.000999000999 | CB25: 0.000999000999 | CC25: 0.000999000999 | CD25: 0.000999000999
A26: A2 | C26: 0.003984063745 | D26: 0.000999000999 | E26: 0.000999000999 | F26: 0.000999000999 | G26: 0.000999000999 | H26: 0.000999000999 | I26: 0.000999000999 | J26: 0.000999000999 | K26: 0.000999000999 | L26: 0.000999000999 | M26: 0.000999000999 | N26: 0.000999000999 | O26: 0.000999000999 | P26: 0.000999000999 | Q26: 0.000999000999 | R26: 0.000999000999 | S26: 0.000999000999 | T26: 0.000999000999 | U26: 0.000999000999 | V26: 0.000999000999 | W26: 0.000999000999 | X26: 0.000999000999 | Y26: 0.000999000999 | Z26: 0.000999000999 | AA26: 0.000999000999 | AB26: 0.000999000999 | AC26: 0.000999000999 | AD26: 0.000999000999 | AE26: 0.000999000999 | AF26: 0.000999000999 | AG26: 0.000999000999 | AH26: 0.000999000999 | AI26: 0.000999000999 | AJ26: 0.000999000999 | AK26: 0.000999000999 | AL26: 0.000999000999 | AM26: 0.000999000999 | AN26: 0.000999000999 | AO26: 0.000999000999 | AP26: 0.000999000999 | AQ26: 0.000999000999 | AR26: 0.000999000999 | AS26: 0.000999000999 | AT26: 0.000999000999 | AU26: 0.000999000999 | AV26: 0.000999000999 | AW26: 0.000999000999 | AX26: 0.000999000999 | AY26: 0.000999000999 | AZ26: 0.000999000999 | BA26: 0.000999000999 | BB26: 0.000999000999 | BC26: 0.000999000999 | BD26: 0.000999000999 | BE26: 0.000999000999 | BF26: 0.000999000999 | BG26: 0.000999000999 | BH26: 0.000999000999 | BI26: 0.000999000999 | BJ26: 0.000999000999 | BK26: 0.000999000999 | BL26: 0.000999000999 | BM26: 0.000999000999 | BN26: 0.000999000999 | BO26: 0.000999000999 | BP26: 0.000999000999 | BQ26: 0.000999000999 | BR26: 0.000999000999 | BS26: 0.000999000999 | BT26: 0.000999000999 | BU26: 0.000999000999 | BV26: 0.000999000999 | BW26: 0.000999000999 | BX26: 0.000999000999 | BY26: 0.000999000999 | BZ26: 0.000999000999 | CA26: 0.000999000999 | CB26: 0.000999000999 | CC26: 0.000999000999 | CD26: 0.000999000999
A27: B1 | C27: 0.04324913834 | D27: 0.03367500513 | E27: 0.03367500513 | F27: 0.03367500513 | G27: 0.03367500513 | H27: 0.03367500513 | I27: 0.03367500513 | J27: 0.03367500513 | K27: 0.03367500513 | L27: 0.03367500513 | M27: 0.03367500513 | N27: 0.03367500513 | O27: 0.03367500513 | P27: 0.03367500513 | Q27: 0.03367500513 | R27: 0.03367500513 | S27: 0.03367500513 | T27: 0.03367500513 | U27: 0.03367500513 | V27: 0.03367500513 | W27: 0.03367500513 | X27: 0.03367500513 | Y27: 0.03367500513 | Z27: 0.03367500513 | AA27: 0.03367500513 | AB27: 0.03367500513 | AC27: 0.03367500513 | AD27: 0.03367500513 | AE27: 0.03367500513 | AF27: 0.03367500513 | AG27: 0.03367500513 | AH27: 0.03367500513 | AI27: 0.03367500513 | AJ27: 0.03367500513 | AK27: 0.03367500513 | AL27: 0.03367500513 | AM27: 0.03367500513 | AN27: 0.03367500513 | AO27: 0.03367500513 | AP27: 0.03367500513 | AQ27: 0.03367500513 | AR27: 0.03367500513 | AS27: 0.03367500513 | AT27: 0.03367500513 | AU27: 0.03367500513 | AV27: 0.03367500513 | AW27: 0.03367500513 | AX27: 0.03367500513 | AY27: 0.03367500513 | AZ27: 0.03367500513 | BA27: 0.03367500513 | BB27: 0.03367500513 | BC27: 0.03367500513 | BD27: 0.03367500513 | BE27: 0.03367500513 | BF27: 0.03367500513 | BG27: 0.03367500513 | BH27: 0.03367500513 | BI27: 0.03367500513 | BJ27: 0.03367500513 | BK27: 0.03367500513 | BL27: 0.03367500513 | BM27: 0.03367500513 | BN27: 0.03367500513 | BO27: 0.03367500513 | BP27: 0.03367500513 | BQ27: 0.03367500513 | BR27: 0.03367500513 | BS27: 0.03367500513 | BT27: 0.03367500513 | BU27: 0.03367500513 | BV27: 0.03367500513 | BW27: 0.03367500513 | BX27: 0.03367500513 | BY27: 0.03367500513 | BZ27: 0.03367500513 | CA27: 0.03367500513 | CB27: 0.03367500513 | CC27: 0.03367500513 | CD27: 0.03367500513
A28: B2 | C28: 0.04206194322 | D28: 0.03367500513 | E28: 0.03367500513 | F28: 0.03367500513 | G28: 0.03367500513 | H28: 0.03367500513 | I28: 0.03367500513 | J28: 0.03367500513 | K28: 0.03367500513 | L28: 0.03367500513 | M28: 0.03367500513 | N28: 0.03367500513 | O28: 0.03367500513 | P28: 0.03367500513 | Q28: 0.03367500513 | R28: 0.03367500513 | S28: 0.03367500513 | T28: 0.03367500513 | U28: 0.03367500513 | V28: 0.03367500513 | W28: 0.03367500513 | X28: 0.03367500513 | Y28: 0.03367500513 | Z28: 0.03367500513 | AA28: 0.03367500513 | AB28: 0.03367500513 | AC28: 0.03367500513 | AD28: 0.03367500513 | AE28: 0.03367500513 | AF28: 0.03367500513 | AG28: 0.03367500513 | AH28: 0.03367500513 | AI28: 0.03367500513 | AJ28: 0.03367500513 | AK28: 0.03367500513 | AL28: 0.03367500513 | AM28: 0.03367500513 | AN28: 0.03367500513 | AO28: 0.03367500513 | AP28: 0.03367500513 | AQ28: 0.03367500513 | AR28: 0.03367500513 | AS28: 0.03367500513 | AT28: 0.03367500513 | AU28: 0.03367500513 | AV28: 0.03367500513 | AW28: 0.03367500513 | AX28: 0.03367500513 | AY28: 0.03367500513 | AZ28: 0.03367500513 | BA28: 0.03367500513 | BB28: 0.03367500513 | BC28: 0.03367500513 | BD28: 0.03367500513 | BE28: 0.03367500513 | BF28: 0.03367500513 | BG28: 0.03367500513 | BH28: 0.03367500513 | BI28: 0.03367500513 | BJ28: 0.03367500513 | BK28: 0.03367500513 | BL28: 0.03367500513 | BM28: 0.03367500513 | BN28: 0.03367500513 | BO28: 0.03367500513 | BP28: 0.03367500513 | BQ28: 0.03367500513 | BR28: 0.03367500513 | BS28: 0.03367500513 | BT28: 0.03367500513 | BU28: 0.03367500513 | BV28: 0.03367500513 | BW28: 0.03367500513 | BX28: 0.03367500513 | BY28: 0.03367500513 | BZ28: 0.03367500513 | CA28: 0.03367500513 | CB28: 0.03367500513 | CC28: 0.03367500513 | CD28: 0.03367500513
A29: B3 | C29: 0.04500878488 | D29: 0.03367500513 | E29: 0.03367500513 | F29: 0.03367500513 | G29: 0.03367500513 | H29: 0.03367500513 | I29: 0.03367500513 | J29: 0.03367500513 | K29: 0.03367500513 | L29: 0.03367500513 | M29: 0.03367500513 | N29: 0.03367500513 | O29: 0.03367500513 | P29: 0.03367500513 | Q29: 0.03367500513 | R29: 0.03367500513 | S29: 0.03367500513 | T29: 0.03367500513 | U29: 0.03367500513 | V29: 0.03367500513 | W29: 0.03367500513 | X29: 0.03367500513 | Y29: 0.03367500513 | Z29: 0.03367500513 | AA29: 0.03367500513 | AB29: 0.03367500513 | AC29: 0.03367500513 | AD29: 0.03367500513 | AE29: 0.03367500513 | AF29: 0.03367500513 | AG29: 0.03367500513 | AH29: 0.03367500513 | AI29: 0.03367500513 | AJ29: 0.03367500513 | AK29: 0.03367500513 | AL29: 0.03367500513 | AM29: 0.03367500513 | AN29: 0.03367500513 | AO29: 0.03367500513 | AP29: 0.03367500513 | AQ29: 0.03367500513 | AR29: 0.03367500513 | AS29: 0.03367500513 | AT29: 0.03367500513 | AU29: 0.03367500513 | AV29: 0.03367500513 | AW29: 0.03367500513 | AX29: 0.03367500513 | AY29: 0.03367500513 | AZ29: 0.03367500513 | BA29: 0.03367500513 | BB29: 0.03367500513 | BC29: 0.03367500513 | BD29: 0.03367500513 | BE29: 0.03367500513 | BF29: 0.03367500513 | BG29: 0.03367500513 | BH29: 0.03367500513 | BI29: 0.03367500513 | BJ29: 0.03367500513 | BK29: 0.03367500513 | BL29: 0.03367500513 | BM29: 0.03367500513 | BN29: 0.03367500513 | BO29: 0.03367500513 | BP29: 0.03367500513 | BQ29: 0.03367500513 | BR29: 0.03367500513 | BS29: 0.03367500513 | BT29: 0.03367500513 | BU29: 0.03367500513 | BV29: 0.03367500513 | BW29: 0.03367500513 | BX29: 0.03367500513 | BY29: 0.03367500513 | BZ29: 0.03367500513 | CA29: 0.03367500513 | CB29: 0.03367500513 | CC29: 0.03367500513 | CD29: 0.03367500513
A32: Volumes (TJ) | B32: 2020 | C32: =B32+1 -> 2021 | D32: =C32+1 -> 2022 | E32: =D32+1 -> 2023 | F32: =E32+1 -> 2024 | G32: =F32+1 -> 2025 | H32: =G32+1 -> 2026 | I32: =H32+1 -> 2027 | J32: =I32+1 -> 2028 | K32: =J32+1 -> 2029 | L32: =K32+1 -> 2030 | M32: =L32+1 -> 2031 | N32: =M32+1 -> 2032 | O32: =N32+1 -> 2033 | P32: =O32+1 -> 2034 | Q32: =P32+1 -> 2035 | R32: =Q32+1 -> 2036 | S32: =R32+1 -> 2037 | T32: =S32+1 -> 2038 | U32: =T32+1 -> 2039 | V32: =U32+1 -> 2040 | W32: =V32+1 -> 2041 | X32: =W32+1 -> 2042 | Y32: =X32+1 -> 2043 | Z32: =Y32+1 -> 2044 | AA32: =Z32+1 -> 2045 | AB32: =AA32+1 -> 2046 | AC32: =AB32+1 -> 2047 | AD32: =AC32+1 -> 2048 | AE32: =AD32+1 -> 2049 | AF32: =AE32+1 -> 2050 | AG32: =AF32+1 -> 2051 | AH32: =AG32+1 -> 2052 | AI32: =AH32+1 -> 2053 | AJ32: =AI32+1 -> 2054 | AK32: =AJ32+1 -> 2055 | AL32: =AK32+1 -> 2056 | AM32: =AL32+1 -> 2057 | AN32: =AM32+1 -> 2058 | AO32: =AN32+1 -> 2059 | AP32: =AO32+1 -> 2060 | AQ32: =AP32+1 -> 2061 | AR32: =AQ32+1 -> 2062 | AS32: =AR32+1 -> 2063 | AT32: =AS32+1 -> 2064 | AU32: =AT32+1 -> 2065 | AV32: =AU32+1 -> 2066 | AW32: =AV32+1 -> 2067 | AX32: =AW32+1 -> 2068 | AY32: =AX32+1 -> 2069 | AZ32: =AY32+1 -> 2070 | BA32: =AZ32+1 -> 2071 | BB32: =BA32+1 -> 2072 | BC32: =BB32+1 -> 2073 | BD32: =BC32+1 -> 2074 | BE32: =BD32+1 -> 2075 | BF32: =BE32+1 -> 2076 | BG32: =BF32+1 -> 2077 | BH32: =BG32+1 -> 2078 | BI32: =BH32+1 -> 2079 | BJ32: =BI32+1 -> 2080 | BK32: =BJ32+1 -> 2081 | BL32: =BK32+1 -> 2082 | BM32: =BL32+1 -> 2083 | BN32: =BM32+1 -> 2084 | BO32: =BN32+1 -> 2085 | BP32: =BO32+1 -> 2086 | BQ32: =BP32+1 -> 2087 | BR32: =BQ32+1 -> 2088 | BS32: =BR32+1 -> 2089 | BT32: =BS32+1 -> 2090 | BU32: =BT32+1 -> 2091 | BV32: =BU32+1 -> 2092 | BW32: =BV32+1 -> 2093 | BX32: =BW32+1 -> 2094 | BY32: =BX32+1 -> 2095 | BZ32: =BY32+1 -> 2096 | CA32: =BZ32+1 -> 2097 | CB32: =CA32+1 -> 2098 | CC32: =CB32+1 -> 2099 | CD32: =CC32+1 -> 2100
A33: Residential B3 | B33: =Summary!B16 -> 10104.45949 | C33: =Summary!C16 -> 10468.67886 | D33: =Summary!D16 -> 10078.78486 | E33: =Summary!E16 -> 10260.30388 | F33: =Summary!F16 -> 10154.49327 | G33: =Summary!G16 -> 10053.04759 | H33: =Summary!H16 -> 10029.14172 | I33: =Summary!I16 -> 9981.286131 | J33: =Summary!J16 -> 9934.123345 | K33: =Summary!K16 -> 9934.521561 | L33: =Summary!L16 -> 9827.964349 | M33: =Summary!M16 -> 9695.06569 | N33: =Summary!N16 -> 9605.606723 | O33: =Summary!O16 -> 9501.580123 | P33: =Summary!P16 -> 9296.310639 | Q33: =Summary!Q16 -> 9091.508221 | R33: =Summary!R16 -> 9118.083803 | S33: =Summary!S16 -> 9001.999236 | T33: =Summary!T16 -> 8804.197128 | U33: =Summary!U16 -> 8678.343804 | V33: =Summary!V16 -> 8384.790138 | W33: =Summary!W16 -> 8145.415755 | X33: =Summary!X16 -> 7901.45873 | Y33: =Summary!Y16 -> 7654.076281 | Z33: =Summary!Z16 -> 7404.374806 | AA33: =Summary!AA16 -> 7163.495621 | AB33: =Summary!AB16 -> 6901.578646 | AC33: =Summary!AC16 -> 6640.614833 | AD33: =Summary!AD16 -> 6361.416851 | AE33: =Summary!AE16 -> 6086.314811 | AF33: =Summary!AF16 -> 5830.686808 | AG33: =Summary!AG16 -> 5584.320474 | AH33: =Summary!AH16 -> 5327.427506 | AI33: =Summary!AI16 -> 5082.951432 | AJ33: =Summary!AJ16 -> 4826.341889 | AK33: =Summary!AK16 -> 4592.399951 | AL33: =Summary!AL16 -> 4343.247905 | AM33: =Summary!AM16 -> 4108.581817 | AN33: =Summary!AN16 -> 3858.842289 | AO33: =Summary!AO16 -> 3625.360311 | AP33: =Summary!AP16 -> 3386.707923 | AQ33: =Summary!AQ16 -> 3135.854407 | AR33: =Summary!AR16 -> 2869.010539 | AS33: =Summary!AS16 -> 2626.032246 | AT33: =Summary!AT16 -> 2363.412576 | AU33: =Summary!AU16 -> 2111.054983 | AV33: =Summary!AV16 -> 1835.929457 | AW33: =Summary!AW16 -> 1598.428188 | AX33: =Summary!AX16 -> 1327.93608 | AY33: =Summary!AY16 -> 1105.675826 | AZ33: =Summary!AZ16 -> 938.3811453 | BA33: =Summary!BA16 -> 797.2701686 | BB33: =Summary!BB16 -> 678.7821214 | BC33: =Summary!BC16 -> 579.0770444 | BD33: =Summary!BD16 -> 495.0688578 | BE33: =Summary!BE16 -> 424.1560508 | BF33: =Summary!BF16 -> 364.1732282 | BG33: =Summary!BG16 -> 313.3727073 | BH33: =Summary!BH16 -> 270.2229074 | BI33: =Summary!BI16 -> 233.5306837 | BJ33: =Summary!BJ16 -> 202.3197101 | BK33: =Summary!BK16 -> 175.6252562 | BL33: =Summary!BL16 -> 152.8158625 | BM33: =Summary!BM16 -> 133.2676329 | BN33: =Summary!BN16 -> 116.4955467 | BO33: =Summary!BO16 -> 102.0611275 | BP33: =Summary!BP16 -> 89.62368294 | BQ33: =Summary!BQ16 -> 78.88800892 | BR33: =Summary!BR16 -> 69.60822885 | BS33: =Summary!BS16 -> 61.57028103 | BT33: =Summary!BT16 -> 54.55120046 | BU33: =Summary!BU16 -> 48.45979866 | BV33: =Summary!BV16 -> 43.15608719 | BW33: =Summary!BW16 -> 38.55380676 | BX33: =Summary!BX16 -> 34.51367274 | BY33: =Summary!BY16 -> 30.98499997 | BZ33: =Summary!BZ16 -> 27.88981515 | CA33: =Summary!CA16 -> 25.17397893 | CB33: =Summary!CB16 -> 22.7747067 | CC33: =Summary!CC16 -> 20.69757584 | CD33: =Summary!CD16 -> 18.8399176
A34: Commercial B2 | B34: =Summary!B17 -> 1240.008969 | C34: =Summary!C17 -> 1313.873127 | D34: =Summary!D17 -> 1333.963313 | E34: =Summary!E17 -> 1328.307011 | F34: =Summary!F17 -> 1318.401281 | G34: =Summary!G17 -> 1307.535686 | H34: =Summary!H17 -> 1313.070495 | I34: =Summary!I17 -> 1316.971396 | J34: =Summary!J17 -> 1312.613153 | K34: =Summary!K17 -> 1312.219147 | L34: =Summary!L17 -> 1290.554852 | M34: =Summary!M17 -> 1266.57641 | N34: =Summary!N17 -> 1250.957083 | O34: =Summary!O17 -> 1235.827618 | P34: =Summary!P17 -> 1212.03764 | Q34: =Summary!Q17 -> 1193.161791 | R34: =Summary!R17 -> 1198.798649 | S34: =Summary!S17 -> 1188.565333 | T34: =Summary!T17 -> 1171.355675 | U34: =Summary!U17 -> 1164.616555 | V34: =Summary!V17 -> 1143.378685 | W34: =Summary!W17 -> 1130.020343 | X34: =Summary!X17 -> 1117.514502 | Y34: =Summary!Y17 -> 1105.204879 | Z34: =Summary!Z17 -> 1093.32898 | AA34: =Summary!AA17 -> 1082.846473 | AB34: =Summary!AB17 -> 1069.295921 | AC34: =Summary!AC17 -> 1056.536239 | AD34: =Summary!AD17 -> 1040.992147 | AE34: =Summary!AE17 -> 1026.349546 | AF34: =Summary!AF17 -> 1011.768374 | AG34: =Summary!AG17 -> 998.0385045 | AH34: =Summary!AH17 -> 982.2127349 | AI34: =Summary!AI17 -> 965.957921 | AJ34: =Summary!AJ17 -> 946.966919 | AK34: =Summary!AK17 -> 930.6468692 | AL34: =Summary!AL17 -> 911.502458 | AM34: =Summary!AM17 -> 894.5326259 | AN34: =Summary!AN17 -> 873.2488912 | AO34: =Summary!AO17 -> 854.7003651 | AP34: =Summary!AP17 -> 832.9356471 | AQ34: =Summary!AQ17 -> 802.1256522 | AR34: =Summary!AR17 -> 767.0479671 | AS34: =Summary!AS17 -> 735.475107 | AT34: =Summary!AT17 -> 698.4146572 | AU34: =Summary!AU17 -> 662.8910699 | AV34: =Summary!AV17 -> 621.0656599 | AW34: =Summary!AW17 -> 583.6904717 | AX34: =Summary!AX17 -> 536.2691795 | AY34: =Summary!AY17 -> 496.0062997 | AZ34: =Summary!AZ17 -> 462.9420382 | BA34: =Summary!BA17 -> 433.11461 | BB34: =Summary!BB17 -> 407.122176 | BC34: =Summary!BC17 -> 383.9795217 | BD34: =Summary!BD17 -> 363.1358907 | BE34: =Summary!BE17 -> 344.178331 | BF34: =Summary!BF17 -> 327.3188864 | BG34: =Summary!BG17 -> 311.4819443 | BH34: =Summary!BH17 -> 296.8602446 | BI34: =Summary!BI17 -> 283.1576623 | BJ34: =Summary!BJ17 -> 270.7338299 | BK34: =Summary!BK17 -> 259.4554356 | BL34: =Summary!BL17 -> 248.6737008 | BM34: =Summary!BM17 -> 238.7470705 | BN34: =Summary!BN17 -> 229.525853 | BO34: =Summary!BO17 -> 221.0298983 | BP34: =Summary!BP17 -> 213.2793936 | BQ34: =Summary!BQ17 -> 206.116123 | BR34: =Summary!BR17 -> 199.375961 | BS34: =Summary!BS17 -> 193.0710839 | BT34: =Summary!BT17 -> 187.2138761 | BU34: =Summary!BU17 -> 181.4449163 | BV34: =Summary!BV17 -> 176.1434663 | BW34: =Summary!BW17 -> 171.3224882 | BX34: =Summary!BX17 -> 166.6118776 | BY34: =Summary!BY17 -> 162.20904 | BZ34: =Summary!BZ17 -> 158.3182054 | CA34: =Summary!CA17 -> 154.3608032 | CB34: =Summary!CB17 -> 150.9343106 | CC34: =Summary!CC17 -> 147.4486388 | CD34: =Summary!CD17 -> 144.7167559
A35: Commercial B1 | B35: =Summary!B18 -> 1849.395865 | C35: =Summary!C18 -> 2058.384921 | D35: =Summary!D18 -> 2048.693861 | E35: =Summary!E18 -> 2028.068347 | F35: =Summary!F18 -> 2034.274037 | G35: =Summary!G18 -> 2037.072004 | H35: =Summary!H18 -> 2045.694946 | I35: =Summary!I18 -> 2051.772346 | J35: =Summary!J18 -> 2044.982432 | K35: =Summary!K18 -> 2044.368591 | L35: =Summary!L18 -> 2010.616756 | M35: =Summary!M18 -> 1973.259602 | N35: =Summary!N18 -> 1948.92551 | O35: =Summary!O18 -> 1925.354596 | P35: =Summary!P18 -> 1888.291058 | Q35: =Summary!Q18 -> 1858.883476 | R35: =Summary!R18 -> 1867.665406 | S35: =Summary!S18 -> 1851.722436 | T35: =Summary!T18 -> 1824.910692 | U35: =Summary!U18 -> 1814.411496 | V35: =Summary!V18 -> 1781.324009 | W35: =Summary!W18 -> 1760.512413 | X35: =Summary!X18 -> 1741.028968 | Y35: =Summary!Y18 -> 1721.851222 | Z35: =Summary!Z18 -> 1703.349193 | AA35: =Summary!AA18 -> 1687.017999 | AB35: =Summary!AB18 -> 1665.906949 | AC35: =Summary!AC18 -> 1646.028033 | AD35: =Summary!AD18 -> 1621.811155 | AE35: =Summary!AE18 -> 1598.99875 | AF35: =Summary!AF18 -> 1576.282049 | AG35: =Summary!AG18 -> 1554.891632 | AH35: =Summary!AH18 -> 1530.235914 | AI35: =Summary!AI18 -> 1504.911766 | AJ35: =Summary!AJ18 -> 1475.324781 | AK35: =Summary!AK18 -> 1449.899 | AL35: =Summary!AL18 -> 1420.073011 | AM35: =Summary!AM18 -> 1393.634903 | AN35: =Summary!AN18 -> 1360.475961 | AO35: =Summary!AO18 -> 1331.578331 | AP35: =Summary!AP18 -> 1297.670042 | AQ35: =Summary!AQ18 -> 1249.669686 | AR35: =Summary!AR18 -> 1195.020493 | AS35: =Summary!AS18 -> 1145.831633 | AT35: =Summary!AT18 -> 1088.093397 | AU35: =Summary!AU18 -> 1032.749511 | AV35: =Summary!AV18 -> 967.5877166 | AW35: =Summary!AW18 -> 909.359134 | AX35: =Summary!AX18 -> 835.4792487 | AY35: =Summary!AY18 -> 772.7517941 | AZ35: =Summary!AZ18 -> 721.2394093 | BA35: =Summary!BA18 -> 674.7698409 | BB35: =Summary!BB18 -> 634.2749923 | BC35: =Summary!BC18 -> 598.219951 | BD35: =Summary!BD18 -> 565.7466673 | BE35: =Summary!BE18 -> 536.2117839 | BF35: =Summary!BF18 -> 509.9456536 | BG35: =Summary!BG18 -> 485.2725287 | BH35: =Summary!BH18 -> 462.4926876 | BI35: =Summary!BI18 -> 441.1447832 | BJ35: =Summary!BJ18 -> 421.7891042 | BK35: =Summary!BK18 -> 404.2179575 | BL35: =Summary!BL18 -> 387.4205802 | BM35: =Summary!BM18 -> 371.955411 | BN35: =Summary!BN18 -> 357.5892379 | BO35: =Summary!BO18 -> 344.3529862 | BP35: =Summary!BP18 -> 332.2781064 | BQ35: =Summary!BQ18 -> 321.1181067 | BR35: =Summary!BR18 -> 310.6172878 | BS35: =Summary!BS18 -> 300.7946201 | BT35: =Summary!BT18 -> 291.6693975 | BU35: =Summary!BU18 -> 282.6816609 | BV35: =Summary!BV18 -> 274.4222798 | BW35: =Summary!BW18 -> 266.9114489 | BX35: =Summary!BX18 -> 259.5725647 | BY35: =Summary!BY18 -> 252.7131747 | BZ35: =Summary!BZ18 -> 246.6514585 | CA35: =Summary!CA18 -> 240.4860334 | CB35: =Summary!CB18 -> 235.1477378 | CC35: =Summary!CC18 -> 229.717244 | CD35: =Summary!CD18 -> 225.4611137
A36: Industrial A1 | B36: =Summary!B19 -> 11756.62018 | C36: =Summary!C19 -> 12346.51513 | D36: =Summary!D19 -> 12346.18349 | E36: =Summary!E19 -> 12278.11222 | F36: =Summary!F19 -> 13217.98057 | G36: =Summary!G19 -> 13464.27653 | H36: =Summary!H19 -> 13432.25884 | I36: =Summary!I19 -> 13368.16476 | J36: =Summary!J19 -> 13304.99856 | K36: =Summary!K19 -> 13305.5319 | L36: =Summary!L19 -> 13162.81739 | M36: =Summary!M19 -> 12984.82318 | N36: =Summary!N19 -> 12865.00874 | O36: =Summary!O19 -> 12725.68353 | P36: =Summary!P19 -> 12450.76142 | Q36: =Summary!Q19 -> 12176.46486 | R36: =Summary!R19 -> 12212.05814 | S36: =Summary!S19 -> 12056.58343 | T36: =Summary!T19 -> 11791.66254 | U36: =Summary!U19 -> 11623.1043 | V36: =Summary!V19 -> 11229.94117 | W36: =Summary!W19 -> 10909.34158 | X36: =Summary!X19 -> 10582.60436 | Y36: =Summary!Y19 -> 10251.27939 | Z36: =Summary!Z19 -> 9916.848494 | AA36: =Summary!AA19 -> 9594.233494 | AB36: =Summary!AB19 -> 9243.442099 | AC36: =Summary!AC19 -> 8893.927297 | AD36: =Summary!AD19 -> 8519.991056 | AE36: =Summary!AE19 -> 8151.540603 | AF36: =Summary!AF19 -> 7809.172172 | AG36: =Summary!AG19 -> 7479.208107 | AH36: =Summary!AH19 -> 7135.145482 | AI36: =Summary!AI19 -> 6807.713086 | AJ36: =Summary!AJ19 -> 6464.030056 | AK36: =Summary!AK19 -> 6150.706269 | AL36: =Summary!AL19 -> 5817.011236 | AM36: =Summary!AM19 -> 5502.717578 | AN36: =Summary!AN19 -> 5168.235718 | AO36: =Summary!AO19 -> 4855.527966 | AP36: =Summary!AP19 -> 4535.895366 | AQ36: =Summary!AQ19 -> 4199.921515 | AR36: =Summary!AR19 -> 3842.53142 | AS36: =Summary!AS19 -> 3517.105036 | AT36: =Summary!AT19 -> 3165.372508 | AU36: =Summary!AU19 -> 2827.384212 | AV36: =Summary!AV19 -> 2458.902304 | AW36: =Summary!AW19 -> 2140.811424 | AX36: =Summary!AX19 -> 1778.535158 | AY36: =Summary!AY19 -> 1480.856918 | AZ36: =Summary!AZ19 -> 1256.795326 | BA36: =Summary!BA19 -> 1067.802168 | BB36: =Summary!BB19 -> 909.1084169 | BC36: =Summary!BC19 -> 775.5711273 | BD36: =Summary!BD19 -> 663.057042 | BE36: =Summary!BE19 -> 568.0818981 | BF36: =Summary!BF19 -> 487.745532 | BG36: =Summary!BG19 -> 419.7072328 | BH36: =Summary!BH19 -> 361.9157191 | BI36: =Summary!BI19 -> 312.7729848 | BJ36: =Summary!BJ19 -> 270.9714141 | BK36: =Summary!BK19 -> 235.2189216 | BL36: =Summary!BL19 -> 204.6697791 | BM36: =Summary!BM19 -> 178.4883882 | BN36: =Summary!BN19 -> 156.0251496 | BO36: =Summary!BO19 -> 136.6928019 | BP36: =Summary!BP19 -> 120.035048 | BQ36: =Summary!BQ19 -> 105.6565143 | BR36: =Summary!BR19 -> 93.22789263 | BS36: =Summary!BS19 -> 82.46248532 | BT36: =Summary!BT19 -> 73.0616702 | BU36: =Summary!BU19 -> 64.90331648 | BV36: =Summary!BV19 -> 57.79993443 | BW36: =Summary!BW19 -> 51.635995 | BX36: =Summary!BX19 -> 46.22495112 | BY36: =Summary!BY19 -> 41.498919 | BZ36: =Summary!BZ19 -> 37.35346719 | CA36: =Summary!CA19 -> 33.71608563 | CB36: =Summary!CB19 -> 30.50268547 | CC36: =Summary!CC19 -> 27.72073661 | CD36: =Summary!CD19 -> 25.23273245
A37: Industrial A2 | B37: =Summary!B20 -> 1734.538802 | C37: =Summary!C20 -> 1840.626798 | D37: =Summary!D20 -> 1770.018862 | E37: =Summary!E20 -> 1758.933246 | F37: =Summary!F20 -> 1736.023586 | G37: =Summary!G20 -> 1707.804035 | H37: =Summary!H20 -> 1715.033184 | I37: =Summary!I20 -> 1720.128245 | J37: =Summary!J20 -> 1714.435838 | K37: =Summary!K20 -> 1713.921218 | L37: =Summary!L20 -> 1685.624957 | M37: =Summary!M20 -> 1654.306133 | N37: =Summary!N20 -> 1633.905352 | O37: =Summary!O20 -> 1614.144391 | P37: =Summary!P20 -> 1583.071724 | Q37: =Summary!Q20 -> 1558.417521 | R37: =Summary!R20 -> 1565.779958 | S37: =Summary!S20 -> 1552.413976 | T37: =Summary!T20 -> 1529.936025 | U37: =Summary!U20 -> 1521.133896 | V37: =Summary!V20 -> 1493.3946 | W37: =Summary!W20 -> 1475.946946 | X37: =Summary!X20 -> 1459.612764 | Y37: =Summary!Y20 -> 1443.534868 | Z37: =Summary!Z20 -> 1428.023467 | AA37: =Summary!AA20 -> 1414.332012 | AB37: =Summary!AB20 -> 1396.633307 | AC37: =Summary!AC20 -> 1379.967577 | AD37: =Summary!AD20 -> 1359.665063 | AE37: =Summary!AE20 -> 1340.540006 | AF37: =Summary!AF20 -> 1321.495184 | AG37: =Summary!AG20 -> 1303.562269 | AH37: =Summary!AH20 -> 1282.891848 | AI37: =Summary!AI20 -> 1261.661042 | AJ37: =Summary!AJ20 -> 1236.856434 | AK37: =Summary!AK20 -> 1215.540422 | AL37: =Summary!AL20 -> 1190.535442 | AM37: =Summary!AM20 -> 1168.370733 | AN37: =Summary!AN20 -> 1140.571532 | AO37: =Summary!AO20 -> 1116.344853 | AP37: =Summary!AP20 -> 1087.917427 | AQ37: =Summary!AQ20 -> 1047.675746 | AR37: =Summary!AR20 -> 1001.859932 | AS37: =Summary!AS20 -> 960.6218548 | AT37: =Summary!AT20 -> 912.2163034 | AU37: =Summary!AU20 -> 865.8180855 | AV37: =Summary!AV20 -> 811.1889042 | AW37: =Summary!AW20 -> 762.3722654 | AX37: =Summary!AX20 -> 700.434167 | AY37: =Summary!AY20 -> 647.8458442 | AZ37: =Summary!AZ20 -> 604.6598112 | BA37: =Summary!BA20 -> 565.7014847 | BB37: =Summary!BB20 -> 531.752137 | BC37: =Summary!BC20 -> 501.5249555 | BD37: =Summary!BD20 -> 474.3005841 | BE37: =Summary!BE20 -> 449.5396561 | BF37: =Summary!BF20 -> 427.5191271 | BG37: =Summary!BG20 -> 406.8341134 | BH37: =Summary!BH20 -> 387.7363571 | BI37: =Summary!BI20 -> 369.8390824 | BJ37: =Summary!BJ20 -> 353.612014 | BK37: =Summary!BK20 -> 338.88103 | BL37: =Summary!BL20 -> 324.7987449 | BM37: =Summary!BM20 -> 311.8333326 | BN37: =Summary!BN20 -> 299.7892771 | BO37: =Summary!BO20 -> 288.6925048 | BP37: =Summary!BP20 -> 278.5693828 | BQ37: =Summary!BQ20 -> 269.2132616 | BR37: =Summary!BR20 -> 260.4097727 | BS37: =Summary!BS20 -> 252.17482 | BT37: =Summary!BT20 -> 244.5245789 | BU37: =Summary!BU20 -> 236.9896008 | BV37: =Summary!BV20 -> 230.0652485 | BW37: =Summary!BW20 -> 223.7684522 | BX37: =Summary!BX20 -> 217.6158096 | BY37: =Summary!BY20 -> 211.8651568 | BZ37: =Summary!BZ20 -> 206.7832434 | CA37: =Summary!CA20 -> 201.6143845 | CB37: =Summary!CB20 -> 197.1389596 | CC37: =Summary!CC20 -> 192.5862392 | CD37: =Summary!CD20 -> 189.0180607
A38: ATCO | B38: =Summary!B21 -> 26685.0233 | C38: =Summary!C21 -> 28028.07884 | D38: =Summary!D21 -> 27577.64439 | E38: =Summary!E21 -> 27653.7247 | F38: =Summary!F21 -> 28461.17274 | G38: =Summary!G21 -> 28569.73585 | H38: =Summary!H21 -> 28535.19918 | I38: =Summary!I21 -> 28438.32288 | J38: =Summary!J21 -> 28311.15333 | K38: =Summary!K21 -> 28310.56242 | L38: =Summary!L21 -> 27977.5783 | M38: =Summary!M21 -> 27574.03101 | N38: =Summary!N21 -> 27304.4034 | O38: =Summary!O21 -> 27002.59026 | P38: =Summary!P21 -> 26430.47248 | Q38: =Summary!Q21 -> 25878.43586 | R38: =Summary!R21 -> 25962.38596 | S38: =Summary!S21 -> 25651.28441 | T38: =Summary!T21 -> 25122.06206 | U38: =Summary!U21 -> 24801.61006 | V38: =Summary!V21 -> 24032.8286 | W38: =Summary!W21 -> 23421.23704 | X38: =Summary!X21 -> 22802.21932 | Y38: =Summary!Y21 -> 22175.94664 | Z38: =Summary!Z21 -> 21545.92494 | AA38: =Summary!AA21 -> 20941.9256 | AB38: =Summary!AB21 -> 20276.85692 | AC38: =Summary!AC21 -> 19617.07398 | AD38: =Summary!AD21 -> 18903.87627 | AE38: =Summary!AE21 -> 18203.74372 | AF38: =Summary!AF21 -> 17549.40459 | AG38: =Summary!AG21 -> 16920.02099 | AH38: =Summary!AH21 -> 16257.91348 | AI38: =Summary!AI21 -> 15623.19525 | AJ38: =Summary!AJ21 -> 14949.52008 | AK38: =Summary!AK21 -> 14339.19251 | AL38: =Summary!AL21 -> 13682.37005 | AM38: =Summary!AM21 -> 13067.83766 | AN38: =Summary!AN21 -> 12401.37439 | AO38: =Summary!AO21 -> 11783.51183 | AP38: =Summary!AP21 -> 11141.1264 | AQ38: =Summary!AQ21 -> 10435.24701 | AR38: =Summary!AR21 -> 9675.470351 | AS38: =Summary!AS21 -> 8985.065877 | AT38: =Summary!AT21 -> 8227.509441 | AU38: =Summary!AU21 -> 7499.897861 | AV38: =Summary!AV21 -> 6694.674041 | AW38: =Summary!AW21 -> 5994.661483 | AX38: =Summary!AX21 -> 5178.653834 | AY38: =Summary!AY21 -> 4503.136682 | AZ38: =Summary!AZ21 -> 3984.01773 | BA38: =Summary!BA21 -> 3538.658272 | BB38: =Summary!BB21 -> 3161.039844 | BC38: =Summary!BC21 -> 2838.3726 | BD38: =Summary!BD21 -> 2561.309042 | BE38: =Summary!BE21 -> 2322.16772 | BF38: =Summary!BF21 -> 2116.702427 | BG38: =Summary!BG21 -> 1936.668527 | BH38: =Summary!BH21 -> 1779.227916 | BI38: =Summary!BI21 -> 1640.445196 | BJ38: =Summary!BJ21 -> 1519.426072 | BK38: =Summary!BK21 -> 1413.398601 | BL38: =Summary!BL21 -> 1318.378668 | BM38: =Summary!BM21 -> 1234.291835 | BN38: =Summary!BN21 -> 1159.425064 | BO38: =Summary!BO21 -> 1092.829319 | BP38: =Summary!BP21 -> 1033.785614 | BQ38: =Summary!BQ21 -> 980.9920145 | BR38: =Summary!BR21 -> 933.239143 | BS38: =Summary!BS21 -> 890.0732905 | BT38: =Summary!BT21 -> 851.0207232 | BU38: =Summary!BU21 -> 814.4792931 | BV38: =Summary!BV21 -> 781.5870162 | BW38: =Summary!BW21 -> 752.1921911 | BX38: =Summary!BX21 -> 724.5388757 | BY38: =Summary!BY21 -> 699.2712905 | BZ38: =Summary!BZ21 -> 676.9961897 | CA38: =Summary!CA21 -> 655.3512857 | CB38: =Summary!CB21 -> 636.4984002 | CC38: =Summary!CC21 -> 618.1704346 | CD38: =Summary!CD21 -> 603.2685804
A40: Average annual tariff ($ per GJ) | C40: =C19*1000000/(C38*1000) -> 6.692795318 | D40: =D19*1000000/(D38*1000) -> 6.871724419 | E40: 6.910071763 | F40: 6.754762193 | G40: 7.616581437 | H40: 8.087494802 | I40: 8.198422368 | J40: 8.351165006 | K40: 8.290193565 | L40: 8.390557928 | M40: 8.583876443 | N40: 8.666470119 | O40: 8.843172416 | P40: 9.101026457 | Q40: 9.341056672 | R40: 9.310110085 | S40: 9.402358692 | T40: 9.566371381 | U40: 9.613481154 | V40: 9.576485811 | W40: 9.56868973 | X40: 9.56293066 | Y40: 9.565390944 | Z40: 9.574307953 | AA40: 9.568765769 | AB40: 9.612886176 | AC40: 9.651464615 | AD40: 9.722057136 | AE40: 9.791965626 | AF40: 9.436953538 | AG40: 9.480214089 | AH40: 9.556059359 | AI40: 9.624942821 | AJ40: 9.722031081 | AK40: 9.798259821 | AL40: 9.928514508 | AM40: 10.04204774 | AN40: 10.21330399 | AO40: 10.35713111 | AP40: 10.5691656 | AQ40: 10.88744799 | AR40: 11.33229626 | AS40: 11.7754166 | AT40: 12.40603118 | AU40: 13.13256899 | AV40: 14.3291952 | AW40: 15.5998514 | AX40: 17.60348471 | AY40: 19.78347321 | AZ40: 21.91412495 | BA40: 24.30975183 | BB40: 27.01425755 | BC40: 30.30190423 | BD40: 35.47686844 | BE40: 0 | BF40: 0 | BG40: 0 | BH40: 0 | BI40: 0 | BJ40: 0 | BK40: 0 | BL40: 0 | BM40: 0 | BN40: 0 | BO40: 0 | BP40: =BP19*1000000/(BP38*1000) -> 0 | BQ40: 0 | BR40: 0 | BS40: 0 | BT40: 0 | BU40: 0 | BV40: 0 | BW40: 0 | BX40: 0 | BY40: 0 | BZ40: 0 | CA40: 0 | CB40: 0 | CC40: 0 | CD40: 0
A42: NPV of revenue | B42: =NPV(G10,G19:BD19) -> 3939.752562
A45: Target Tariff $/GJ | G45: 9.124200783 | H45: =G45 -> 9.124200783 | I45: 9.124200783 | J45: 9.124200783 | K45: 9.124200783 | L45: 9.124200783 | M45: 9.124200783 | N45: 9.124200783 | O45: 9.124200783 | P45: 9.124200783 | Q45: 9.124200783 | R45: 9.124200783 | S45: 9.124200783 | T45: 9.124200783 | U45: 9.124200783 | V45: 9.124200783 | W45: 9.124200783 | X45: 9.124200783 | Y45: 9.124200783 | Z45: 9.124200783 | AA45: 9.124200783 | AB45: 9.124200783 | AC45: 9.124200783 | AD45: 9.124200783 | AE45: 9.124200783 | AF45: 9.124200783 | AG45: 9.124200783 | AH45: 9.124200783 | AI45: 9.124200783 | AJ45: 9.124200783 | AK45: 9.124200783 | AL45: 9.124200783 | AM45: 9.124200783 | AN45: 9.124200783 | AO45: 9.124200783 | AP45: 9.124200783 | AQ45: 9.124200783 | AR45: 9.124200783 | AS45: 9.124200783 | AT45: 9.124200783 | AU45: 9.124200783 | AV45: 9.124200783 | AW45: 9.124200783 | AX45: 9.124200783 | AY45: 9.124200783 | AZ45: 9.124200783 | BA45: 9.124200783 | BB45: 9.124200783 | BC45: 9.124200783 | BD45: 9.124200783
A46: Difference in tariff $/GJ | G46: =G40-G45 -> -1.507619346 | H46: -1.036705981 | I46: -0.9257784151 | J46: -0.7730357766 | K46: -0.8340072173 | L46: -0.7336428551 | M46: -0.5403243393 | N46: -0.4577306642 | O46: -0.2810283672 | P46: -0.02317432531 | Q46: 0.2168558889 | R46: 0.1859093019 | S46: 0.2781579089 | T46: 0.4421705983 | U46: 0.4892803714 | V46: 0.4522850279 | W46: 0.4444889475 | X46: 0.438729877 | Y46: 0.4411901615 | Z46: 0.4501071698 | AA46: 0.4445649858 | AB46: 0.4886853937 | AC46: 0.5272638318 | AD46: 0.5978563528 | AE46: 0.6677648433 | AF46: 0.3127527553 | AG46: 0.3560133064 | AH46: 0.4318585763 | AI46: 0.5007420383 | AJ46: 0.5978302987 | AK46: 0.6740590384 | AL46: 0.8043137249 | AM46: 0.9178469556 | AN46: 1.089103207 | AO46: 1.232930325 | AP46: 1.444964819 | AQ46: 1.763247212 | AR46: 2.208095474 | AS46: 2.651215813 | AT46: 3.281830398 | AU46: 4.008368205 | AV46: 5.204994415 | AW46: 6.475650617 | AX46: 8.47928393 | AY46: 10.65927243 | AZ46: 12.78992417 | BA46: 15.18555104 | BB46: 17.89005676 | BC46: 21.17770345 | BD46: 26.35266765
A47: Dollar adjustment $m | G47: =G46*G38/1000 -> -43.07228648 | H47: -29.58261166 | I47: -26.32758548 | J47: -21.8855344 | K47: -23.61121338 | L47: -20.52555043 | M47: -14.89892009 | N47: -12.49806271 | O47: -7.588493851 | P47: -0.6125083674 | Q47: 5.611891214 | R47: 4.826649048 | S47: 7.135107631 | T47: 11.10823721 | U47: 12.13494098 | V47: 10.86968855 | W47: 10.410481 | X47: 10.00401488 | Y47: 9.78380948 | Z47: 9.697975296 | AA47: 9.310046856 | AB47: 9.909003808 | AC47: 10.3433736 | AD47: 11.30180252 | AE47: 12.15582007 | AF47: 5.48862464 | AG47: 6.023752615 | AH47: 7.021119372 | AI47: 7.823190633 | AJ47: 8.937276054 | AK47: 9.665462316 | AL47: 11.00491802 | AM47: 11.99427501 | AN47: 13.50637662 | AO47: 14.52824907 | AP47: 16.0985357 | AQ47: 18.39992019 | AR47: 21.36436229 | AS47: 23.82134874 | AT47: 27.00129058 | AU47: 30.06235213 | AV47: 34.845741 | AW47: 38.81933333 | AX47: 43.91127623 | AY47: 48.00016067 | AZ47: 50.95528464 | BA47: 53.73647582 | BB47: 56.55118224 | BC47: 60.1102132 | BD47: 67.49732594
A49: =NPV(G10,G47:BD47) -> 9.512710332e-14
B51: 2020 | C51: =B51+1 -> 2021 | D51: =C51+1 -> 2022 | E51: =D51+1 -> 2023 | F51: =E51+1 -> 2024 | G51: =F51+1 -> 2025 | H51: =G51+1 -> 2026 | I51: =H51+1 -> 2027 | J51: =I51+1 -> 2028 | K51: =J51+1 -> 2029 | L51: =K51+1 -> 2030 | M51: =L51+1 -> 2031 | N51: =M51+1 -> 2032 | O51: =N51+1 -> 2033 | P51: =O51+1 -> 2034 | Q51: =P51+1 -> 2035 | R51: =Q51+1 -> 2036 | S51: =R51+1 -> 2037 | T51: =S51+1 -> 2038 | U51: =T51+1 -> 2039 | V51: =U51+1 -> 2040 | W51: =V51+1 -> 2041 | X51: =W51+1 -> 2042 | Y51: =X51+1 -> 2043 | Z51: =Y51+1 -> 2044 | AA51: =Z51+1 -> 2045 | AB51: =AA51+1 -> 2046 | AC51: =AB51+1 -> 2047 | AD51: =AC51+1 -> 2048 | AE51: =AD51+1 -> 2049 | AF51: =AE51+1 -> 2050 | AG51: =AF51+1 -> 2051 | AH51: =AG51+1 -> 2052 | AI51: =AH51+1 -> 2053 | AJ51: =AI51+1 -> 2054 | AK51: =AJ51+1 -> 2055 | AL51: =AK51+1 -> 2056 | AM51: =AL51+1 -> 2057 | AN51: =AM51+1 -> 2058 | AO51: =AN51+1 -> 2059 | AP51: =AO51+1 -> 2060 | AQ51: =AP51+1 -> 2061 | AR51: =AQ51+1 -> 2062 | AS51: =AR51+1 -> 2063 | AT51: =AS51+1 -> 2064 | AU51: =AT51+1 -> 2065 | AV51: =AU51+1 -> 2066 | AW51: =AV51+1 -> 2067 | AX51: =AW51+1 -> 2068 | AY51: =AX51+1 -> 2069 | AZ51: =AY51+1 -> 2070 | BA51: =AZ51+1 -> 2071 | BB51: =BA51+1 -> 2072 | BC51: =BB51+1 -> 2073 | BD51: =BC51+1 -> 2074
A52: Opening RAB (Real RAB start period) | C52: =C3 -> 1538.343817 | D52: =D3 -> 1556.793116 | E52: 1575.104854 | F52: 1593.40554 | G52: 1616.15264 | H52: =G58 -> 1599.039227 | I52: =H58 -> 1581.921786 | J52: 1559.236984 | K52: 1541.512574 | L52: 1520.363698 | M52: 1507.334387 | N52: 1497.329407 | O52: 1489.045145 | P52: 1482.722153 | Q52: 1480.660842 | R52: 1469.679538 | S52: 1453.324121 | T52: 1433.657143 | U52: 1410.006348 | V52: 1374.155906 | W52: 1305.044378 | X52: 1236.423329 | Y52: 1168.383373 | Z52: 1101.042376 | AA52: 1034.466123 | AB52: 968.4558667 | AC52: 903.5860037 | AD52: 839.8613268 | AE52: 777.8139317 | AF52: 717.4032105 | AG52: 658.2920995 | AH52: 600.641036 | AI52: 544.8105762 | AJ52: 490.6374813 | AK52: 438.5472292 | AL52: 388.0659255 | AM52: 339.6846146 | AN52: 293.1194672 | AO52: 248.9195149 | AP52: 206.7564333 | AQ52: 166.9430956 | AR52: 130.1557232 | AS52: 97.01635476 | AT52: 67.06867322 | AU52: 41.12350675 | AV52: 0 | AW52: =AV58 -> 0 | AX52: 0 | AY52: 0 | AZ52: 0 | BA52: 0 | BB52: 0 | BC52: 0 | BD52: 0
A53: Real capital expenditure (capex as incurred) | C53: =C4 -> 84.23746264 | D53: =D4 -> 85.26567214 | E53: 86.72374176 | F53: 93.90949304 | G53: 91.32236033 | H53: 89.4957495 | I53: 82.67972718 | J53: 84.12557509 | K53: 82.65558911 | L53: 88.73514825 | M53: 88.73514825 | N53: 88.73514825 | O53: 88.73514825 | P53: 88.73514825 | Q53: 75.84307316 | R53: 72.76542484 | S53: 68.46097317 | T53: 61.70291481 | U53: 48.88503057 | V53: 11.72185905 | W53: 11.36941422 | X53: 11.01814732 | Y53: 10.69287202 | Z53: 10.36759671 | AA53: 10.04232141 | AB53: 9.71704611 | AC53: 9.391770809 | AD53: 9.066495507 | AE53: 8.741220206 | AF53: 8.415944904 | AG53: 8.415944904 | AH53: 8.415944904 | AI53: 8.415944904 | AJ53: 8.415944904 | AK53: 8.415944904 | AL53: 8.415944904 | AM53: 8.415944904 | AN53: 8.415944904 | AO53: 8.415944904 | AP53: 8.415944904 | AQ53: 8.415944904 | AR53: 8.415944904 | AS53: 8.415944904 | AT53: 8.415944904 | AU53: 8.415944904 | AV53: 8.415944904 | AW53: 8.415944904 | AX53: 8.415944904 | AY53: 8.415944904 | AZ53: 8.415944904 | BA53: 8.415944904 | BB53: 8.415944904 | BC53: 8.415944904 | BD53: 8.415944904
A54: Real straight line Depreciation | C54: =C5 -> -65.21878211 | D54: =D5 -> -66.95409637 | E54: -68.42321731 | F54: -71.16255596 | G54: -65.36348628 | H54: -75.06146438 | I54: -75.62539346 | J54: -75.19333172 | K54: -74.2034831 | L54: -73.8958856 | M54: -75.22413202 | N54: -74.82920114 | O54: -76.76304169 | P54: -78.64095682 | Q54: -80.33756828 | R54: -81.5522368 | S54: -82.52179288 | T54: -83.4643887 | U54: -83.78648144 | V54: -78.575758 | W54: -77.1704169 | X54: -75.7026675 | Y54: -74.30482997 | Z54: -72.9584972 | AA54: -71.49709992 | AB54: -70.42212806 | AC54: -69.19563713 | AD54: -67.97226312 | AE54: -66.7207073 | AF54: -58.31747874 | AG54: -56.97152952 | AH54: -55.7324789 | AI54: -54.48795826 | AJ54: -53.14884769 | AK54: -51.9317331 | AL54: -50.85275698 | AM54: -49.75418867 | AN54: -48.66213936 | AO54: -47.46638908 | AP54: -46.54463287 | AQ54: -45.74303573 | AR54: -45.08414799 | AS54: -44.51077351 | AT54: -43.96922643 | AU54: -43.43358274 | AV54: -43.78982427 | AW54: -44.19742935 | AX54: -44.60926128 | AY54: -45.21439878 | AZ54: -46.04107935 | BA54: -47.32339588 | BB54: -49.24124242 | BC54: -52.42510463 | BD54: -59.93764071
A55: Bring forward real depreciation | G55: -43.07228648 | H55: -31.55172651 | I55: -29.73913532 | J55: -26.65665388 | K55: -29.60098219 | L55: -27.868573 | M55: -23.51599671 | N55: -22.19020875 | O55: -18.29509892 | P55: -12.15550161 | Q55: -6.486809207 | R55: -7.568605686 | S55: -5.606157381 | T55: -1.889321782 | U55: -0.9489912211 | V55: -2.25762822 | W55: -2.820046669 | X55: -3.355435498 | Y55: -3.729039715 | Z55: -3.985352601 | AA55: -4.555477475 | AB55: -4.164781079 | AC55: -3.92081057 | AD55: -3.141627441 | AE55: -2.431234152 | AF55: -9.209577137 | AG55: -9.095478937 | AH55: -8.513925783 | AI55: -8.101081542 | AJ55: -7.35734934 | AK55: -6.965515453 | AL55: -5.944498841 | AM55: -5.226903627 | AN55: -3.953757835 | AO55: -3.11263742 | AP55: -1.684649727 | AQ55: 0.5397184501 | AR55: 3.528834595 | AS55: 6.147147063 | AT55: 9.608115053 | AU55: 13.10842614 | AV55: 17.61267596 | AW55: 23.2034388 | AX55: 29.93118648 | AY55: 35.67470323 | AZ55: 40.31212429 | BA55: 44.8134055 | BB55: 49.40682501 | BC55: 54.83224632 | BD55: 64.23130449
A56: Constrained brought forward depreciation | G56: =IF(SUM(G52:G54)>=ABS(G55),G55,-(SUM(G52:G54))) -> -43.07228648 | H56: =IF(SUM(H52:H54)>=ABS(H55),H55,-(SUM(H52:H54))) -> -31.55172651 | I56: -29.73913532 | J56: -26.65665388 | K56: -29.60098219 | L56: -27.868573 | M56: -23.51599671 | N56: -22.19020875 | O56: -18.29509892 | P56: -12.15550161 | Q56: -6.486809207 | R56: -7.568605686 | S56: -5.606157381 | T56: -1.889321782 | U56: -0.9489912211 | V56: -2.25762822 | W56: -2.820046669 | X56: -3.355435498 | Y56: -3.729039715 | Z56: -3.985352601 | AA56: -4.555477475 | AB56: -4.164781079 | AC56: -3.92081057 | AD56: -3.141627441 | AE56: -2.431234152 | AF56: -9.209577137 | AG56: -9.095478937 | AH56: -8.513925783 | AI56: -8.101081542 | AJ56: -7.35734934 | AK56: -6.965515453 | AL56: -5.944498841 | AM56: -5.226903627 | AN56: -3.953757835 | AO56: -3.11263742 | AP56: -1.684649727 | AQ56: 0.5397184501 | AR56: 3.528834595 | AS56: 6.147147063 | AT56: 9.608115053 | AU56: -6.105868907 | AV56: 35.37387937 | AW56: 35.78148444 | AX56: 36.19331638 | AY56: 36.79845388 | AZ56: 37.62513445 | BA56: 38.90745098 | BB56: 40.82529751 | BC56: 44.00915973 | BD56: 51.52169581
A57: Disposals | C57: =C6 -> -0.5695437146 | D57: =D6 -> 0 | E57: 0 | F57: 0 | G57: 0 | H57: 0 | I57: 0 | J57: 0 | K57: 0 | L57: 0 | M57: 0 | N57: 0 | O57: 0 | P57: 0 | Q57: 0 | R57: 0 | S57: 0 | T57: 0 | U57: 0 | V57: 0 | W57: 0 | X57: 0 | Y57: 0 | Z57: 0 | AA57: 0 | AB57: 0 | AC57: 0 | AD57: 0 | AE57: 0 | AF57: 0 | AG57: 0 | AH57: 0 | AI57: 0 | AJ57: 0 | AK57: 0 | AL57: 0 | AM57: 0 | AN57: 0 | AO57: 0 | AP57: 0 | AQ57: 0 | AR57: 0 | AS57: 0 | AT57: 0 | AU57: 0 | AV57: 0 | AW57: 0 | AX57: 0 | AY57: 0 | AZ57: 0 | BA57: 0 | BB57: 0 | BC57: 0 | BD57: 0
A58: Real Residual Capital Base (end period) | C58: =SUM(C52:C54,C56:C57) -> 1556.792953 | D58: =SUM(D52:D54,D56:D57) -> 1575.104691 | E58: 1593.405378 | F58: 1616.152477 | G58: 1599.039227 | H58: 1581.921786 | I58: =SUM(I52:I54,I56:I57) -> 1559.236984 | J58: =SUM(J52:J54,J56:J57) -> 1541.512574 | K58: =SUM(K52:K54,K56:K57) -> 1520.363698 | L58: =SUM(L52:L54,L56:L57) -> 1507.334387 | M58: =SUM(M52:M54,M56:M57) -> 1497.329407 | N58: =SUM(N52:N54,N56:N57) -> 1489.045145 | O58: =SUM(O52:O54,O56:O57) -> 1482.722153 | P58: =SUM(P52:P54,P56:P57) -> 1480.660842 | Q58: =SUM(Q52:Q54,Q56:Q57) -> 1469.679538 | R58: =SUM(R52:R54,R56:R57) -> 1453.324121 | S58: =SUM(S52:S54,S56:S57) -> 1433.657143 | T58: =SUM(T52:T54,T56:T57) -> 1410.006348 | U58: =SUM(U52:U54,U56:U57) -> 1374.155906 | V58: =SUM(V52:V54,V56:V57) -> 1305.044378 | W58: =SUM(W52:W54,W56:W57) -> 1236.423329 | X58: =SUM(X52:X54,X56:X57) -> 1168.383373 | Y58: =SUM(Y52:Y54,Y56:Y57) -> 1101.042376 | Z58: =SUM(Z52:Z54,Z56:Z57) -> 1034.466123 | AA58: =SUM(AA52:AA54,AA56:AA57) -> 968.4558667 | AB58: =SUM(AB52:AB54,AB56:AB57) -> 903.5860037 | AC58: =SUM(AC52:AC54,AC56:AC57) -> 839.8613268 | AD58: =SUM(AD52:AD54,AD56:AD57) -> 777.8139317 | AE58: =SUM(AE52:AE54,AE56:AE57) -> 717.4032105 | AF58: =SUM(AF52:AF54,AF56:AF57) -> 658.2920995 | AG58: =SUM(AG52:AG54,AG56:AG57) -> 600.641036 | AH58: =SUM(AH52:AH54,AH56:AH57) -> 544.8105762 | AI58: =SUM(AI52:AI54,AI56:AI57) -> 490.6374813 | AJ58: =SUM(AJ52:AJ54,AJ56:AJ57) -> 438.5472292 | AK58: =SUM(AK52:AK54,AK56:AK57) -> 388.0659255 | AL58: =SUM(AL52:AL54,AL56:AL57) -> 339.6846146 | AM58: =SUM(AM52:AM54,AM56:AM57) -> 293.1194672 | AN58: =SUM(AN52:AN54,AN56:AN57) -> 248.9195149 | AO58: =SUM(AO52:AO54,AO56:AO57) -> 206.7564333 | AP58: =SUM(AP52:AP54,AP56:AP57) -> 166.9430956 | AQ58: =SUM(AQ52:AQ54,AQ56:AQ57) -> 130.1557232 | AR58: =SUM(AR52:AR54,AR56:AR57) -> 97.01635476 | AS58: =SUM(AS52:AS54,AS56:AS57) -> 67.06867322 | AT58: =SUM(AT52:AT54,AT56:AT57) -> 41.12350675 | AU58: =SUM(AU52:AU54,AU56:AU57) -> 0 | AV58: =SUM(AV52:AV54,AV56:AV57) -> 0 | AW58: =SUM(AW52:AW54,AW56:AW57) -> 0 | AX58: =SUM(AX52:AX54,AX56:AX57) -> 0 | AY58: =SUM(AY52:AY54,AY56:AY57) -> 0 | AZ58: =SUM(AZ52:AZ54,AZ56:AZ57) -> 0 | BA58: =SUM(BA52:BA54,BA56:BA57) -> 0 | BB58: =SUM(BB52:BB54,BB56:BB57) -> 0 | BC58: =SUM(BC52:BC54,BC56:BC57) -> 0 | BD58: =SUM(BD52:BD54,BD56:BD57) -> 0
A61: Return on capital (real) $m | C61: =C52*C10 -> 45.86436568 | D61: =D52*D10 -> 46.41441527 | E61: 46.96036361 | F61: 47.50598246 | G61: 73.88486714 | H61: 73.10250156 | I61: 72.31995178 | J61: 71.2828817 | K61: 70.47258341 | L61: 69.50573048 | M61: 68.91007582 | N61: 68.45268297 | O61: 68.0739554 | P61: 67.78489022 | Q61: 67.6906543 | R61: 67.18862733 | S61: 66.44091463 | T61: 65.54180896 | U61: 64.460577 | V61: 62.82161971 | W61: 59.66208151 | X61: 56.52496624 | Y61: 53.41441656 | Z61: 50.3358208 | AA61: 47.29218649 | AB61: 44.2744276 | AC61: 41.30880351 | AD61: 38.39553333 | AE61: 35.55894264 | AF61: 32.79717497 | AG61: 30.09482095 | AH61: 27.45921521 | AI61: 24.90684113 | AJ61: 22.430236 | AK61: 20.04885118 | AL61: 17.74102188 | AM61: 15.52919694 | AN61: 13.40040065 | AO61: 11.37973285 | AP61: 9.45218368 | AQ61: 7.632056612 | AR61: 5.950266134 | AS61: 4.435249682 | AT61: 3.066146036 | AU61: 1.880023432 | AV61: 0 | AW61: 0 | AX61: 0 | AY61: 0 | AZ61: 0 | BA61: 0 | BB61: 0 | BC61: 0 | BD61: 0
A62: Depreciation (real) $m | C62: =-SUM(C54,C56) -> 65.21878211 | D62: =-SUM(D54,D56) -> 66.95409637 | E62: 68.42321731 | F62: 71.16255596 | G62: 108.4357728 | H62: 106.6131909 | I62: 105.3645288 | J62: 101.8499856 | K62: 103.8044653 | L62: 101.7644586 | M62: 98.74012873 | N62: 97.0194099 | O62: 95.05814061 | P62: 90.79645843 | Q62: 86.82437749 | R62: 89.12084249 | S62: 88.12795026 | T62: 85.35371049 | U62: 84.73547266 | V62: 80.83338622 | W62: 79.99046357 | X62: 79.058103 | Y62: 78.03386969 | Z62: 76.9438498 | AA62: 76.0525774 | AB62: 74.58690914 | AC62: 73.1164477 | AD62: 71.11389056 | AE62: 69.15194145 | AF62: 67.52705588 | AG62: 66.06700845 | AH62: 64.24640469 | AI62: 62.5890398 | AJ62: 60.50619703 | AK62: 58.89724856 | AL62: 56.79725583 | AM62: 54.9810923 | AN62: 52.6158972 | AO62: 50.5790265 | AP62: 48.2292826 | AQ62: 45.20331728 | AR62: 41.55531339 | AS62: 38.36362645 | AT62: 34.36111137 | AU62: 49.53945165 | AV62: 8.415944904 | AW62: 8.415944904 | AX62: 8.415944904 | AY62: 8.415944904 | AZ62: 8.415944904 | BA62: 8.415944904 | BB62: 8.415944904 | BC62: 8.415944904 | BD62: 8.415944904
A63: Operating expenses (inc UAFG) real$m | C63: =SUM(C16:C17) -> 76.50304704 | D63: =SUM(D16:D17) -> 76.13746072 | E63: 75.70564128 | F63: 73.57991519 | G63: 78.35536628 | H63: 80.64519429 | I63: 81.79248728 | J63: 85.18378007 | K63: 84.03420706 | L63: 84.00285277 | M63: 83.94079078 | N63: 83.65876605 | O63: 83.24495917 | P63: 82.57558903 | Q63: 81.60501298 | R63: 80.57655244 | S63: 79.47860437 | T63: 78.32321885 | U63: 77.09882023 | V63: 75.62534757 | W63: 74.04752425 | X63: 72.46895817 | Y63: 70.88950345 | Z63: 69.30967461 | AA63: 67.73357005 | AB63: 66.14877705 | AC63: 64.56487054 | AD63: 62.97333878 | AE63: 61.38372858 | AF63: 59.80006023 | AG63: 58.21983933 | AH63: 56.63484704 | AI63: 55.05328937 | AJ63: 53.46598977 | AK63: 51.88757179 | AL63: 50.30241383 | AM63: 48.72328535 | AN63: 47.13633208 | AO63: 45.55636848 | AP63: 43.97240799 | AQ63: 42.37791502 | AR63: 40.77535463 | AS63: 39.18266898 | AT63: 37.64219067 | AU63: 36.2253939 | AV63: 34.90640181 | AW63: 33.70250445 | AX63: 32.57300256 | AY63: 31.54782769 | AZ63: 30.62202262 | BA63: 29.7774382 | BB63: 29.00754481 | BC63: 28.30502318 | BD63: 27.66356174
A64: Tax and imputation credits | C64: =C18 -> 0 | D64: =D18 -> 0 | E64: 0 | F64: 0 | G64: 0 | H64: 0 | I64: 0 | J64: 0 | K64: 0 | L64: 0 | M64: 0 | N64: 0 | O64: 0 | P64: 0 | Q64: 0 | R64: 0 | S64: 0 | T64: 0 | U64: 0 | V64: 0 | W64: 0 | X64: 0 | Y64: 0 | Z64: 0 | AA64: 0 | AB64: 0 | AC64: 0 | AD64: 0 | AE64: 0 | AF64: 0 | AG64: 0 | AH64: 0 | AI64: 0 | AJ64: 0 | AK64: 0 | AL64: 0 | AM64: 0 | AN64: 0 | AO64: 0 | AP64: 0 | AQ64: 0 | AR64: 0 | AS64: 0 | AT64: 0 | AU64: 0 | AV64: 0 | AW64: 0 | AX64: 0 | AY64: 0 | AZ64: 0 | BA64: 0 | BB64: 0 | BC64: 0 | BD64: 0
A65: Revenue-capital (real) $m | C65: =SUM(C61:C64) -> 187.5861948 | D65: =SUM(D61:D64) -> 189.5059724 | E65: 191.0892222 | F65: 192.2484536 | G65: 260.6760062 | H65: 260.3608867 | I65: 259.4769678 | J65: 258.3166474 | K65: 258.3112558 | L65: 255.2730418 | M65: 251.5909953 | N65: 249.1308589 | O65: 246.3770552 | P65: 241.1569377 | Q65: 236.1200448 | R65: 236.8860223 | S65: 234.0474693 | T65: 229.2187383 | U65: 226.2948699 | V65: 219.2803535 | W65: 213.7000693 | X65: 208.0520274 | Y65: 202.3377897 | Z65: 196.5893452 | AA65: 191.0783339 | AB65: 185.0101138 | AC65: 178.9901217 | AD65: 172.4827627 | AE65: 166.0946127 | AF65: 160.1242911 | AG65: 154.3816687 | AH65: 148.3404669 | AI65: 142.5491703 | AJ65: 136.4024228 | AK65: 130.8336715 | AL65: 124.8406915 | AM65: 119.2335746 | AN65: 113.1526299 | AO65: 107.5151278 | AP65: 101.6538743 | AQ65: 95.21328891 | AR65: 88.28093415 | AS65: 81.98154511 | AT65: 75.06944808 | AU65: 87.64486899 | AV65: 43.32234672 | AW65: 42.11844935 | AX65: 40.98894746 | AY65: 39.96377259 | AZ65: 39.03796753 | BA65: 38.1933831 | BB65: 37.42348971 | BC65: 36.72096808 | BD65: 36.07950665
A66: Gas demand TJ | C66: =C38 -> 28028.07884 | D66: =D38 -> 27577.64439 | E66: 27653.7247 | F66: 28461.17274 | G66: 28569.73585 | H66: 28535.19918 | I66: 28438.32288 | J66: 28311.15333 | K66: 28310.56242 | L66: 27977.5783 | M66: 27574.03101 | N66: 27304.4034 | O66: 27002.59026 | P66: 26430.47248 | Q66: 25878.43586 | R66: 25962.38596 | S66: 25651.28441 | T66: 25122.06206 | U66: 24801.61006 | V66: 24032.8286 | W66: 23421.23704 | X66: 22802.21932 | Y66: 22175.94664 | Z66: 21545.92494 | AA66: 20941.9256 | AB66: 20276.85692 | AC66: 19617.07398 | AD66: 18903.87627 | AE66: 18203.74372 | AF66: 17549.40459 | AG66: 16920.02099 | AH66: 16257.91348 | AI66: 15623.19525 | AJ66: 14949.52008 | AK66: 14339.19251 | AL66: 13682.37005 | AM66: 13067.83766 | AN66: 12401.37439 | AO66: 11783.51183 | AP66: 11141.1264 | AQ66: 10435.24701 | AR66: 9675.470351 | AS66: 8985.065877 | AT66: 8227.509441 | AU66: 7499.897861 | AV66: 6694.674041 | AW66: 5994.661483 | AX66: 5178.653834 | AY66: 4503.136682 | AZ66: 3984.01773 | BA66: 3538.658272 | BB66: 3161.039844 | BC66: 2838.3726 | BD66: 2561.309042
A67: Annual average tariff | C67: =C65*1000/C66 -> 6.692795318 | D67: =D65*1000/D66 -> 6.871724419 | E67: 6.910071763 | F67: 6.754762193 | G67: 9.124200783 | H67: 9.124200783 | I67: 9.124200783 | J67: 9.124200783 | K67: 9.124200783 | L67: 9.124200783 | M67: 9.124200783 | N67: 9.124200783 | O67: 9.124200783 | P67: 9.124200783 | Q67: 9.124200783 | R67: 9.124200783 | S67: 9.124200783 | T67: 9.124200783 | U67: 9.124200783 | V67: 9.124200783 | W67: 9.124200783 | X67: 9.124200783 | Y67: 9.124200783 | Z67: 9.124200783 | AA67: 9.124200783 | AB67: 9.124200783 | AC67: 9.124200783 | AD67: 9.124200783 | AE67: 9.124200783 | AF67: 9.124200783 | AG67: 9.124200783 | AH67: 9.124200783 | AI67: 9.124200783 | AJ67: 9.124200783 | AK67: 9.124200783 | AL67: 9.124200783 | AM67: 9.124200783 | AN67: 9.124200783 | AO67: 9.124200783 | AP67: 9.124200783 | AQ67: 9.124200783 | AR67: 9.124200783 | AS67: 9.124200783 | AT67: 9.124200783 | AU67: 11.68614168 | AV67: 6.471165952 | AW67: 7.025992956 | AX67: 7.914981147 | AY67: 8.874652362 | AZ67: 9.798643022 | BA67: 10.79318209 | BB67: 11.8389807 | BC67: 12.9373318 | BD67: 14.0863543
G69: =G67-G45 -> 0 | H69: 0 | I69: 0 | J69: 0 | K69: 0 | L69: 0 | M69: 0 | N69: 0 | O69: 0 | P69: 0 | Q69: 0 | R69: 0 | S69: 0 | T69: 0 | U69: 0 | V69: 0 | W69: 0 | X69: 0 | Y69: 0 | Z69: 0 | AA69: 0 | AB69: 0 | AC69: 0 | AD69: 0 | AE69: 0 | AF69: 0 | AG69: 0 | AH69: 0 | AI69: 0 | AJ69: 0 | AK69: 0 | AL69: 0 | AM69: 0 | AN69: 0 | AO69: 0 | AP69: 0 | AQ69: 0 | AR69: 0 | AS69: 0 | AT69: 0 | AU69: 2.561940896 | AV69: -2.653034831 | AW69: -2.098207827 | AX69: -1.209219635 | AY69: -0.2495484208 | AZ69: 0.6744422388 | BA69: 1.668981312 | BB69: 2.714779921 | BC69: 3.813131013 | BD69: 4.962153521
G71: =(G69*(G38*1000)+G56*1000000)/1000000 -> -43.07228648 | H71: =(H69*(H38*1000)+H56*1000000)/1000000 -> -31.55172651 | I71: -29.73913532 | J71: -26.65665388 | K71: -29.60098219 | L71: -27.868573 | M71: -23.51599671 | N71: -22.19020875 | O71: -18.29509892 | P71: -12.15550161 | Q71: -6.486809207 | R71: -7.568605686 | S71: -5.606157381 | T71: -1.889321782 | U71: -0.9489912211 | V71: -2.25762822 | W71: -2.820046669 | X71: -3.355435498 | Y71: -3.729039715 | Z71: -3.985352601 | AA71: -4.555477475 | AB71: -4.164781079 | AC71: -3.92081057 | AD71: -3.141627441 | AE71: -2.431234152 | AF71: -9.209577137 | AG71: -9.095478937 | AH71: -8.513925783 | AI71: -8.101081542 | AJ71: -7.35734934 | AK71: -6.965515453 | AL71: -5.944498841 | AM71: -5.226903627 | AN71: -3.953757835 | AO71: -3.11263742 | AP71: -1.684649727 | AQ71: 0.5397184501 | AR71: 3.528834595 | AS71: 6.147147063 | AT71: 9.608115053 | AU71: 13.10842614 | AV71: 17.61267596 | AW71: 23.2034388 | AX71: 29.93118648 | AY71: 35.67470323 | AZ71: 40.31212429 | BA71: 44.8134055 | BB71: 49.40682501 | BC71: 54.83224632 | BD71: 64.23130449
A74: NPV of revised revenue (real) | B74: =NPV(G10,G65:BD65) -> 3941.883496
A76: NPV of differences in revenue component
A77: =NPV(G10,G77:BD77) -> 211.2240796 | G77: =G15-G61 -> 0 | H77: 1.969114851 | I77: 3.411549844 | J77: 4.771119484 | K77: 5.989768813 | L77: 7.343022573 | M77: 8.617076622 | N77: 9.692146049 | O77: 10.70660507 | P77: 11.54299324 | Q77: 12.09870042 | R77: 12.39525473 | S77: 12.74126501 | T77: 12.99755899 | U77: 13.0839322 | V77: 13.12731677 | W77: 13.23052767 | X77: 13.35945038 | Y77: 13.5128492 | Z77: 13.6833279 | AA77: 13.86552433 | AB77: 14.07378489 | AC77: 14.26418417 | AD77: 14.44342996 | AE77: 14.58705422 | AF77: 14.69820178 | AG77: 15.11923155 | AH77: 15.53504516 | AI77: 15.92427217 | AJ77: 16.29462539 | AK77: 16.63097777 | AL77: 16.94941686 | AM77: 17.22117864 | AN77: 17.46013446 | AO77: 17.64088649 | AP77: 17.78318543 | AQ77: 17.86020174 | AR77: 17.83552769 | AS77: 17.67420167 | AT77: 17.39317553 | AU77: 16.95392599 | AV77: 17.23306504 | AW77: 15.61589454 | AX77: 13.98008975 | AY77: 12.32545744 | AZ77: 10.64316036 | BA77: 8.923070315 | BB77: 7.144357231 | BC77: 5.277966886 | BD77: 3.266021454
A78: =NPV(G10,G78:BD78) -> -213.3550137 | G78: =SUM(G14,G16,G17,G18)-SUM(G62,G63,G64) -> -43.07228648 | H78: -31.55172651 | I78: -29.73913532 | J78: -26.65665388 | K78: -29.60098219 | L78: -27.868573 | M78: -23.51599671 | N78: -22.19020875 | O78: -18.29509892 | P78: -12.15550161 | Q78: -6.486809207 | R78: -7.568605686 | S78: -5.606157381 | T78: -1.889321782 | U78: -0.9489912211 | V78: -2.25762822 | W78: -2.820046669 | X78: -3.355435498 | Y78: -3.729039715 | Z78: -3.985352601 | AA78: -4.555477475 | AB78: -4.164781079 | AC78: -3.92081057 | AD78: -3.141627441 | AE78: -2.431234152 | AF78: -9.209577137 | AG78: -9.095478937 | AH78: -8.513925783 | AI78: -8.101081542 | AJ78: -7.35734934 | AK78: -6.965515453 | AL78: -5.944498841 | AM78: -5.226903627 | AN78: -3.953757835 | AO78: -3.11263742 | AP78: -1.684649727 | AQ78: 0.5397184501 | AR78: 3.528834595 | AS78: 6.147147063 | AT78: 9.608115053 | AU78: -6.105868907 | AV78: 35.37387937 | AW78: 35.78148444 | AX78: 36.19331638 | AY78: 36.79845388 | AZ78: 37.62513445 | BA78: 38.90745098 | BB78: 40.82529751 | BC78: 44.00915973 | BD78: 51.52169581
A80: Annual tariff | G80: =G40 -> 7.616581437 | H80: 8.087494802 | I80: 8.198422368 | J80: 8.351165006 | K80: 8.290193565 | L80: 8.390557928 | M80: 8.583876443 | N80: 8.666470119 | O80: 8.843172416 | P80: 9.101026457 | Q80: 9.341056672 | R80: 9.310110085 | S80: 9.402358692 | T80: 9.566371381 | U80: 9.613481154 | V80: 9.576485811 | W80: 9.56868973 | X80: 9.56293066 | Y80: 9.565390944 | Z80: 9.574307953 | AA80: 9.568765769 | AB80: 9.612886176 | AC80: 9.651464615 | AD80: 9.722057136 | AE80: 9.791965626 | AF80: 9.436953538 | AG80: 9.480214089 | AH80: 9.556059359 | AI80: 9.624942821 | AJ80: 9.722031081 | AK80: 9.798259821 | AL80: 9.928514508 | AM80: 10.04204774 | AN80: 10.21330399 | AO80: 10.35713111 | AP80: 10.5691656 | AQ80: 10.88744799 | AR80: 11.33229626 | AS80: 11.7754166 | AT80: 12.40603118 | AU80: 13.13256899 | AV80: 14.3291952 | AW80: 15.5998514 | AX80: 17.60348471 | AY80: 19.78347321 | AZ80: 21.91412495 | BA80: 24.30975183 | BB80: 27.01425755 | BC80: 30.30190423 | BD80: 35.47686844
A81: Constant annual tariff | G81: =G45 -> 9.124200783 | H81: 9.124200783 | I81: 9.124200783 | J81: 9.124200783 | K81: 9.124200783 | L81: 9.124200783 | M81: 9.124200783 | N81: 9.124200783 | O81: 9.124200783 | P81: 9.124200783 | Q81: 9.124200783 | R81: 9.124200783 | S81: 9.124200783 | T81: 9.124200783 | U81: 9.124200783 | V81: 9.124200783 | W81: 9.124200783 | X81: 9.124200783 | Y81: 9.124200783 | Z81: 9.124200783 | AA81: 9.124200783 | AB81: 9.124200783 | AC81: 9.124200783 | AD81: 9.124200783 | AE81: 9.124200783 | AF81: 9.124200783 | AG81: 9.124200783 | AH81: 9.124200783 | AI81: 9.124200783 | AJ81: 9.124200783 | AK81: 9.124200783 | AL81: 9.124200783 | AM81: 9.124200783 | AN81: 9.124200783 | AO81: 9.124200783 | AP81: 9.124200783 | AQ81: 9.124200783 | AR81: 9.124200783 | AS81: 9.124200783 | AT81: 9.124200783 | AU81: 9.124200783 | AV81: 9.124200783 | AW81: 9.124200783 | AX81: 9.124200783 | AY81: 9.124200783 | AZ81: 9.124200783 | BA81: 9.124200783 | BB81: 9.124200783 | BC81: 9.124200783 | BD81: 9.124200783
A87: Share of total cost (original revenue) | C87: 2021 | D87: =C87+1 -> 2022 | E87: =D87+1 -> 2023 | F87: =E87+1 -> 2024 | G87: =F87+1 -> 2025 | H87: =G87+1 -> 2026 | I87: =H87+1 -> 2027 | J87: =I87+1 -> 2028 | K87: =J87+1 -> 2029 | L87: =K87+1 -> 2030 | M87: =L87+1 -> 2031 | N87: =M87+1 -> 2032 | O87: =N87+1 -> 2033 | P87: =O87+1 -> 2034 | Q87: =P87+1 -> 2035 | R87: =Q87+1 -> 2036 | S87: =R87+1 -> 2037 | T87: =S87+1 -> 2038 | U87: =T87+1 -> 2039 | V87: =U87+1 -> 2040 | W87: =V87+1 -> 2041 | X87: =W87+1 -> 2042 | Y87: =X87+1 -> 2043 | Z87: =Y87+1 -> 2044 | AA87: =Z87+1 -> 2045 | AB87: =AA87+1 -> 2046 | AC87: =AB87+1 -> 2047 | AD87: =AC87+1 -> 2048 | AE87: =AD87+1 -> 2049 | AF87: =AE87+1 -> 2050 | AG87: =AF87+1 -> 2051 | AH87: =AG87+1 -> 2052 | AI87: =AH87+1 -> 2053 | AJ87: =AI87+1 -> 2054 | AK87: =AJ87+1 -> 2055 | AL87: =AK87+1 -> 2056 | AM87: =AL87+1 -> 2057 | AN87: =AM87+1 -> 2058 | AO87: =AN87+1 -> 2059 | AP87: =AO87+1 -> 2060 | AQ87: =AP87+1 -> 2061 | AR87: =AQ87+1 -> 2062 | AS87: =AR87+1 -> 2063 | AT87: =AS87+1 -> 2064 | AU87: =AT87+1 -> 2065 | AV87: =AU87+1 -> 2066 | AW87: =AV87+1 -> 2067 | AX87: =AW87+1 -> 2068 | AY87: =AX87+1 -> 2069 | AZ87: =AY87+1 -> 2070 | BA87: =AZ87+1 -> 2071 | BB87: =BA87+1 -> 2072 | BC87: =BB87+1 -> 2073 | BD87: =BC87+1 -> 2074
A88: Residential B3 | B88: 0.8187442046 | C88: =$B88*C$19 -> 153.5851099 | D88: =$B88*D$19 -> 155.1569166 | E88: 156.4531932 | F88: 157.4023072 | G88: 178.1617844 | H88: 188.9483753 | I88: 190.8897056 | J88: 193.5766035 | K88: 192.1592995 | L88: 192.1981482 | M88: 193.7902649 | N88: 193.7417305 | O88: 195.5067507 | P88: 196.9443575 | Q88: 197.9166217 | R88: 197.9008488 | S88: 197.4668371 | T88: 196.7663184 | U88: 195.2130259 | V88: 188.4340131 | W88: 183.4892143 | X88: 178.5321209 | Y88: 173.67333 | Z88: 168.8965481 | AA88: 164.0668255 | AB88: 159.5888979 | AC88: 155.0157021 | AD88: 150.4725477 | AE88: 145.9415088 | AF88: 135.594615 | AG88: 131.3310091 | AH88: 127.2013984 | AI88: 123.1164991 | AJ88: 118.9960361 | AK88: 115.0328516 | AL88: 111.2228056 | AM88: 107.4420413 | AN88: 103.7013276 | AO88: 99.92230755 | AP88: 96.40910324 | AQ88: 93.02015652 | AR88: 89.77145103 | AS88: 86.62550617 | AT88: 83.56982574 | AU88: 80.64051242 | AV88: 78.54155116 | AW88: 76.56554248 | AX88: 74.63864868 | AY88: 72.94002491 | AZ88: 71.48149631 | BA88: 70.43157318 | BB88: 69.91514214 | BC88: 70.41862909 | BD88: 74.39701297
A89: Commercial B2 | B89: 0.05641177407 | C89: =$B89*C$19 -> 10.58207004 | D89: 10.6903681 | E89: 10.77968203 | F89: 10.84507633 | G89: 12.27541187 | H89: 13.01861191 | I89: 13.15237028 | J89: 13.33749853 | K89: 13.23984577 | L89: 13.24252245 | M89: 13.35221987 | N89: 13.34887584 | O89: 13.47048637 | P89: 13.569538 | Q89: 13.63652736 | R89: 13.6354406 | S89: 13.60553704 | T89: 13.55727105 | U89: 13.45024862 | V89: 12.98317217 | W89: 12.64247373 | X89: 12.30092819 | Y89: 11.96615573 | Z89: 11.63703372 | AA89: 11.30426406 | AB89: 10.99573322 | AC89: 10.68063836 | AD89: 10.36761337 | AE89: 10.05542314 | AF89: 9.342518384 | AG89: 9.048754388 | AH89: 8.764222706 | AI89: 8.482771651 | AJ89: 8.198870255 | AK89: 7.925805395 | AL89: 7.663291835 | AM89: 7.402795803 | AN89: 7.145059262 | AO89: 6.884683404 | AP89: 6.642622347 | AQ89: 6.409122683 | AR89: 6.185285691 | AS89: 5.968528943 | AT89: 5.757991449 | AU89: 5.556160693 | AV89: 5.411541497 | AW89: 5.275393779 | AX89: 5.142630094 | AY89: 5.025594297 | AZ89: 4.925101145 | BA89: 4.852761059 | BB89: 4.817178772 | BC89: 4.851869206 | BD89: 5.125981305
A90: Commercial B1 | B90: 0.05641177407 | C90: 10.58207004 | D90: 10.6903681 | E90: 10.77968203 | F90: 10.84507633 | G90: 12.27541187 | H90: 13.01861191 | I90: 13.15237028 | J90: 13.33749853 | K90: 13.23984577 | L90: 13.24252245 | M90: 13.35221987 | N90: 13.34887584 | O90: 13.47048637 | P90: 13.569538 | Q90: 13.63652736 | R90: 13.6354406 | S90: 13.60553704 | T90: 13.55727105 | U90: 13.45024862 | V90: 12.98317217 | W90: 12.64247373 | X90: 12.30092819 | Y90: 11.96615573 | Z90: 11.63703372 | AA90: 11.30426406 | AB90: 10.99573322 | AC90: 10.68063836 | AD90: 10.36761337 | AE90: 10.05542314 | AF90: 9.342518384 | AG90: 9.048754388 | AH90: 8.764222706 | AI90: 8.482771651 | AJ90: 8.198870255 | AK90: 7.925805395 | AL90: 7.663291835 | AM90: 7.402795803 | AN90: 7.145059262 | AO90: 6.884683404 | AP90: 6.642622347 | AQ90: 6.409122683 | AR90: 6.185285691 | AS90: 5.968528943 | AT90: 5.757991449 | AU90: 5.556160693 | AV90: 5.411541497 | AW90: 5.275393779 | AX90: 5.142630094 | AY90: 5.025594297 | AZ90: 4.925101145 | BA90: 4.852761059 | BB90: 4.817178772 | BC90: 4.851869206 | BD90: 5.125981305
A91: Industrial A1 | B91: 0.04283942027 | C91: 8.036083836 | D91: 8.118325993 | E91: 8.186151498 | F91: 8.2358123 | G91: 9.3220172 | H91: 9.886407514 | I91: 9.987984376 | J91: 10.12857181 | K91: 10.05441375 | L91: 10.05644644 | M91: 10.13975128 | N91: 10.13721181 | O91: 10.22956353 | P91: 10.3047839 | Q91: 10.355656 | R91: 10.35483071 | S91: 10.33212177 | T91: 10.29546831 | U91: 10.21419487 | V91: 9.859494376 | W91: 9.600766052 | X91: 9.341394437 | Y91: 9.087166335 | Z91: 8.837229218 | AA91: 8.584522062 | AB91: 8.350221997 | AC91: 8.110937177 | AD91: 7.873224227 | AE91: 7.6361452 | AF91: 7.094761298 | AG91: 6.871675258 | AH91: 6.655600289 | AI91: 6.441864766 | AJ91: 6.226268441 | AK91: 6.018901442 | AL91: 5.819547159 | AM91: 5.621724999 | AN91: 5.425998412 | AO91: 5.228267514 | AP91: 5.044444978 | AQ91: 4.867124013 | AR91: 4.697140935 | AS91: 4.532534635 | AT91: 4.372651271 | AU91: 4.219379853 | AV91: 4.109555218 | AW91: 4.006163871 | AX91: 3.905342378 | AY91: 3.816464732 | AZ91: 3.740149664 | BA91: 3.685214193 | BB91: 3.658192803 | BC91: 3.684536915 | BD91: 3.892699193
A92: Industrial A2 | B92: 0.02635447004 | C92: 4.943734752 | D92: 4.994329471 | E92: 5.036055182 | F92: 5.066606112 | G92: 5.734830712 | H92: 6.082039137 | I92: 6.144528413 | J92: 6.231016684 | K92: 6.185395236 | L92: 6.18664573 | M92: 6.237894206 | N92: 6.236331939 | O92: 6.293145986 | P92: 6.339420956 | Q92: 6.370717065 | R92: 6.370209355 | S92: 6.356238997 | T92: 6.333690077 | U92: 6.283691308 | V92: 6.065482389 | W92: 5.906314785 | X92: 5.746751434 | Y92: 5.590352331 | Z92: 5.436593008 | AA92: 5.281129579 | AB92: 5.136990045 | AC92: 4.989783931 | AD92: 4.843544818 | AE92: 4.69769569 | AF92: 4.364640626 | AG92: 4.227399871 | AH92: 4.094472272 | AI92: 3.962983881 | AJ92: 3.83035074 | AK92: 3.702780214 | AL92: 3.580139048 | AM92: 3.458440431 | AN92: 3.338030994 | AO92: 3.21638852 | AP92: 3.103302361 | AQ92: 2.994215916 | AR92: 2.88964368 | AS92: 2.788379196 | AT92: 2.690020224 | AU92: 2.59572887 | AV92: 2.528165629 | AW92: 2.464560096 | AX92: 2.402535517 | AY92: 2.347858697 | AZ92: 2.300910275 | BA92: 2.267114411 | BB92: 2.250491067 | BC92: 2.266697755 | BD92: 2.39475753
A93: ATCO | B93: =SUM(B88:B92) -> 1.000761643 | C93: 187.7290686 | D93: 189.6503083 | E93: 191.234764 | F93: 192.3948783 | G93: 217.7694561 | H93: 230.9540457 | I93: =$B93*I$19 -> 233.326959 | J93: 236.6111891 | K93: 234.8788 | L93: 234.9262852 | M93: 236.8723501 | N93: 236.8130259 | O93: 238.970433 | P93: 240.7276383 | Q93: 241.9160494 | R93: 241.8967701 | S93: 241.3662719 | T93: 240.5100189 | U93: 238.6114093 | V93: 230.3253342 | W93: 224.2812426 | X93: 218.2221232 | Y93: 212.2831601 | Z93: 206.4444378 | AA93: 200.5410052 | AB93: 195.0675764 | AC93: 189.4776999 | AD93: 183.9245434 | AE93: 178.3861959 | AF93: 165.7390536 | AG93: 160.527593 | AH93: 155.4799164 | AI93: 150.486891 | AJ93: 145.4503958 | AK93: 140.606144 | AL93: 135.9490754 | AM93: 131.3277984 | AN93: 126.7554755 | AO93: 122.1363304 | AP93: 117.8420953 | AQ93: 113.6997418 | AR93: 109.728807 | AS93: 105.8834779 | AT93: 102.1484801 | AU93: 98.56794252 | AV93: 96.002355 | AW93: 93.58705401 | AX93: 91.23178677 | AY93: 89.15553693 | AZ93: 87.37275854 | BA93: 86.08942391 | BB93: 85.45818355 | BC93: 86.07360217 | BD93: 90.9364323
A95: Average tariff by tariff class (without brought forward depreciation)
A96: Residential B3 | C96: =C88*1000/C33 -> 14.67091616 | D96: 15.39440705 | E96: 15.24839762 | F96: 15.50075449 | G96: 17.72216661 | H96: 18.83993472 | I96: 19.12476039 | J96: 19.48602779 | K96: 19.34258216 | L96: 19.55625207 | M96: 19.98854583 | N96: 20.16965051 | O96: 20.57623555 | P96: 21.18521692 | Q96: 21.76939369 | R96: 21.70421473 | S96: 21.9358869 | T96: 22.34914957 | U96: 22.49427198 | V96: 22.47331299 | W96: 22.52668492 | X96: 22.59483052 | Y96: 22.69030561 | Z96: 22.81037259 | AA96: 22.90317941 | AB96: 23.12353537 | AC96: 23.34357676 | AD96: 23.65393609 | AE96: 23.97863293 | AF96: 23.25534185 | AG96: 23.5178138 | AH96: 23.87670189 | AI96: =AI88*1000/AI33 -> 24.22145887 | AJ96: 24.65553392 | AK96: 25.04852644 | AL96: 25.60821026 | AM96: 26.15063935 | AN96: 26.873689 | AO96: 27.56203493 | AP96: 28.46690811 | AQ96: 29.66341687 | AR96: 31.29003878 | AS96: 32.98722105 | AT96: 35.35981258 | AU96: 38.19915306 | AV96: 42.78026635 | AW96: 47.90052068 | AX96: 56.20650707 | AY96: 65.96872534 | AZ96: 76.17533309 | BA96: 88.34091122 | BB96: 103.0008598 | BC96: 121.6049397 | BD96: 150.2760915
A97: Commercial B2 | C97: =C89*1000/C34 -> 8.054103417 | D97: 8.013989588 | E97: 8.11535431 | F97: 8.225929759 | G97: 9.38820409 | H97: 9.914632889 | I97: 9.986830633 | J97: 10.16102764 | K97: 10.08966055 | L97: 10.26110779 | M97: 10.54197739 | N97: 10.67093029 | O97: 10.89997195 | P97: 11.19564076 | Q97: 11.42890047 | R97: 11.37425423 | S97: 11.44702496 | T97: 11.57400039 | U97: 11.54907902 | V97: 11.35509376 | W97: 11.18782844 | X97: 11.00739916 | Y97: 10.82709274 | Z97: 10.64367078 | AA97: 10.43939685 | AB97: 10.28315269 | AC97: 10.10910745 | AD97: 9.959357901 | AE97: 9.797269535 | AF97: 9.233850971 | AG97: 9.066538363 | AH97: 8.922937358 | AI97: =AI89*1000/AI34 -> 8.781719645 | AJ97: 8.658032388 | AK97: 8.516447707 | AL97: 8.407318892 | AM97: 8.275601793 | AN97: 8.182156695 | AO97: 8.055084197 | AP97: 7.974952651 | AQ97: 7.990172943 | AR97: 8.063753449 | AS97: 8.115201842 | AT97: 8.244373725 | AU97: 8.381709975 | AV97: 8.713316235 | AW97: 9.037998795 | AX97: 9.589643206 | AY97: 10.13211788 | AZ97: 10.63869932 | BA97: 11.20433471 | BB97: 11.83226819 | BC97: 12.63574991 | BD97: 14.11587628
A98: Commercial B1 | C98: =C90*1000/C35 -> 5.140957813 | D98: 5.218138397 | E98: 5.315245931 | F98: 5.331177674 | G98: 6.026007842 | H98: 6.363906767 | I98: 6.410248344 | J98: 6.522060199 | K98: 6.476251798 | L98: 6.586298662 | M98: 6.766580465 | N98: 6.849351486 | O98: 6.996366487 | P98: 7.186147464 | Q98: 7.335869909 | R98: 7.300794116 | S98: 7.347503477 | T98: 7.429005213 | U98: 7.413008928 | V98: 7.288495587 | W98: 7.181132968 | X98: 7.065320804 | Y98: 6.949587498 | Z98: 6.831854421 | AA98: 6.700737083 | AB98: 6.600448622 | AC98: 6.488734181 | AD98: 6.392614417 | AE98: 6.288574736 | AF98: 5.926933185 | AG98: 5.819540218 | AH98: 5.727367021 | AI98: =AI90*1000/AI35 -> 5.636723589 | AJ98: 5.557332432 | AK98: 5.466453454 | AL98: 5.396406926 | AM98: 5.311861654 | AN98: 5.251882036 | AO98: 5.170317994 | AP98: 5.118883948 | AQ98: 5.128653399 | AR98: 5.175882529 | AS98: 5.208905715 | AT98: 5.29181729 | AU98: 5.379969327 | AV98: 5.592817483 | AW98: 5.801221522 | AX98: 6.155305596 | AY98: 6.503503888 | AZ98: 6.828663384 | BA98: 7.191727853 | BB98: 7.594779599 | BC98: 8.110510521 | BD98: 9.060559436
A99: Industrial A1 | C99: =C91*1000/C36 -> 0.6508787096 | D99: 0.6575575356 | E99: 0.6667272094 | F99: 0.6230764419 | G99: 0.6923518825 | H99: 0.7360197292 | I99: 0.7471470136 | J99: 0.761260647 | K99: 0.7556566568 | L99: 0.7640040991 | M99: 0.7808925195 | N99: 0.7879677359 | O99: 0.8038517937 | P99: 0.8276428689 | Q99: 0.8504649026 | R99: 0.8479185564 | S99: 0.8569692928 | T99: 0.8731142255 | U99: 0.8787837228 | V99: 0.877964918 | W99: 0.8800499993 | X99: 0.8827122435 | Y99: 0.8864421687 | Z99: 0.8911328255 | AA99: 0.8947585096 | AB99: 0.9033671556 | AC99: 0.9119635125 | AD99: 0.9240883207 | AE99: 0.9367732521 | AF99: 0.9085164396 | AG99: 0.9187704312 | AH99: 0.9327911121 | AI99: =AI91*1000/AI36 -> 0.946259733 | AJ99: 0.9632177429 | AK99: 0.9785707817 | AL99: 1.00043595 | AM99: 1.021627027 | AN99: 1.049874407 | AO99: 1.076766018 | AP99: 1.112116698 | AQ99: 1.158860706 | AR99: 1.222407944 | AS99: 1.288711764 | AT99: 1.381401797 | AU99: 1.492326312 | AV99: 1.671296664 | AW99: 1.87132964 | AX99: 2.19581961 | AY99: 2.577200191 | AZ99: 2.975941736 | BA99: 3.451214376 | BB99: 4.023934588 | BC99: 4.750740178 | BD99: 5.870836062
A100: Industrial A2 | C100: =C92*1000/C37 -> 2.685897411 | D100: 2.821625 | E100: 2.863130363 | F100: 2.918512255 | G100: 3.358014499 | H100: 3.546309888 | I100: 3.572133898 | J100: 3.634441455 | K100: 3.608914559 | L100: 3.67023857 | M100: 3.770701251 | N100: 3.8168257 | O100: 3.898750337 | P100: 4.004506467 | Q100: 4.087939837 | R100: 4.068393726 | S100: 4.094422685 | T100: 4.13983982 | U100: 4.130925833 | V100: 4.061540326 | W100: 4.001712121 | X100: 3.937175378 | Y100: 3.872682577 | Z100: 3.807075398 | AA100: 3.73400979 | AB100: 3.678123686 | AC100: 3.615870412 | AD100: 3.562307329 | AE100: 3.504330843 | AF100: 3.302804791 | AG100: 3.242959675 | AH100: 3.19159583 | AI100: =AI92*1000/AI37 -> 3.141084452 | AJ100: 3.096843445 | AK100: 3.046200808 | AL100: 3.007167129 | AM100: 2.960053973 | AN100: 2.926630115 | AO100: 2.88117826 | AP100: 2.852516453 | AQ100: 2.857960515 | AR100: 2.884279117 | AS100: 2.902681406 | AT100: 2.948884178 | AU100: 2.998007218 | AV100: 3.116617617 | AW100: 3.232751515 | AX100: 3.430066136 | AY100: 3.624100884 | AZ100: 3.805297181 | BA100: 4.007616159 | BB100: 4.232218191 | BC100: 4.519611099 | BD100: 5.049029267
A103: Original
A104: Residential B3 | C104: 2021 | D104: 2022 | E104: =D104+1 -> 2023 | F104: 2024 | G104: 2025 | H104: 2026 | I104: 2027 | J104: 2028 | K104: 2029 | L104: 2030 | M104: 2031 | N104: 2032 | O104: 2033 | P104: 2034 | Q104: 2035 | R104: 2036 | S104: 2037 | T104: 2038 | U104: 2039 | V104: 2040 | W104: 2041 | X104: 2042 | Y104: 2043 | Z104: 2044 | AA104: 2045 | AB104: 2046 | AC104: 2047 | AD104: 2048 | AE104: 2049 | AF104: 2050 | AG104: 2051 | AH104: 2052 | AI104: 2053 | AJ104: 2054 | AK104: 2055 | AL104: 2056 | AM104: 2057 | AN104: 2058 | AO104: 2059 | AP104: 2060 | AQ104: 2061 | AR104: 2062 | AS104: 2063 | AT104: 2064 | AU104: 2065 | AV104: 2066 | AW104: 2067 | AX104: 2068 | AY104: 2069 | AZ104: 2070 | BA104: 2071 | BB104: 2072 | BC104: 2073 | BD104: 2074
A105: Daily supply charge | C105: 0.3275017112 | D105: 0.337357974 | E105: 0.361889117 | F105: 0.3790788501 | G105: =F105*G96/F96 -> 0.4334046154 | H105: 0.4607402041 | I105: 0.467705761 | J105: 0.4765407393 | K105: 0.4730327035 | L105: 0.47825811 | M105: 0.4888300742 | N105: 0.4932590814 | O105: 0.5032023258 | P105: 0.5180952755 | Q105: 0.532381616 | R105: 0.5307876315 | S105: 0.5364532923 | T105: 0.5465598415 | U105: 0.550108884 | V105: 0.5495963213 | W105: 0.5509015591 | X105: 0.5525680945 | Y105: 0.5549029864 | Z105: 0.5578392856 | AA105: 0.5601089237 | AB105: 0.5654978408 | AC105: 0.5708790651 | AD105: 0.5784690609 | AE105: 0.5864096875 | AF105: 0.5687212356 | AG105: 0.5751401209 | AH105: 0.583916912 | AI105: 0.5923481195 | AJ105: 0.6029636461 | AK105: 0.6125744784 | AL105: 0.6262618315 | AM105: 0.6395272114 | AN105: 0.657209759 | AO105: 0.6740436095 | AP105: 0.6961727441 | AQ105: 0.7254339756 | AR105: 0.7652138434 | AS105: 0.8067193006 | AT105: 0.8647422355 | AU105: 0.934179754 | AV105: 1.046213214 | AW105: 1.171431643 | AX105: 1.374558772 | AY105: 1.613298795 | AZ105: 1.862906589 | BA105: 2.160422001 | BB105: 2.518938515 | BC105: 2.97391077 | BD105: 3.675078396
A106: Average volumetric charge $/GJ | C106: 4.049863187 | D106: 4.189938821 | E106: 4.485318003 | F106: 4.691642904 | G106: =F106*G96/F96 -> 5.364001943 | H106: 5.702318947 | I106: 5.788527675 | J106: 5.897873167 | K106: 5.854456206 | L106: 5.919128085 | M106: 6.049971261 | N106: 6.104786559 | O106: 6.227848429 | P106: 6.41216998 | Q106: 6.588983875 | R106: 6.569256038 | S106: 6.639376693 | T106: 6.764459692 | U106: 6.80838417 | V106: 6.802040473 | W106: 6.818194657 | X106: 6.838820416 | Y106: 6.867718043 | Z106: 6.904058945 | AA106: 6.932148963 | AB106: 6.998844518 | AC106: 7.065444865 | AD106: 7.159381917 | AE106: 7.257658528 | AF106: 7.038738639 | AG106: 7.118181524 | AH106: 7.226806866 | AI106: 7.331155117 | AJ106: 7.46253744 | AK106: 7.581485235 | AL106: 7.750885804 | AM106: 7.915063851 | AN106: 8.133910666 | AO106: 8.342253641 | AP106: 8.616133329 | AQ106: 8.978282916 | AR106: 9.470615671 | AS106: 9.984305062 | AT106: 10.70242186 | AU106: 11.56181046 | AV106: 12.94838475 | AW106: 14.49814188 | AX106: 17.01213061 | AY106: 19.96687982 | AZ106: 23.05613324 | BA106: 26.73831196 | BB106: 31.17546654 | BC106: 36.80639887 | BD106: 45.484351
A107: Commercial B2
A108: Daily supply charge | C108: 0.6564818617 | D108: 0.6793155373 | E108: 0.7287063655 | F108: 0.7633199179 | G108: =F108*G97/F97 -> 0.8711724248 | H108: 0.9200220502 | I108: 0.926721594 | J108: 0.9428860943 | K108: 0.9362636309 | L108: 0.9521729686 | M108: 0.9782360836 | N108: 0.9902021866 | O108: 1.011455962 | P108: 1.03889236 | Q108: 1.060537547 | R108: 1.055466684 | S108: 1.062219398 | T108: 1.074002002 | U108: 1.071689439 | V108: 1.053688701 | W108: 1.038167421 | X108: 1.021424601 | Y108: 1.004693182 | Z108: 0.9876726578 | AA108: 0.9687171881 | AB108: 0.9542186107 | AC108: 0.9380681935 | AD108: 0.9241722793 | AE108: 0.9091313925 | AF108: 0.8568493253 | AG108: 0.8413236583 | AH108: 0.8279982945 | AI108: 0.8148940867 | AJ108: 0.8034166064 | AK108: 0.790278346 | AL108: 0.780151807 | AM108: 0.7679292026 | AN108: 0.7592580243 | AO108: 0.7474664126 | AP108: 0.7400306568 | AQ108: 0.7414430141 | AR108: 0.7482708704 | AS108: 0.7530449912 | AT108: 0.7650314139 | AU108: 0.7777754438 | AV108: 0.8085466358 | AW108: 0.8386753473 | AX108: 0.8898648395 | AY108: 0.9402034315 | AZ108: 0.9872113337 | BA108: 1.03969911 | BB108: 1.097967798 | BC108: 1.172526373 | BD108: 1.309873757
A109: Average volumetric charge $/GJ | C109: 4.553632728 | D109: 4.717642483 | E109: 5.086432336 | F109: 5.339998359 | G109: =F109*G97/F97 -> 6.094507965 | H109: 6.436247926 | I109: 6.483116286 | J109: 6.596199153 | K109: 6.549870029 | L109: 6.661167842 | M109: 6.843498982 | N109: 6.927210895 | O109: 7.075897077 | P109: 7.267835373 | Q109: 7.419259774 | R109: 7.38378526 | S109: 7.431025586 | T109: 7.513453786 | U109: 7.497275665 | V109: 7.371346929 | W109: 7.262763875 | X109: 7.145635227 | Y109: 7.028586332 | Z109: 6.909514934 | AA109: 6.776907131 | AB109: 6.67547865 | AC109: 6.562494305 | AD109: 6.465281908 | AE109: 6.360059564 | AF109: 5.994307084 | AG109: 5.885693337 | AH109: 5.79247237 | AI109: 5.700798556 | AJ109: 5.620504927 | AK109: 5.52859289 | AL109: 5.457750115 | AM109: 5.372243781 | AN109: 5.311582351 | AO109: 5.229091136 | AP109: 5.177072418 | AQ109: 5.186952922 | AR109: 5.234718925 | AS109: 5.2681175 | AT109: 5.351971564 | AU109: 5.441125662 | AV109: 5.656393351 | AW109: 5.867166405 | AX109: 6.225275499 | AY109: 6.577431905 | AZ109: 6.906287624 | BA109: 7.273479196 | BB109: 7.681112598 | BC109: 8.202706047 | BD109: 9.163554561
A110: Commercial B1
A111: Daily supply charge | C111: 0.3941136208 | D111: 0.4078302533 | E111: 0.4374811773 | F111: 0.4582615332 | G111: =F111*G98/F98 -> 0.5179882873 | H111: 0.547033667 | I111: 0.5510171324 | J111: 0.5606283431 | K111: 0.5566907088 | L111: 0.5661502031 | M111: 0.5816470071 | N111: 0.5887619031 | O111: 0.6013991334 | P111: 0.6177124748 | Q111: 0.6305824336 | R111: 0.6275673612 | S111: 0.6315824409 | T111: 0.6385882308 | U111: 0.6372132097 | V111: 0.6265101946 | W111: 0.6172814348 | X111: 0.6073263624 | Y111: 0.5973780685 | Z111: 0.5872578767 | AA111: 0.5759871902 | AB111: 0.5673665164 | AC111: 0.5577636793 | AD111: 0.5495013416 | AE111: 0.5405582174 | AF111: 0.5094719505 | AG111: 0.5002405821 | AH111: 0.4923174865 | AI111: 0.4845258875 | AJ111: 0.4777015205 | AK111: 0.4698896743 | AL111: 0.4638685602 | AM111: 0.4566011517 | AN111: 0.4514453769 | AO111: 0.4444342312 | AP111: 0.4400130233 | AQ111: 0.4408527934 | AR111: 0.4449125518 | AS111: 0.4477511847 | AT111: 0.4548781625 | AU111: 0.4624556042 | AV111: 0.4807517722 | AW111: 0.4986659293 | AX111: 0.5291025646 | AY111: 0.5590332652 | AZ111: 0.5869835791 | BA111: 0.6181921582 | BB111: 0.6528379949 | BC111: 0.6971695962 | BD111: 0.7788346427
A112: Average volumetric charge $/GJ | C112: 3.562540525 | D112: 3.699666624 | E112: 3.965113162 | F112: 4.153456037 | G112: =F112*G98/F98 -> 4.694789816 | H112: 4.958042781 | I112: 4.994146942 | J112: 5.081258206 | K112: 5.045569435 | L112: 5.131305616 | M112: 5.271760988 | N112: 5.336246889 | O112: 5.450784498 | P112: 5.598640561 | Q112: 5.715287507 | R112: 5.687960381 | S112: 5.724351079 | T112: 5.787848096 | U112: 5.775385584 | V112: 5.678378745 | W112: 5.594733828 | X112: 5.504505972 | Y112: 5.414339553 | Z112: 5.322615137 | AA112: 5.220463205 | AB112: 5.142329679 | AC112: 5.055294309 | AD112: 4.980408564 | AE112: 4.899352506 | AF112: 4.617601948 | AG112: 4.533933387 | AH112: 4.462122365 | AI112: 4.391503163 | AJ112: 4.329650473 | AK112: 4.25884776 | AL112: 4.204275358 | AM112: 4.138407159 | AN112: 4.091677765 | AO112: 4.028132206 | AP112: 3.988060563 | AQ112: 3.995671824 | AR112: 4.032467467 | AS112: 4.058195433 | AT112: 4.122790837 | AU112: 4.191469023 | AV112: 4.357296447 | AW112: 4.519661513 | AX112: 4.795524131 | AY112: 5.066801208 | AZ112: 5.320129039 | BA112: 5.602988175 | BB112: 5.917000914 | BC112: 6.318800637 | BD112: 7.058972255
A113: Industrial A1
A114: Daily supply charge | C114: 0.5812517326 | D114: 0.5619244412 | E114: 0.5746551555 | F114: 0.6309659431 | G114: =F114*G99/F99 -> 0.7011185613 | H114: 0.7453393377 | I114: 0.7566075178 | J114: 0.7708998604 | K114: 0.7652249115 | L114: 0.7736780506 | M114: 0.7907803151 | N114: 0.7979451191 | O114: 0.8140303036 | P114: 0.8381226255 | Q114: 0.8612336357 | R114: 0.8586550473 | S114: 0.8678203856 | T114: 0.8841697482 | U114: 0.8899110337 | V114: 0.889081861 | W114: 0.891193344 | X114: 0.893889298 | Y114: 0.8976664522 | Z114: 0.9024165028 | AA114: 0.906088096 | AB114: 0.9148057461 | AC114: 0.9235109516 | AD114: 0.9357892862 | AE114: 0.9486348364 | AF114: 0.9200202312 | AG114: 0.9304040607 | AH114: 0.9446022739 | AI114: 0.9582414367 | AJ114: 0.9754141719 | AK114: 0.9909616135 | AL114: 1.013103642 | AM114: 1.034563044 | AN114: 1.063168098 | AO114: 1.090400215 | AP114: 1.126198511 | AQ114: 1.1735344 | AR114: 1.237886284 | AS114: 1.305029654 | AT114: 1.398893345 | AU114: 1.511222405 | AV114: 1.692458911 | AW114: 1.895024738 | AX114: 2.223623456 | AY114: 2.609833144 | AZ114: 3.013623623 | BA114: 3.494914247 | BB114: 4.074886341 | BC114: 4.810894868 | BD114: 5.945173599
A115: Average volumetric charge $/GJ | C115: 0.1348207712 | D115: 0.1477956152 | E115: 0.159838144 | F115: 0.168039367 | G115: =F115*G99/F99 -> 0.1867224697 | H115: 0.1984993831 | I115: 0.2015003341 | J115: 0.2053066825 | K115: 0.2037953254 | L115: 0.2060465724 | M115: 0.2106012615 | N115: 0.2125093979 | O115: 0.2167932175 | P115: 0.2232095044 | Q115: 0.2293644475 | R115: 0.2286777157 | S115: 0.2311186362 | T115: 0.2354728118 | U115: 0.2370018357 | V115: 0.2367810097 | W115: 0.2373433416 | X115: 0.2380613303 | Y115: 0.2390672651 | Z115: 0.2403323024 | AA115: 0.2413101241 | AB115: 0.2436318159 | AC115: 0.2459501933 | AD115: 0.2492201695 | AE115: 0.2526412069 | AF115: 0.2450205418 | AG115: 0.2477859718 | AH115: 0.2515672516 | AI115: 0.2551996446 | AJ115: 0.2597731015 | AK115: 0.2639137089 | AL115: 0.269810592 | AM115: 0.2755256777 | AN115: 0.283143799 | AO115: 0.2903962787 | AP115: 0.2999301104 | AQ115: 0.3125366429 | AR115: 0.3296748895 | AS115: 0.3475565668 | AT115: 0.3725544217 | AU115: 0.402469989 | AV115: 0.4507370438 | AW115: 0.5046845411 | AX115: 0.5921972209 | AY115: 0.6950529014 | AZ115: 0.8025907125 | BA115: 0.930768426 | BB115: 1.085227069 | BC115: 1.281241463 | BD115: 1.583323504
A116: Industrial A2
A117: Daily supply charge | C117: 51.73850787 | D117: 53.53900068 | E117: 57.43151266 | F117: 60.15950951 | G117: =F117*G100/F100 -> 69.21900186 | H117: 73.10034867 | I117: 73.63266089 | J117: 74.9170112 | K117: 74.3908234 | L117: 75.65489977 | M117: 77.72574448 | N117: 78.67651115 | O117: 80.36522977 | P117: 82.54518873 | Q117: 84.26500697 | R117: 83.86210152 | S117: 84.39863839 | T117: 85.33482516 | U117: 85.15108048 | V117: 83.72083189 | W117: 82.48758867 | X117: 81.15728799 | Y117: 79.82789311 | Z117: 78.47552745 | AA117: 76.96942067 | AB117: 75.81743625 | AC117: 74.53420491 | AD117: 73.4301051 | AE117: 72.2350315 | AF117: 68.08096004 | AG117: 66.84736822 | AH117: 65.78860148 | AI117: 64.7474067 | AJ117: 63.83546355 | AK117: 62.79156312 | AL117: 61.986959 | AM117: 61.01581201 | AN117: 60.32684356 | AO117: 59.3899411 | AP117: 58.79913315 | AQ117: 58.911352 | AR117: 59.45385929 | AS117: 59.83318705 | AT117: 60.78556822 | AU117: 61.79814507 | AV117: 64.24307001 | AW117: 66.63694668 | AX117: 70.70420759 | AY117: 74.70386024 | AZ117: 78.43887294 | BA117: 82.60928904 | BB117: 87.23902738 | BC117: 93.16307869 | BD117: 104.0760146
A118: Average volumetric charge $/GJ | C118: 1.35343836 | D118: 1.399124813 | E118: 1.499730135 | F118: 1.570967316 | G118: =F118*G100/F100 -> 1.80754116 | H118: 1.908896191 | I118: 1.922796655 | J118: 1.956335366 | K118: 1.942594831 | L118: 1.97560412 | M118: 2.029680847 | N118: 2.054508565 | O118: 2.098606693 | P118: 2.155532761 | Q118: 2.200443005 | R118: 2.189921787 | S118: 2.203932571 | T118: 2.228379559 | U118: 2.223581367 | V118: 2.186232761 | W118: 2.154028629 | X118: 2.11929 | Y118: 2.084575024 | Z118: 2.049260204 | AA118: 2.009930686 | AB118: 1.979848495 | AC118: 1.946339005 | AD118: 1.917507242 | AE118: 1.886299847 | AF118: 1.777823057 | AG118: 1.745609822 | AH118: 1.717961858 | AI118: 1.690772757 | AJ118: 1.666958851 | AK118: 1.639699097 | AL118: 1.618688174 | AM118: 1.593328257 | AN118: 1.575336972 | AO118: 1.550871294 | AP118: 1.53544331 | AQ118: 1.538373722 | AR118: 1.552540414 | AS118: 1.562445938 | AT118: 1.587315817 | AU118: 1.613757607 | AV118: 1.677602828 | AW118: 1.740115007 | AX118: 1.846324881 | AY118: 1.950769276 | AZ118: 2.048303032 | BA118: 2.157206636 | BB118: 2.278104689 | BC118: 2.432801612 | BD118: 2.717775107
A120: Share of total cost (adjusted revenue) | C120: 2021 | D120: =C120+1 -> 2022 | E120: =D120+1 -> 2023 | F120: =E120+1 -> 2024 | G120: =F120+1 -> 2025 | H120: =G120+1 -> 2026 | I120: =H120+1 -> 2027 | J120: =I120+1 -> 2028 | K120: =J120+1 -> 2029 | L120: =K120+1 -> 2030 | M120: =L120+1 -> 2031 | N120: =M120+1 -> 2032 | O120: =N120+1 -> 2033 | P120: =O120+1 -> 2034 | Q120: =P120+1 -> 2035 | R120: =Q120+1 -> 2036 | S120: =R120+1 -> 2037 | T120: =S120+1 -> 2038 | U120: =T120+1 -> 2039 | V120: =U120+1 -> 2040 | W120: =V120+1 -> 2041 | X120: =W120+1 -> 2042 | Y120: =X120+1 -> 2043 | Z120: =Y120+1 -> 2044 | AA120: =Z120+1 -> 2045 | AB120: =AA120+1 -> 2046 | AC120: =AB120+1 -> 2047 | AD120: =AC120+1 -> 2048 | AE120: =AD120+1 -> 2049 | AF120: =AE120+1 -> 2050 | AG120: =AF120+1 -> 2051 | AH120: =AG120+1 -> 2052 | AI120: =AH120+1 -> 2053 | AJ120: =AI120+1 -> 2054 | AK120: =AJ120+1 -> 2055 | AL120: =AK120+1 -> 2056 | AM120: =AL120+1 -> 2057 | AN120: =AM120+1 -> 2058 | AO120: =AN120+1 -> 2059 | AP120: =AO120+1 -> 2060 | AQ120: =AP120+1 -> 2061 | AR120: =AQ120+1 -> 2062 | AS120: =AR120+1 -> 2063 | AT120: =AS120+1 -> 2064 | AU120: =AT120+1 -> 2065 | AV120: =AU120+1 -> 2066 | AW120: =AV120+1 -> 2067 | AX120: =AW120+1 -> 2068 | AY120: =AX120+1 -> 2069 | AZ120: =AY120+1 -> 2070 | BA120: =AZ120+1 -> 2071 | BB120: =BA120+1 -> 2072 | BC120: =BB120+1 -> 2073 | BD120: =BC120+1 -> 2074 | BF120: Sum of costs | BG120: Sum of volume
A121: Residential B3 | B121: 0.8187442046 | C121: =$B121*C$65 -> 153.5851099 | D121: =$B121*D$65 -> 155.1569166 | E121: 156.4531932 | F121: 157.4023072 | G121: 213.4269693 | H121: 213.1689671 | I121: 212.4452637 | J121: 211.495258 | K121: 211.4908436 | L121: 209.0033236 | M121: 205.9886694 | N121: 203.9744469 | O121: 201.7197861 | P121: 197.4458451 | Q121: 193.3219182 | R121: 193.9490579 | S121: 191.6250091 | T121: 187.6715136 | U121: 185.2776133 | V121: 179.5345186 | W121: 174.9656933 | X121: 170.3413917 | Y121: 165.6628927 | Z121: 160.9563871 | AA121: 156.4442785 | AB121: 151.4759585 | AC121: 146.5471249 | AD121: 141.2192623 | AE121: 135.9890015 | AF121: 131.1008353 | AG121: 126.3990966 | AH121: 121.4528976 | AI121: 116.7113071 | AJ121: 111.6786932 | AK121: 107.1193103 | AL121: 102.2125927 | AM121: 97.62179819 | AN121: 92.64306 | AO121: 88.02738782 | AP121: 83.22852043 | AQ121: 77.9553285 | AR121: 72.27950322 | AS121: 67.12191494 | AT121: 61.46267556 | AU121: 71.75872855 | AV121: 35.4699203 | AW121: 34.48423631 | AX121: 33.55946319 | AY121: 32.72010721 | AZ121: 31.96210967 | BA121: 31.27061107 | BB121: 30.64026532 | BC121: 30.06507981 | BD121: 29.53988697 | BF121: =SUM(G121:BD121) -> 6433.626324 | BG121: =SUM(G33:BD33) -> 288225.0985
A122: Commercial B2 | B122: 0.05641177407 | C122: =$B122*C$65 -> 10.58207004 | D122: 10.6903681 | E122: 10.77968203 | F122: 10.84507633 | G122: 14.70519597 | H122: 14.68741952 | I122: 14.63755609 | J122: 14.57210035 | K122: 14.5717962 | L122: 14.40040516 | M122: 14.19269439 | N122: 14.05391373 | O122: 13.89856677 | P122: 13.60409068 | Q122: 13.31995062 | R122: 13.36316077 | S122: 13.20303296 | T122: 12.93063568 | U122: 12.76569507 | V122: 12.36999376 | W122: 12.05520003 | X122: 11.73658396 | Y122: 11.41423368 | Z122: 11.08995373 | AA122: 10.7790678 | AB122: 10.43674874 | AC122: 10.09715031 | AD122: 9.730058639 | AE122: 9.369691764 | AF122: 9.032895331 | AG122: 8.708943817 | AH122: 8.368148906 | AI122: 8.041451589 | AJ122: 7.694702658 | AK122: 7.380559519 | AL122: 7.042484886 | AM122: 6.726177471 | AN122: 6.383140595 | AO122: 6.0651191 | AP122: 5.734475388 | AQ122: 5.371150542 | AR122: 4.980084112 | AS122: 4.6247244 | AT122: 4.234800745 | AU122: 4.944202548 | AV122: 2.443890435 | AW122: 2.375976449 | AX122: 2.312259244 | AY122: 2.25442731 | AZ122: 2.202201004 | BA122: 2.154556499 | BB122: 2.111125446 | BC122: 2.071494955 | BD122: 2.035308978 | BF122: =SUM(G122:BD122) -> 443.2791983 | BG122: =SUM(G34:BD34) -> 47756.12081
A123: Commercial B1 | B123: 0.05641177407 | C123: 10.58207004 | D123: 10.6903681 | E123: 10.77968203 | F123: 10.84507633 | G123: 14.70519597 | H123: 14.68741952 | I123: 14.63755609 | J123: 14.57210035 | K123: 14.5717962 | L123: 14.40040516 | M123: 14.19269439 | N123: 14.05391373 | O123: 13.89856677 | P123: 13.60409068 | Q123: 13.31995062 | R123: 13.36316077 | S123: 13.20303296 | T123: 12.93063568 | U123: 12.76569507 | V123: 12.36999376 | W123: 12.05520003 | X123: 11.73658396 | Y123: 11.41423368 | Z123: 11.08995373 | AA123: 10.7790678 | AB123: 10.43674874 | AC123: 10.09715031 | AD123: 9.730058639 | AE123: 9.369691764 | AF123: 9.032895331 | AG123: 8.708943817 | AH123: 8.368148906 | AI123: 8.041451589 | AJ123: 7.694702658 | AK123: 7.380559519 | AL123: 7.042484886 | AM123: 6.726177471 | AN123: 6.383140595 | AO123: 6.0651191 | AP123: 5.734475388 | AQ123: 5.371150542 | AR123: 4.980084112 | AS123: 4.6247244 | AT123: 4.234800745 | AU123: 4.944202548 | AV123: 2.443890435 | AW123: 2.375976449 | AX123: 2.312259244 | AY123: 2.25442731 | AZ123: 2.202201004 | BA123: 2.154556499 | BB123: 2.111125446 | BC123: 2.071494955 | BD123: 2.035308978 | BF123: 443.2791983 | BG123: 74401.5309
A124: Industrial A1 | B124: 0.04283942027 | C124: 8.036083836 | D124: 8.118325993 | E124: 8.186151498 | F124: 8.2358123 | G124: 11.16720898 | H124: 11.15370945 | I124: 11.11584287 | J124: 11.06613542 | K124: 11.06590445 | L124: 10.93574912 | M124: 10.77801238 | N124: 10.67262157 | O124: 10.55465021 | P124: 10.3310234 | Q124: 10.11524583 | R124: 10.14805986 | S124: 10.0264579 | T124: 9.819597863 | U124: 9.694341035 | V124: 9.39384322 | W124: 9.154787081 | X124: 8.912828239 | Y124: 8.668033608 | Z124: 8.421773579 | AA124: 8.185685052 | AB124: 7.925726018 | AC124: 7.667833049 | AD124: 7.389061559 | AE124: 7.115396916 | AF124: 6.8596318 | AG124: 6.613621188 | AH124: 6.354819606 | AI124: 6.106723815 | AJ124: 5.843400716 | AK124: 5.60483864 | AL124: 5.348102851 | AM124: 5.107897211 | AN124: 4.847393068 | AO124: 4.605885746 | AP124: 4.354793041 | AQ124: 4.078882099 | AR124: 3.78190404 | AS124: 3.512041865 | AT124: 3.215931636 | AU124: 3.754655377 | AV124: 1.855904218 | AW124: 1.804329953 | AX124: 1.755942747 | AY124: 1.71202485 | AZ124: 1.672363897 | BA124: 1.63618239 | BB124: 1.603200604 | BC124: 1.573104984 | BD124: 1.545625148 | BF124: 336.6287302 | BG124: 386026.4653
A125: Industrial A2 | B125: 0.02635447004 | C125: 4.943734752 | D125: 4.994329471 | E125: 5.036055182 | F125: 5.066606112 | G125: 6.869977996 | H125: 6.86167319 | I125: 6.838377976 | J125: 6.807798345 | K125: 6.807656252 | L125: 6.727585734 | M125: 6.630547349 | N125: 6.565711758 | O125: 6.49313672 | P125: 6.35556329 | Q125: 6.222818646 | R125: 6.243005577 | S125: 6.168197017 | T125: 6.040938372 | U125: 5.963881369 | V125: 5.779017507 | W125: 5.631952075 | X125: 5.483100924 | Y125: 5.332505217 | Z125: 5.181008009 | AA125: 5.035768228 | AB125: 4.875843501 | AC125: 4.717189802 | AD125: 4.545691802 | AE125: 4.377335494 | AF125: 4.219990832 | AG125: 4.068647064 | AH125: 3.909434392 | AI125: 3.756807838 | AJ125: 3.594813566 | AK125: 3.448052077 | AL125: 3.290110265 | AM125: 3.142337669 | AN125: 2.982077596 | AO125: 2.833504216 | AP125: 2.679033984 | AQ125: 2.50929577 | AR125: 2.326597235 | AS125: 2.160580175 | AT125: 1.978415521 | AU125: 2.309834074 | AV125: 1.141737489 | AW125: 1.110009412 | AX125: 1.080241988 | AY125: 1.053224048 | AZ125: 1.028824946 | BA125: 1.006566371 | BB125: 0.9862762385 | BC125: 0.9677616533 | BD125: 0.9508562771 | BF125: 207.0913128 | BG125: 62375.42632
A126: ATCO | B126: =SUM(B121:B125) -> 1.000761643 | C126: 187.7290686 | D126: 189.6503083 | E126: 191.234764 | F126: 192.3948783 | G126: 260.8745483 | H126: 260.5591888 | I126: =$B126*I$65 -> 259.6745967 | J126: 258.5133925 | K126: 258.5079967 | L126: 255.4674688 | M126: 251.7826179 | N126: 249.3206077 | O126: 246.5647066 | P126: 241.3406132 | Q126: 236.299884 | R126: 237.0664449 | S126: 234.2257299 | T126: 229.3933212 | U126: 226.4672258 | V126: 219.4473669 | W126: 213.8628325 | X126: 208.2104888 | Y126: 202.4918989 | Z126: 196.7390761 | AA126: 191.2238674 | AB126: 185.1510255 | AC126: 179.1264483 | AD126: 172.614133 | AE126: 166.2211175 | AF126: 160.2462486 | AG126: 154.4992525 | AH126: 148.4534494 | AI126: 142.6577419 | AJ126: 136.5063128 | AK126: 130.9333201 | AL126: 124.9357756 | AM126: 119.324388 | AN126: 113.2388119 | AO126: 107.597016 | AP126: 101.7312982 | AQ126: 95.28580745 | AR126: 88.34817272 | AS126: 82.04398578 | AT126: 75.12662421 | AU126: 87.7116231 | AV126: 43.35534288 | AW126: 42.15052858 | AX126: 41.02016641 | AY126: 39.99421072 | AZ126: 39.06770053 | BA126: 38.22247283 | BB126: 37.45199305 | BC126: 36.74893635 | BD126: 36.10698635 | BF126: 7863.904763 | BG126: 858784.6418
A128: Adjusted average tariff by tariff class | B128: Average tariff adjusted
A129: Residential B3 | B129: =BF121*1000/BG121 -> 22.32153396 | C129: =C121*1000/C33 -> 14.67091616 | D129: 15.39440705 | E129: 15.24839762 | F129: 15.50075449 | G129: =B129 -> 22.32153396 | H129: =G129 -> 22.32153396 | I129: =H129 -> 22.32153396 | J129: 22.32153396 | K129: 22.32153396 | L129: 22.32153396 | M129: 22.32153396 | N129: 22.32153396 | O129: 22.32153396 | P129: 22.32153396 | Q129: 22.32153396 | R129: 22.32153396 | S129: 22.32153396 | T129: 22.32153396 | U129: 22.32153396 | V129: 22.32153396 | W129: 22.32153396 | X129: 22.32153396 | Y129: 22.32153396 | Z129: 22.32153396 | AA129: 22.32153396 | AB129: 22.32153396 | AC129: 22.32153396 | AD129: 22.32153396 | AE129: 22.32153396 | AF129: 22.32153396 | AG129: 22.32153396 | AH129: 22.32153396 | AI129: 22.32153396 | AJ129: 22.32153396 | AK129: 22.32153396 | AL129: 22.32153396 | AM129: 22.32153396 | AN129: 22.32153396 | AO129: 22.32153396 | AP129: 22.32153396 | AQ129: 22.32153396 | AR129: 22.32153396 | AS129: 22.32153396 | AT129: 22.32153396 | AU129: 22.32153396 | AV129: 22.32153396 | AW129: 22.32153396 | AX129: 22.32153396 | AY129: 22.32153396 | AZ129: 22.32153396 | BA129: 22.32153396 | BB129: 22.32153396 | BC129: 22.32153396 | BD129: 22.32153396
A130: Commercial B2 | B130: =BF122*1000/BG122 -> 9.282144168 | C130: =C122*1000/C34 -> 8.054103417 | D130: 8.013989588 | E130: 8.11535431 | F130: 8.225929759 | G130: =B130 -> 9.282144168 | H130: =G130 -> 9.282144168 | I130: 9.282144168 | J130: 9.282144168 | K130: 9.282144168 | L130: 9.282144168 | M130: 9.282144168 | N130: 9.282144168 | O130: 9.282144168 | P130: 9.282144168 | Q130: 9.282144168 | R130: 9.282144168 | S130: 9.282144168 | T130: 9.282144168 | U130: 9.282144168 | V130: 9.282144168 | W130: 9.282144168 | X130: 9.282144168 | Y130: 9.282144168 | Z130: 9.282144168 | AA130: 9.282144168 | AB130: 9.282144168 | AC130: 9.282144168 | AD130: 9.282144168 | AE130: 9.282144168 | AF130: 9.282144168 | AG130: 9.282144168 | AH130: 9.282144168 | AI130: 9.282144168 | AJ130: 9.282144168 | AK130: 9.282144168 | AL130: 9.282144168 | AM130: 9.282144168 | AN130: 9.282144168 | AO130: 9.282144168 | AP130: 9.282144168 | AQ130: 9.282144168 | AR130: 9.282144168 | AS130: 9.282144168 | AT130: 9.282144168 | AU130: 9.282144168 | AV130: 9.282144168 | AW130: 9.282144168 | AX130: 9.282144168 | AY130: 9.282144168 | AZ130: 9.282144168 | BA130: 9.282144168 | BB130: 9.282144168 | BC130: 9.282144168 | BD130: 9.282144168
A131: Commercial B1 | B131: =BF123*1000/BG123 -> 5.957931146 | C131: =C123*1000/C35 -> 5.140957813 | D131: 5.218138397 | E131: 5.315245931 | F131: 5.331177674 | G131: 5.957931146 | H131: 5.957931146 | I131: 5.957931146 | J131: 5.957931146 | K131: 5.957931146 | L131: 5.957931146 | M131: 5.957931146 | N131: 5.957931146 | O131: 5.957931146 | P131: 5.957931146 | Q131: 5.957931146 | R131: 5.957931146 | S131: 5.957931146 | T131: 5.957931146 | U131: 5.957931146 | V131: 5.957931146 | W131: 5.957931146 | X131: 5.957931146 | Y131: 5.957931146 | Z131: 5.957931146 | AA131: 5.957931146 | AB131: 5.957931146 | AC131: 5.957931146 | AD131: 5.957931146 | AE131: 5.957931146 | AF131: 5.957931146 | AG131: 5.957931146 | AH131: 5.957931146 | AI131: 5.957931146 | AJ131: 5.957931146 | AK131: 5.957931146 | AL131: 5.957931146 | AM131: 5.957931146 | AN131: 5.957931146 | AO131: 5.957931146 | AP131: 5.957931146 | AQ131: 5.957931146 | AR131: 5.957931146 | AS131: 5.957931146 | AT131: 5.957931146 | AU131: 5.957931146 | AV131: 5.957931146 | AW131: 5.957931146 | AX131: 5.957931146 | AY131: 5.957931146 | AZ131: 5.957931146 | BA131: 5.957931146 | BB131: 5.957931146 | BC131: 5.957931146 | BD131: 5.957931146
A132: Industrial A1 | B132: =BF124*1000/BG124 -> 0.8720353666 | C132: =C124*1000/C36 -> 0.6508787096 | D132: 0.6575575356 | E132: 0.6667272094 | F132: 0.6230764419 | G132: 0.8720353666 | H132: 0.8720353666 | I132: 0.8720353666 | J132: 0.8720353666 | K132: 0.8720353666 | L132: 0.8720353666 | M132: 0.8720353666 | N132: 0.8720353666 | O132: 0.8720353666 | P132: 0.8720353666 | Q132: 0.8720353666 | R132: 0.8720353666 | S132: 0.8720353666 | T132: 0.8720353666 | U132: 0.8720353666 | V132: 0.8720353666 | W132: 0.8720353666 | X132: 0.8720353666 | Y132: 0.8720353666 | Z132: 0.8720353666 | AA132: 0.8720353666 | AB132: 0.8720353666 | AC132: 0.8720353666 | AD132: 0.8720353666 | AE132: 0.8720353666 | AF132: 0.8720353666 | AG132: 0.8720353666 | AH132: 0.8720353666 | AI132: 0.8720353666 | AJ132: 0.8720353666 | AK132: 0.8720353666 | AL132: 0.8720353666 | AM132: 0.8720353666 | AN132: 0.8720353666 | AO132: 0.8720353666 | AP132: 0.8720353666 | AQ132: 0.8720353666 | AR132: 0.8720353666 | AS132: 0.8720353666 | AT132: 0.8720353666 | AU132: 0.8720353666 | AV132: 0.8720353666 | AW132: 0.8720353666 | AX132: 0.8720353666 | AY132: 0.8720353666 | AZ132: 0.8720353666 | BA132: 0.8720353666 | BB132: 0.8720353666 | BC132: 0.8720353666 | BD132: 0.8720353666
A133: Industrial A2 | B133: =BF125*1000/BG125 -> 3.320078516 | C133: =C125*1000/C37 -> 2.685897411 | D133: 2.821625 | E133: 2.863130363 | F133: 2.918512255 | G133: 3.320078516 | H133: 3.320078516 | I133: 3.320078516 | J133: 3.320078516 | K133: 3.320078516 | L133: 3.320078516 | M133: 3.320078516 | N133: 3.320078516 | O133: 3.320078516 | P133: 3.320078516 | Q133: 3.320078516 | R133: 3.320078516 | S133: 3.320078516 | T133: 3.320078516 | U133: 3.320078516 | V133: 3.320078516 | W133: 3.320078516 | X133: 3.320078516 | Y133: 3.320078516 | Z133: 3.320078516 | AA133: 3.320078516 | AB133: 3.320078516 | AC133: 3.320078516 | AD133: 3.320078516 | AE133: 3.320078516 | AF133: 3.320078516 | AG133: 3.320078516 | AH133: 3.320078516 | AI133: 3.320078516 | AJ133: 3.320078516 | AK133: 3.320078516 | AL133: 3.320078516 | AM133: 3.320078516 | AN133: 3.320078516 | AO133: 3.320078516 | AP133: 3.320078516 | AQ133: 3.320078516 | AR133: 3.320078516 | AS133: 3.320078516 | AT133: 3.320078516 | AU133: 3.320078516 | AV133: 3.320078516 | AW133: 3.320078516 | AX133: 3.320078516 | AY133: 3.320078516 | AZ133: 3.320078516 | BA133: 3.320078516 | BB133: 3.320078516 | BC133: 3.320078516 | BD133: 3.320078516
A136: Adjusted tariffs | C136: 2021 | D136: 2022 | E136: =D136+1 -> 2023 | F136: =E136+1 -> 2024 | G136: =F136+1 -> 2025 | H136: =G136+1 -> 2026 | I136: =H136+1 -> 2027 | J136: =I136+1 -> 2028 | K136: =J136+1 -> 2029 | L136: =K136+1 -> 2030 | M136: =L136+1 -> 2031 | N136: =M136+1 -> 2032 | O136: =N136+1 -> 2033 | P136: =O136+1 -> 2034 | Q136: =P136+1 -> 2035 | R136: =Q136+1 -> 2036 | S136: =R136+1 -> 2037 | T136: =S136+1 -> 2038 | U136: =T136+1 -> 2039 | V136: =U136+1 -> 2040 | W136: =V136+1 -> 2041 | X136: =W136+1 -> 2042 | Y136: =X136+1 -> 2043 | Z136: =Y136+1 -> 2044 | AA136: =Z136+1 -> 2045 | AB136: =AA136+1 -> 2046 | AC136: =AB136+1 -> 2047 | AD136: =AC136+1 -> 2048 | AE136: =AD136+1 -> 2049 | AF136: =AE136+1 -> 2050 | AG136: =AF136+1 -> 2051 | AH136: =AG136+1 -> 2052 | AI136: =AH136+1 -> 2053 | AJ136: =AI136+1 -> 2054 | AK136: =AJ136+1 -> 2055 | AL136: =AK136+1 -> 2056 | AM136: =AL136+1 -> 2057 | AN136: =AM136+1 -> 2058 | AO136: =AN136+1 -> 2059 | AP136: =AO136+1 -> 2060 | AQ136: =AP136+1 -> 2061 | AR136: =AQ136+1 -> 2062 | AS136: =AR136+1 -> 2063 | AT136: =AS136+1 -> 2064 | AU136: =AT136+1 -> 2065 | AV136: =AU136+1 -> 2066 | AW136: =AV136+1 -> 2067 | AX136: =AW136+1 -> 2068 | AY136: =AX136+1 -> 2069 | AZ136: =AY136+1 -> 2070 | BA136: =AZ136+1 -> 2071 | BB136: =BA136+1 -> 2072 | BC136: =BB136+1 -> 2073 | BD136: =BC136+1 -> 2074
A137: Residential B3
A138: Daily supply charge | C138: 0.3275017112 | D138: 0.337357974 | E138: 0.361889117 | F138: 0.3790788501 | G138: =$F138*$B129/$F129 -> 0.5458844877 | H138: 0.5458844877 | I138: 0.5458844877 | J138: 0.5458844877 | K138: 0.5458844877 | L138: 0.5458844877 | M138: 0.5458844877 | N138: 0.5458844877 | O138: 0.5458844877 | P138: 0.5458844877 | Q138: 0.5458844877 | R138: 0.5458844877 | S138: 0.5458844877 | T138: 0.5458844877 | U138: 0.5458844877 | V138: 0.5458844877 | W138: 0.5458844877 | X138: 0.5458844877 | Y138: 0.5458844877 | Z138: 0.5458844877 | AA138: 0.5458844877 | AB138: 0.5458844877 | AC138: 0.5458844877 | AD138: 0.5458844877 | AE138: 0.5458844877 | AF138: 0.5458844877 | AG138: 0.5458844877 | AH138: 0.5458844877 | AI138: 0.5458844877 | AJ138: 0.5458844877 | AK138: 0.5458844877 | AL138: 0.5458844877 | AM138: =$F138*$B129/$F129 -> 0.5458844877 | AN138: 0.5458844877 | AO138: 0.5458844877 | AP138: 0.5458844877 | AQ138: 0.5458844877 | AR138: 0.5458844877 | AS138: 0.5458844877 | AT138: 0.5458844877 | AU138: 0.5458844877 | AV138: 0.5458844877 | AW138: 0.5458844877 | AX138: 0.5458844877 | AY138: 0.5458844877 | AZ138: 0.5458844877 | BA138: 0.5458844877 | BB138: 0.5458844877 | BC138: 0.5458844877 | BD138: 0.5458844877
A139: Average volumetric charge $/GJ | C139: 4.049863187 | D139: 4.189938821 | E139: 4.485318003 | F139: 4.691642904 | G139: =$F139*$B129/$F129 -> 6.756101224 | H139: 6.756101224 | I139: 6.756101224 | J139: 6.756101224 | K139: 6.756101224 | L139: 6.756101224 | M139: 6.756101224 | N139: 6.756101224 | O139: 6.756101224 | P139: 6.756101224 | Q139: 6.756101224 | R139: 6.756101224 | S139: 6.756101224 | T139: 6.756101224 | U139: 6.756101224 | V139: 6.756101224 | W139: 6.756101224 | X139: 6.756101224 | Y139: 6.756101224 | Z139: 6.756101224 | AA139: 6.756101224 | AB139: 6.756101224 | AC139: 6.756101224 | AD139: 6.756101224 | AE139: 6.756101224 | AF139: 6.756101224 | AG139: 6.756101224 | AH139: 6.756101224 | AI139: 6.756101224 | AJ139: 6.756101224 | AK139: 6.756101224 | AL139: 6.756101224 | AM139: =$F139*$B129/$F129 -> 6.756101224 | AN139: 6.756101224 | AO139: 6.756101224 | AP139: 6.756101224 | AQ139: 6.756101224 | AR139: 6.756101224 | AS139: 6.756101224 | AT139: 6.756101224 | AU139: 6.756101224 | AV139: 6.756101224 | AW139: 6.756101224 | AX139: 6.756101224 | AY139: 6.756101224 | AZ139: 6.756101224 | BA139: 6.756101224 | BB139: 6.756101224 | BC139: 6.756101224 | BD139: 6.756101224
A140: Commercial B2
A141: Daily supply charge | C141: 0.6564818617 | D141: 0.6793155373 | E141: 0.7287063655 | F141: 0.7633199179 | G141: =$F141*$B130/$F130 -> 0.8613306619 | H141: =$F141*$B130/$F130 -> 0.8613306619 | I141: 0.8613306619 | J141: 0.8613306619 | K141: 0.8613306619 | L141: 0.8613306619 | M141: 0.8613306619 | N141: 0.8613306619 | O141: 0.8613306619 | P141: 0.8613306619 | Q141: 0.8613306619 | R141: 0.8613306619 | S141: 0.8613306619 | T141: 0.8613306619 | U141: 0.8613306619 | V141: 0.8613306619 | W141: 0.8613306619 | X141: 0.8613306619 | Y141: 0.8613306619 | Z141: 0.8613306619 | AA141: 0.8613306619 | AB141: 0.8613306619 | AC141: 0.8613306619 | AD141: 0.8613306619 | AE141: 0.8613306619 | AF141: 0.8613306619 | AG141: 0.8613306619 | AH141: 0.8613306619 | AI141: 0.8613306619 | AJ141: 0.8613306619 | AK141: 0.8613306619 | AL141: 0.8613306619 | AM141: 0.8613306619 | AN141: 0.8613306619 | AO141: 0.8613306619 | AP141: 0.8613306619 | AQ141: 0.8613306619 | AR141: 0.8613306619 | AS141: 0.8613306619 | AT141: 0.8613306619 | AU141: 0.8613306619 | AV141: 0.8613306619 | AW141: 0.8613306619 | AX141: 0.8613306619 | AY141: 0.8613306619 | AZ141: 0.8613306619 | BA141: 0.8613306619 | BB141: 0.8613306619 | BC141: 0.8613306619 | BD141: 0.8613306619
A142: Average volumetric charge $/GJ | C142: 4.553632728 | D142: 4.717642483 | E142: 5.086432336 | F142: 5.339998359 | G142: =$F142*$B130/$F130 -> 6.025657412 | H142: =$F142*$B130/$F130 -> 6.025657412 | I142: 6.025657412 | J142: 6.025657412 | K142: 6.025657412 | L142: 6.025657412 | M142: 6.025657412 | N142: 6.025657412 | O142: 6.025657412 | P142: 6.025657412 | Q142: 6.025657412 | R142: 6.025657412 | S142: 6.025657412 | T142: 6.025657412 | U142: 6.025657412 | V142: 6.025657412 | W142: 6.025657412 | X142: 6.025657412 | Y142: 6.025657412 | Z142: 6.025657412 | AA142: 6.025657412 | AB142: 6.025657412 | AC142: 6.025657412 | AD142: 6.025657412 | AE142: 6.025657412 | AF142: 6.025657412 | AG142: 6.025657412 | AH142: 6.025657412 | AI142: 6.025657412 | AJ142: 6.025657412 | AK142: 6.025657412 | AL142: 6.025657412 | AM142: 6.025657412 | AN142: 6.025657412 | AO142: 6.025657412 | AP142: 6.025657412 | AQ142: 6.025657412 | AR142: 6.025657412 | AS142: 6.025657412 | AT142: 6.025657412 | AU142: 6.025657412 | AV142: 6.025657412 | AW142: 6.025657412 | AX142: 6.025657412 | AY142: 6.025657412 | AZ142: 6.025657412 | BA142: 6.025657412 | BB142: 6.025657412 | BC142: 6.025657412 | BD142: 6.025657412
A143: Commercial B1
A144: Daily supply charge | C144: 0.3941136208 | D144: 0.4078302533 | E144: 0.4374811773 | F144: 0.4582615332 | G144: =$F144*$B131/$F131 -> 0.5121364975 | H144: =$F144*$B131/$F131 -> 0.5121364975 | I144: 0.5121364975 | J144: 0.5121364975 | K144: 0.5121364975 | L144: 0.5121364975 | M144: 0.5121364975 | N144: 0.5121364975 | O144: 0.5121364975 | P144: 0.5121364975 | Q144: 0.5121364975 | R144: 0.5121364975 | S144: 0.5121364975 | T144: 0.5121364975 | U144: 0.5121364975 | V144: 0.5121364975 | W144: 0.5121364975 | X144: 0.5121364975 | Y144: 0.5121364975 | Z144: 0.5121364975 | AA144: 0.5121364975 | AB144: 0.5121364975 | AC144: 0.5121364975 | AD144: 0.5121364975 | AE144: 0.5121364975 | AF144: 0.5121364975 | AG144: 0.5121364975 | AH144: 0.5121364975 | AI144: 0.5121364975 | AJ144: 0.5121364975 | AK144: 0.5121364975 | AL144: 0.5121364975 | AM144: 0.5121364975 | AN144: 0.5121364975 | AO144: 0.5121364975 | AP144: 0.5121364975 | AQ144: 0.5121364975 | AR144: 0.5121364975 | AS144: 0.5121364975 | AT144: 0.5121364975 | AU144: 0.5121364975 | AV144: 0.5121364975 | AW144: 0.5121364975 | AX144: 0.5121364975 | AY144: 0.5121364975 | AZ144: 0.5121364975 | BA144: 0.5121364975 | BB144: 0.5121364975 | BC144: 0.5121364975 | BD144: 0.5121364975
A145: Average volumetric charge $/GJ | C145: 3.562540525 | D145: 3.699666624 | E145: 3.965113162 | F145: 4.153456037 | G145: =$F145*$B131/$F131 -> 4.641752085 | H145: =$F145*$B131/$F131 -> 4.641752085 | I145: 4.641752085 | J145: 4.641752085 | K145: 4.641752085 | L145: 4.641752085 | M145: 4.641752085 | N145: 4.641752085 | O145: 4.641752085 | P145: 4.641752085 | Q145: 4.641752085 | R145: 4.641752085 | S145: 4.641752085 | T145: 4.641752085 | U145: 4.641752085 | V145: 4.641752085 | W145: 4.641752085 | X145: 4.641752085 | Y145: 4.641752085 | Z145: 4.641752085 | AA145: 4.641752085 | AB145: 4.641752085 | AC145: 4.641752085 | AD145: 4.641752085 | AE145: 4.641752085 | AF145: 4.641752085 | AG145: 4.641752085 | AH145: 4.641752085 | AI145: 4.641752085 | AJ145: 4.641752085 | AK145: 4.641752085 | AL145: 4.641752085 | AM145: 4.641752085 | AN145: 4.641752085 | AO145: 4.641752085 | AP145: 4.641752085 | AQ145: 4.641752085 | AR145: 4.641752085 | AS145: 4.641752085 | AT145: 4.641752085 | AU145: 4.641752085 | AV145: 4.641752085 | AW145: 4.641752085 | AX145: 4.641752085 | AY145: 4.641752085 | AZ145: 4.641752085 | BA145: 4.641752085 | BB145: 4.641752085 | BC145: 4.641752085 | BD145: 4.641752085
A146: Industrial A1
A147: Daily supply charge | C147: 0.5812517326 | D147: 0.5619244412 | E147: 0.5746551555 | F147: 0.6309659431 | G147: =$F147*$B132/$F132 -> 0.8830772286 | H147: =G147*H132/G132 -> 0.8830772286 | I147: 0.8830772286 | J147: 0.8830772286 | K147: 0.8830772286 | L147: 0.8830772286 | M147: 0.8830772286 | N147: 0.8830772286 | O147: 0.8830772286 | P147: 0.8830772286 | Q147: 0.8830772286 | R147: 0.8830772286 | S147: 0.8830772286 | T147: 0.8830772286 | U147: 0.8830772286 | V147: 0.8830772286 | W147: 0.8830772286 | X147: 0.8830772286 | Y147: 0.8830772286 | Z147: 0.8830772286 | AA147: 0.8830772286 | AB147: 0.8830772286 | AC147: 0.8830772286 | AD147: 0.8830772286 | AE147: 0.8830772286 | AF147: 0.8830772286 | AG147: 0.8830772286 | AH147: 0.8830772286 | AI147: 0.8830772286 | AJ147: 0.8830772286 | AK147: 0.8830772286 | AL147: 0.8830772286 | AM147: 0.8830772286 | AN147: 0.8830772286 | AO147: 0.8830772286 | AP147: 0.8830772286 | AQ147: 0.8830772286 | AR147: 0.8830772286 | AS147: 0.8830772286 | AT147: 0.8830772286 | AU147: 0.8830772286 | AV147: 0.8830772286 | AW147: 0.8830772286 | AX147: 0.8830772286 | AY147: 0.8830772286 | AZ147: 0.8830772286 | BA147: 0.8830772286 | BB147: 0.8830772286 | BC147: 0.8830772286 | BD147: 0.8830772286
A148: Average volumetric charge $/GJ | C148: 0.1348207712 | D148: 0.1477956152 | E148: 0.159838144 | F148: 0.168039367 | G148: =$F148*$B132/$F132 -> 0.2351818511 | H148: =$F148*$B132/$F132 -> 0.2351818511 | I148: 0.2351818511 | J148: 0.2351818511 | K148: 0.2351818511 | L148: 0.2351818511 | M148: 0.2351818511 | N148: 0.2351818511 | O148: 0.2351818511 | P148: 0.2351818511 | Q148: 0.2351818511 | R148: 0.2351818511 | S148: 0.2351818511 | T148: 0.2351818511 | U148: 0.2351818511 | V148: 0.2351818511 | W148: 0.2351818511 | X148: 0.2351818511 | Y148: 0.2351818511 | Z148: 0.2351818511 | AA148: 0.2351818511 | AB148: 0.2351818511 | AC148: 0.2351818511 | AD148: 0.2351818511 | AE148: 0.2351818511 | AF148: 0.2351818511 | AG148: 0.2351818511 | AH148: 0.2351818511 | AI148: 0.2351818511 | AJ148: 0.2351818511 | AK148: 0.2351818511 | AL148: 0.2351818511 | AM148: 0.2351818511 | AN148: 0.2351818511 | AO148: 0.2351818511 | AP148: 0.2351818511 | AQ148: 0.2351818511 | AR148: 0.2351818511 | AS148: 0.2351818511 | AT148: 0.2351818511 | AU148: 0.2351818511 | AV148: 0.2351818511 | AW148: 0.2351818511 | AX148: 0.2351818511 | AY148: 0.2351818511 | AZ148: 0.2351818511 | BA148: 0.2351818511 | BB148: 0.2351818511 | BC148: 0.2351818511 | BD148: 0.2351818511
A149: Industrial A2
A150: Daily supply charge | C150: 51.73850787 | D150: 53.53900068 | E150: 57.43151266 | F150: 60.15950951 | G150: =$F150*$B133/$F133 -> 68.43702462 | H150: =$F150*$B133/$F133 -> 68.43702462 | I150: 68.43702462 | J150: 68.43702462 | K150: 68.43702462 | L150: 68.43702462 | M150: 68.43702462 | N150: 68.43702462 | O150: 68.43702462 | P150: 68.43702462 | Q150: 68.43702462 | R150: 68.43702462 | S150: 68.43702462 | T150: 68.43702462 | U150: 68.43702462 | V150: 68.43702462 | W150: 68.43702462 | X150: 68.43702462 | Y150: 68.43702462 | Z150: 68.43702462 | AA150: 68.43702462 | AB150: 68.43702462 | AC150: 68.43702462 | AD150: 68.43702462 | AE150: 68.43702462 | AF150: 68.43702462 | AG150: 68.43702462 | AH150: 68.43702462 | AI150: 68.43702462 | AJ150: 68.43702462 | AK150: 68.43702462 | AL150: 68.43702462 | AM150: 68.43702462 | AN150: 68.43702462 | AO150: 68.43702462 | AP150: 68.43702462 | AQ150: 68.43702462 | AR150: 68.43702462 | AS150: 68.43702462 | AT150: 68.43702462 | AU150: 68.43702462 | AV150: 68.43702462 | AW150: 68.43702462 | AX150: 68.43702462 | AY150: 68.43702462 | AZ150: 68.43702462 | BA150: 68.43702462 | BB150: 68.43702462 | BC150: 68.43702462 | BD150: 68.43702462
A151: Average volumetric charge $/GJ | C151: 1.35343836 | D151: 1.399124813 | E151: 1.499730135 | F151: 1.570967316 | G151: =$F151*$B133/$F133 -> 1.787121102 | H151: =$F151*$B133/$F133 -> 1.787121102 | I151: 1.787121102 | J151: 1.787121102 | K151: 1.787121102 | L151: 1.787121102 | M151: 1.787121102 | N151: 1.787121102 | O151: 1.787121102 | P151: 1.787121102 | Q151: 1.787121102 | R151: 1.787121102 | S151: 1.787121102 | T151: 1.787121102 | U151: 1.787121102 | V151: 1.787121102 | W151: 1.787121102 | X151: 1.787121102 | Y151: 1.787121102 | Z151: 1.787121102 | AA151: 1.787121102 | AB151: 1.787121102 | AC151: 1.787121102 | AD151: 1.787121102 | AE151: 1.787121102 | AF151: 1.787121102 | AG151: 1.787121102 | AH151: 1.787121102 | AI151: 1.787121102 | AJ151: 1.787121102 | AK151: 1.787121102 | AL151: 1.787121102 | AM151: 1.787121102 | AN151: 1.787121102 | AO151: 1.787121102 | AP151: 1.787121102 | AQ151: 1.787121102 | AR151: 1.787121102 | AS151: 1.787121102 | AT151: 1.787121102 | AU151: 1.787121102 | AV151: 1.787121102 | AW151: 1.787121102 | AX151: 1.787121102 | AY151: 1.787121102 | AZ151: 1.787121102 | BA151: 1.787121102 | BB151: 1.787121102 | BC151: 1.787121102 | BD151: 1.787121102

Sheet Scenarios
A2: Residential Network ON/OFF
A3: LGA | B3: 2021 | C3: =B3+1 -> 2022 | D3: =C3+1 -> 2023 | E3: 2024 | F3: 2025 | G3: 2026 | H3: 2027 | I3: 2028 | J3: 2029 | K3: 2030 | L3: 2031 | M3: 2032 | N3: 2033 | O3: 2034 | P3: 2035 | Q3: 2036 | R3: 2037 | S3: 2038 | T3: 2039 | U3: 2040 | V3: 2041 | W3: 2042 | X3: 2043 | Y3: 2044 | Z3: 2045 | AA3: 2046 | AB3: 2047 | AC3: 2048 | AD3: 2049 | AE3: 2050 | AF3: 2051 | AG3: 2052 | AH3: 2053 | AI3: 2054 | AJ3: 2055 | AK3: 2056 | AL3: 2057 | AM3: 2058 | AN3: 2059 | AO3: 2060 | AP3: 2061 | AQ3: 2062 | AR3: 2063 | AS3: 2064 | AT3: 2065 | AU3: 2066 | AV3: 2067 | AW3: 2068 | AX3: 2069 | AY3: 2070 | AZ3: 2071 | BA3: 2072 | BB3: 2073 | BC3: 2074 | BD3: 2075 | BE3: 2076 | BF3: 2077 | BG3: 2078 | BH3: 2079 | BI3: 2080 | BJ3: 2081 | BK3: 2082 | BL3: 2083 | BM3: 2084 | BN3: 2085 | BO3: 2086 | BP3: =BO3+1 -> 2087 | BQ3: 2088 | BR3: 2089 | BS3: 2090 | BT3: 2091 | BU3: 2092 | BV3: 2093 | BW3: 2094 | BX3: 2095 | BY3: 2096 | BZ3: 2097 | CA3: 2098 | CB3: 2099 | CC3: 2100
A4: ARMADALE | B4: 1 | C4: 1 | D4: 1 | E4: 1 | F4: 1 | G4: 1 | H4: 1 | I4: 1 | J4: 1 | K4: 1 | L4: 1 | M4: 1 | N4: 1 | O4: 1 | P4: 1 | Q4: 1 | R4: 1 | S4: 1 | T4: 1 | U4: 1 | V4: 1 | W4: 1 | X4: 1 | Y4: 1 | Z4: 1 | AA4: 1 | AB4: 1 | AC4: 1 | AD4: 1 | AE4: 1 | AF4: 1 | AG4: 1 | AH4: 1 | AI4: 1 | AJ4: 1 | AK4: 1 | AL4: 1 | AM4: 1 | AN4: 1 | AO4: 1 | AP4: 1 | AQ4: 1 | AR4: 1 | AS4: 1 | AT4: 1 | AU4: 1 | AV4: 1 | AW4: 1 | AX4: 1 | AY4: 1 | AZ4: 1 | BA4: 1 | BB4: 1 | BC4: 1 | BD4: 1 | BE4: 1 | BF4: 1 | BG4: 1 | BH4: 1 | BI4: 1 | BJ4: 1 | BK4: 1 | BL4: 1 | BM4: 1 | BN4: 1 | BO4: 1 | BP4: 1 | BQ4: 1 | BR4: 1 | BS4: 1 | BT4: 1 | BU4: 1 | BV4: 1 | BW4: 1 | BX4: 1 | BY4: 1 | BZ4: 1 | CA4: 1 | CB4: 1 | CC4: 1
A5: BASSENDEAN | B5: 1 | C5: 1 | D5: 1 | E5: 1 | F5: 1 | G5: 1 | H5: 1 | I5: 1 | J5: 1 | K5: 1 | L5: 1 | M5: 1 | N5: 1 | O5: 1 | P5: 1 | Q5: 1 | R5: 1 | S5: 1 | T5: 1 | U5: 1 | V5: 1 | W5: 1 | X5: 1 | Y5: 1 | Z5: 1 | AA5: 1 | AB5: 1 | AC5: 1 | AD5: 1 | AE5: 1 | AF5: 1 | AG5: 1 | AH5: 1 | AI5: 1 | AJ5: 1 | AK5: 1 | AL5: 1 | AM5: 1 | AN5: 1 | AO5: 1 | AP5: 1 | AQ5: 1 | AR5: 1 | AS5: 1 | AT5: 1 | AU5: 1 | AV5: 1 | AW5: 1 | AX5: 1 | AY5: 1 | AZ5: 1 | BA5: 1 | BB5: 1 | BC5: 1 | BD5: 1 | BE5: 1 | BF5: 1 | BG5: 1 | BH5: 1 | BI5: 1 | BJ5: 1 | BK5: 1 | BL5: 1 | BM5: 1 | BN5: 1 | BO5: 1 | BP5: 1 | BQ5: 1 | BR5: 1 | BS5: 1 | BT5: 1 | BU5: 1 | BV5: 1 | BW5: 1 | BX5: 1 | BY5: 1 | BZ5: 1 | CA5: 1 | CB5: 1 | CC5: 1
A6: BAYSWATER | B6: 1 | C6: 1 | D6: 1 | E6: 1 | F6: 1 | G6: 1 | H6: 1 | I6: 1 | J6: 1 | K6: 1 | L6: 1 | M6: 1 | N6: 1 | O6: 1 | P6: 1 | Q6: 1 | R6: 1 | S6: 1 | T6: 1 | U6: 1 | V6: 1 | W6: 1 | X6: 1 | Y6: 1 | Z6: 1 | AA6: 1 | AB6: 1 | AC6: 1 | AD6: 1 | AE6: 1 | AF6: 1 | AG6: 1 | AH6: 1 | AI6: 1 | AJ6: 1 | AK6: 1 | AL6: 1 | AM6: 1 | AN6: 1 | AO6: 1 | AP6: 1 | AQ6: 1 | AR6: 1 | AS6: 1 | AT6: 1 | AU6: 1 | AV6: 1 | AW6: 1 | AX6: 1 | AY6: 1 | AZ6: 1 | BA6: 1 | BB6: 1 | BC6: 1 | BD6: 1 | BE6: 1 | BF6: 1 | BG6: 1 | BH6: 1 | BI6: 1 | BJ6: 1 | BK6: 1 | BL6: 1 | BM6: 1 | BN6: 1 | BO6: 1 | BP6: 1 | BQ6: 1 | BR6: 1 | BS6: 1 | BT6: 1 | BU6: 1 | BV6: 1 | BW6: 1 | BX6: 1 | BY6: 1 | BZ6: 1 | CA6: 1 | CB6: 1 | CC6: 1
A7: BELMONT | B7: 1 | C7: 1 | D7: 1 | E7: 1 | F7: 1 | G7: 1 | H7: 1 | I7: 1 | J7: 1 | K7: 1 | L7: 1 | M7: 1 | N7: 1 | O7: 1 | P7: 1 | Q7: 1 | R7: 1 | S7: 1 | T7: 1 | U7: 1 | V7: 1 | W7: 1 | X7: 1 | Y7: 1 | Z7: 1 | AA7: 1 | AB7: 1 | AC7: 1 | AD7: 1 | AE7: 1 | AF7: 1 | AG7: 1 | AH7: 1 | AI7: 1 | AJ7: 1 | AK7: 1 | AL7: 1 | AM7: 1 | AN7: 1 | AO7: 1 | AP7: 1 | AQ7: 1 | AR7: 1 | AS7: 1 | AT7: 1 | AU7: 1 | AV7: 1 | AW7: 1 | AX7: 1 | AY7: 1 | AZ7: 1 | BA7: 1 | BB7: 1 | BC7: 1 | BD7: 1 | BE7: 1 | BF7: 1 | BG7: 1 | BH7: 1 | BI7: 1 | BJ7: 1 | BK7: 1 | BL7: 1 | BM7: 1 | BN7: 1 | BO7: 1 | BP7: 1 | BQ7: 1 | BR7: 1 | BS7: 1 | BT7: 1 | BU7: 1 | BV7: 1 | BW7: 1 | BX7: 1 | BY7: 1 | BZ7: 1 | CA7: 1 | CB7: 1 | CC7: 1
A8: BUNBURY | B8: 1 | C8: 1 | D8: 1 | E8: 1 | F8: 1 | G8: 1 | H8: 1 | I8: 1 | J8: 1 | K8: 1 | L8: 1 | M8: 1 | N8: 1 | O8: 1 | P8: 1 | Q8: 1 | R8: 1 | S8: 1 | T8: 1 | U8: 1 | V8: 1 | W8: 1 | X8: 1 | Y8: 1 | Z8: 1 | AA8: 1 | AB8: 1 | AC8: 1 | AD8: 1 | AE8: 1 | AF8: 1 | AG8: 1 | AH8: 1 | AI8: 1 | AJ8: 1 | AK8: 1 | AL8: 1 | AM8: 1 | AN8: 1 | AO8: 1 | AP8: 1 | AQ8: 1 | AR8: 1 | AS8: 1 | AT8: 1 | AU8: 1 | AV8: 1 | AW8: 1 | AX8: 1 | AY8: 1 | AZ8: 1 | BA8: 1 | BB8: 1 | BC8: 1 | BD8: 1 | BE8: 1 | BF8: 1 | BG8: 1 | BH8: 1 | BI8: 1 | BJ8: 1 | BK8: 1 | BL8: 1 | BM8: 1 | BN8: 1 | BO8: 1 | BP8: 1 | BQ8: 1 | BR8: 1 | BS8: 1 | BT8: 1 | BU8: 1 | BV8: 1 | BW8: 1 | BX8: 1 | BY8: 1 | BZ8: 1 | CA8: 1 | CB8: 1 | CC8: 1
A9: BUSSELTON | B9: 1 | C9: 1 | D9: 1 | E9: 1 | F9: 1 | G9: 1 | H9: 1 | I9: 1 | J9: 1 | K9: 1 | L9: 1 | M9: 1 | N9: 1 | O9: 1 | P9: 1 | Q9: 1 | R9: 1 | S9: 1 | T9: 1 | U9: 1 | V9: 1 | W9: 1 | X9: 1 | Y9: 1 | Z9: 1 | AA9: 1 | AB9: 1 | AC9: 1 | AD9: 1 | AE9: 1 | AF9: 1 | AG9: 1 | AH9: 1 | AI9: 1 | AJ9: 1 | AK9: 1 | AL9: 1 | AM9: 1 | AN9: 1 | AO9: 1 | AP9: 1 | AQ9: 1 | AR9: 1 | AS9: 1 | AT9: 1 | AU9: 1 | AV9: 1 | AW9: 1 | AX9: 1 | AY9: 1 | AZ9: 1 | BA9: 1 | BB9: 1 | BC9: 1 | BD9: 1 | BE9: 1 | BF9: 1 | BG9: 1 | BH9: 1 | BI9: 1 | BJ9: 1 | BK9: 1 | BL9: 1 | BM9: 1 | BN9: 1 | BO9: 1 | BP9: 1 | BQ9: 1 | BR9: 1 | BS9: 1 | BT9: 1 | BU9: 1 | BV9: 1 | BW9: 1 | BX9: 1 | BY9: 1 | BZ9: 1 | CA9: 1 | CB9: 1 | CC9: 1
A10: CAMBRIDGE | B10: 1 | C10: 1 | D10: 1 | E10: 1 | F10: 1 | G10: 1 | H10: 1 | I10: 1 | J10: 1 | K10: 1 | L10: 1 | M10: 1 | N10: 1 | O10: 1 | P10: 1 | Q10: 1 | R10: 1 | S10: 1 | T10: 1 | U10: 1 | V10: 1 | W10: 1 | X10: 1 | Y10: 1 | Z10: 1 | AA10: 1 | AB10: 1 | AC10: 1 | AD10: 1 | AE10: 1 | AF10: 1 | AG10: 1 | AH10: 1 | AI10: 1 | AJ10: 1 | AK10: 1 | AL10: 1 | AM10: 1 | AN10: 1 | AO10: 1 | AP10: 1 | AQ10: 1 | AR10: 1 | AS10: 1 | AT10: 1 | AU10: 1 | AV10: 1 | AW10: 1 | AX10: 1 | AY10: 1 | AZ10: 1 | BA10: 1 | BB10: 1 | BC10: 1 | BD10: 1 | BE10: 1 | BF10: 1 | BG10: 1 | BH10: 1 | BI10: 1 | BJ10: 1 | BK10: 1 | BL10: 1 | BM10: 1 | BN10: 1 | BO10: 1 | BP10: 1 | BQ10: 1 | BR10: 1 | BS10: 1 | BT10: 1 | BU10: 1 | BV10: 1 | BW10: 1 | BX10: 1 | BY10: 1 | BZ10: 1 | CA10: 1 | CB10: 1 | CC10: 1
A11: CANNING | B11: 1 | C11: 1 | D11: 1 | E11: 1 | F11: 1 | G11: 1 | H11: 1 | I11: 1 | J11: 1 | K11: 1 | L11: 1 | M11: 1 | N11: 1 | O11: 1 | P11: 1 | Q11: 1 | R11: 1 | S11: 1 | T11: 1 | U11: 1 | V11: 1 | W11: 1 | X11: 1 | Y11: 1 | Z11: 1 | AA11: 1 | AB11: 1 | AC11: 1 | AD11: 1 | AE11: 1 | AF11: 1 | AG11: 1 | AH11: 1 | AI11: 1 | AJ11: 1 | AK11: 1 | AL11: 1 | AM11: 1 | AN11: 1 | AO11: 1 | AP11: 1 | AQ11: 1 | AR11: 1 | AS11: 1 | AT11: 1 | AU11: 1 | AV11: 1 | AW11: 1 | AX11: 1 | AY11: 1 | AZ11: 1 | BA11: 1 | BB11: 1 | BC11: 1 | BD11: 1 | BE11: 1 | BF11: 1 | BG11: 1 | BH11: 1 | BI11: 1 | BJ11: 1 | BK11: 1 | BL11: 1 | BM11: 1 | BN11: 1 | BO11: 1 | BP11: 1 | BQ11: 1 | BR11: 1 | BS11: 1 | BT11: 1 | BU11: 1 | BV11: 1 | BW11: 1 | BX11: 1 | BY11: 1 | BZ11: 1 | CA11: 1 | CB11: 1 | CC11: 1
A12: CAPEL | B12: 1 | C12: 1 | D12: 1 | E12: 1 | F12: 1 | G12: 1 | H12: 1 | I12: 1 | J12: 1 | K12: 1 | L12: 1 | M12: 1 | N12: 1 | O12: 1 | P12: 1 | Q12: 1 | R12: 1 | S12: 1 | T12: 1 | U12: 1 | V12: 1 | W12: 1 | X12: 1 | Y12: 1 | Z12: 1 | AA12: 1 | AB12: 1 | AC12: 1 | AD12: 1 | AE12: 1 | AF12: 1 | AG12: 1 | AH12: 1 | AI12: 1 | AJ12: 1 | AK12: 1 | AL12: 1 | AM12: 1 | AN12: 1 | AO12: 1 | AP12: 1 | AQ12: 1 | AR12: 1 | AS12: 1 | AT12: 1 | AU12: 1 | AV12: 1 | AW12: 1 | AX12: 1 | AY12: 1 | AZ12: 1 | BA12: 1 | BB12: 1 | BC12: 1 | BD12: 1 | BE12: 1 | BF12: 1 | BG12: 1 | BH12: 1 | BI12: 1 | BJ12: 1 | BK12: 1 | BL12: 1 | BM12: 1 | BN12: 1 | BO12: 1 | BP12: 1 | BQ12: 1 | BR12: 1 | BS12: 1 | BT12: 1 | BU12: 1 | BV12: 1 | BW12: 1 | BX12: 1 | BY12: 1 | BZ12: 1 | CA12: 1 | CB12: 1 | CC12: 1
A13: CHITTERING | B13: 1 | C13: 1 | D13: 1 | E13: 1 | F13: 1 | G13: 1 | H13: 1 | I13: 1 | J13: 1 | K13: 1 | L13: 1 | M13: 1 | N13: 1 | O13: 1 | P13: 1 | Q13: 1 | R13: 1 | S13: 1 | T13: 1 | U13: 1 | V13: 1 | W13: 1 | X13: 1 | Y13: 1 | Z13: 1 | AA13: 1 | AB13: 1 | AC13: 1 | AD13: 1 | AE13: 1 | AF13: 1 | AG13: 1 | AH13: 1 | AI13: 1 | AJ13: 1 | AK13: 1 | AL13: 1 | AM13: 1 | AN13: 1 | AO13: 1 | AP13: 1 | AQ13: 1 | AR13: 1 | AS13: 1 | AT13: 1 | AU13: 1 | AV13: 1 | AW13: 1 | AX13: 1 | AY13: 1 | AZ13: 1 | BA13: 1 | BB13: 1 | BC13: 1 | BD13: 1 | BE13: 1 | BF13: 1 | BG13: 1 | BH13: 1 | BI13: 1 | BJ13: 1 | BK13: 1 | BL13: 1 | BM13: 1 | BN13: 1 | BO13: 1 | BP13: 1 | BQ13: 1 | BR13: 1 | BS13: 1 | BT13: 1 | BU13: 1 | BV13: 1 | BW13: 1 | BX13: 1 | BY13: 1 | BZ13: 1 | CA13: 1 | CB13: 1 | CC13: 1
A14: COCKBURN | B14: 1 | C14: 1 | D14: 1 | E14: 1 | F14: 1 | G14: 1 | H14: 1 | I14: 1 | J14: 1 | K14: 1 | L14: 1 | M14: 1 | N14: 1 | O14: 1 | P14: 1 | Q14: 1 | R14: 1 | S14: 1 | T14: 1 | U14: 1 | V14: 1 | W14: 1 | X14: 1 | Y14: 1 | Z14: 1 | AA14: 1 | AB14: 1 | AC14: 1 | AD14: 1 | AE14: 1 | AF14: 1 | AG14: 1 | AH14: 1 | AI14: 1 | AJ14: 1 | AK14: 1 | AL14: 1 | AM14: 1 | AN14: 1 | AO14: 1 | AP14: 1 | AQ14: 1 | AR14: 1 | AS14: 1 | AT14: 1 | AU14: 1 | AV14: 1 | AW14: 1 | AX14: 1 | AY14: 1 | AZ14: 1 | BA14: 1 | BB14: 1 | BC14: 1 | BD14: 1 | BE14: 1 | BF14: 1 | BG14: 1 | BH14: 1 | BI14: 1 | BJ14: 1 | BK14: 1 | BL14: 1 | BM14: 1 | BN14: 1 | BO14: 1 | BP14: 1 | BQ14: 1 | BR14: 1 | BS14: 1 | BT14: 1 | BU14: 1 | BV14: 1 | BW14: 1 | BX14: 1 | BY14: 1 | BZ14: 1 | CA14: 1 | CB14: 1 | CC14: 1
A15: COTTESLOE | B15: 1 | C15: 1 | D15: 1 | E15: 1 | F15: 1 | G15: 1 | H15: 1 | I15: 1 | J15: 1 | K15: 1 | L15: 1 | M15: 1 | N15: 1 | O15: 1 | P15: 1 | Q15: 1 | R15: 1 | S15: 1 | T15: 1 | U15: 1 | V15: 1 | W15: 1 | X15: 1 | Y15: 1 | Z15: 1 | AA15: 1 | AB15: 1 | AC15: 1 | AD15: 1 | AE15: 1 | AF15: 1 | AG15: 1 | AH15: 1 | AI15: 1 | AJ15: 1 | AK15: 1 | AL15: 1 | AM15: 1 | AN15: 1 | AO15: 1 | AP15: 1 | AQ15: 1 | AR15: 1 | AS15: 1 | AT15: 1 | AU15: 1 | AV15: 1 | AW15: 1 | AX15: 1 | AY15: 1 | AZ15: 1 | BA15: 1 | BB15: 1 | BC15: 1 | BD15: 1 | BE15: 1 | BF15: 1 | BG15: 1 | BH15: 1 | BI15: 1 | BJ15: 1 | BK15: 1 | BL15: 1 | BM15: 1 | BN15: 1 | BO15: 1 | BP15: 1 | BQ15: 1 | BR15: 1 | BS15: 1 | BT15: 1 | BU15: 1 | BV15: 1 | BW15: 1 | BX15: 1 | BY15: 1 | BZ15: 1 | CA15: 1 | CB15: 1 | CC15: 1
A16: DARDANUP | B16: 1 | C16: 1 | D16: 1 | E16: 1 | F16: 1 | G16: 1 | H16: 1 | I16: 1 | J16: 1 | K16: 1 | L16: 1 | M16: 1 | N16: 1 | O16: 1 | P16: 1 | Q16: 1 | R16: 1 | S16: 1 | T16: 1 | U16: 1 | V16: 1 | W16: 1 | X16: 1 | Y16: 1 | Z16: 1 | AA16: 1 | AB16: 1 | AC16: 1 | AD16: 1 | AE16: 1 | AF16: 1 | AG16: 1 | AH16: 1 | AI16: 1 | AJ16: 1 | AK16: 1 | AL16: 1 | AM16: 1 | AN16: 1 | AO16: 1 | AP16: 1 | AQ16: 1 | AR16: 1 | AS16: 1 | AT16: 1 | AU16: 1 | AV16: 1 | AW16: 1 | AX16: 1 | AY16: 1 | AZ16: 1 | BA16: 1 | BB16: 1 | BC16: 1 | BD16: 1 | BE16: 1 | BF16: 1 | BG16: 1 | BH16: 1 | BI16: 1 | BJ16: 1 | BK16: 1 | BL16: 1 | BM16: 1 | BN16: 1 | BO16: 1 | BP16: 1 | BQ16: 1 | BR16: 1 | BS16: 1 | BT16: 1 | BU16: 1 | BV16: 1 | BW16: 1 | BX16: 1 | BY16: 1 | BZ16: 1 | CA16: 1 | CB16: 1 | CC16: 1
A17: EAST FREMANTLE | B17: 1 | C17: 1 | D17: 1 | E17: 1 | F17: 1 | G17: 1 | H17: 1 | I17: 1 | J17: 1 | K17: 1 | L17: 1 | M17: 1 | N17: 1 | O17: 1 | P17: 1 | Q17: 1 | R17: 1 | S17: 1 | T17: 1 | U17: 1 | V17: 1 | W17: 1 | X17: 1 | Y17: 1 | Z17: 1 | AA17: 1 | AB17: 1 | AC17: 1 | AD17: 1 | AE17: 1 | AF17: 1 | AG17: 1 | AH17: 1 | AI17: 1 | AJ17: 1 | AK17: 1 | AL17: 1 | AM17: 1 | AN17: 1 | AO17: 1 | AP17: 1 | AQ17: 1 | AR17: 1 | AS17: 1 | AT17: 1 | AU17: 1 | AV17: 1 | AW17: 1 | AX17: 1 | AY17: 1 | AZ17: 1 | BA17: 1 | BB17: 1 | BC17: 1 | BD17: 1 | BE17: 1 | BF17: 1 | BG17: 1 | BH17: 1 | BI17: 1 | BJ17: 1 | BK17: 1 | BL17: 1 | BM17: 1 | BN17: 1 | BO17: 1 | BP17: 1 | BQ17: 1 | BR17: 1 | BS17: 1 | BT17: 1 | BU17: 1 | BV17: 1 | BW17: 1 | BX17: 1 | BY17: 1 | BZ17: 1 | CA17: 1 | CB17: 1 | CC17: 1
A18: FREMANTLE | B18: 1 | C18: 1 | D18: 1 | E18: 1 | F18: 1 | G18: 1 | H18: 1 | I18: 1 | J18: 1 | K18: 1 | L18: 1 | M18: 1 | N18: 1 | O18: 1 | P18: 1 | Q18: 1 | R18: 1 | S18: 1 | T18: 1 | U18: 1 | V18: 1 | W18: 1 | X18: 1 | Y18: 1 | Z18: 1 | AA18: 1 | AB18: 1 | AC18: 1 | AD18: 1 | AE18: 1 | AF18: 1 | AG18: 1 | AH18: 1 | AI18: 1 | AJ18: 1 | AK18: 1 | AL18: 1 | AM18: 1 | AN18: 1 | AO18: 1 | AP18: 1 | AQ18: 1 | AR18: 1 | AS18: 1 | AT18: 1 | AU18: 1 | AV18: 1 | AW18: 1 | AX18: 1 | AY18: 1 | AZ18: 1 | BA18: 1 | BB18: 1 | BC18: 1 | BD18: 1 | BE18: 1 | BF18: 1 | BG18: 1 | BH18: 1 | BI18: 1 | BJ18: 1 | BK18: 1 | BL18: 1 | BM18: 1 | BN18: 1 | BO18: 1 | BP18: 1 | BQ18: 1 | BR18: 1 | BS18: 1 | BT18: 1 | BU18: 1 | BV18: 1 | BW18: 1 | BX18: 1 | BY18: 1 | BZ18: 1 | CA18: 1 | CB18: 1 | CC18: 1
A19: GOSNELLS | B19: 1 | C19: 1 | D19: 1 | E19: 1 | F19: 1 | G19: 1 | H19: 1 | I19: 1 | J19: 1 | K19: 1 | L19: 1 | M19: 1 | N19: 1 | O19: 1 | P19: 1 | Q19: 1 | R19: 1 | S19: 1 | T19: 1 | U19: 1 | V19: 1 | W19: 1 | X19: 1 | Y19: 1 | Z19: 1 | AA19: 1 | AB19: 1 | AC19: 1 | AD19: 1 | AE19: 1 | AF19: 1 | AG19: 1 | AH19: 1 | AI19: 1 | AJ19: 1 | AK19: 1 | AL19: 1 | AM19: 1 | AN19: 1 | AO19: 1 | AP19: 1 | AQ19: 1 | AR19: 1 | AS19: 1 | AT19: 1 | AU19: 1 | AV19: 1 | AW19: 1 | AX19: 1 | AY19: 1 | AZ19: 1 | BA19: 1 | BB19: 1 | BC19: 1 | BD19: 1 | BE19: 1 | BF19: 1 | BG19: 1 | BH19: 1 | BI19: 1 | BJ19: 1 | BK19: 1 | BL19: 1 | BM19: 1 | BN19: 1 | BO19: 1 | BP19: 1 | BQ19: 1 | BR19: 1 | BS19: 1 | BT19: 1 | BU19: 1 | BV19: 1 | BW19: 1 | BX19: 1 | BY19: 1 | BZ19: 1 | CA19: 1 | CB19: 1 | CC19: 1
A20: GREATER GERALDTON | B20: 1 | C20: 1 | D20: 1 | E20: 1 | F20: 1 | G20: 1 | H20: 1 | I20: 1 | J20: 1 | K20: 1 | L20: 1 | M20: 1 | N20: 1 | O20: 1 | P20: 1 | Q20: 1 | R20: 1 | S20: 1 | T20: 1 | U20: 1 | V20: 1 | W20: 1 | X20: 1 | Y20: 1 | Z20: 1 | AA20: 1 | AB20: 1 | AC20: 1 | AD20: 1 | AE20: 1 | AF20: 1 | AG20: 1 | AH20: 1 | AI20: 1 | AJ20: 1 | AK20: 1 | AL20: 1 | AM20: 1 | AN20: 1 | AO20: 1 | AP20: 1 | AQ20: 1 | AR20: 1 | AS20: 1 | AT20: 1 | AU20: 1 | AV20: 1 | AW20: 1 | AX20: 1 | AY20: 1 | AZ20: 1 | BA20: 1 | BB20: 1 | BC20: 1 | BD20: 1 | BE20: 1 | BF20: 1 | BG20: 1 | BH20: 1 | BI20: 1 | BJ20: 1 | BK20: 1 | BL20: 1 | BM20: 1 | BN20: 1 | BO20: 1 | BP20: 1 | BQ20: 1 | BR20: 1 | BS20: 1 | BT20: 1 | BU20: 1 | BV20: 1 | BW20: 1 | BX20: 1 | BY20: 1 | BZ20: 1 | CA20: 1 | CB20: 1 | CC20: 1
A21: HARVEY | B21: 1 | C21: 1 | D21: 1 | E21: 1 | F21: 1 | G21: 1 | H21: 1 | I21: 1 | J21: 1 | K21: 1 | L21: 1 | M21: 1 | N21: 1 | O21: 1 | P21: 1 | Q21: 1 | R21: 1 | S21: 1 | T21: 1 | U21: 1 | V21: 1 | W21: 1 | X21: 1 | Y21: 1 | Z21: 1 | AA21: 1 | AB21: 1 | AC21: 1 | AD21: 1 | AE21: 1 | AF21: 1 | AG21: 1 | AH21: 1 | AI21: 1 | AJ21: 1 | AK21: 1 | AL21: 1 | AM21: 1 | AN21: 1 | AO21: 1 | AP21: 1 | AQ21: 1 | AR21: 1 | AS21: 1 | AT21: 1 | AU21: 1 | AV21: 1 | AW21: 1 | AX21: 1 | AY21: 1 | AZ21: 1 | BA21: 1 | BB21: 1 | BC21: 1 | BD21: 1 | BE21: 1 | BF21: 1 | BG21: 1 | BH21: 1 | BI21: 1 | BJ21: 1 | BK21: 1 | BL21: 1 | BM21: 1 | BN21: 1 | BO21: 1 | BP21: 1 | BQ21: 1 | BR21: 1 | BS21: 1 | BT21: 1 | BU21: 1 | BV21: 1 | BW21: 1 | BX21: 1 | BY21: 1 | BZ21: 1 | CA21: 1 | CB21: 1 | CC21: 1
A22: JOONDALUP | B22: 1 | C22: 1 | D22: 1 | E22: 1 | F22: 1 | G22: 1 | H22: 1 | I22: 1 | J22: 1 | K22: 1 | L22: 1 | M22: 1 | N22: 1 | O22: 1 | P22: 1 | Q22: 1 | R22: 1 | S22: 1 | T22: 1 | U22: 1 | V22: 1 | W22: 1 | X22: 1 | Y22: 1 | Z22: 1 | AA22: 1 | AB22: 1 | AC22: 1 | AD22: 1 | AE22: 1 | AF22: 1 | AG22: 1 | AH22: 1 | AI22: 1 | AJ22: 1 | AK22: 1 | AL22: 1 | AM22: 1 | AN22: 1 | AO22: 1 | AP22: 1 | AQ22: 1 | AR22: 1 | AS22: 1 | AT22: 1 | AU22: 1 | AV22: 1 | AW22: 1 | AX22: 1 | AY22: 1 | AZ22: 1 | BA22: 1 | BB22: 1 | BC22: 1 | BD22: 1 | BE22: 1 | BF22: 1 | BG22: 1 | BH22: 1 | BI22: 1 | BJ22: 1 | BK22: 1 | BL22: 1 | BM22: 1 | BN22: 1 | BO22: 1 | BP22: 1 | BQ22: 1 | BR22: 1 | BS22: 1 | BT22: 1 | BU22: 1 | BV22: 1 | BW22: 1 | BX22: 1 | BY22: 1 | BZ22: 1 | CA22: 1 | CB22: 1 | CC22: 1
A23: KALAMUNDA | B23: 1 | C23: 1 | D23: 1 | E23: 1 | F23: 1 | G23: 1 | H23: 1 | I23: 1 | J23: 1 | K23: 1 | L23: 1 | M23: 1 | N23: 1 | O23: 1 | P23: 1 | Q23: 1 | R23: 1 | S23: 1 | T23: 1 | U23: 1 | V23: 1 | W23: 1 | X23: 1 | Y23: 1 | Z23: 1 | AA23: 1 | AB23: 1 | AC23: 1 | AD23: 1 | AE23: 1 | AF23: 1 | AG23: 1 | AH23: 1 | AI23: 1 | AJ23: 1 | AK23: 1 | AL23: 1 | AM23: 1 | AN23: 1 | AO23: 1 | AP23: 1 | AQ23: 1 | AR23: 1 | AS23: 1 | AT23: 1 | AU23: 1 | AV23: 1 | AW23: 1 | AX23: 1 | AY23: 1 | AZ23: 1 | BA23: 1 | BB23: 1 | BC23: 1 | BD23: 1 | BE23: 1 | BF23: 1 | BG23: 1 | BH23: 1 | BI23: 1 | BJ23: 1 | BK23: 1 | BL23: 1 | BM23: 1 | BN23: 1 | BO23: 1 | BP23: 1 | BQ23: 1 | BR23: 1 | BS23: 1 | BT23: 1 | BU23: 1 | BV23: 1 | BW23: 1 | BX23: 1 | BY23: 1 | BZ23: 1 | CA23: 1 | CB23: 1 | CC23: 1
A24: KWINANA | B24: 1 | C24: 1 | D24: 1 | E24: 1 | F24: 1 | G24: 1 | H24: 1 | I24: 1 | J24: 1 | K24: 1 | L24: 1 | M24: 1 | N24: 1 | O24: 1 | P24: 1 | Q24: 1 | R24: 1 | S24: 1 | T24: 1 | U24: 1 | V24: 1 | W24: 1 | X24: 1 | Y24: 1 | Z24: 1 | AA24: 1 | AB24: 1 | AC24: 1 | AD24: 1 | AE24: 1 | AF24: 1 | AG24: 1 | AH24: 1 | AI24: 1 | AJ24: 1 | AK24: 1 | AL24: 1 | AM24: 1 | AN24: 1 | AO24: 1 | AP24: 1 | AQ24: 1 | AR24: 1 | AS24: 1 | AT24: 1 | AU24: 1 | AV24: 1 | AW24: 1 | AX24: 1 | AY24: 1 | AZ24: 1 | BA24: 1 | BB24: 1 | BC24: 1 | BD24: 1 | BE24: 1 | BF24: 1 | BG24: 1 | BH24: 1 | BI24: 1 | BJ24: 1 | BK24: 1 | BL24: 1 | BM24: 1 | BN24: 1 | BO24: 1 | BP24: 1 | BQ24: 1 | BR24: 1 | BS24: 1 | BT24: 1 | BU24: 1 | BV24: 1 | BW24: 1 | BX24: 1 | BY24: 1 | BZ24: 1 | CA24: 1 | CB24: 1 | CC24: 1
A25: MANDURAH | B25: 1 | C25: 1 | D25: 1 | E25: 1 | F25: 1 | G25: 1 | H25: 1 | I25: 1 | J25: 1 | K25: 1 | L25: 1 | M25: 1 | N25: 1 | O25: 1 | P25: 1 | Q25: 1 | R25: 1 | S25: 1 | T25: 1 | U25: 1 | V25: 1 | W25: 1 | X25: 1 | Y25: 1 | Z25: 1 | AA25: 1 | AB25: 1 | AC25: 1 | AD25: 1 | AE25: 1 | AF25: 1 | AG25: 1 | AH25: 1 | AI25: 1 | AJ25: 1 | AK25: 1 | AL25: 1 | AM25: 1 | AN25: 1 | AO25: 1 | AP25: 1 | AQ25: 1 | AR25: 1 | AS25: 1 | AT25: 1 | AU25: 1 | AV25: 1 | AW25: 1 | AX25: 1 | AY25: 1 | AZ25: 1 | BA25: 1 | BB25: 1 | BC25: 1 | BD25: 1 | BE25: 1 | BF25: 1 | BG25: 1 | BH25: 1 | BI25: 1 | BJ25: 1 | BK25: 1 | BL25: 1 | BM25: 1 | BN25: 1 | BO25: 1 | BP25: 1 | BQ25: 1 | BR25: 1 | BS25: 1 | BT25: 1 | BU25: 1 | BV25: 1 | BW25: 1 | BX25: 1 | BY25: 1 | BZ25: 1 | CA25: 1 | CB25: 1 | CC25: 1
A26: MELVILLE | B26: 1 | C26: 1 | D26: 1 | E26: 1 | F26: 1 | G26: 1 | H26: 1 | I26: 1 | J26: 1 | K26: 1 | L26: 1 | M26: 1 | N26: 1 | O26: 1 | P26: 1 | Q26: 1 | R26: 1 | S26: 1 | T26: 1 | U26: 1 | V26: 1 | W26: 1 | X26: 1 | Y26: 1 | Z26: 1 | AA26: 1 | AB26: 1 | AC26: 1 | AD26: 1 | AE26: 1 | AF26: 1 | AG26: 1 | AH26: 1 | AI26: 1 | AJ26: 1 | AK26: 1 | AL26: 1 | AM26: 1 | AN26: 1 | AO26: 1 | AP26: 1 | AQ26: 1 | AR26: 1 | AS26: 1 | AT26: 1 | AU26: 1 | AV26: 1 | AW26: 1 | AX26: 1 | AY26: 1 | AZ26: 1 | BA26: 1 | BB26: 1 | BC26: 1 | BD26: 1 | BE26: 1 | BF26: 1 | BG26: 1 | BH26: 1 | BI26: 1 | BJ26: 1 | BK26: 1 | BL26: 1 | BM26: 1 | BN26: 1 | BO26: 1 | BP26: 1 | BQ26: 1 | BR26: 1 | BS26: 1 | BT26: 1 | BU26: 1 | BV26: 1 | BW26: 1 | BX26: 1 | BY26: 1 | BZ26: 1 | CA26: 1 | CB26: 1 | CC26: 1
A27: MOSMAN PARK | B27: 1 | C27: 1 | D27: 1 | E27: 1 | F27: 1 | G27: 1 | H27: 1 | I27: 1 | J27: 1 | K27: 1 | L27: 1 | M27: 1 | N27: 1 | O27: 1 | P27: 1 | Q27: 1 | R27: 1 | S27: 1 | T27: 1 | U27: 1 | V27: 1 | W27: 1 | X27: 1 | Y27: 1 | Z27: 1 | AA27: 1 | AB27: 1 | AC27: 1 | AD27: 1 | AE27: 1 | AF27: 1 | AG27: 1 | AH27: 1 | AI27: 1 | AJ27: 1 | AK27: 1 | AL27: 1 | AM27: 1 | AN27: 1 | AO27: 1 | AP27: 1 | AQ27: 1 | AR27: 1 | AS27: 1 | AT27: 1 | AU27: 1 | AV27: 1 | AW27: 1 | AX27: 1 | AY27: 1 | AZ27: 1 | BA27: 1 | BB27: 1 | BC27: 1 | BD27: 1 | BE27: 1 | BF27: 1 | BG27: 1 | BH27: 1 | BI27: 1 | BJ27: 1 | BK27: 1 | BL27: 1 | BM27: 1 | BN27: 1 | BO27: 1 | BP27: 1 | BQ27: 1 | BR27: 1 | BS27: 1 | BT27: 1 | BU27: 1 | BV27: 1 | BW27: 1 | BX27: 1 | BY27: 1 | BZ27: 1 | CA27: 1 | CB27: 1 | CC27: 1
A28: MUNDARING | B28: 1 | C28: 1 | D28: 1 | E28: 1 | F28: 1 | G28: 1 | H28: 1 | I28: 1 | J28: 1 | K28: 1 | L28: 1 | M28: 1 | N28: 1 | O28: 1 | P28: 1 | Q28: 1 | R28: 1 | S28: 1 | T28: 1 | U28: 1 | V28: 1 | W28: 1 | X28: 1 | Y28: 1 | Z28: 1 | AA28: 1 | AB28: 1 | AC28: 1 | AD28: 1 | AE28: 1 | AF28: 1 | AG28: 1 | AH28: 1 | AI28: 1 | AJ28: 1 | AK28: 1 | AL28: 1 | AM28: 1 | AN28: 1 | AO28: 1 | AP28: 1 | AQ28: 1 | AR28: 1 | AS28: 1 | AT28: 1 | AU28: 1 | AV28: 1 | AW28: 1 | AX28: 1 | AY28: 1 | AZ28: 1 | BA28: 1 | BB28: 1 | BC28: 1 | BD28: 1 | BE28: 1 | BF28: 1 | BG28: 1 | BH28: 1 | BI28: 1 | BJ28: 1 | BK28: 1 | BL28: 1 | BM28: 1 | BN28: 1 | BO28: 1 | BP28: 1 | BQ28: 1 | BR28: 1 | BS28: 1 | BT28: 1 | BU28: 1 | BV28: 1 | BW28: 1 | BX28: 1 | BY28: 1 | BZ28: 1 | CA28: 1 | CB28: 1 | CC28: 1
A29: MURRAY | B29: 1 | C29: 1 | D29: 1 | E29: 1 | F29: 1 | G29: 1 | H29: 1 | I29: 1 | J29: 1 | K29: 1 | L29: 1 | M29: 1 | N29: 1 | O29: 1 | P29: 1 | Q29: 1 | R29: 1 | S29: 1 | T29: 1 | U29: 1 | V29: 1 | W29: 1 | X29: 1 | Y29: 1 | Z29: 1 | AA29: 1 | AB29: 1 | AC29: 1 | AD29: 1 | AE29: 1 | AF29: 1 | AG29: 1 | AH29: 1 | AI29: 1 | AJ29: 1 | AK29: 1 | AL29: 1 | AM29: 1 | AN29: 1 | AO29: 1 | AP29: 1 | AQ29: 1 | AR29: 1 | AS29: 1 | AT29: 1 | AU29: 1 | AV29: 1 | AW29: 1 | AX29: 1 | AY29: 1 | AZ29: 1 | BA29: 1 | BB29: 1 | BC29: 1 | BD29: 1 | BE29: 1 | BF29: 1 | BG29: 1 | BH29: 1 | BI29: 1 | BJ29: 1 | BK29: 1 | BL29: 1 | BM29: 1 | BN29: 1 | BO29: 1 | BP29: 1 | BQ29: 1 | BR29: 1 | BS29: 1 | BT29: 1 | BU29: 1 | BV29: 1 | BW29: 1 | BX29: 1 | BY29: 1 | BZ29: 1 | CA29: 1 | CB29: 1 | CC29: 1
A30: NEDLANDS | B30: 1 | C30: 1 | D30: 1 | E30: 1 | F30: 1 | G30: 1 | H30: 1 | I30: 1 | J30: 1 | K30: 1 | L30: 1 | M30: 1 | N30: 1 | O30: 1 | P30: 1 | Q30: 1 | R30: 1 | S30: 1 | T30: 1 | U30: 1 | V30: 1 | W30: 1 | X30: 1 | Y30: 1 | Z30: 1 | AA30: 1 | AB30: 1 | AC30: 1 | AD30: 1 | AE30: 1 | AF30: 1 | AG30: 1 | AH30: 1 | AI30: 1 | AJ30: 1 | AK30: 1 | AL30: 1 | AM30: 1 | AN30: 1 | AO30: 1 | AP30: 1 | AQ30: 1 | AR30: 1 | AS30: 1 | AT30: 1 | AU30: 1 | AV30: 1 | AW30: 1 | AX30: 1 | AY30: 1 | AZ30: 1 | BA30: 1 | BB30: 1 | BC30: 1 | BD30: 1 | BE30: 1 | BF30: 1 | BG30: 1 | BH30: 1 | BI30: 1 | BJ30: 1 | BK30: 1 | BL30: 1 | BM30: 1 | BN30: 1 | BO30: 1 | BP30: 1 | BQ30: 1 | BR30: 1 | BS30: 1 | BT30: 1 | BU30: 1 | BV30: 1 | BW30: 1 | BX30: 1 | BY30: 1 | BZ30: 1 | CA30: 1 | CB30: 1 | CC30: 1
A31: PEPPERMINT GROVE | B31: 1 | C31: 1 | D31: 1 | E31: 1 | F31: 1 | G31: 1 | H31: 1 | I31: 1 | J31: 1 | K31: 1 | L31: 1 | M31: 1 | N31: 1 | O31: 1 | P31: 1 | Q31: 1 | R31: 1 | S31: 1 | T31: 1 | U31: 1 | V31: 1 | W31: 1 | X31: 1 | Y31: 1 | Z31: 1 | AA31: 1 | AB31: 1 | AC31: 1 | AD31: 1 | AE31: 1 | AF31: 1 | AG31: 1 | AH31: 1 | AI31: 1 | AJ31: 1 | AK31: 1 | AL31: 1 | AM31: 1 | AN31: 1 | AO31: 1 | AP31: 1 | AQ31: 1 | AR31: 1 | AS31: 1 | AT31: 1 | AU31: 1 | AV31: 1 | AW31: 1 | AX31: 1 | AY31: 1 | AZ31: 1 | BA31: 1 | BB31: 1 | BC31: 1 | BD31: 1 | BE31: 1 | BF31: 1 | BG31: 1 | BH31: 1 | BI31: 1 | BJ31: 1 | BK31: 1 | BL31: 1 | BM31: 1 | BN31: 1 | BO31: 1 | BP31: 1 | BQ31: 1 | BR31: 1 | BS31: 1 | BT31: 1 | BU31: 1 | BV31: 1 | BW31: 1 | BX31: 1 | BY31: 1 | BZ31: 1 | CA31: 1 | CB31: 1 | CC31: 1
A32: PERTH | B32: 1 | C32: 1 | D32: 1 | E32: 1 | F32: 1 | G32: 1 | H32: 1 | I32: 1 | J32: 1 | K32: 1 | L32: 1 | M32: 1 | N32: 1 | O32: 1 | P32: 1 | Q32: 1 | R32: 1 | S32: 1 | T32: 1 | U32: 1 | V32: 1 | W32: 1 | X32: 1 | Y32: 1 | Z32: 1 | AA32: 1 | AB32: 1 | AC32: 1 | AD32: 1 | AE32: 1 | AF32: 1 | AG32: 1 | AH32: 1 | AI32: 1 | AJ32: 1 | AK32: 1 | AL32: 1 | AM32: 1 | AN32: 1 | AO32: 1 | AP32: 1 | AQ32: 1 | AR32: 1 | AS32: 1 | AT32: 1 | AU32: 1 | AV32: 1 | AW32: 1 | AX32: 1 | AY32: 1 | AZ32: 1 | BA32: 1 | BB32: 1 | BC32: 1 | BD32: 1 | BE32: 1 | BF32: 1 | BG32: 1 | BH32: 1 | BI32: 1 | BJ32: 1 | BK32: 1 | BL32: 1 | BM32: 1 | BN32: 1 | BO32: 1 | BP32: 1 | BQ32: 1 | BR32: 1 | BS32: 1 | BT32: 1 | BU32: 1 | BV32: 1 | BW32: 1 | BX32: 1 | BY32: 1 | BZ32: 1 | CA32: 1 | CB32: 1 | CC32: 1
A33: ROCKINGHAM | B33: 1 | C33: 1 | D33: 1 | E33: 1 | F33: 1 | G33: 1 | H33: 1 | I33: 1 | J33: 1 | K33: 1 | L33: 1 | M33: 1 | N33: 1 | O33: 1 | P33: 1 | Q33: 1 | R33: 1 | S33: 1 | T33: 1 | U33: 1 | V33: 1 | W33: 1 | X33: 1 | Y33: 1 | Z33: 1 | AA33: 1 | AB33: 1 | AC33: 1 | AD33: 1 | AE33: 1 | AF33: 1 | AG33: 1 | AH33: 1 | AI33: 1 | AJ33: 1 | AK33: 1 | AL33: 1 | AM33: 1 | AN33: 1 | AO33: 1 | AP33: 1 | AQ33: 1 | AR33: 1 | AS33: 1 | AT33: 1 | AU33: 1 | AV33: 1 | AW33: 1 | AX33: 1 | AY33: 1 | AZ33: 1 | BA33: 1 | BB33: 1 | BC33: 1 | BD33: 1 | BE33: 1 | BF33: 1 | BG33: 1 | BH33: 1 | BI33: 1 | BJ33: 1 | BK33: 1 | BL33: 1 | BM33: 1 | BN33: 1 | BO33: 1 | BP33: 1 | BQ33: 1 | BR33: 1 | BS33: 1 | BT33: 1 | BU33: 1 | BV33: 1 | BW33: 1 | BX33: 1 | BY33: 1 | BZ33: 1 | CA33: 1 | CB33: 1 | CC33: 1
A34: SERPENTINE-JARRAHDALE | B34: 1 | C34: 1 | D34: 1 | E34: 1 | F34: 1 | G34: 1 | H34: 1 | I34: 1 | J34: 1 | K34: 1 | L34: 1 | M34: 1 | N34: 1 | O34: 1 | P34: 1 | Q34: 1 | R34: 1 | S34: 1 | T34: 1 | U34: 1 | V34: 1 | W34: 1 | X34: 1 | Y34: 1 | Z34: 1 | AA34: 1 | AB34: 1 | AC34: 1 | AD34: 1 | AE34: 1 | AF34: 1 | AG34: 1 | AH34: 1 | AI34: 1 | AJ34: 1 | AK34: 1 | AL34: 1 | AM34: 1 | AN34: 1 | AO34: 1 | AP34: 1 | AQ34: 1 | AR34: 1 | AS34: 1 | AT34: 1 | AU34: 1 | AV34: 1 | AW34: 1 | AX34: 1 | AY34: 1 | AZ34: 1 | BA34: 1 | BB34: 1 | BC34: 1 | BD34: 1 | BE34: 1 | BF34: 1 | BG34: 1 | BH34: 1 | BI34: 1 | BJ34: 1 | BK34: 1 | BL34: 1 | BM34: 1 | BN34: 1 | BO34: 1 | BP34: 1 | BQ34: 1 | BR34: 1 | BS34: 1 | BT34: 1 | BU34: 1 | BV34: 1 | BW34: 1 | BX34: 1 | BY34: 1 | BZ34: 1 | CA34: 1 | CB34: 1 | CC34: 1
A35: SOUTH PERTH | B35: 1 | C35: 1 | D35: 1 | E35: 1 | F35: 1 | G35: 1 | H35: 1 | I35: 1 | J35: 1 | K35: 1 | L35: 1 | M35: 1 | N35: 1 | O35: 1 | P35: 1 | Q35: 1 | R35: 1 | S35: 1 | T35: 1 | U35: 1 | V35: 1 | W35: 1 | X35: 1 | Y35: 1 | Z35: 1 | AA35: 1 | AB35: 1 | AC35: 1 | AD35: 1 | AE35: 1 | AF35: 1 | AG35: 1 | AH35: 1 | AI35: 1 | AJ35: 1 | AK35: 1 | AL35: 1 | AM35: 1 | AN35: 1 | AO35: 1 | AP35: 1 | AQ35: 1 | AR35: 1 | AS35: 1 | AT35: 1 | AU35: 1 | AV35: 1 | AW35: 1 | AX35: 1 | AY35: 1 | AZ35: 1 | BA35: 1 | BB35: 1 | BC35: 1 | BD35: 1 | BE35: 1 | BF35: 1 | BG35: 1 | BH35: 1 | BI35: 1 | BJ35: 1 | BK35: 1 | BL35: 1 | BM35: 1 | BN35: 1 | BO35: 1 | BP35: 1 | BQ35: 1 | BR35: 1 | BS35: 1 | BT35: 1 | BU35: 1 | BV35: 1 | BW35: 1 | BX35: 1 | BY35: 1 | BZ35: 1 | CA35: 1 | CB35: 1 | CC35: 1
A36: STIRLING | B36: 1 | C36: 1 | D36: 1 | E36: 1 | F36: 1 | G36: 1 | H36: 1 | I36: 1 | J36: 1 | K36: 1 | L36: 1 | M36: 1 | N36: 1 | O36: 1 | P36: 1 | Q36: 1 | R36: 1 | S36: 1 | T36: 1 | U36: 1 | V36: 1 | W36: 1 | X36: 1 | Y36: 1 | Z36: 1 | AA36: 1 | AB36: 1 | AC36: 1 | AD36: 1 | AE36: 1 | AF36: 1 | AG36: 1 | AH36: 1 | AI36: 1 | AJ36: 1 | AK36: 1 | AL36: 1 | AM36: 1 | AN36: 1 | AO36: 1 | AP36: 1 | AQ36: 1 | AR36: 1 | AS36: 1 | AT36: 1 | AU36: 1 | AV36: 1 | AW36: 1 | AX36: 1 | AY36: 1 | AZ36: 1 | BA36: 1 | BB36: 1 | BC36: 1 | BD36: 1 | BE36: 1 | BF36: 1 | BG36: 1 | BH36: 1 | BI36: 1 | BJ36: 1 | BK36: 1 | BL36: 1 | BM36: 1 | BN36: 1 | BO36: 1 | BP36: 1 | BQ36: 1 | BR36: 1 | BS36: 1 | BT36: 1 | BU36: 1 | BV36: 1 | BW36: 1 | BX36: 1 | BY36: 1 | BZ36: 1 | CA36: 1 | CB36: 1 | CC36: 1
A37: SUBIACO | B37: 1 | C37: 1 | D37: 1 | E37: 1 | F37: 1 | G37: 1 | H37: 1 | I37: 1 | J37: 1 | K37: 1 | L37: 1 | M37: 1 | N37: 1 | O37: 1 | P37: 1 | Q37: 1 | R37: 1 | S37: 1 | T37: 1 | U37: 1 | V37: 1 | W37: 1 | X37: 1 | Y37: 1 | Z37: 1 | AA37: 1 | AB37: 1 | AC37: 1 | AD37: 1 | AE37: 1 | AF37: 1 | AG37: 1 | AH37: 1 | AI37: 1 | AJ37: 1 | AK37: 1 | AL37: 1 | AM37: 1 | AN37: 1 | AO37: 1 | AP37: 1 | AQ37: 1 | AR37: 1 | AS37: 1 | AT37: 1 | AU37: 1 | AV37: 1 | AW37: 1 | AX37: 1 | AY37: 1 | AZ37: 1 | BA37: 1 | BB37: 1 | BC37: 1 | BD37: 1 | BE37: 1 | BF37: 1 | BG37: 1 | BH37: 1 | BI37: 1 | BJ37: 1 | BK37: 1 | BL37: 1 | BM37: 1 | BN37: 1 | BO37: 1 | BP37: 1 | BQ37: 1 | BR37: 1 | BS37: 1 | BT37: 1 | BU37: 1 | BV37: 1 | BW37: 1 | BX37: 1 | BY37: 1 | BZ37: 1 | CA37: 1 | CB37: 1 | CC37: 1
A38: SWAN | B38: 1 | C38: 1 | D38: 1 | E38: 1 | F38: 1 | G38: 1 | H38: 1 | I38: 1 | J38: 1 | K38: 1 | L38: 1 | M38: 1 | N38: 1 | O38: 1 | P38: 1 | Q38: 1 | R38: 1 | S38: 1 | T38: 1 | U38: 1 | V38: 1 | W38: 1 | X38: 1 | Y38: 1 | Z38: 1 | AA38: 1 | AB38: 1 | AC38: 1 | AD38: 1 | AE38: 1 | AF38: 1 | AG38: 1 | AH38: 1 | AI38: 1 | AJ38: 1 | AK38: 1 | AL38: 1 | AM38: 1 | AN38: 1 | AO38: 1 | AP38: 1 | AQ38: 1 | AR38: 1 | AS38: 1 | AT38: 1 | AU38: 1 | AV38: 1 | AW38: 1 | AX38: 1 | AY38: 1 | AZ38: 1 | BA38: 1 | BB38: 1 | BC38: 1 | BD38: 1 | BE38: 1 | BF38: 1 | BG38: 1 | BH38: 1 | BI38: 1 | BJ38: 1 | BK38: 1 | BL38: 1 | BM38: 1 | BN38: 1 | BO38: 1 | BP38: 1 | BQ38: 1 | BR38: 1 | BS38: 1 | BT38: 1 | BU38: 1 | BV38: 1 | BW38: 1 | BX38: 1 | BY38: 1 | BZ38: 1 | CA38: 1 | CB38: 1 | CC38: 1
A39: VICTORIA PARK | B39: 1 | C39: 1 | D39: 1 | E39: 1 | F39: 1 | G39: 1 | H39: 1 | I39: 1 | J39: 1 | K39: 1 | L39: 1 | M39: 1 | N39: 1 | O39: 1 | P39: 1 | Q39: 1 | R39: 1 | S39: 1 | T39: 1 | U39: 1 | V39: 1 | W39: 1 | X39: 1 | Y39: 1 | Z39: 1 | AA39: 1 | AB39: 1 | AC39: 1 | AD39: 1 | AE39: 1 | AF39: 1 | AG39: 1 | AH39: 1 | AI39: 1 | AJ39: 1 | AK39: 1 | AL39: 1 | AM39: 1 | AN39: 1 | AO39: 1 | AP39: 1 | AQ39: 1 | AR39: 1 | AS39: 1 | AT39: 1 | AU39: 1 | AV39: 1 | AW39: 1 | AX39: 1 | AY39: 1 | AZ39: 1 | BA39: 1 | BB39: 1 | BC39: 1 | BD39: 1 | BE39: 1 | BF39: 1 | BG39: 1 | BH39: 1 | BI39: 1 | BJ39: 1 | BK39: 1 | BL39: 1 | BM39: 1 | BN39: 1 | BO39: 1 | BP39: 1 | BQ39: 1 | BR39: 1 | BS39: 1 | BT39: 1 | BU39: 1 | BV39: 1 | BW39: 1 | BX39: 1 | BY39: 1 | BZ39: 1 | CA39: 1 | CB39: 1 | CC39: 1
A40: VINCENT | B40: 1 | C40: 1 | D40: 1 | E40: 1 | F40: 1 | G40: 1 | H40: 1 | I40: 1 | J40: 1 | K40: 1 | L40: 1 | M40: 1 | N40: 1 | O40: 1 | P40: 1 | Q40: 1 | R40: 1 | S40: 1 | T40: 1 | U40: 1 | V40: 1 | W40: 1 | X40: 1 | Y40: 1 | Z40: 1 | AA40: 1 | AB40: 1 | AC40: 1 | AD40: 1 | AE40: 1 | AF40: 1 | AG40: 1 | AH40: 1 | AI40: 1 | AJ40: 1 | AK40: 1 | AL40: 1 | AM40: 1 | AN40: 1 | AO40: 1 | AP40: 1 | AQ40: 1 | AR40: 1 | AS40: 1 | AT40: 1 | AU40: 1 | AV40: 1 | AW40: 1 | AX40: 1 | AY40: 1 | AZ40: 1 | BA40: 1 | BB40: 1 | BC40: 1 | BD40: 1 | BE40: 1 | BF40: 1 | BG40: 1 | BH40: 1 | BI40: 1 | BJ40: 1 | BK40: 1 | BL40: 1 | BM40: 1 | BN40: 1 | BO40: 1 | BP40: 1 | BQ40: 1 | BR40: 1 | BS40: 1 | BT40: 1 | BU40: 1 | BV40: 1 | BW40: 1 | BX40: 1 | BY40: 1 | BZ40: 1 | CA40: 1 | CB40: 1 | CC40: 1
A41: WANNEROO | B41: 1 | C41: 1 | D41: 1 | E41: 1 | F41: 1 | G41: 1 | H41: 1 | I41: 1 | J41: 1 | K41: 1 | L41: 1 | M41: 1 | N41: 1 | O41: 1 | P41: 1 | Q41: 1 | R41: 1 | S41: 1 | T41: 1 | U41: 1 | V41: 1 | W41: 1 | X41: 1 | Y41: 1 | Z41: 1 | AA41: 1 | AB41: 1 | AC41: 1 | AD41: 1 | AE41: 1 | AF41: 1 | AG41: 1 | AH41: 1 | AI41: 1 | AJ41: 1 | AK41: 1 | AL41: 1 | AM41: 1 | AN41: 1 | AO41: 1 | AP41: 1 | AQ41: 1 | AR41: 1 | AS41: 1 | AT41: 1 | AU41: 1 | AV41: 1 | AW41: 1 | AX41: 1 | AY41: 1 | AZ41: 1 | BA41: 1 | BB41: 1 | BC41: 1 | BD41: 1 | BE41: 1 | BF41: 1 | BG41: 1 | BH41: 1 | BI41: 1 | BJ41: 1 | BK41: 1 | BL41: 1 | BM41: 1 | BN41: 1 | BO41: 1 | BP41: 1 | BQ41: 1 | BR41: 1 | BS41: 1 | BT41: 1 | BU41: 1 | BV41: 1 | BW41: 1 | BX41: 1 | BY41: 1 | BZ41: 1 | CA41: 1 | CB41: 1 | CC41: 1
A43: Commercial Network ON/OFF
A44: LGA | B44: 2021 | C44: =B44+1 -> 2022 | D44: =C44+1 -> 2023 | E44: 2024 | F44: 2025 | G44: 2026 | H44: 2027 | I44: 2028 | J44: 2029 | K44: 2030 | L44: 2031 | M44: 2032 | N44: 2033 | O44: 2034 | P44: 2035 | Q44: 2036 | R44: 2037 | S44: 2038 | T44: 2039 | U44: 2040 | V44: 2041 | W44: 2042 | X44: 2043 | Y44: 2044 | Z44: 2045 | AA44: 2046 | AB44: 2047 | AC44: 2048 | AD44: 2049 | AE44: 2050 | AF44: 2051 | AG44: 2052 | AH44: 2053 | AI44: 2054 | AJ44: 2055 | AK44: 2056 | AL44: 2057 | AM44: 2058 | AN44: 2059 | AO44: 2060 | AP44: 2061 | AQ44: 2062 | AR44: 2063 | AS44: 2064 | AT44: 2065 | AU44: 2066 | AV44: 2067 | AW44: 2068 | AX44: 2069 | AY44: 2070 | AZ44: 2071 | BA44: 2072 | BB44: 2073 | BC44: 2074 | BD44: 2075 | BE44: 2076 | BF44: 2077 | BG44: 2078 | BH44: 2079 | BI44: 2080 | BJ44: 2081 | BK44: 2082 | BL44: 2083 | BM44: 2084 | BN44: 2085 | BO44: 2086 | BP44: =BO44+1 -> 2087 | BQ44: 2088 | BR44: 2089 | BS44: 2090 | BT44: 2091 | BU44: 2092 | BV44: 2093 | BW44: 2094 | BX44: 2095 | BY44: 2096 | BZ44: 2097 | CA44: 2098 | CB44: 2099 | CC44: 2100
A45: ARMADALE | B45: 1 | C45: 1 | D45: 1 | E45: 1 | F45: 1 | G45: 1 | H45: 1 | I45: 1 | J45: 1 | K45: 1 | L45: 1 | M45: 1 | N45: 1 | O45: 1 | P45: 1 | Q45: 1 | R45: 1 | S45: 1 | T45: 1 | U45: 1 | V45: 1 | W45: 1 | X45: 1 | Y45: 1 | Z45: 1 | AA45: 1 | AB45: 1 | AC45: 1 | AD45: 1 | AE45: 1 | AF45: 1 | AG45: 1 | AH45: 1 | AI45: 1 | AJ45: 1 | AK45: 1 | AL45: 1 | AM45: 1 | AN45: 1 | AO45: 1 | AP45: 1 | AQ45: 1 | AR45: 1 | AS45: 1 | AT45: 1 | AU45: 1 | AV45: 1 | AW45: 1 | AX45: 1 | AY45: 1 | AZ45: 1 | BA45: 1 | BB45: 1 | BC45: 1 | BD45: 1 | BE45: 1 | BF45: 1 | BG45: 1 | BH45: 1 | BI45: 1 | BJ45: 1 | BK45: 1 | BL45: 1 | BM45: 1 | BN45: 1 | BO45: 1 | BP45: 1 | BQ45: 1 | BR45: 1 | BS45: 1 | BT45: 1 | BU45: 1 | BV45: 1 | BW45: 1 | BX45: 1 | BY45: 1 | BZ45: 1 | CA45: 1 | CB45: 1 | CC45: 1
A46: BASSENDEAN | B46: 1 | C46: 1 | D46: 1 | E46: 1 | F46: 1 | G46: 1 | H46: 1 | I46: 1 | J46: 1 | K46: 1 | L46: 1 | M46: 1 | N46: 1 | O46: 1 | P46: 1 | Q46: 1 | R46: 1 | S46: 1 | T46: 1 | U46: 1 | V46: 1 | W46: 1 | X46: 1 | Y46: 1 | Z46: 1 | AA46: 1 | AB46: 1 | AC46: 1 | AD46: 1 | AE46: 1 | AF46: 1 | AG46: 1 | AH46: 1 | AI46: 1 | AJ46: 1 | AK46: 1 | AL46: 1 | AM46: 1 | AN46: 1 | AO46: 1 | AP46: 1 | AQ46: 1 | AR46: 1 | AS46: 1 | AT46: 1 | AU46: 1 | AV46: 1 | AW46: 1 | AX46: 1 | AY46: 1 | AZ46: 1 | BA46: 1 | BB46: 1 | BC46: 1 | BD46: 1 | BE46: 1 | BF46: 1 | BG46: 1 | BH46: 1 | BI46: 1 | BJ46: 1 | BK46: 1 | BL46: 1 | BM46: 1 | BN46: 1 | BO46: 1 | BP46: 1 | BQ46: 1 | BR46: 1 | BS46: 1 | BT46: 1 | BU46: 1 | BV46: 1 | BW46: 1 | BX46: 1 | BY46: 1 | BZ46: 1 | CA46: 1 | CB46: 1 | CC46: 1
A47: BAYSWATER | B47: 1 | C47: 1 | D47: 1 | E47: 1 | F47: 1 | G47: 1 | H47: 1 | I47: 1 | J47: 1 | K47: 1 | L47: 1 | M47: 1 | N47: 1 | O47: 1 | P47: 1 | Q47: 1 | R47: 1 | S47: 1 | T47: 1 | U47: 1 | V47: 1 | W47: 1 | X47: 1 | Y47: 1 | Z47: 1 | AA47: 1 | AB47: 1 | AC47: 1 | AD47: 1 | AE47: 1 | AF47: 1 | AG47: 1 | AH47: 1 | AI47: 1 | AJ47: 1 | AK47: 1 | AL47: 1 | AM47: 1 | AN47: 1 | AO47: 1 | AP47: 1 | AQ47: 1 | AR47: 1 | AS47: 1 | AT47: 1 | AU47: 1 | AV47: 1 | AW47: 1 | AX47: 1 | AY47: 1 | AZ47: 1 | BA47: 1 | BB47: 1 | BC47: 1 | BD47: 1 | BE47: 1 | BF47: 1 | BG47: 1 | BH47: 1 | BI47: 1 | BJ47: 1 | BK47: 1 | BL47: 1 | BM47: 1 | BN47: 1 | BO47: 1 | BP47: 1 | BQ47: 1 | BR47: 1 | BS47: 1 | BT47: 1 | BU47: 1 | BV47: 1 | BW47: 1 | BX47: 1 | BY47: 1 | BZ47: 1 | CA47: 1 | CB47: 1 | CC47: 1
A48: BELMONT | B48: 1 | C48: 1 | D48: 1 | E48: 1 | F48: 1 | G48: 1 | H48: 1 | I48: 1 | J48: 1 | K48: 1 | L48: 1 | M48: 1 | N48: 1 | O48: 1 | P48: 1 | Q48: 1 | R48: 1 | S48: 1 | T48: 1 | U48: 1 | V48: 1 | W48: 1 | X48: 1 | Y48: 1 | Z48: 1 | AA48: 1 | AB48: 1 | AC48: 1 | AD48: 1 | AE48: 1 | AF48: 1 | AG48: 1 | AH48: 1 | AI48: 1 | AJ48: 1 | AK48: 1 | AL48: 1 | AM48: 1 | AN48: 1 | AO48: 1 | AP48: 1 | AQ48: 1 | AR48: 1 | AS48: 1 | AT48: 1 | AU48: 1 | AV48: 1 | AW48: 1 | AX48: 1 | AY48: 1 | AZ48: 1 | BA48: 1 | BB48: 1 | BC48: 1 | BD48: 1 | BE48: 1 | BF48: 1 | BG48: 1 | BH48: 1 | BI48: 1 | BJ48: 1 | BK48: 1 | BL48: 1 | BM48: 1 | BN48: 1 | BO48: 1 | BP48: 1 | BQ48: 1 | BR48: 1 | BS48: 1 | BT48: 1 | BU48: 1 | BV48: 1 | BW48: 1 | BX48: 1 | BY48: 1 | BZ48: 1 | CA48: 1 | CB48: 1 | CC48: 1
A49: BUNBURY | B49: 1 | C49: 1 | D49: 1 | E49: 1 | F49: 1 | G49: 1 | H49: 1 | I49: 1 | J49: 1 | K49: 1 | L49: 1 | M49: 1 | N49: 1 | O49: 1 | P49: 1 | Q49: 1 | R49: 1 | S49: 1 | T49: 1 | U49: 1 | V49: 1 | W49: 1 | X49: 1 | Y49: 1 | Z49: 1 | AA49: 1 | AB49: 1 | AC49: 1 | AD49: 1 | AE49: 1 | AF49: 1 | AG49: 1 | AH49: 1 | AI49: 1 | AJ49: 1 | AK49: 1 | AL49: 1 | AM49: 1 | AN49: 1 | AO49: 1 | AP49: 1 | AQ49: 1 | AR49: 1 | AS49: 1 | AT49: 1 | AU49: 1 | AV49: 1 | AW49: 1 | AX49: 1 | AY49: 1 | AZ49: 1 | BA49: 1 | BB49: 1 | BC49: 1 | BD49: 1 | BE49: 1 | BF49: 1 | BG49: 1 | BH49: 1 | BI49: 1 | BJ49: 1 | BK49: 1 | BL49: 1 | BM49: 1 | BN49: 1 | BO49: 1 | BP49: 1 | BQ49: 1 | BR49: 1 | BS49: 1 | BT49: 1 | BU49: 1 | BV49: 1 | BW49: 1 | BX49: 1 | BY49: 1 | BZ49: 1 | CA49: 1 | CB49: 1 | CC49: 1
A50: BUSSELTON | B50: 1 | C50: 1 | D50: 1 | E50: 1 | F50: 1 | G50: 1 | H50: 1 | I50: 1 | J50: 1 | K50: 1 | L50: 1 | M50: 1 | N50: 1 | O50: 1 | P50: 1 | Q50: 1 | R50: 1 | S50: 1 | T50: 1 | U50: 1 | V50: 1 | W50: 1 | X50: 1 | Y50: 1 | Z50: 1 | AA50: 1 | AB50: 1 | AC50: 1 | AD50: 1 | AE50: 1 | AF50: 1 | AG50: 1 | AH50: 1 | AI50: 1 | AJ50: 1 | AK50: 1 | AL50: 1 | AM50: 1 | AN50: 1 | AO50: 1 | AP50: 1 | AQ50: 1 | AR50: 1 | AS50: 1 | AT50: 1 | AU50: 1 | AV50: 1 | AW50: 1 | AX50: 1 | AY50: 1 | AZ50: 1 | BA50: 1 | BB50: 1 | BC50: 1 | BD50: 1 | BE50: 1 | BF50: 1 | BG50: 1 | BH50: 1 | BI50: 1 | BJ50: 1 | BK50: 1 | BL50: 1 | BM50: 1 | BN50: 1 | BO50: 1 | BP50: 1 | BQ50: 1 | BR50: 1 | BS50: 1 | BT50: 1 | BU50: 1 | BV50: 1 | BW50: 1 | BX50: 1 | BY50: 1 | BZ50: 1 | CA50: 1 | CB50: 1 | CC50: 1
A51: CAMBRIDGE | B51: 1 | C51: 1 | D51: 1 | E51: 1 | F51: 1 | G51: 1 | H51: 1 | I51: 1 | J51: 1 | K51: 1 | L51: 1 | M51: 1 | N51: 1 | O51: 1 | P51: 1 | Q51: 1 | R51: 1 | S51: 1 | T51: 1 | U51: 1 | V51: 1 | W51: 1 | X51: 1 | Y51: 1 | Z51: 1 | AA51: 1 | AB51: 1 | AC51: 1 | AD51: 1 | AE51: 1 | AF51: 1 | AG51: 1 | AH51: 1 | AI51: 1 | AJ51: 1 | AK51: 1 | AL51: 1 | AM51: 1 | AN51: 1 | AO51: 1 | AP51: 1 | AQ51: 1 | AR51: 1 | AS51: 1 | AT51: 1 | AU51: 1 | AV51: 1 | AW51: 1 | AX51: 1 | AY51: 1 | AZ51: 1 | BA51: 1 | BB51: 1 | BC51: 1 | BD51: 1 | BE51: 1 | BF51: 1 | BG51: 1 | BH51: 1 | BI51: 1 | BJ51: 1 | BK51: 1 | BL51: 1 | BM51: 1 | BN51: 1 | BO51: 1 | BP51: 1 | BQ51: 1 | BR51: 1 | BS51: 1 | BT51: 1 | BU51: 1 | BV51: 1 | BW51: 1 | BX51: 1 | BY51: 1 | BZ51: 1 | CA51: 1 | CB51: 1 | CC51: 1
A52: CANNING | B52: 1 | C52: 1 | D52: 1 | E52: 1 | F52: 1 | G52: 1 | H52: 1 | I52: 1 | J52: 1 | K52: 1 | L52: 1 | M52: 1 | N52: 1 | O52: 1 | P52: 1 | Q52: 1 | R52: 1 | S52: 1 | T52: 1 | U52: 1 | V52: 1 | W52: 1 | X52: 1 | Y52: 1 | Z52: 1 | AA52: 1 | AB52: 1 | AC52: 1 | AD52: 1 | AE52: 1 | AF52: 1 | AG52: 1 | AH52: 1 | AI52: 1 | AJ52: 1 | AK52: 1 | AL52: 1 | AM52: 1 | AN52: 1 | AO52: 1 | AP52: 1 | AQ52: 1 | AR52: 1 | AS52: 1 | AT52: 1 | AU52: 1 | AV52: 1 | AW52: 1 | AX52: 1 | AY52: 1 | AZ52: 1 | BA52: 1 | BB52: 1 | BC52: 1 | BD52: 1 | BE52: 1 | BF52: 1 | BG52: 1 | BH52: 1 | BI52: 1 | BJ52: 1 | BK52: 1 | BL52: 1 | BM52: 1 | BN52: 1 | BO52: 1 | BP52: 1 | BQ52: 1 | BR52: 1 | BS52: 1 | BT52: 1 | BU52: 1 | BV52: 1 | BW52: 1 | BX52: 1 | BY52: 1 | BZ52: 1 | CA52: 1 | CB52: 1 | CC52: 1
A53: CAPEL | B53: 1 | C53: 1 | D53: 1 | E53: 1 | F53: 1 | G53: 1 | H53: 1 | I53: 1 | J53: 1 | K53: 1 | L53: 1 | M53: 1 | N53: 1 | O53: 1 | P53: 1 | Q53: 1 | R53: 1 | S53: 1 | T53: 1 | U53: 1 | V53: 1 | W53: 1 | X53: 1 | Y53: 1 | Z53: 1 | AA53: 1 | AB53: 1 | AC53: 1 | AD53: 1 | AE53: 1 | AF53: 1 | AG53: 1 | AH53: 1 | AI53: 1 | AJ53: 1 | AK53: 1 | AL53: 1 | AM53: 1 | AN53: 1 | AO53: 1 | AP53: 1 | AQ53: 1 | AR53: 1 | AS53: 1 | AT53: 1 | AU53: 1 | AV53: 1 | AW53: 1 | AX53: 1 | AY53: 1 | AZ53: 1 | BA53: 1 | BB53: 1 | BC53: 1 | BD53: 1 | BE53: 1 | BF53: 1 | BG53: 1 | BH53: 1 | BI53: 1 | BJ53: 1 | BK53: 1 | BL53: 1 | BM53: 1 | BN53: 1 | BO53: 1 | BP53: 1 | BQ53: 1 | BR53: 1 | BS53: 1 | BT53: 1 | BU53: 1 | BV53: 1 | BW53: 1 | BX53: 1 | BY53: 1 | BZ53: 1 | CA53: 1 | CB53: 1 | CC53: 1
A54: CHITTERING | B54: 1 | C54: 1 | D54: 1 | E54: 1 | F54: 1 | G54: 1 | H54: 1 | I54: 1 | J54: 1 | K54: 1 | L54: 1 | M54: 1 | N54: 1 | O54: 1 | P54: 1 | Q54: 1 | R54: 1 | S54: 1 | T54: 1 | U54: 1 | V54: 1 | W54: 1 | X54: 1 | Y54: 1 | Z54: 1 | AA54: 1 | AB54: 1 | AC54: 1 | AD54: 1 | AE54: 1 | AF54: 1 | AG54: 1 | AH54: 1 | AI54: 1 | AJ54: 1 | AK54: 1 | AL54: 1 | AM54: 1 | AN54: 1 | AO54: 1 | AP54: 1 | AQ54: 1 | AR54: 1 | AS54: 1 | AT54: 1 | AU54: 1 | AV54: 1 | AW54: 1 | AX54: 1 | AY54: 1 | AZ54: 1 | BA54: 1 | BB54: 1 | BC54: 1 | BD54: 1 | BE54: 1 | BF54: 1 | BG54: 1 | BH54: 1 | BI54: 1 | BJ54: 1 | BK54: 1 | BL54: 1 | BM54: 1 | BN54: 1 | BO54: 1 | BP54: 1 | BQ54: 1 | BR54: 1 | BS54: 1 | BT54: 1 | BU54: 1 | BV54: 1 | BW54: 1 | BX54: 1 | BY54: 1 | BZ54: 1 | CA54: 1 | CB54: 1 | CC54: 1
A55: COCKBURN | B55: 1 | C55: 1 | D55: 1 | E55: 1 | F55: 1 | G55: 1 | H55: 1 | I55: 1 | J55: 1 | K55: 1 | L55: 1 | M55: 1 | N55: 1 | O55: 1 | P55: 1 | Q55: 1 | R55: 1 | S55: 1 | T55: 1 | U55: 1 | V55: 1 | W55: 1 | X55: 1 | Y55: 1 | Z55: 1 | AA55: 1 | AB55: 1 | AC55: 1 | AD55: 1 | AE55: 1 | AF55: 1 | AG55: 1 | AH55: 1 | AI55: 1 | AJ55: 1 | AK55: 1 | AL55: 1 | AM55: 1 | AN55: 1 | AO55: 1 | AP55: 1 | AQ55: 1 | AR55: 1 | AS55: 1 | AT55: 1 | AU55: 1 | AV55: 1 | AW55: 1 | AX55: 1 | AY55: 1 | AZ55: 1 | BA55: 1 | BB55: 1 | BC55: 1 | BD55: 1 | BE55: 1 | BF55: 1 | BG55: 1 | BH55: 1 | BI55: 1 | BJ55: 1 | BK55: 1 | BL55: 1 | BM55: 1 | BN55: 1 | BO55: 1 | BP55: 1 | BQ55: 1 | BR55: 1 | BS55: 1 | BT55: 1 | BU55: 1 | BV55: 1 | BW55: 1 | BX55: 1 | BY55: 1 | BZ55: 1 | CA55: 1 | CB55: 1 | CC55: 1
A56: COTTESLOE | B56: 1 | C56: 1 | D56: 1 | E56: 1 | F56: 1 | G56: 1 | H56: 1 | I56: 1 | J56: 1 | K56: 1 | L56: 1 | M56: 1 | N56: 1 | O56: 1 | P56: 1 | Q56: 1 | R56: 1 | S56: 1 | T56: 1 | U56: 1 | V56: 1 | W56: 1 | X56: 1 | Y56: 1 | Z56: 1 | AA56: 1 | AB56: 1 | AC56: 1 | AD56: 1 | AE56: 1 | AF56: 1 | AG56: 1 | AH56: 1 | AI56: 1 | AJ56: 1 | AK56: 1 | AL56: 1 | AM56: 1 | AN56: 1 | AO56: 1 | AP56: 1 | AQ56: 1 | AR56: 1 | AS56: 1 | AT56: 1 | AU56: 1 | AV56: 1 | AW56: 1 | AX56: 1 | AY56: 1 | AZ56: 1 | BA56: 1 | BB56: 1 | BC56: 1 | BD56: 1 | BE56: 1 | BF56: 1 | BG56: 1 | BH56: 1 | BI56: 1 | BJ56: 1 | BK56: 1 | BL56: 1 | BM56: 1 | BN56: 1 | BO56: 1 | BP56: 1 | BQ56: 1 | BR56: 1 | BS56: 1 | BT56: 1 | BU56: 1 | BV56: 1 | BW56: 1 | BX56: 1 | BY56: 1 | BZ56: 1 | CA56: 1 | CB56: 1 | CC56: 1
A57: DARDANUP | B57: 1 | C57: 1 | D57: 1 | E57: 1 | F57: 1 | G57: 1 | H57: 1 | I57: 1 | J57: 1 | K57: 1 | L57: 1 | M57: 1 | N57: 1 | O57: 1 | P57: 1 | Q57: 1 | R57: 1 | S57: 1 | T57: 1 | U57: 1 | V57: 1 | W57: 1 | X57: 1 | Y57: 1 | Z57: 1 | AA57: 1 | AB57: 1 | AC57: 1 | AD57: 1 | AE57: 1 | AF57: 1 | AG57: 1 | AH57: 1 | AI57: 1 | AJ57: 1 | AK57: 1 | AL57: 1 | AM57: 1 | AN57: 1 | AO57: 1 | AP57: 1 | AQ57: 1 | AR57: 1 | AS57: 1 | AT57: 1 | AU57: 1 | AV57: 1 | AW57: 1 | AX57: 1 | AY57: 1 | AZ57: 1 | BA57: 1 | BB57: 1 | BC57: 1 | BD57: 1 | BE57: 1 | BF57: 1 | BG57: 1 | BH57: 1 | BI57: 1 | BJ57: 1 | BK57: 1 | BL57: 1 | BM57: 1 | BN57: 1 | BO57: 1 | BP57: 1 | BQ57: 1 | BR57: 1 | BS57: 1 | BT57: 1 | BU57: 1 | BV57: 1 | BW57: 1 | BX57: 1 | BY57: 1 | BZ57: 1 | CA57: 1 | CB57: 1 | CC57: 1
A58: EAST FREMANTLE | B58: 1 | C58: 1 | D58: 1 | E58: 1 | F58: 1 | G58: 1 | H58: 1 | I58: 1 | J58: 1 | K58: 1 | L58: 1 | M58: 1 | N58: 1 | O58: 1 | P58: 1 | Q58: 1 | R58: 1 | S58: 1 | T58: 1 | U58: 1 | V58: 1 | W58: 1 | X58: 1 | Y58: 1 | Z58: 1 | AA58: 1 | AB58: 1 | AC58: 1 | AD58: 1 | AE58: 1 | AF58: 1 | AG58: 1 | AH58: 1 | AI58: 1 | AJ58: 1 | AK58: 1 | AL58: 1 | AM58: 1 | AN58: 1 | AO58: 1 | AP58: 1 | AQ58: 1 | AR58: 1 | AS58: 1 | AT58: 1 | AU58: 1 | AV58: 1 | AW58: 1 | AX58: 1 | AY58: 1 | AZ58: 1 | BA58: 1 | BB58: 1 | BC58: 1 | BD58: 1 | BE58: 1 | BF58: 1 | BG58: 1 | BH58: 1 | BI58: 1 | BJ58: 1 | BK58: 1 | BL58: 1 | BM58: 1 | BN58: 1 | BO58: 1 | BP58: 1 | BQ58: 1 | BR58: 1 | BS58: 1 | BT58: 1 | BU58: 1 | BV58: 1 | BW58: 1 | BX58: 1 | BY58: 1 | BZ58: 1 | CA58: 1 | CB58: 1 | CC58: 1
A59: FREMANTLE | B59: 1 | C59: 1 | D59: 1 | E59: 1 | F59: 1 | G59: 1 | H59: 1 | I59: 1 | J59: 1 | K59: 1 | L59: 1 | M59: 1 | N59: 1 | O59: 1 | P59: 1 | Q59: 1 | R59: 1 | S59: 1 | T59: 1 | U59: 1 | V59: 1 | W59: 1 | X59: 1 | Y59: 1 | Z59: 1 | AA59: 1 | AB59: 1 | AC59: 1 | AD59: 1 | AE59: 1 | AF59: 1 | AG59: 1 | AH59: 1 | AI59: 1 | AJ59: 1 | AK59: 1 | AL59: 1 | AM59: 1 | AN59: 1 | AO59: 1 | AP59: 1 | AQ59: 1 | AR59: 1 | AS59: 1 | AT59: 1 | AU59: 1 | AV59: 1 | AW59: 1 | AX59: 1 | AY59: 1 | AZ59: 1 | BA59: 1 | BB59: 1 | BC59: 1 | BD59: 1 | BE59: 1 | BF59: 1 | BG59: 1 | BH59: 1 | BI59: 1 | BJ59: 1 | BK59: 1 | BL59: 1 | BM59: 1 | BN59: 1 | BO59: 1 | BP59: 1 | BQ59: 1 | BR59: 1 | BS59: 1 | BT59: 1 | BU59: 1 | BV59: 1 | BW59: 1 | BX59: 1 | BY59: 1 | BZ59: 1 | CA59: 1 | CB59: 1 | CC59: 1
A60: GOSNELLS | B60: 1 | C60: 1 | D60: 1 | E60: 1 | F60: 1 | G60: 1 | H60: 1 | I60: 1 | J60: 1 | K60: 1 | L60: 1 | M60: 1 | N60: 1 | O60: 1 | P60: 1 | Q60: 1 | R60: 1 | S60: 1 | T60: 1 | U60: 1 | V60: 1 | W60: 1 | X60: 1 | Y60: 1 | Z60: 1 | AA60: 1 | AB60: 1 | AC60: 1 | AD60: 1 | AE60: 1 | AF60: 1 | AG60: 1 | AH60: 1 | AI60: 1 | AJ60: 1 | AK60: 1 | AL60: 1 | AM60: 1 | AN60: 1 | AO60: 1 | AP60: 1 | AQ60: 1 | AR60: 1 | AS60: 1 | AT60: 1 | AU60: 1 | AV60: 1 | AW60: 1 | AX60: 1 | AY60: 1 | AZ60: 1 | BA60: 1 | BB60: 1 | BC60: 1 | BD60: 1 | BE60: 1 | BF60: 1 | BG60: 1 | BH60: 1 | BI60: 1 | BJ60: 1 | BK60: 1 | BL60: 1 | BM60: 1 | BN60: 1 | BO60: 1 | BP60: 1 | BQ60: 1 | BR60: 1 | BS60: 1 | BT60: 1 | BU60: 1 | BV60: 1 | BW60: 1 | BX60: 1 | BY60: 1 | BZ60: 1 | CA60: 1 | CB60: 1 | CC60: 1
A61: GREATER GERALDTON | B61: 1 | C61: 1 | D61: 1 | E61: 1 | F61: 1 | G61: 1 | H61: 1 | I61: 1 | J61: 1 | K61: 1 | L61: 1 | M61: 1 | N61: 1 | O61: 1 | P61: 1 | Q61: 1 | R61: 1 | S61: 1 | T61: 1 | U61: 1 | V61: 1 | W61: 1 | X61: 1 | Y61: 1 | Z61: 1 | AA61: 1 | AB61: 1 | AC61: 1 | AD61: 1 | AE61: 1 | AF61: 1 | AG61: 1 | AH61: 1 | AI61: 1 | AJ61: 1 | AK61: 1 | AL61: 1 | AM61: 1 | AN61: 1 | AO61: 1 | AP61: 1 | AQ61: 1 | AR61: 1 | AS61: 1 | AT61: 1 | AU61: 1 | AV61: 1 | AW61: 1 | AX61: 1 | AY61: 1 | AZ61: 1 | BA61: 1 | BB61: 1 | BC61: 1 | BD61: 1 | BE61: 1 | BF61: 1 | BG61: 1 | BH61: 1 | BI61: 1 | BJ61: 1 | BK61: 1 | BL61: 1 | BM61: 1 | BN61: 1 | BO61: 1 | BP61: 1 | BQ61: 1 | BR61: 1 | BS61: 1 | BT61: 1 | BU61: 1 | BV61: 1 | BW61: 1 | BX61: 1 | BY61: 1 | BZ61: 1 | CA61: 1 | CB61: 1 | CC61: 1
A62: HARVEY | B62: 1 | C62: 1 | D62: 1 | E62: 1 | F62: 1 | G62: 1 | H62: 1 | I62: 1 | J62: 1 | K62: 1 | L62: 1 | M62: 1 | N62: 1 | O62: 1 | P62: 1 | Q62: 1 | R62: 1 | S62: 1 | T62: 1 | U62: 1 | V62: 1 | W62: 1 | X62: 1 | Y62: 1 | Z62: 1 | AA62: 1 | AB62: 1 | AC62: 1 | AD62: 1 | AE62: 1 | AF62: 1 | AG62: 1 | AH62: 1 | AI62: 1 | AJ62: 1 | AK62: 1 | AL62: 1 | AM62: 1 | AN62: 1 | AO62: 1 | AP62: 1 | AQ62: 1 | AR62: 1 | AS62: 1 | AT62: 1 | AU62: 1 | AV62: 1 | AW62: 1 | AX62: 1 | AY62: 1 | AZ62: 1 | BA62: 1 | BB62: 1 | BC62: 1 | BD62: 1 | BE62: 1 | BF62: 1 | BG62: 1 | BH62: 1 | BI62: 1 | BJ62: 1 | BK62: 1 | BL62: 1 | BM62: 1 | BN62: 1 | BO62: 1 | BP62: 1 | BQ62: 1 | BR62: 1 | BS62: 1 | BT62: 1 | BU62: 1 | BV62: 1 | BW62: 1 | BX62: 1 | BY62: 1 | BZ62: 1 | CA62: 1 | CB62: 1 | CC62: 1
A63: JOONDALUP | B63: 1 | C63: 1 | D63: 1 | E63: 1 | F63: 1 | G63: 1 | H63: 1 | I63: 1 | J63: 1 | K63: 1 | L63: 1 | M63: 1 | N63: 1 | O63: 1 | P63: 1 | Q63: 1 | R63: 1 | S63: 1 | T63: 1 | U63: 1 | V63: 1 | W63: 1 | X63: 1 | Y63: 1 | Z63: 1 | AA63: 1 | AB63: 1 | AC63: 1 | AD63: 1 | AE63: 1 | AF63: 1 | AG63: 1 | AH63: 1 | AI63: 1 | AJ63: 1 | AK63: 1 | AL63: 1 | AM63: 1 | AN63: 1 | AO63: 1 | AP63: 1 | AQ63: 1 | AR63: 1 | AS63: 1 | AT63: 1 | AU63: 1 | AV63: 1 | AW63: 1 | AX63: 1 | AY63: 1 | AZ63: 1 | BA63: 1 | BB63: 1 | BC63: 1 | BD63: 1 | BE63: 1 | BF63: 1 | BG63: 1 | BH63: 1 | BI63: 1 | BJ63: 1 | BK63: 1 | BL63: 1 | BM63: 1 | BN63: 1 | BO63: 1 | BP63: 1 | BQ63: 1 | BR63: 1 | BS63: 1 | BT63: 1 | BU63: 1 | BV63: 1 | BW63: 1 | BX63: 1 | BY63: 1 | BZ63: 1 | CA63: 1 | CB63: 1 | CC63: 1
A64: KALAMUNDA | B64: 1 | C64: 1 | D64: 1 | E64: 1 | F64: 1 | G64: 1 | H64: 1 | I64: 1 | J64: 1 | K64: 1 | L64: 1 | M64: 1 | N64: 1 | O64: 1 | P64: 1 | Q64: 1 | R64: 1 | S64: 1 | T64: 1 | U64: 1 | V64: 1 | W64: 1 | X64: 1 | Y64: 1 | Z64: 1 | AA64: 1 | AB64: 1 | AC64: 1 | AD64: 1 | AE64: 1 | AF64: 1 | AG64: 1 | AH64: 1 | AI64: 1 | AJ64: 1 | AK64: 1 | AL64: 1 | AM64: 1 | AN64: 1 | AO64: 1 | AP64: 1 | AQ64: 1 | AR64: 1 | AS64: 1 | AT64: 1 | AU64: 1 | AV64: 1 | AW64: 1 | AX64: 1 | AY64: 1 | AZ64: 1 | BA64: 1 | BB64: 1 | BC64: 1 | BD64: 1 | BE64: 1 | BF64: 1 | BG64: 1 | BH64: 1 | BI64: 1 | BJ64: 1 | BK64: 1 | BL64: 1 | BM64: 1 | BN64: 1 | BO64: 1 | BP64: 1 | BQ64: 1 | BR64: 1 | BS64: 1 | BT64: 1 | BU64: 1 | BV64: 1 | BW64: 1 | BX64: 1 | BY64: 1 | BZ64: 1 | CA64: 1 | CB64: 1 | CC64: 1
A65: KWINANA | B65: 1 | C65: 1 | D65: 1 | E65: 1 | F65: 1 | G65: 1 | H65: 1 | I65: 1 | J65: 1 | K65: 1 | L65: 1 | M65: 1 | N65: 1 | O65: 1 | P65: 1 | Q65: 1 | R65: 1 | S65: 1 | T65: 1 | U65: 1 | V65: 1 | W65: 1 | X65: 1 | Y65: 1 | Z65: 1 | AA65: 1 | AB65: 1 | AC65: 1 | AD65: 1 | AE65: 1 | AF65: 1 | AG65: 1 | AH65: 1 | AI65: 1 | AJ65: 1 | AK65: 1 | AL65: 1 | AM65: 1 | AN65: 1 | AO65: 1 | AP65: 1 | AQ65: 1 | AR65: 1 | AS65: 1 | AT65: 1 | AU65: 1 | AV65: 1 | AW65: 1 | AX65: 1 | AY65: 1 | AZ65: 1 | BA65: 1 | BB65: 1 | BC65: 1 | BD65: 1 | BE65: 1 | BF65: 1 | BG65: 1 | BH65: 1 | BI65: 1 | BJ65: 1 | BK65: 1 | BL65: 1 | BM65: 1 | BN65: 1 | BO65: 1 | BP65: 1 | BQ65: 1 | BR65: 1 | BS65: 1 | BT65: 1 | BU65: 1 | BV65: 1 | BW65: 1 | BX65: 1 | BY65: 1 | BZ65: 1 | CA65: 1 | CB65: 1 | CC65: 1
A66: MANDURAH | B66: 1 | C66: 1 | D66: 1 | E66: 1 | F66: 1 | G66: 1 | H66: 1 | I66: 1 | J66: 1 | K66: 1 | L66: 1 | M66: 1 | N66: 1 | O66: 1 | P66: 1 | Q66: 1 | R66: 1 | S66: 1 | T66: 1 | U66: 1 | V66: 1 | W66: 1 | X66: 1 | Y66: 1 | Z66: 1 | AA66: 1 | AB66: 1 | AC66: 1 | AD66: 1 | AE66: 1 | AF66: 1 | AG66: 1 | AH66: 1 | AI66: 1 | AJ66: 1 | AK66: 1 | AL66: 1 | AM66: 1 | AN66: 1 | AO66: 1 | AP66: 1 | AQ66: 1 | AR66: 1 | AS66: 1 | AT66: 1 | AU66: 1 | AV66: 1 | AW66: 1 | AX66: 1 | AY66: 1 | AZ66: 1 | BA66: 1 | BB66: 1 | BC66: 1 | BD66: 1 | BE66: 1 | BF66: 1 | BG66: 1 | BH66: 1 | BI66: 1 | BJ66: 1 | BK66: 1 | BL66: 1 | BM66: 1 | BN66: 1 | BO66: 1 | BP66: 1 | BQ66: 1 | BR66: 1 | BS66: 1 | BT66: 1 | BU66: 1 | BV66: 1 | BW66: 1 | BX66: 1 | BY66: 1 | BZ66: 1 | CA66: 1 | CB66: 1 | CC66: 1
A67: MELVILLE | B67: 1 | C67: 1 | D67: 1 | E67: 1 | F67: 1 | G67: 1 | H67: 1 | I67: 1 | J67: 1 | K67: 1 | L67: 1 | M67: 1 | N67: 1 | O67: 1 | P67: 1 | Q67: 1 | R67: 1 | S67: 1 | T67: 1 | U67: 1 | V67: 1 | W67: 1 | X67: 1 | Y67: 1 | Z67: 1 | AA67: 1 | AB67: 1 | AC67: 1 | AD67: 1 | AE67: 1 | AF67: 1 | AG67: 1 | AH67: 1 | AI67: 1 | AJ67: 1 | AK67: 1 | AL67: 1 | AM67: 1 | AN67: 1 | AO67: 1 | AP67: 1 | AQ67: 1 | AR67: 1 | AS67: 1 | AT67: 1 | AU67: 1 | AV67: 1 | AW67: 1 | AX67: 1 | AY67: 1 | AZ67: 1 | BA67: 1 | BB67: 1 | BC67: 1 | BD67: 1 | BE67: 1 | BF67: 1 | BG67: 1 | BH67: 1 | BI67: 1 | BJ67: 1 | BK67: 1 | BL67: 1 | BM67: 1 | BN67: 1 | BO67: 1 | BP67: 1 | BQ67: 1 | BR67: 1 | BS67: 1 | BT67: 1 | BU67: 1 | BV67: 1 | BW67: 1 | BX67: 1 | BY67: 1 | BZ67: 1 | CA67: 1 | CB67: 1 | CC67: 1
A68: MOSMAN PARK | B68: 1 | C68: 1 | D68: 1 | E68: 1 | F68: 1 | G68: 1 | H68: 1 | I68: 1 | J68: 1 | K68: 1 | L68: 1 | M68: 1 | N68: 1 | O68: 1 | P68: 1 | Q68: 1 | R68: 1 | S68: 1 | T68: 1 | U68: 1 | V68: 1 | W68: 1 | X68: 1 | Y68: 1 | Z68: 1 | AA68: 1 | AB68: 1 | AC68: 1 | AD68: 1 | AE68: 1 | AF68: 1 | AG68: 1 | AH68: 1 | AI68: 1 | AJ68: 1 | AK68: 1 | AL68: 1 | AM68: 1 | AN68: 1 | AO68: 1 | AP68: 1 | AQ68: 1 | AR68: 1 | AS68: 1 | AT68: 1 | AU68: 1 | AV68: 1 | AW68: 1 | AX68: 1 | AY68: 1 | AZ68: 1 | BA68: 1 | BB68: 1 | BC68: 1 | BD68: 1 | BE68: 1 | BF68: 1 | BG68: 1 | BH68: 1 | BI68: 1 | BJ68: 1 | BK68: 1 | BL68: 1 | BM68: 1 | BN68: 1 | BO68: 1 | BP68: 1 | BQ68: 1 | BR68: 1 | BS68: 1 | BT68: 1 | BU68: 1 | BV68: 1 | BW68: 1 | BX68: 1 | BY68: 1 | BZ68: 1 | CA68: 1 | CB68: 1 | CC68: 1
A69: MUNDARING | B69: 1 | C69: 1 | D69: 1 | E69: 1 | F69: 1 | G69: 1 | H69: 1 | I69: 1 | J69: 1 | K69: 1 | L69: 1 | M69: 1 | N69: 1 | O69: 1 | P69: 1 | Q69: 1 | R69: 1 | S69: 1 | T69: 1 | U69: 1 | V69: 1 | W69: 1 | X69: 1 | Y69: 1 | Z69: 1 | AA69: 1 | AB69: 1 | AC69: 1 | AD69: 1 | AE69: 1 | AF69: 1 | AG69: 1 | AH69: 1 | AI69: 1 | AJ69: 1 | AK69: 1 | AL69: 1 | AM69: 1 | AN69: 1 | AO69: 1 | AP69: 1 | AQ69: 1 | AR69: 1 | AS69: 1 | AT69: 1 | AU69: 1 | AV69: 1 | AW69: 1 | AX69: 1 | AY69: 1 | AZ69: 1 | BA69: 1 | BB69: 1 | BC69: 1 | BD69: 1 | BE69: 1 | BF69: 1 | BG69: 1 | BH69: 1 | BI69: 1 | BJ69: 1 | BK69: 1 | BL69: 1 | BM69: 1 | BN69: 1 | BO69: 1 | BP69: 1 | BQ69: 1 | BR69: 1 | BS69: 1 | BT69: 1 | BU69: 1 | BV69: 1 | BW69: 1 | BX69: 1 | BY69: 1 | BZ69: 1 | CA69: 1 | CB69: 1 | CC69: 1
A70: MURRAY | B70: 1 | C70: 1 | D70: 1 | E70: 1 | F70: 1 | G70: 1 | H70: 1 | I70: 1 | J70: 1 | K70: 1 | L70: 1 | M70: 1 | N70: 1 | O70: 1 | P70: 1 | Q70: 1 | R70: 1 | S70: 1 | T70: 1 | U70: 1 | V70: 1 | W70: 1 | X70: 1 | Y70: 1 | Z70: 1 | AA70: 1 | AB70: 1 | AC70: 1 | AD70: 1 | AE70: 1 | AF70: 1 | AG70: 1 | AH70: 1 | AI70: 1 | AJ70: 1 | AK70: 1 | AL70: 1 | AM70: 1 | AN70: 1 | AO70: 1 | AP70: 1 | AQ70: 1 | AR70: 1 | AS70: 1 | AT70: 1 | AU70: 1 | AV70: 1 | AW70: 1 | AX70: 1 | AY70: 1 | AZ70: 1 | BA70: 1 | BB70: 1 | BC70: 1 | BD70: 1 | BE70: 1 | BF70: 1 | BG70: 1 | BH70: 1 | BI70: 1 | BJ70: 1 | BK70: 1 | BL70: 1 | BM70: 1 | BN70: 1 | BO70: 1 | BP70: 1 | BQ70: 1 | BR70: 1 | BS70: 1 | BT70: 1 | BU70: 1 | BV70: 1 | BW70: 1 | BX70: 1 | BY70: 1 | BZ70: 1 | CA70: 1 | CB70: 1 | CC70: 1
A71: NEDLANDS | B71: 1 | C71: 1 | D71: 1 | E71: 1 | F71: 1 | G71: 1 | H71: 1 | I71: 1 | J71: 1 | K71: 1 | L71: 1 | M71: 1 | N71: 1 | O71: 1 | P71: 1 | Q71: 1 | R71: 1 | S71: 1 | T71: 1 | U71: 1 | V71: 1 | W71: 1 | X71: 1 | Y71: 1 | Z71: 1 | AA71: 1 | AB71: 1 | AC71: 1 | AD71: 1 | AE71: 1 | AF71: 1 | AG71: 1 | AH71: 1 | AI71: 1 | AJ71: 1 | AK71: 1 | AL71: 1 | AM71: 1 | AN71: 1 | AO71: 1 | AP71: 1 | AQ71: 1 | AR71: 1 | AS71: 1 | AT71: 1 | AU71: 1 | AV71: 1 | AW71: 1 | AX71: 1 | AY71: 1 | AZ71: 1 | BA71: 1 | BB71: 1 | BC71: 1 | BD71: 1 | BE71: 1 | BF71: 1 | BG71: 1 | BH71: 1 | BI71: 1 | BJ71: 1 | BK71: 1 | BL71: 1 | BM71: 1 | BN71: 1 | BO71: 1 | BP71: 1 | BQ71: 1 | BR71: 1 | BS71: 1 | BT71: 1 | BU71: 1 | BV71: 1 | BW71: 1 | BX71: 1 | BY71: 1 | BZ71: 1 | CA71: 1 | CB71: 1 | CC71: 1
A72: PEPPERMINT GROVE | B72: 1 | C72: 1 | D72: 1 | E72: 1 | F72: 1 | G72: 1 | H72: 1 | I72: 1 | J72: 1 | K72: 1 | L72: 1 | M72: 1 | N72: 1 | O72: 1 | P72: 1 | Q72: 1 | R72: 1 | S72: 1 | T72: 1 | U72: 1 | V72: 1 | W72: 1 | X72: 1 | Y72: 1 | Z72: 1 | AA72: 1 | AB72: 1 | AC72: 1 | AD72: 1 | AE72: 1 | AF72: 1 | AG72: 1 | AH72: 1 | AI72: 1 | AJ72: 1 | AK72: 1 | AL72: 1 | AM72: 1 | AN72: 1 | AO72: 1 | AP72: 1 | AQ72: 1 | AR72: 1 | AS72: 1 | AT72: 1 | AU72: 1 | AV72: 1 | AW72: 1 | AX72: 1 | AY72: 1 | AZ72: 1 | BA72: 1 | BB72: 1 | BC72: 1 | BD72: 1 | BE72: 1 | BF72: 1 | BG72: 1 | BH72: 1 | BI72: 1 | BJ72: 1 | BK72: 1 | BL72: 1 | BM72: 1 | BN72: 1 | BO72: 1 | BP72: 1 | BQ72: 1 | BR72: 1 | BS72: 1 | BT72: 1 | BU72: 1 | BV72: 1 | BW72: 1 | BX72: 1 | BY72: 1 | BZ72: 1 | CA72: 1 | CB72: 1 | CC72: 1
A73: PERTH | B73: 1 | C73: 1 | D73: 1 | E73: 1 | F73: 1 | G73: 1 | H73: 1 | I73: 1 | J73: 1 | K73: 1 | L73: 1 | M73: 1 | N73: 1 | O73: 1 | P73: 1 | Q73: 1 | R73: 1 | S73: 1 | T73: 1 | U73: 1 | V73: 1 | W73: 1 | X73: 1 | Y73: 1 | Z73: 1 | AA73: 1 | AB73: 1 | AC73: 1 | AD73: 1 | AE73: 1 | AF73: 1 | AG73: 1 | AH73: 1 | AI73: 1 | AJ73: 1 | AK73: 1 | AL73: 1 | AM73: 1 | AN73: 1 | AO73: 1 | AP73: 1 | AQ73: 1 | AR73: 1 | AS73: 1 | AT73: 1 | AU73: 1 | AV73: 1 | AW73: 1 | AX73: 1 | AY73: 1 | AZ73: 1 | BA73: 1 | BB73: 1 | BC73: 1 | BD73: 1 | BE73: 1 | BF73: 1 | BG73: 1 | BH73: 1 | BI73: 1 | BJ73: 1 | BK73: 1 | BL73: 1 | BM73: 1 | BN73: 1 | BO73: 1 | BP73: 1 | BQ73: 1 | BR73: 1 | BS73: 1 | BT73: 1 | BU73: 1 | BV73: 1 | BW73: 1 | BX73: 1 | BY73: 1 | BZ73: 1 | CA73: 1 | CB73: 1 | CC73: 1
A74: ROCKINGHAM | B74: 1 | C74: 1 | D74: 1 | E74: 1 | F74: 1 | G74: 1 | H74: 1 | I74: 1 | J74: 1 | K74: 1 | L74: 1 | M74: 1 | N74: 1 | O74: 1 | P74: 1 | Q74: 1 | R74: 1 | S74: 1 | T74: 1 | U74: 1 | V74: 1 | W74: 1 | X74: 1 | Y74: 1 | Z74: 1 | AA74: 1 | AB74: 1 | AC74: 1 | AD74: 1 | AE74: 1 | AF74: 1 | AG74: 1 | AH74: 1 | AI74: 1 | AJ74: 1 | AK74: 1 | AL74: 1 | AM74: 1 | AN74: 1 | AO74: 1 | AP74: 1 | AQ74: 1 | AR74: 1 | AS74: 1 | AT74: 1 | AU74: 1 | AV74: 1 | AW74: 1 | AX74: 1 | AY74: 1 | AZ74: 1 | BA74: 1 | BB74: 1 | BC74: 1 | BD74: 1 | BE74: 1 | BF74: 1 | BG74: 1 | BH74: 1 | BI74: 1 | BJ74: 1 | BK74: 1 | BL74: 1 | BM74: 1 | BN74: 1 | BO74: 1 | BP74: 1 | BQ74: 1 | BR74: 1 | BS74: 1 | BT74: 1 | BU74: 1 | BV74: 1 | BW74: 1 | BX74: 1 | BY74: 1 | BZ74: 1 | CA74: 1 | CB74: 1 | CC74: 1
A75: SERPENTINE-JARRAHDALE | B75: 1 | C75: 1 | D75: 1 | E75: 1 | F75: 1 | G75: 1 | H75: 1 | I75: 1 | J75: 1 | K75: 1 | L75: 1 | M75: 1 | N75: 1 | O75: 1 | P75: 1 | Q75: 1 | R75: 1 | S75: 1 | T75: 1 | U75: 1 | V75: 1 | W75: 1 | X75: 1 | Y75: 1 | Z75: 1 | AA75: 1 | AB75: 1 | AC75: 1 | AD75: 1 | AE75: 1 | AF75: 1 | AG75: 1 | AH75: 1 | AI75: 1 | AJ75: 1 | AK75: 1 | AL75: 1 | AM75: 1 | AN75: 1 | AO75: 1 | AP75: 1 | AQ75: 1 | AR75: 1 | AS75: 1 | AT75: 1 | AU75: 1 | AV75: 1 | AW75: 1 | AX75: 1 | AY75: 1 | AZ75: 1 | BA75: 1 | BB75: 1 | BC75: 1 | BD75: 1 | BE75: 1 | BF75: 1 | BG75: 1 | BH75: 1 | BI75: 1 | BJ75: 1 | BK75: 1 | BL75: 1 | BM75: 1 | BN75: 1 | BO75: 1 | BP75: 1 | BQ75: 1 | BR75: 1 | BS75: 1 | BT75: 1 | BU75: 1 | BV75: 1 | BW75: 1 | BX75: 1 | BY75: 1 | BZ75: 1 | CA75: 1 | CB75: 1 | CC75: 1
A76: SOUTH PERTH | B76: 1 | C76: 1 | D76: 1 | E76: 1 | F76: 1 | G76: 1 | H76: 1 | I76: 1 | J76: 1 | K76: 1 | L76: 1 | M76: 1 | N76: 1 | O76: 1 | P76: 1 | Q76: 1 | R76: 1 | S76: 1 | T76: 1 | U76: 1 | V76: 1 | W76: 1 | X76: 1 | Y76: 1 | Z76: 1 | AA76: 1 | AB76: 1 | AC76: 1 | AD76: 1 | AE76: 1 | AF76: 1 | AG76: 1 | AH76: 1 | AI76: 1 | AJ76: 1 | AK76: 1 | AL76: 1 | AM76: 1 | AN76: 1 | AO76: 1 | AP76: 1 | AQ76: 1 | AR76: 1 | AS76: 1 | AT76: 1 | AU76: 1 | AV76: 1 | AW76: 1 | AX76: 1 | AY76: 1 | AZ76: 1 | BA76: 1 | BB76: 1 | BC76: 1 | BD76: 1 | BE76: 1 | BF76: 1 | BG76: 1 | BH76: 1 | BI76: 1 | BJ76: 1 | BK76: 1 | BL76: 1 | BM76: 1 | BN76: 1 | BO76: 1 | BP76: 1 | BQ76: 1 | BR76: 1 | BS76: 1 | BT76: 1 | BU76: 1 | BV76: 1 | BW76: 1 | BX76: 1 | BY76: 1 | BZ76: 1 | CA76: 1 | CB76: 1 | CC76: 1
A77: STIRLING | B77: 1 | C77: 1 | D77: 1 | E77: 1 | F77: 1 | G77: 1 | H77: 1 | I77: 1 | J77: 1 | K77: 1 | L77: 1 | M77: 1 | N77: 1 | O77: 1 | P77: 1 | Q77: 1 | R77: 1 | S77: 1 | T77: 1 | U77: 1 | V77: 1 | W77: 1 | X77: 1 | Y77: 1 | Z77: 1 | AA77: 1 | AB77: 1 | AC77: 1 | AD77: 1 | AE77: 1 | AF77: 1 | AG77: 1 | AH77: 1 | AI77: 1 | AJ77: 1 | AK77: 1 | AL77: 1 | AM77: 1 | AN77: 1 | AO77: 1 | AP77: 1 | AQ77: 1 | AR77: 1 | AS77: 1 | AT77: 1 | AU77: 1 | AV77: 1 | AW77: 1 | AX77: 1 | AY77: 1 | AZ77: 1 | BA77: 1 | BB77: 1 | BC77: 1 | BD77: 1 | BE77: 1 | BF77: 1 | BG77: 1 | BH77: 1 | BI77: 1 | BJ77: 1 | BK77: 1 | BL77: 1 | BM77: 1 | BN77: 1 | BO77: 1 | BP77: 1 | BQ77: 1 | BR77: 1 | BS77: 1 | BT77: 1 | BU77: 1 | BV77: 1 | BW77: 1 | BX77: 1 | BY77: 1 | BZ77: 1 | CA77: 1 | CB77: 1 | CC77: 1
A78: SUBIACO | B78: 1 | C78: 1 | D78: 1 | E78: 1 | F78: 1 | G78: 1 | H78: 1 | I78: 1 | J78: 1 | K78: 1 | L78: 1 | M78: 1 | N78: 1 | O78: 1 | P78: 1 | Q78: 1 | R78: 1 | S78: 1 | T78: 1 | U78: 1 | V78: 1 | W78: 1 | X78: 1 | Y78: 1 | Z78: 1 | AA78: 1 | AB78: 1 | AC78: 1 | AD78: 1 | AE78: 1 | AF78: 1 | AG78: 1 | AH78: 1 | AI78: 1 | AJ78: 1 | AK78: 1 | AL78: 1 | AM78: 1 | AN78: 1 | AO78: 1 | AP78: 1 | AQ78: 1 | AR78: 1 | AS78: 1 | AT78: 1 | AU78: 1 | AV78: 1 | AW78: 1 | AX78: 1 | AY78: 1 | AZ78: 1 | BA78: 1 | BB78: 1 | BC78: 1 | BD78: 1 | BE78: 1 | BF78: 1 | BG78: 1 | BH78: 1 | BI78: 1 | BJ78: 1 | BK78: 1 | BL78: 1 | BM78: 1 | BN78: 1 | BO78: 1 | BP78: 1 | BQ78: 1 | BR78: 1 | BS78: 1 | BT78: 1 | BU78: 1 | BV78: 1 | BW78: 1 | BX78: 1 | BY78: 1 | BZ78: 1 | CA78: 1 | CB78: 1 | CC78: 1
A79: SWAN | B79: 1 | C79: 1 | D79: 1 | E79: 1 | F79: 1 | G79: 1 | H79: 1 | I79: 1 | J79: 1 | K79: 1 | L79: 1 | M79: 1 | N79: 1 | O79: 1 | P79: 1 | Q79: 1 | R79: 1 | S79: 1 | T79: 1 | U79: 1 | V79: 1 | W79: 1 | X79: 1 | Y79: 1 | Z79: 1 | AA79: 1 | AB79: 1 | AC79: 1 | AD79: 1 | AE79: 1 | AF79: 1 | AG79: 1 | AH79: 1 | AI79: 1 | AJ79: 1 | AK79: 1 | AL79: 1 | AM79: 1 | AN79: 1 | AO79: 1 | AP79: 1 | AQ79: 1 | AR79: 1 | AS79: 1 | AT79: 1 | AU79: 1 | AV79: 1 | AW79: 1 | AX79: 1 | AY79: 1 | AZ79: 1 | BA79: 1 | BB79: 1 | BC79: 1 | BD79: 1 | BE79: 1 | BF79: 1 | BG79: 1 | BH79: 1 | BI79: 1 | BJ79: 1 | BK79: 1 | BL79: 1 | BM79: 1 | BN79: 1 | BO79: 1 | BP79: 1 | BQ79: 1 | BR79: 1 | BS79: 1 | BT79: 1 | BU79: 1 | BV79: 1 | BW79: 1 | BX79: 1 | BY79: 1 | BZ79: 1 | CA79: 1 | CB79: 1 | CC79: 1
A80: VICTORIA PARK | B80: 1 | C80: 1 | D80: 1 | E80: 1 | F80: 1 | G80: 1 | H80: 1 | I80: 1 | J80: 1 | K80: 1 | L80: 1 | M80: 1 | N80: 1 | O80: 1 | P80: 1 | Q80: 1 | R80: 1 | S80: 1 | T80: 1 | U80: 1 | V80: 1 | W80: 1 | X80: 1 | Y80: 1 | Z80: 1 | AA80: 1 | AB80: 1 | AC80: 1 | AD80: 1 | AE80: 1 | AF80: 1 | AG80: 1 | AH80: 1 | AI80: 1 | AJ80: 1 | AK80: 1 | AL80: 1 | AM80: 1 | AN80: 1 | AO80: 1 | AP80: 1 | AQ80: 1 | AR80: 1 | AS80: 1 | AT80: 1 | AU80: 1 | AV80: 1 | AW80: 1 | AX80: 1 | AY80: 1 | AZ80: 1 | BA80: 1 | BB80: 1 | BC80: 1 | BD80: 1 | BE80: 1 | BF80: 1 | BG80: 1 | BH80: 1 | BI80: 1 | BJ80: 1 | BK80: 1 | BL80: 1 | BM80: 1 | BN80: 1 | BO80: 1 | BP80: 1 | BQ80: 1 | BR80: 1 | BS80: 1 | BT80: 1 | BU80: 1 | BV80: 1 | BW80: 1 | BX80: 1 | BY80: 1 | BZ80: 1 | CA80: 1 | CB80: 1 | CC80: 1
A81: VINCENT | B81: 1 | C81: 1 | D81: 1 | E81: 1 | F81: 1 | G81: 1 | H81: 1 | I81: 1 | J81: 1 | K81: 1 | L81: 1 | M81: 1 | N81: 1 | O81: 1 | P81: 1 | Q81: 1 | R81: 1 | S81: 1 | T81: 1 | U81: 1 | V81: 1 | W81: 1 | X81: 1 | Y81: 1 | Z81: 1 | AA81: 1 | AB81: 1 | AC81: 1 | AD81: 1 | AE81: 1 | AF81: 1 | AG81: 1 | AH81: 1 | AI81: 1 | AJ81: 1 | AK81: 1 | AL81: 1 | AM81: 1 | AN81: 1 | AO81: 1 | AP81: 1 | AQ81: 1 | AR81: 1 | AS81: 1 | AT81: 1 | AU81: 1 | AV81: 1 | AW81: 1 | AX81: 1 | AY81: 1 | AZ81: 1 | BA81: 1 | BB81: 1 | BC81: 1 | BD81: 1 | BE81: 1 | BF81: 1 | BG81: 1 | BH81: 1 | BI81: 1 | BJ81: 1 | BK81: 1 | BL81: 1 | BM81: 1 | BN81: 1 | BO81: 1 | BP81: 1 | BQ81: 1 | BR81: 1 | BS81: 1 | BT81: 1 | BU81: 1 | BV81: 1 | BW81: 1 | BX81: 1 | BY81: 1 | BZ81: 1 | CA81: 1 | CB81: 1 | CC81: 1
A82: WANNEROO | B82: 1 | C82: 1 | D82: 1 | E82: 1 | F82: 1 | G82: 1 | H82: 1 | I82: 1 | J82: 1 | K82: 1 | L82: 1 | M82: 1 | N82: 1 | O82: 1 | P82: 1 | Q82: 1 | R82: 1 | S82: 1 | T82: 1 | U82: 1 | V82: 1 | W82: 1 | X82: 1 | Y82: 1 | Z82: 1 | AA82: 1 | AB82: 1 | AC82: 1 | AD82: 1 | AE82: 1 | AF82: 1 | AG82: 1 | AH82: 1 | AI82: 1 | AJ82: 1 | AK82: 1 | AL82: 1 | AM82: 1 | AN82: 1 | AO82: 1 | AP82: 1 | AQ82: 1 | AR82: 1 | AS82: 1 | AT82: 1 | AU82: 1 | AV82: 1 | AW82: 1 | AX82: 1 | AY82: 1 | AZ82: 1 | BA82: 1 | BB82: 1 | BC82: 1 | BD82: 1 | BE82: 1 | BF82: 1 | BG82: 1 | BH82: 1 | BI82: 1 | BJ82: 1 | BK82: 1 | BL82: 1 | BM82: 1 | BN82: 1 | BO82: 1 | BP82: 1 | BQ82: 1 | BR82: 1 | BS82: 1 | BT82: 1 | BU82: 1 | BV82: 1 | BW82: 1 | BX82: 1 | BY82: 1 | BZ82: 1 | CA82: 1 | CB82: 1 | CC82: 1
A84: Residential Network No new connections
A85: LGA | B85: 2021 | C85: =B85+1 -> 2022 | D85: =C85+1 -> 2023 | E85: 2024 | F85: 2025 | G85: 2026 | H85: 2027 | I85: 2028 | J85: 2029 | K85: 2030 | L85: 2031 | M85: 2032 | N85: 2033 | O85: 2034 | P85: 2035 | Q85: 2036 | R85: 2037 | S85: 2038 | T85: 2039 | U85: 2040 | V85: 2041 | W85: 2042 | X85: 2043 | Y85: 2044 | Z85: 2045 | AA85: 2046 | AB85: 2047 | AC85: 2048 | AD85: 2049 | AE85: 2050 | AF85: 2051 | AG85: 2052 | AH85: 2053 | AI85: 2054 | AJ85: 2055 | AK85: 2056 | AL85: 2057 | AM85: 2058 | AN85: 2059 | AO85: 2060 | AP85: 2061 | AQ85: 2062 | AR85: 2063 | AS85: 2064 | AT85: 2065 | AU85: 2066 | AV85: 2067 | AW85: 2068 | AX85: 2069 | AY85: 2070 | AZ85: 2071 | BA85: 2072 | BB85: 2073 | BC85: 2074 | BD85: 2075 | BE85: 2076 | BF85: 2077 | BG85: 2078 | BH85: 2079 | BI85: 2080 | BJ85: 2081 | BK85: 2082 | BL85: 2083 | BM85: 2084 | BN85: 2085 | BO85: 2086 | BP85: =BO85+1 -> 2087 | BQ85: 2088 | BR85: 2089 | BS85: 2090 | BT85: 2091 | BU85: 2092 | BV85: 2093 | BW85: 2094 | BX85: 2095 | BY85: 2096 | BZ85: 2097 | CA85: 2098 | CB85: 2099 | CC85: 2100
A86: ARMADALE | B86: 0 | C86: 0 | D86: 0 | E86: 0 | F86: 0 | G86: 0 | H86: 0 | I86: 0 | J86: 0 | K86: 0 | L86: 0 | M86: 0 | N86: 0 | O86: 0 | P86: 0 | Q86: 0 | R86: 0 | S86: 0 | T86: 0 | U86: 0 | V86: 0 | W86: 0 | X86: 0 | Y86: 0 | Z86: 0 | AA86: 0 | AB86: 0 | AC86: 0 | AD86: 0 | AE86: 0 | AF86: 0 | AG86: 0 | AH86: 0 | AI86: 0 | AJ86: 0 | AK86: 0 | AL86: 0 | AM86: 0 | AN86: 0 | AO86: 0 | AP86: 1 | AQ86: 1 | AR86: 1 | AS86: 1 | AT86: 1 | AU86: 1 | AV86: 1 | AW86: 1 | AX86: 1 | AY86: 1 | AZ86: 1 | BA86: 1 | BB86: 1 | BC86: 1 | BD86: 1 | BE86: 1 | BF86: 1 | BG86: 1 | BH86: 1 | BI86: 1 | BJ86: 1 | BK86: 1 | BL86: 1 | BM86: 1 | BN86: 1 | BO86: 1 | BP86: 1 | BQ86: 1 | BR86: 1 | BS86: 1 | BT86: 1 | BU86: 1 | BV86: 1 | BW86: 1 | BX86: 1 | BY86: 1 | BZ86: 1 | CA86: 1 | CB86: 1 | CC86: 1
A87: BASSENDEAN | B87: 0 | C87: 0 | D87: 0 | E87: 0 | F87: 0 | G87: 0 | H87: 0 | I87: 0 | J87: 0 | K87: 0 | L87: 0 | M87: 0 | N87: 0 | O87: 0 | P87: 0 | Q87: 0 | R87: 0 | S87: 0 | T87: 0 | U87: 0 | V87: 0 | W87: 0 | X87: 0 | Y87: 0 | Z87: 0 | AA87: 0 | AB87: 0 | AC87: 0 | AD87: 0 | AE87: 0 | AF87: 0 | AG87: 0 | AH87: 0 | AI87: 0 | AJ87: 0 | AK87: 0 | AL87: 0 | AM87: 0 | AN87: 0 | AO87: 0 | AP87: 1 | AQ87: 1 | AR87: 1 | AS87: 1 | AT87: 1 | AU87: 1 | AV87: 1 | AW87: 1 | AX87: 1 | AY87: 1 | AZ87: 1 | BA87: 1 | BB87: 1 | BC87: 1 | BD87: 1 | BE87: 1 | BF87: 1 | BG87: 1 | BH87: 1 | BI87: 1 | BJ87: 1 | BK87: 1 | BL87: 1 | BM87: 1 | BN87: 1 | BO87: 1 | BP87: 1 | BQ87: 1 | BR87: 1 | BS87: 1 | BT87: 1 | BU87: 1 | BV87: 1 | BW87: 1 | BX87: 1 | BY87: 1 | BZ87: 1 | CA87: 1 | CB87: 1 | CC87: 1
A88: BAYSWATER | B88: 0 | C88: 0 | D88: 0 | E88: 0 | F88: 0 | G88: 0 | H88: 0 | I88: 0 | J88: 0 | K88: 0 | L88: 0 | M88: 0 | N88: 0 | O88: 0 | P88: 0 | Q88: 0 | R88: 0 | S88: 0 | T88: 0 | U88: 0 | V88: 0 | W88: 0 | X88: 0 | Y88: 0 | Z88: 0 | AA88: 0 | AB88: 0 | AC88: 0 | AD88: 0 | AE88: 0 | AF88: 0 | AG88: 0 | AH88: 0 | AI88: 0 | AJ88: 0 | AK88: 0 | AL88: 0 | AM88: 0 | AN88: 0 | AO88: 0 | AP88: 1 | AQ88: 1 | AR88: 1 | AS88: 1 | AT88: 1 | AU88: 1 | AV88: 1 | AW88: 1 | AX88: 1 | AY88: 1 | AZ88: 1 | BA88: 1 | BB88: 1 | BC88: 1 | BD88: 1 | BE88: 1 | BF88: 1 | BG88: 1 | BH88: 1 | BI88: 1 | BJ88: 1 | BK88: 1 | BL88: 1 | BM88: 1 | BN88: 1 | BO88: 1 | BP88: 1 | BQ88: 1 | BR88: 1 | BS88: 1 | BT88: 1 | BU88: 1 | BV88: 1 | BW88: 1 | BX88: 1 | BY88: 1 | BZ88: 1 | CA88: 1 | CB88: 1 | CC88: 1
A89: BELMONT | B89: 0 | C89: 0 | D89: 0 | E89: 0 | F89: 0 | G89: 0 | H89: 0 | I89: 0 | J89: 0 | K89: 0 | L89: 0 | M89: 0 | N89: 0 | O89: 0 | P89: 0 | Q89: 0 | R89: 0 | S89: 0 | T89: 0 | U89: 0 | V89: 0 | W89: 0 | X89: 0 | Y89: 0 | Z89: 0 | AA89: 0 | AB89: 0 | AC89: 0 | AD89: 0 | AE89: 0 | AF89: 0 | AG89: 0 | AH89: 0 | AI89: 0 | AJ89: 0 | AK89: 0 | AL89: 0 | AM89: 0 | AN89: 0 | AO89: 0 | AP89: 1 | AQ89: 1 | AR89: 1 | AS89: 1 | AT89: 1 | AU89: 1 | AV89: 1 | AW89: 1 | AX89: 1 | AY89: 1 | AZ89: 1 | BA89: 1 | BB89: 1 | BC89: 1 | BD89: 1 | BE89: 1 | BF89: 1 | BG89: 1 | BH89: 1 | BI89: 1 | BJ89: 1 | BK89: 1 | BL89: 1 | BM89: 1 | BN89: 1 | BO89: 1 | BP89: 1 | BQ89: 1 | BR89: 1 | BS89: 1 | BT89: 1 | BU89: 1 | BV89: 1 | BW89: 1 | BX89: 1 | BY89: 1 | BZ89: 1 | CA89: 1 | CB89: 1 | CC89: 1
A90: BUNBURY | B90: 0 | C90: 0 | D90: 0 | E90: 0 | F90: 0 | G90: 0 | H90: 0 | I90: 0 | J90: 0 | K90: 0 | L90: 0 | M90: 0 | N90: 0 | O90: 0 | P90: 0 | Q90: 0 | R90: 0 | S90: 0 | T90: 0 | U90: 0 | V90: 0 | W90: 0 | X90: 0 | Y90: 0 | Z90: 0 | AA90: 0 | AB90: 0 | AC90: 0 | AD90: 0 | AE90: 0 | AF90: 0 | AG90: 0 | AH90: 0 | AI90: 0 | AJ90: 0 | AK90: 0 | AL90: 0 | AM90: 0 | AN90: 0 | AO90: 0 | AP90: 1 | AQ90: 1 | AR90: 1 | AS90: 1 | AT90: 1 | AU90: 1 | AV90: 1 | AW90: 1 | AX90: 1 | AY90: 1 | AZ90: 1 | BA90: 1 | BB90: 1 | BC90: 1 | BD90: 1 | BE90: 1 | BF90: 1 | BG90: 1 | BH90: 1 | BI90: 1 | BJ90: 1 | BK90: 1 | BL90: 1 | BM90: 1 | BN90: 1 | BO90: 1 | BP90: 1 | BQ90: 1 | BR90: 1 | BS90: 1 | BT90: 1 | BU90: 1 | BV90: 1 | BW90: 1 | BX90: 1 | BY90: 1 | BZ90: 1 | CA90: 1 | CB90: 1 | CC90: 1
A91: BUSSELTON | B91: 0 | C91: 0 | D91: 0 | E91: 0 | F91: 0 | G91: 0 | H91: 0 | I91: 0 | J91: 0 | K91: 0 | L91: 0 | M91: 0 | N91: 0 | O91: 0 | P91: 0 | Q91: 0 | R91: 0 | S91: 0 | T91: 0 | U91: 0 | V91: 0 | W91: 0 | X91: 0 | Y91: 0 | Z91: 0 | AA91: 0 | AB91: 0 | AC91: 0 | AD91: 0 | AE91: 0 | AF91: 0 | AG91: 0 | AH91: 0 | AI91: 0 | AJ91: 0 | AK91: 0 | AL91: 0 | AM91: 0 | AN91: 0 | AO91: 0 | AP91: 1 | AQ91: 1 | AR91: 1 | AS91: 1 | AT91: 1 | AU91: 1 | AV91: 1 | AW91: 1 | AX91: 1 | AY91: 1 | AZ91: 1 | BA91: 1 | BB91: 1 | BC91: 1 | BD91: 1 | BE91: 1 | BF91: 1 | BG91: 1 | BH91: 1 | BI91: 1 | BJ91: 1 | BK91: 1 | BL91: 1 | BM91: 1 | BN91: 1 | BO91: 1 | BP91: 1 | BQ91: 1 | BR91: 1 | BS91: 1 | BT91: 1 | BU91: 1 | BV91: 1 | BW91: 1 | BX91: 1 | BY91: 1 | BZ91: 1 | CA91: 1 | CB91: 1 | CC91: 1
A92: CAMBRIDGE | B92: 0 | C92: 0 | D92: 0 | E92: 0 | F92: 0 | G92: 0 | H92: 0 | I92: 0 | J92: 0 | K92: 0 | L92: 0 | M92: 0 | N92: 0 | O92: 0 | P92: 0 | Q92: 0 | R92: 0 | S92: 0 | T92: 0 | U92: 0 | V92: 0 | W92: 0 | X92: 0 | Y92: 0 | Z92: 0 | AA92: 0 | AB92: 0 | AC92: 0 | AD92: 0 | AE92: 0 | AF92: 0 | AG92: 0 | AH92: 0 | AI92: 0 | AJ92: 0 | AK92: 0 | AL92: 0 | AM92: 0 | AN92: 0 | AO92: 0 | AP92: 1 | AQ92: 1 | AR92: 1 | AS92: 1 | AT92: 1 | AU92: 1 | AV92: 1 | AW92: 1 | AX92: 1 | AY92: 1 | AZ92: 1 | BA92: 1 | BB92: 1 | BC92: 1 | BD92: 1 | BE92: 1 | BF92: 1 | BG92: 1 | BH92: 1 | BI92: 1 | BJ92: 1 | BK92: 1 | BL92: 1 | BM92: 1 | BN92: 1 | BO92: 1 | BP92: 1 | BQ92: 1 | BR92: 1 | BS92: 1 | BT92: 1 | BU92: 1 | BV92: 1 | BW92: 1 | BX92: 1 | BY92: 1 | BZ92: 1 | CA92: 1 | CB92: 1 | CC92: 1
A93: CANNING | B93: 0 | C93: 0 | D93: 0 | E93: 0 | F93: 0 | G93: 0 | H93: 0 | I93: 0 | J93: 0 | K93: 0 | L93: 0 | M93: 0 | N93: 0 | O93: 0 | P93: 0 | Q93: 0 | R93: 0 | S93: 0 | T93: 0 | U93: 0 | V93: 0 | W93: 0 | X93: 0 | Y93: 0 | Z93: 0 | AA93: 0 | AB93: 0 | AC93: 0 | AD93: 0 | AE93: 0 | AF93: 0 | AG93: 0 | AH93: 0 | AI93: 0 | AJ93: 0 | AK93: 0 | AL93: 0 | AM93: 0 | AN93: 0 | AO93: 0 | AP93: 1 | AQ93: 1 | AR93: 1 | AS93: 1 | AT93: 1 | AU93: 1 | AV93: 1 | AW93: 1 | AX93: 1 | AY93: 1 | AZ93: 1 | BA93: 1 | BB93: 1 | BC93: 1 | BD93: 1 | BE93: 1 | BF93: 1 | BG93: 1 | BH93: 1 | BI93: 1 | BJ93: 1 | BK93: 1 | BL93: 1 | BM93: 1 | BN93: 1 | BO93: 1 | BP93: 1 | BQ93: 1 | BR93: 1 | BS93: 1 | BT93: 1 | BU93: 1 | BV93: 1 | BW93: 1 | BX93: 1 | BY93: 1 | BZ93: 1 | CA93: 1 | CB93: 1 | CC93: 1
A94: CAPEL | B94: 0 | C94: 0 | D94: 0 | E94: 0 | F94: 0 | G94: 0 | H94: 0 | I94: 0 | J94: 0 | K94: 0 | L94: 0 | M94: 0 | N94: 0 | O94: 0 | P94: 0 | Q94: 0 | R94: 0 | S94: 0 | T94: 0 | U94: 0 | V94: 0 | W94: 0 | X94: 0 | Y94: 0 | Z94: 0 | AA94: 0 | AB94: 0 | AC94: 0 | AD94: 0 | AE94: 0 | AF94: 0 | AG94: 0 | AH94: 0 | AI94: 0 | AJ94: 0 | AK94: 0 | AL94: 0 | AM94: 0 | AN94: 0 | AO94: 0 | AP94: 1 | AQ94: 1 | AR94: 1 | AS94: 1 | AT94: 1 | AU94: 1 | AV94: 1 | AW94: 1 | AX94: 1 | AY94: 1 | AZ94: 1 | BA94: 1 | BB94: 1 | BC94: 1 | BD94: 1 | BE94: 1 | BF94: 1 | BG94: 1 | BH94: 1 | BI94: 1 | BJ94: 1 | BK94: 1 | BL94: 1 | BM94: 1 | BN94: 1 | BO94: 1 | BP94: 1 | BQ94: 1 | BR94: 1 | BS94: 1 | BT94: 1 | BU94: 1 | BV94: 1 | BW94: 1 | BX94: 1 | BY94: 1 | BZ94: 1 | CA94: 1 | CB94: 1 | CC94: 1
A95: CHITTERING | B95: 0 | C95: 0 | D95: 0 | E95: 0 | F95: 0 | G95: 0 | H95: 0 | I95: 0 | J95: 0 | K95: 0 | L95: 0 | M95: 0 | N95: 0 | O95: 0 | P95: 0 | Q95: 0 | R95: 0 | S95: 0 | T95: 0 | U95: 0 | V95: 0 | W95: 0 | X95: 0 | Y95: 0 | Z95: 0 | AA95: 0 | AB95: 0 | AC95: 0 | AD95: 0 | AE95: 0 | AF95: 0 | AG95: 0 | AH95: 0 | AI95: 0 | AJ95: 0 | AK95: 0 | AL95: 0 | AM95: 0 | AN95: 0 | AO95: 0 | AP95: 1 | AQ95: 1 | AR95: 1 | AS95: 1 | AT95: 1 | AU95: 1 | AV95: 1 | AW95: 1 | AX95: 1 | AY95: 1 | AZ95: 1 | BA95: 1 | BB95: 1 | BC95: 1 | BD95: 1 | BE95: 1 | BF95: 1 | BG95: 1 | BH95: 1 | BI95: 1 | BJ95: 1 | BK95: 1 | BL95: 1 | BM95: 1 | BN95: 1 | BO95: 1 | BP95: 1 | BQ95: 1 | BR95: 1 | BS95: 1 | BT95: 1 | BU95: 1 | BV95: 1 | BW95: 1 | BX95: 1 | BY95: 1 | BZ95: 1 | CA95: 1 | CB95: 1 | CC95: 1
A96: COCKBURN | B96: 0 | C96: 0 | D96: 0 | E96: 0 | F96: 0 | G96: 0 | H96: 0 | I96: 0 | J96: 0 | K96: 0 | L96: 0 | M96: 0 | N96: 0 | O96: 0 | P96: 0 | Q96: 0 | R96: 0 | S96: 0 | T96: 0 | U96: 0 | V96: 0 | W96: 0 | X96: 0 | Y96: 0 | Z96: 0 | AA96: 0 | AB96: 0 | AC96: 0 | AD96: 0 | AE96: 0 | AF96: 0 | AG96: 0 | AH96: 0 | AI96: 0 | AJ96: 0 | AK96: 0 | AL96: 0 | AM96: 0 | AN96: 0 | AO96: 0 | AP96: 1 | AQ96: 1 | AR96: 1 | AS96: 1 | AT96: 1 | AU96: 1 | AV96: 1 | AW96: 1 | AX96: 1 | AY96: 1 | AZ96: 1 | BA96: 1 | BB96: 1 | BC96: 1 | BD96: 1 | BE96: 1 | BF96: 1 | BG96: 1 | BH96: 1 | BI96: 1 | BJ96: 1 | BK96: 1 | BL96: 1 | BM96: 1 | BN96: 1 | BO96: 1 | BP96: 1 | BQ96: 1 | BR96: 1 | BS96: 1 | BT96: 1 | BU96: 1 | BV96: 1 | BW96: 1 | BX96: 1 | BY96: 1 | BZ96: 1 | CA96: 1 | CB96: 1 | CC96: 1
A97: COTTESLOE | B97: 0 | C97: 0 | D97: 0 | E97: 0 | F97: 0 | G97: 0 | H97: 0 | I97: 0 | J97: 0 | K97: 0 | L97: 0 | M97: 0 | N97: 0 | O97: 0 | P97: 0 | Q97: 0 | R97: 0 | S97: 0 | T97: 0 | U97: 0 | V97: 0 | W97: 0 | X97: 0 | Y97: 0 | Z97: 0 | AA97: 0 | AB97: 0 | AC97: 0 | AD97: 0 | AE97: 0 | AF97: 0 | AG97: 0 | AH97: 0 | AI97: 0 | AJ97: 0 | AK97: 0 | AL97: 0 | AM97: 0 | AN97: 0 | AO97: 0 | AP97: 1 | AQ97: 1 | AR97: 1 | AS97: 1 | AT97: 1 | AU97: 1 | AV97: 1 | AW97: 1 | AX97: 1 | AY97: 1 | AZ97: 1 | BA97: 1 | BB97: 1 | BC97: 1 | BD97: 1 | BE97: 1 | BF97: 1 | BG97: 1 | BH97: 1 | BI97: 1 | BJ97: 1 | BK97: 1 | BL97: 1 | BM97: 1 | BN97: 1 | BO97: 1 | BP97: 1 | BQ97: 1 | BR97: 1 | BS97: 1 | BT97: 1 | BU97: 1 | BV97: 1 | BW97: 1 | BX97: 1 | BY97: 1 | BZ97: 1 | CA97: 1 | CB97: 1 | CC97: 1
A98: DARDANUP | B98: 0 | C98: 0 | D98: 0 | E98: 0 | F98: 0 | G98: 0 | H98: 0 | I98: 0 | J98: 0 | K98: 0 | L98: 0 | M98: 0 | N98: 0 | O98: 0 | P98: 0 | Q98: 0 | R98: 0 | S98: 0 | T98: 0 | U98: 0 | V98: 0 | W98: 0 | X98: 0 | Y98: 0 | Z98: 0 | AA98: 0 | AB98: 0 | AC98: 0 | AD98: 0 | AE98: 0 | AF98: 0 | AG98: 0 | AH98: 0 | AI98: 0 | AJ98: 0 | AK98: 0 | AL98: 0 | AM98: 0 | AN98: 0 | AO98: 0 | AP98: 1 | AQ98: 1 | AR98: 1 | AS98: 1 | AT98: 1 | AU98: 1 | AV98: 1 | AW98: 1 | AX98: 1 | AY98: 1 | AZ98: 1 | BA98: 1 | BB98: 1 | BC98: 1 | BD98: 1 | BE98: 1 | BF98: 1 | BG98: 1 | BH98: 1 | BI98: 1 | BJ98: 1 | BK98: 1 | BL98: 1 | BM98: 1 | BN98: 1 | BO98: 1 | BP98: 1 | BQ98: 1 | BR98: 1 | BS98: 1 | BT98: 1 | BU98: 1 | BV98: 1 | BW98: 1 | BX98: 1 | BY98: 1 | BZ98: 1 | CA98: 1 | CB98: 1 | CC98: 1
A99: EAST FREMANTLE | B99: 0 | C99: 0 | D99: 0 | E99: 0 | F99: 0 | G99: 0 | H99: 0 | I99: 0 | J99: 0 | K99: 0 | L99: 0 | M99: 0 | N99: 0 | O99: 0 | P99: 0 | Q99: 0 | R99: 0 | S99: 0 | T99: 0 | U99: 0 | V99: 0 | W99: 0 | X99: 0 | Y99: 0 | Z99: 0 | AA99: 0 | AB99: 0 | AC99: 0 | AD99: 0 | AE99: 0 | AF99: 0 | AG99: 0 | AH99: 0 | AI99: 0 | AJ99: 0 | AK99: 0 | AL99: 0 | AM99: 0 | AN99: 0 | AO99: 0 | AP99: 1 | AQ99: 1 | AR99: 1 | AS99: 1 | AT99: 1 | AU99: 1 | AV99: 1 | AW99: 1 | AX99: 1 | AY99: 1 | AZ99: 1 | BA99: 1 | BB99: 1 | BC99: 1 | BD99: 1 | BE99: 1 | BF99: 1 | BG99: 1 | BH99: 1 | BI99: 1 | BJ99: 1 | BK99: 1 | BL99: 1 | BM99: 1 | BN99: 1 | BO99: 1 | BP99: 1 | BQ99: 1 | BR99: 1 | BS99: 1 | BT99: 1 | BU99: 1 | BV99: 1 | BW99: 1 | BX99: 1 | BY99: 1 | BZ99: 1 | CA99: 1 | CB99: 1 | CC99: 1
A100: FREMANTLE | B100: 0 | C100: 0 | D100: 0 | E100: 0 | F100: 0 | G100: 0 | H100: 0 | I100: 0 | J100: 0 | K100: 0 | L100: 0 | M100: 0 | N100: 0 | O100: 0 | P100: 0 | Q100: 0 | R100: 0 | S100: 0 | T100: 0 | U100: 0 | V100: 0 | W100: 0 | X100: 0 | Y100: 0 | Z100: 0 | AA100: 0 | AB100: 0 | AC100: 0 | AD100: 0 | AE100: 0 | AF100: 0 | AG100: 0 | AH100: 0 | AI100: 0 | AJ100: 0 | AK100: 0 | AL100: 0 | AM100: 0 | AN100: 0 | AO100: 0 | AP100: 1 | AQ100: 1 | AR100: 1 | AS100: 1 | AT100: 1 | AU100: 1 | AV100: 1 | AW100: 1 | AX100: 1 | AY100: 1 | AZ100: 1 | BA100: 1 | BB100: 1 | BC100: 1 | BD100: 1 | BE100: 1 | BF100: 1 | BG100: 1 | BH100: 1 | BI100: 1 | BJ100: 1 | BK100: 1 | BL100: 1 | BM100: 1 | BN100: 1 | BO100: 1 | BP100: 1 | BQ100: 1 | BR100: 1 | BS100: 1 | BT100: 1 | BU100: 1 | BV100: 1 | BW100: 1 | BX100: 1 | BY100: 1 | BZ100: 1 | CA100: 1 | CB100: 1 | CC100: 1
A101: GOSNELLS | B101: 0 | C101: 0 | D101: 0 | E101: 0 | F101: 0 | G101: 0 | H101: 0 | I101: 0 | J101: 0 | K101: 0 | L101: 0 | M101: 0 | N101: 0 | O101: 0 | P101: 0 | Q101: 0 | R101: 0 | S101: 0 | T101: 0 | U101: 0 | V101: 0 | W101: 0 | X101: 0 | Y101: 0 | Z101: 0 | AA101: 0 | AB101: 0 | AC101: 0 | AD101: 0 | AE101: 0 | AF101: 0 | AG101: 0 | AH101: 0 | AI101: 0 | AJ101: 0 | AK101: 0 | AL101: 0 | AM101: 0 | AN101: 0 | AO101: 0 | AP101: 1 | AQ101: 1 | AR101: 1 | AS101: 1 | AT101: 1 | AU101: 1 | AV101: 1 | AW101: 1 | AX101: 1 | AY101: 1 | AZ101: 1 | BA101: 1 | BB101: 1 | BC101: 1 | BD101: 1 | BE101: 1 | BF101: 1 | BG101: 1 | BH101: 1 | BI101: 1 | BJ101: 1 | BK101: 1 | BL101: 1 | BM101: 1 | BN101: 1 | BO101: 1 | BP101: 1 | BQ101: 1 | BR101: 1 | BS101: 1 | BT101: 1 | BU101: 1 | BV101: 1 | BW101: 1 | BX101: 1 | BY101: 1 | BZ101: 1 | CA101: 1 | CB101: 1 | CC101: 1
A102: GREATER GERALDTON | B102: 0 | C102: 0 | D102: 0 | E102: 0 | F102: 0 | G102: 0 | H102: 0 | I102: 0 | J102: 0 | K102: 0 | L102: 0 | M102: 0 | N102: 0 | O102: 0 | P102: 0 | Q102: 0 | R102: 0 | S102: 0 | T102: 0 | U102: 0 | V102: 0 | W102: 0 | X102: 0 | Y102: 0 | Z102: 0 | AA102: 0 | AB102: 0 | AC102: 0 | AD102: 0 | AE102: 0 | AF102: 0 | AG102: 0 | AH102: 0 | AI102: 0 | AJ102: 0 | AK102: 0 | AL102: 0 | AM102: 0 | AN102: 0 | AO102: 0 | AP102: 1 | AQ102: 1 | AR102: 1 | AS102: 1 | AT102: 1 | AU102: 1 | AV102: 1 | AW102: 1 | AX102: 1 | AY102: 1 | AZ102: 1 | BA102: 1 | BB102: 1 | BC102: 1 | BD102: 1 | BE102: 1 | BF102: 1 | BG102: 1 | BH102: 1 | BI102: 1 | BJ102: 1 | BK102: 1 | BL102: 1 | BM102: 1 | BN102: 1 | BO102: 1 | BP102: 1 | BQ102: 1 | BR102: 1 | BS102: 1 | BT102: 1 | BU102: 1 | BV102: 1 | BW102: 1 | BX102: 1 | BY102: 1 | BZ102: 1 | CA102: 1 | CB102: 1 | CC102: 1
A103: HARVEY | B103: 0 | C103: 0 | D103: 0 | E103: 0 | F103: 0 | G103: 0 | H103: 0 | I103: 0 | J103: 0 | K103: 0 | L103: 0 | M103: 0 | N103: 0 | O103: 0 | P103: 0 | Q103: 0 | R103: 0 | S103: 0 | T103: 0 | U103: 0 | V103: 0 | W103: 0 | X103: 0 | Y103: 0 | Z103: 0 | AA103: 0 | AB103: 0 | AC103: 0 | AD103: 0 | AE103: 0 | AF103: 0 | AG103: 0 | AH103: 0 | AI103: 0 | AJ103: 0 | AK103: 0 | AL103: 0 | AM103: 0 | AN103: 0 | AO103: 0 | AP103: 1 | AQ103: 1 | AR103: 1 | AS103: 1 | AT103: 1 | AU103: 1 | AV103: 1 | AW103: 1 | AX103: 1 | AY103: 1 | AZ103: 1 | BA103: 1 | BB103: 1 | BC103: 1 | BD103: 1 | BE103: 1 | BF103: 1 | BG103: 1 | BH103: 1 | BI103: 1 | BJ103: 1 | BK103: 1 | BL103: 1 | BM103: 1 | BN103: 1 | BO103: 1 | BP103: 1 | BQ103: 1 | BR103: 1 | BS103: 1 | BT103: 1 | BU103: 1 | BV103: 1 | BW103: 1 | BX103: 1 | BY103: 1 | BZ103: 1 | CA103: 1 | CB103: 1 | CC103: 1
A104: JOONDALUP | B104: 0 | C104: 0 | D104: 0 | E104: 0 | F104: 0 | G104: 0 | H104: 0 | I104: 0 | J104: 0 | K104: 0 | L104: 0 | M104: 0 | N104: 0 | O104: 0 | P104: 0 | Q104: 0 | R104: 0 | S104: 0 | T104: 0 | U104: 0 | V104: 0 | W104: 0 | X104: 0 | Y104: 0 | Z104: 0 | AA104: 0 | AB104: 0 | AC104: 0 | AD104: 0 | AE104: 0 | AF104: 0 | AG104: 0 | AH104: 0 | AI104: 0 | AJ104: 0 | AK104: 0 | AL104: 0 | AM104: 0 | AN104: 0 | AO104: 0 | AP104: 1 | AQ104: 1 | AR104: 1 | AS104: 1 | AT104: 1 | AU104: 1 | AV104: 1 | AW104: 1 | AX104: 1 | AY104: 1 | AZ104: 1 | BA104: 1 | BB104: 1 | BC104: 1 | BD104: 1 | BE104: 1 | BF104: 1 | BG104: 1 | BH104: 1 | BI104: 1 | BJ104: 1 | BK104: 1 | BL104: 1 | BM104: 1 | BN104: 1 | BO104: 1 | BP104: 1 | BQ104: 1 | BR104: 1 | BS104: 1 | BT104: 1 | BU104: 1 | BV104: 1 | BW104: 1 | BX104: 1 | BY104: 1 | BZ104: 1 | CA104: 1 | CB104: 1 | CC104: 1
A105: KALAMUNDA | B105: 0 | C105: 0 | D105: 0 | E105: 0 | F105: 0 | G105: 0 | H105: 0 | I105: 0 | J105: 0 | K105: 0 | L105: 0 | M105: 0 | N105: 0 | O105: 0 | P105: 0 | Q105: 0 | R105: 0 | S105: 0 | T105: 0 | U105: 0 | V105: 0 | W105: 0 | X105: 0 | Y105: 0 | Z105: 0 | AA105: 0 | AB105: 0 | AC105: 0 | AD105: 0 | AE105: 0 | AF105: 0 | AG105: 0 | AH105: 0 | AI105: 0 | AJ105: 0 | AK105: 0 | AL105: 0 | AM105: 0 | AN105: 0 | AO105: 0 | AP105: 1 | AQ105: 1 | AR105: 1 | AS105: 1 | AT105: 1 | AU105: 1 | AV105: 1 | AW105: 1 | AX105: 1 | AY105: 1 | AZ105: 1 | BA105: 1 | BB105: 1 | BC105: 1 | BD105: 1 | BE105: 1 | BF105: 1 | BG105: 1 | BH105: 1 | BI105: 1 | BJ105: 1 | BK105: 1 | BL105: 1 | BM105: 1 | BN105: 1 | BO105: 1 | BP105: 1 | BQ105: 1 | BR105: 1 | BS105: 1 | BT105: 1 | BU105: 1 | BV105: 1 | BW105: 1 | BX105: 1 | BY105: 1 | BZ105: 1 | CA105: 1 | CB105: 1 | CC105: 1
A106: KWINANA | B106: 0 | C106: 0 | D106: 0 | E106: 0 | F106: 0 | G106: 0 | H106: 0 | I106: 0 | J106: 0 | K106: 0 | L106: 0 | M106: 0 | N106: 0 | O106: 0 | P106: 0 | Q106: 0 | R106: 0 | S106: 0 | T106: 0 | U106: 0 | V106: 0 | W106: 0 | X106: 0 | Y106: 0 | Z106: 0 | AA106: 0 | AB106: 0 | AC106: 0 | AD106: 0 | AE106: 0 | AF106: 0 | AG106: 0 | AH106: 0 | AI106: 0 | AJ106: 0 | AK106: 0 | AL106: 0 | AM106: 0 | AN106: 0 | AO106: 0 | AP106: 1 | AQ106: 1 | AR106: 1 | AS106: 1 | AT106: 1 | AU106: 1 | AV106: 1 | AW106: 1 | AX106: 1 | AY106: 1 | AZ106: 1 | BA106: 1 | BB106: 1 | BC106: 1 | BD106: 1 | BE106: 1 | BF106: 1 | BG106: 1 | BH106: 1 | BI106: 1 | BJ106: 1 | BK106: 1 | BL106: 1 | BM106: 1 | BN106: 1 | BO106: 1 | BP106: 1 | BQ106: 1 | BR106: 1 | BS106: 1 | BT106: 1 | BU106: 1 | BV106: 1 | BW106: 1 | BX106: 1 | BY106: 1 | BZ106: 1 | CA106: 1 | CB106: 1 | CC106: 1
A107: MANDURAH | B107: 0 | C107: 0 | D107: 0 | E107: 0 | F107: 0 | G107: 0 | H107: 0 | I107: 0 | J107: 0 | K107: 0 | L107: 0 | M107: 0 | N107: 0 | O107: 0 | P107: 0 | Q107: 0 | R107: 0 | S107: 0 | T107: 0 | U107: 0 | V107: 0 | W107: 0 | X107: 0 | Y107: 0 | Z107: 0 | AA107: 0 | AB107: 0 | AC107: 0 | AD107: 0 | AE107: 0 | AF107: 0 | AG107: 0 | AH107: 0 | AI107: 0 | AJ107: 0 | AK107: 0 | AL107: 0 | AM107: 0 | AN107: 0 | AO107: 0 | AP107: 1 | AQ107: 1 | AR107: 1 | AS107: 1 | AT107: 1 | AU107: 1 | AV107: 1 | AW107: 1 | AX107: 1 | AY107: 1 | AZ107: 1 | BA107: 1 | BB107: 1 | BC107: 1 | BD107: 1 | BE107: 1 | BF107: 1 | BG107: 1 | BH107: 1 | BI107: 1 | BJ107: 1 | BK107: 1 | BL107: 1 | BM107: 1 | BN107: 1 | BO107: 1 | BP107: 1 | BQ107: 1 | BR107: 1 | BS107: 1 | BT107: 1 | BU107: 1 | BV107: 1 | BW107: 1 | BX107: 1 | BY107: 1 | BZ107: 1 | CA107: 1 | CB107: 1 | CC107: 1
A108: MELVILLE | B108: 0 | C108: 0 | D108: 0 | E108: 0 | F108: 0 | G108: 0 | H108: 0 | I108: 0 | J108: 0 | K108: 0 | L108: 0 | M108: 0 | N108: 0 | O108: 0 | P108: 0 | Q108: 0 | R108: 0 | S108: 0 | T108: 0 | U108: 0 | V108: 0 | W108: 0 | X108: 0 | Y108: 0 | Z108: 0 | AA108: 0 | AB108: 0 | AC108: 0 | AD108: 0 | AE108: 0 | AF108: 0 | AG108: 0 | AH108: 0 | AI108: 0 | AJ108: 0 | AK108: 0 | AL108: 0 | AM108: 0 | AN108: 0 | AO108: 0 | AP108: 1 | AQ108: 1 | AR108: 1 | AS108: 1 | AT108: 1 | AU108: 1 | AV108: 1 | AW108: 1 | AX108: 1 | AY108: 1 | AZ108: 1 | BA108: 1 | BB108: 1 | BC108: 1 | BD108: 1 | BE108: 1 | BF108: 1 | BG108: 1 | BH108: 1 | BI108: 1 | BJ108: 1 | BK108: 1 | BL108: 1 | BM108: 1 | BN108: 1 | BO108: 1 | BP108: 1 | BQ108: 1 | BR108: 1 | BS108: 1 | BT108: 1 | BU108: 1 | BV108: 1 | BW108: 1 | BX108: 1 | BY108: 1 | BZ108: 1 | CA108: 1 | CB108: 1 | CC108: 1
A109: MOSMAN PARK | B109: 0 | C109: 0 | D109: 0 | E109: 0 | F109: 0 | G109: 0 | H109: 0 | I109: 0 | J109: 0 | K109: 0 | L109: 0 | M109: 0 | N109: 0 | O109: 0 | P109: 0 | Q109: 0 | R109: 0 | S109: 0 | T109: 0 | U109: 0 | V109: 0 | W109: 0 | X109: 0 | Y109: 0 | Z109: 0 | AA109: 0 | AB109: 0 | AC109: 0 | AD109: 0 | AE109: 0 | AF109: 0 | AG109: 0 | AH109: 0 | AI109: 0 | AJ109: 0 | AK109: 0 | AL109: 0 | AM109: 0 | AN109: 0 | AO109: 0 | AP109: 1 | AQ109: 1 | AR109: 1 | AS109: 1 | AT109: 1 | AU109: 1 | AV109: 1 | AW109: 1 | AX109: 1 | AY109: 1 | AZ109: 1 | BA109: 1 | BB109: 1 | BC109: 1 | BD109: 1 | BE109: 1 | BF109: 1 | BG109: 1 | BH109: 1 | BI109: 1 | BJ109: 1 | BK109: 1 | BL109: 1 | BM109: 1 | BN109: 1 | BO109: 1 | BP109: 1 | BQ109: 1 | BR109: 1 | BS109: 1 | BT109: 1 | BU109: 1 | BV109: 1 | BW109: 1 | BX109: 1 | BY109: 1 | BZ109: 1 | CA109: 1 | CB109: 1 | CC109: 1
A110: MUNDARING | B110: 0 | C110: 0 | D110: 0 | E110: 0 | F110: 0 | G110: 0 | H110: 0 | I110: 0 | J110: 0 | K110: 0 | L110: 0 | M110: 0 | N110: 0 | O110: 0 | P110: 0 | Q110: 0 | R110: 0 | S110: 0 | T110: 0 | U110: 0 | V110: 0 | W110: 0 | X110: 0 | Y110: 0 | Z110: 0 | AA110: 0 | AB110: 0 | AC110: 0 | AD110: 0 | AE110: 0 | AF110: 0 | AG110: 0 | AH110: 0 | AI110: 0 | AJ110: 0 | AK110: 0 | AL110: 0 | AM110: 0 | AN110: 0 | AO110: 0 | AP110: 1 | AQ110: 1 | AR110: 1 | AS110: 1 | AT110: 1 | AU110: 1 | AV110: 1 | AW110: 1 | AX110: 1 | AY110: 1 | AZ110: 1 | BA110: 1 | BB110: 1 | BC110: 1 | BD110: 1 | BE110: 1 | BF110: 1 | BG110: 1 | BH110: 1 | BI110: 1 | BJ110: 1 | BK110: 1 | BL110: 1 | BM110: 1 | BN110: 1 | BO110: 1 | BP110: 1 | BQ110: 1 | BR110: 1 | BS110: 1 | BT110: 1 | BU110: 1 | BV110: 1 | BW110: 1 | BX110: 1 | BY110: 1 | BZ110: 1 | CA110: 1 | CB110: 1 | CC110: 1
A111: MURRAY | B111: 0 | C111: 0 | D111: 0 | E111: 0 | F111: 0 | G111: 0 | H111: 0 | I111: 0 | J111: 0 | K111: 0 | L111: 0 | M111: 0 | N111: 0 | O111: 0 | P111: 0 | Q111: 0 | R111: 0 | S111: 0 | T111: 0 | U111: 0 | V111: 0 | W111: 0 | X111: 0 | Y111: 0 | Z111: 0 | AA111: 0 | AB111: 0 | AC111: 0 | AD111: 0 | AE111: 0 | AF111: 0 | AG111: 0 | AH111: 0 | AI111: 0 | AJ111: 0 | AK111: 0 | AL111: 0 | AM111: 0 | AN111: 0 | AO111: 0 | AP111: 1 | AQ111: 1 | AR111: 1 | AS111: 1 | AT111: 1 | AU111: 1 | AV111: 1 | AW111: 1 | AX111: 1 | AY111: 1 | AZ111: 1 | BA111: 1 | BB111: 1 | BC111: 1 | BD111: 1 | BE111: 1 | BF111: 1 | BG111: 1 | BH111: 1 | BI111: 1 | BJ111: 1 | BK111: 1 | BL111: 1 | BM111: 1 | BN111: 1 | BO111: 1 | BP111: 1 | BQ111: 1 | BR111: 1 | BS111: 1 | BT111: 1 | BU111: 1 | BV111: 1 | BW111: 1 | BX111: 1 | BY111: 1 | BZ111: 1 | CA111: 1 | CB111: 1 | CC111: 1
A112: NEDLANDS | B112: 0 | C112: 0 | D112: 0 | E112: 0 | F112: 0 | G112: 0 | H112: 0 | I112: 0 | J112: 0 | K112: 0 | L112: 0 | M112: 0 | N112: 0 | O112: 0 | P112: 0 | Q112: 0 | R112: 0 | S112: 0 | T112: 0 | U112: 0 | V112: 0 | W112: 0 | X112: 0 | Y112: 0 | Z112: 0 | AA112: 0 | AB112: 0 | AC112: 0 | AD112: 0 | AE112: 0 | AF112: 0 | AG112: 0 | AH112: 0 | AI112: 0 | AJ112: 0 | AK112: 0 | AL112: 0 | AM112: 0 | AN112: 0 | AO112: 0 | AP112: 1 | AQ112: 1 | AR112: 1 | AS112: 1 | AT112: 1 | AU112: 1 | AV112: 1 | AW112: 1 | AX112: 1 | AY112: 1 | AZ112: 1 | BA112: 1 | BB112: 1 | BC112: 1 | BD112: 1 | BE112: 1 | BF112: 1 | BG112: 1 | BH112: 1 | BI112: 1 | BJ112: 1 | BK112: 1 | BL112: 1 | BM112: 1 | BN112: 1 | BO112: 1 | BP112: 1 | BQ112: 1 | BR112: 1 | BS112: 1 | BT112: 1 | BU112: 1 | BV112: 1 | BW112: 1 | BX112: 1 | BY112: 1 | BZ112: 1 | CA112: 1 | CB112: 1 | CC112: 1
A113: PEPPERMINT GROVE | B113: 0 | C113: 0 | D113: 0 | E113: 0 | F113: 0 | G113: 0 | H113: 0 | I113: 0 | J113: 0 | K113: 0 | L113: 0 | M113: 0 | N113: 0 | O113: 0 | P113: 0 | Q113: 0 | R113: 0 | S113: 0 | T113: 0 | U113: 0 | V113: 0 | W113: 0 | X113: 0 | Y113: 0 | Z113: 0 | AA113: 0 | AB113: 0 | AC113: 0 | AD113: 0 | AE113: 0 | AF113: 0 | AG113: 0 | AH113: 0 | AI113: 0 | AJ113: 0 | AK113: 0 | AL113: 0 | AM113: 0 | AN113: 0 | AO113: 0 | AP113: 1 | AQ113: 1 | AR113: 1 | AS113: 1 | AT113: 1 | AU113: 1 | AV113: 1 | AW113: 1 | AX113: 1 | AY113: 1 | AZ113: 1 | BA113: 1 | BB113: 1 | BC113: 1 | BD113: 1 | BE113: 1 | BF113: 1 | BG113: 1 | BH113: 1 | BI113: 1 | BJ113: 1 | BK113: 1 | BL113: 1 | BM113: 1 | BN113: 1 | BO113: 1 | BP113: 1 | BQ113: 1 | BR113: 1 | BS113: 1 | BT113: 1 | BU113: 1 | BV113: 1 | BW113: 1 | BX113: 1 | BY113: 1 | BZ113: 1 | CA113: 1 | CB113: 1 | CC113: 1
A114: PERTH | B114: 0 | C114: 0 | D114: 0 | E114: 0 | F114: 0 | G114: 0 | H114: 0 | I114: 0 | J114: 0 | K114: 0 | L114: 0 | M114: 0 | N114: 0 | O114: 0 | P114: 0 | Q114: 0 | R114: 0 | S114: 0 | T114: 0 | U114: 0 | V114: 0 | W114: 0 | X114: 0 | Y114: 0 | Z114: 0 | AA114: 0 | AB114: 0 | AC114: 0 | AD114: 0 | AE114: 0 | AF114: 0 | AG114: 0 | AH114: 0 | AI114: 0 | AJ114: 0 | AK114: 0 | AL114: 0 | AM114: 0 | AN114: 0 | AO114: 0 | AP114: 1 | AQ114: 1 | AR114: 1 | AS114: 1 | AT114: 1 | AU114: 1 | AV114: 1 | AW114: 1 | AX114: 1 | AY114: 1 | AZ114: 1 | BA114: 1 | BB114: 1 | BC114: 1 | BD114: 1 | BE114: 1 | BF114: 1 | BG114: 1 | BH114: 1 | BI114: 1 | BJ114: 1 | BK114: 1 | BL114: 1 | BM114: 1 | BN114: 1 | BO114: 1 | BP114: 1 | BQ114: 1 | BR114: 1 | BS114: 1 | BT114: 1 | BU114: 1 | BV114: 1 | BW114: 1 | BX114: 1 | BY114: 1 | BZ114: 1 | CA114: 1 | CB114: 1 | CC114: 1
A115: ROCKINGHAM | B115: 0 | C115: 0 | D115: 0 | E115: 0 | F115: 0 | G115: 0 | H115: 0 | I115: 0 | J115: 0 | K115: 0 | L115: 0 | M115: 0 | N115: 0 | O115: 0 | P115: 0 | Q115: 0 | R115: 0 | S115: 0 | T115: 0 | U115: 0 | V115: 0 | W115: 0 | X115: 0 | Y115: 0 | Z115: 0 | AA115: 0 | AB115: 0 | AC115: 0 | AD115: 0 | AE115: 0 | AF115: 0 | AG115: 0 | AH115: 0 | AI115: 0 | AJ115: 0 | AK115: 0 | AL115: 0 | AM115: 0 | AN115: 0 | AO115: 0 | AP115: 1 | AQ115: 1 | AR115: 1 | AS115: 1 | AT115: 1 | AU115: 1 | AV115: 1 | AW115: 1 | AX115: 1 | AY115: 1 | AZ115: 1 | BA115: 1 | BB115: 1 | BC115: 1 | BD115: 1 | BE115: 1 | BF115: 1 | BG115: 1 | BH115: 1 | BI115: 1 | BJ115: 1 | BK115: 1 | BL115: 1 | BM115: 1 | BN115: 1 | BO115: 1 | BP115: 1 | BQ115: 1 | BR115: 1 | BS115: 1 | BT115: 1 | BU115: 1 | BV115: 1 | BW115: 1 | BX115: 1 | BY115: 1 | BZ115: 1 | CA115: 1 | CB115: 1 | CC115: 1
A116: SERPENTINE-JARRAHDALE | B116: 0 | C116: 0 | D116: 0 | E116: 0 | F116: 0 | G116: 0 | H116: 0 | I116: 0 | J116: 0 | K116: 0 | L116: 0 | M116: 0 | N116: 0 | O116: 0 | P116: 0 | Q116: 0 | R116: 0 | S116: 0 | T116: 0 | U116: 0 | V116: 0 | W116: 0 | X116: 0 | Y116: 0 | Z116: 0 | AA116: 0 | AB116: 0 | AC116: 0 | AD116: 0 | AE116: 0 | AF116: 0 | AG116: 0 | AH116: 0 | AI116: 0 | AJ116: 0 | AK116: 0 | AL116: 0 | AM116: 0 | AN116: 0 | AO116: 0 | AP116: 1 | AQ116: 1 | AR116: 1 | AS116: 1 | AT116: 1 | AU116: 1 | AV116: 1 | AW116: 1 | AX116: 1 | AY116: 1 | AZ116: 1 | BA116: 1 | BB116: 1 | BC116: 1 | BD116: 1 | BE116: 1 | BF116: 1 | BG116: 1 | BH116: 1 | BI116: 1 | BJ116: 1 | BK116: 1 | BL116: 1 | BM116: 1 | BN116: 1 | BO116: 1 | BP116: 1 | BQ116: 1 | BR116: 1 | BS116: 1 | BT116: 1 | BU116: 1 | BV116: 1 | BW116: 1 | BX116: 1 | BY116: 1 | BZ116: 1 | CA116: 1 | CB116: 1 | CC116: 1
A117: SOUTH PERTH | B117: 0 | C117: 0 | D117: 0 | E117: 0 | F117: 0 | G117: 0 | H117: 0 | I117: 0 | J117: 0 | K117: 0 | L117: 0 | M117: 0 | N117: 0 | O117: 0 | P117: 0 | Q117: 0 | R117: 0 | S117: 0 | T117: 0 | U117: 0 | V117: 0 | W117: 0 | X117: 0 | Y117: 0 | Z117: 0 | AA117: 0 | AB117: 0 | AC117: 0 | AD117: 0 | AE117: 0 | AF117: 0 | AG117: 0 | AH117: 0 | AI117: 0 | AJ117: 0 | AK117: 0 | AL117: 0 | AM117: 0 | AN117: 0 | AO117: 0 | AP117: 1 | AQ117: 1 | AR117: 1 | AS117: 1 | AT117: 1 | AU117: 1 | AV117: 1 | AW117: 1 | AX117: 1 | AY117: 1 | AZ117: 1 | BA117: 1 | BB117: 1 | BC117: 1 | BD117: 1 | BE117: 1 | BF117: 1 | BG117: 1 | BH117: 1 | BI117: 1 | BJ117: 1 | BK117: 1 | BL117: 1 | BM117: 1 | BN117: 1 | BO117: 1 | BP117: 1 | BQ117: 1 | BR117: 1 | BS117: 1 | BT117: 1 | BU117: 1 | BV117: 1 | BW117: 1 | BX117: 1 | BY117: 1 | BZ117: 1 | CA117: 1 | CB117: 1 | CC117: 1
A118: STIRLING | B118: 0 | C118: 0 | D118: 0 | E118: 0 | F118: 0 | G118: 0 | H118: 0 | I118: 0 | J118: 0 | K118: 0 | L118: 0 | M118: 0 | N118: 0 | O118: 0 | P118: 0 | Q118: 0 | R118: 0 | S118: 0 | T118: 0 | U118: 0 | V118: 0 | W118: 0 | X118: 0 | Y118: 0 | Z118: 0 | AA118: 0 | AB118: 0 | AC118: 0 | AD118: 0 | AE118: 0 | AF118: 0 | AG118: 0 | AH118: 0 | AI118: 0 | AJ118: 0 | AK118: 0 | AL118: 0 | AM118: 0 | AN118: 0 | AO118: 0 | AP118: 1 | AQ118: 1 | AR118: 1 | AS118: 1 | AT118: 1 | AU118: 1 | AV118: 1 | AW118: 1 | AX118: 1 | AY118: 1 | AZ118: 1 | BA118: 1 | BB118: 1 | BC118: 1 | BD118: 1 | BE118: 1 | BF118: 1 | BG118: 1 | BH118: 1 | BI118: 1 | BJ118: 1 | BK118: 1 | BL118: 1 | BM118: 1 | BN118: 1 | BO118: 1 | BP118: 1 | BQ118: 1 | BR118: 1 | BS118: 1 | BT118: 1 | BU118: 1 | BV118: 1 | BW118: 1 | BX118: 1 | BY118: 1 | BZ118: 1 | CA118: 1 | CB118: 1 | CC118: 1
